Workbook

Sheet Pre-app Cover
A13: MULTIFAMILY HOUSING
A15: 2025-2026 FINANCING AND
A17: LIHTC PRE-APPLICATION
I48: Effective: June 4, 2024

Sheet Cover (hidden)
A13: MULTIFAMILY HOUSING
A15: ='Pre-app Cover'!A15 -> 2025-2026 FINANCING AND
A17: LIHTC APPLICATION
I48: ='Pre-app Cover'!I48 -> Effective: June 4, 2024

Sheet Fee Schedule
A1: FEE SCHEDULE
A3: Below is an overview of required MaineHousing Application/LIHTC fees:
B6: A) | C6: Site Review and Evaluation
D8: $2000 per pre-application, submitted with pre-application
D9: materials as specified in Appendix B of the QAP
D10: Due on or before 7/3/2024 for 2025 9% Credits
D11: Due on or before 7/3/2025 for 2026 9% Credits
D12: Due date for 2025 Tax-Exempt Projects will be included in the RFP
B14: B) | C14: Multifamily Application Fee
C15: (Taxable Debt, Tax-exempt Debt and/or Subsidy)
D17: $1,000 per application
D18: Due at time of application
D19: plus
D20: $2,000 Commitment Fee
D21: Due at Construction Loan Closing
D22: plus
D23: 2% of the interest bearing debt
D24: or
D25: 1.75% of the construction loan
D26: Whichever is greater
D27: Due at Construction Loan Closing
B30: C) | C30: Low Income Housing Tax Credit Fees
D32: Application for LIHTC
D33: $2,500 per application
D34: Due at time of application
D35: For 2025 9% Credits must be postmarked by 9/19/2024
D36: For 2026 9% Credits must be postmarked by 9/18/2025
D37: Due date for 2025 Tax-Exempt Projects will be included in the RFP
D39: Allocation Fee
D40: 7.5% of Annual Credit Dollar Amount.
D41: Due at Request for Allocation
D44: Monitoring
D45: $1000 one time fee per qualified low income unit
D46: Due Prior to Issuance of Form 8609

Sheet Certification (hidden)
A1: MAINE STATE HOUSING AUTHORITY
A2: MULTIFAMILY HOUSING FINANCING APPLICATION
G3: ='Project Information'!D4 -> Project Name
A4: THE APPLICATION MUST BE COMPLETE.
B6: The Application is broken down and organized by the following sections, each designated by a tab:
B8: • | C8: Threshold Documentation | G8: • | H8: Utility Allowance
B9: • | C9: Scoring Documentation | G9: • | H9: Project Income
B10: • | C10: Applicant Information | G10: • | H10: Operating Budget & Addtnl Operating Exp Info
B11: • | C11: Conflict of Interest | G11: • | H11: Construction Costs
B12: • | C12: Tax Credit Compliance | G12: • | H12: Project Cost and Basis & Addtnl Prj Cost Info
B13: • | C13: Project Information & Addtnl Prj Info | G13: • | H13: Tax Credit Calculations
B14: • | C14: Building Summary | G14: • | H14: Sources
B15: • | C15: Building Tabulations | G15: • | H15: NPV-PV Calculations, if ncessary
B16: • | C16: Current Rent Roll, if ncessary | H16: (for Below Market Funding scoring)
B17: • | C17: Proposed Rent Roll, if ncessary | G17: • | H17: Project Completion Schedule
B19: Capitalized terms used in the Application are defined in the 2023-2024 Qualified Allocation Plan.
B21: You must complete all of the information under each tab, unless otherwise indicated, and submit all documentation required under the Threshold Submissions Tab to be eligible for low-income housing tax credits and financing from MaineHousing.
B22: You must complete all of the information and submit all documentation required under the Scoring Submissions Tab with respect to a scoring criteria to be eligible for the points under the scoring criteria.
B24: AUTHORIZATION
B26: By electronically submitting this application to MaineHousing, the applicant authorizes MaineHousing to:
B27: • | C27: verify the accuracy and completeness of any financial information or other information provided in the application or the documentation submitted with the application;
B28: • | C28: investigate the credit, financial condition, professional capacity, business standing and employment of the applicant, any principal of the applicant or principal thereof or any member of the applicant’s Development Team;
B29: • | C29: issue an inducement resolution or take any other actions that constitute “official action” for purposes of qualifying the project described in the application for tax-exempt bonds; and
B30: • | C30: disclose any and all information provided by the applicant or in connection with the application as MaineHousing deems necessary to achieve the foregoing and otherwise evaluate the application, including without limitation discussing this application with any lender, municipal official, vendor or other party with an interest in the project described in the Application, or as required by or allowed under applicable state and federal law.
M34: =G3 -> Project Name
C35: CERTIFICATION
B37: By electronically submitting this Application to MaineHousing, the Applicant hereby certifies and represents that:
B38: • | C38: The submission of this Application is fully authorized by or on behalf of the Applicant;
B39: • | C39: The representations, information and documentation provided in or submitted with this Application are true, accurate and complete;
B40: • | C40: The Applicant, any principal or affiliate thereof, and any entity controlled by the Applicant, principal or affiliate thereof are not insolvent or the subject of any proceeding or arrangement for relief from creditors, including without limitation bankruptcy, and have not in the last 6 months been declared in default or been 60 days or more delinquent or, if so, have an approved payment or workout plan in place and in good standing;
B41: • | C41: The Applicant, any principal or affiliate thereof, and any entity controlled by the Applicant, principal or affiliate thereof have never been the owner of any MaineHousing-financed property on which MaineHousing has foreclosed a mortgage interest, or MaineHousing has issued a written waiver thereof for justifiable public policy reasons set forth in the waiver;
B42: • | C42: The Applicant, any principal or affiliate thereof, and any entity controlled by the Applicant, principal or affiliate thereof, are not presently debarred, suspended, proposed for debarment or excluded from participation in any federal or state programs;
B43: • | C43: A preference in the occupancy of the project described in the Application will be given to persons who are currently on a public housing or Section 8 waiting list, or no preference will be given because the project described in the Application is or will be financed by Rural Development or receives rental assistance under the Section 8 Project-Based Rental Assistance Program;
B44: • | C44: The Applicant is familiar with and agrees to comply with all provisions and requirements under MaineHousing’s Qualified Allocation Plan, MaineHousing’s Rental Loan Program (if applying for financing thereunder) and Section 42 of the Internal Revenue Code of 1986 and all associated regulations and guidance as same may be amended; and
B45: • | C45: The Applicant is familiar with and agrees to comply with and to design, construct and operate the project described in the Application in accordance with Title VIII of the Civil Rights Act of 1968, as amended, and HUD’s regulations at 24 C.F.R. Part 100-115 (Federal Fair Housing Act), Section 504 of the Rehabilitation Act of 1973 and HUD's housing regulations at 24 C.F.R. Part 8, Title II and Title III of the Americans with Disabilities Act of 1990 and the 2010 Standards of Accessible Design, the Maine Human Rights Act, and all other applicable federal and State laws pertaining to fair housing, equal opportunity and accessibility, and all regulations and guidance associated with the foregoing, as any of the foregoing may be amended.
B46: • | C46: The Applicant agrees to include MaineHousing in all correspondence with all parties that will or may potentially provide funding for the development and operation of the project described in the Application, including but not limited to equity investors, construction lenders, permanent lenders, service providers and providers of project-based rental assistance and other operating subsidy.
B47: THE APPLICATION WILL NOT BE ACCEPTED, APPROVED OR PROCESSED IF ANY OF THE FOREGOING REPRESENTATIONS OR CERTIFICATIONS IS OR BECOMES INCORRECT OR UNTRUE ON OR AFTER THE SUBMISSION OF THE APPLICATION.

Sheet Threshold Documentation
A1: MaineHousing | D1: ='Project Information'!D4 -> Project Name
A2: THRESHOLD CATEGORIES - required documentation checklist
A3: Instructions: For each category, the specified document(s) MUST be submitted and/or the specified tab(s) MUST be completed. For documents uploaded to Sharefile, you MUST use the Document Number and Name as the name of the file submitted. All of the white boxes are drop downs. Please choose accordingly.
A4: Document Number and Name | B4: Document(s) uploaded to Sharefile? | C4: Application Tab(s) completed? | D4: Submission requirements
A5: 5A. Affordability
A6: 5A1. Compliance with Section 42 and QAP | D6: Complete the Project Information tab and Project Income tab
A7: 5A2. Waives Right to present Qualified Contract | B7: N/A | C7: N/A | D7: Submission of this application constitutes the waiver
A8: 5A3. Letter of Intent from Investor | D8: See Appendix E of QAP
A9: 5A4. Letter of Intent from Investor (Non-Profit) | D9: See Appendix E of QAP
A10: 5B. Section 811 | B10: N/A | C10: N/A | D10: See Certification tab
A11: 5B. Maximum Total Development Cost | D11: Complete the Project Cost and Basis tab
A12: 5C. Acquisiton/Rehab of Existing Housing | D12: Complete the Project Information tab
A13: 5C1. Capital Needs Assessment | D13: Capital Needs Assessment in accordance with the requirements in the Qualified Allocation Plan
D14: Complete Project Cost and Basis tab
D15: Include any acquired project reserves as a source of funds in the Sources tab
A16: 5C2. Minimum Rehab | D16: Complete Construction Costs Tab
A17: 5C3. Tenant Relocation/Displacement | D17: Complete Project Cost and Basis tab
D18: If the project is existing affordable housing, check the Preservation Set-Aside box in the Project Information tab.
A19: 5C4. Affordability Covenants | D19: Complete copy (including all amendments) of any existing affordability covenants that apply to the project.
A20: 5C5. Rental Assistance Contract(s) | D20: Complete copy (including all amendments) of any rental assistance contract(s) and a written description of the status of any upcoming renewals or extensions
A21: 5D. Development and Management Experience and Capacity | D21: Complete the Applicant Information tab. Note: The Applicant must be the Owner, or the Project developer if the Owner is not legally formed.
A22: 5D1. Owner Tax ID Number | D22: IRS Tax ID (EIN) Number Form for the Owner (unless the Owner has not been legally formed at the time of Application)
A23: 5D2. Organizational Chart | D23: An organizational chart or a narrative describing the proposed organizational structure of the Owner
A24: 5E3. Owner Organizational Documents | D24: Organizational documents for the Owner (unless the Owner has not been legally formed at the time of Application). The required organizational documents by type of entity are set forth below in the Organizational Documents by Entity Type table
A25: 5D4. Principal Organizational Documents | D25: Organizational documents for all Principals of the Owner (even if the Owner has not been legally formed at the time of Application), including all general partner(s), manager(s) or managing member(s) of the Owner, and all principals of the general partner(s), manager(s) or managing member(s) of the Owner. The required organizational documents by type of entity are set forth below in the Organizational Documents by Entity Type table
D26: Organizational Documents by Entity Type
D27: Limited Partnership - A complete copy (including all amendments) of the limited partnership agreement and the Certificate of Limited Partnership from the state in which it is formed
D28: Limited Liability Company - A complete copy (including all amendments) of the operating agreement and the Articles of Organization from the state in which it is formed.
D29: Corporation - A complete copy (including all amendments) of the by-laws and the Articles of Incorporation from the state in which it is formed, and a clerk's certificate identifying all current directors and officers or members for member-run non-profit corporations
D30: General Partnership - A complete copy (including all amendments) of the partnership agreement and a certificate identifying all current partners
D31: Public or Tribal Housing Authority - A complete copy (including all amendments) of the charter or resolution establishing the housing authority
A32: 5D5. Owner Certificate of Good Standing | D32: Certificate of good standing or legal existence for the Owner (unless the Owner has not been legally formed at the time of Application) from the state in which the entity is legally formed.
A33: 5D6. Certificate(s) of Good Standing for all Principal(s) | D33: Certificate of good standing or legal existence for all Principals of the Owner (even if the Owner has not been legally formed at the time of Application) from the state in which the entity(ies) is(are) legally formed.
A34: 5D7. Financial Statements for all Principal(s) | D34: Financial Statements for all Principals of the Owner, preferrably audited by an independent accounting firm.
A35: 5D8. Team Members | D35: Indentify the Development Team in the Applicant Information tab
A36: 5D9. Project Developer Tax ID Number | D36: IRS Tax ID (EIN) Number Form for the Project developer
A37: 5D10. Project Developer Organizational Documents | D37: Organizational documents for the Project developer. The required organizational documents by type of entity are set forth in the Organizational Documents by Entity Type table.
A38: 5D11. Project Developer Certificate of Good Standing | D38: Certificate of good standing or legal existence for the Project Developer from the state in which the entity is legally formed.
A39: 5D12. Financial Statements of the Developer | D39: Financial Statements for Developer, if different from the Principals of the Owner, preferrably audited by an independent accounting firm.
A40: 5D13. Development Team Resumes | D40: Resumes for all members of the Development Team identified in the Applicant Information tab
A41: 5E. Site Control | D41: Complete the Project Information tab
A42: 5E1. Site Control Documents | D42: Complete copy (including all amendments and extensions) of all forms of site control that apply to the Project
A43: 5E2. Seller Authority | D43: If seller is not an individual, Evidence of authority of seller to transfer the property described in the site control documents (e.g. corporate resolution or consent of all partners or members required under seller's organizational documents)
A44: 5E3. Restrictive Covenants | D44: Submit a complete copy of all restrictive covenants (including all amendments) on the Project, not already submitted under Section 5.D.2. above
A45: 5F. Growth Management Law | D45: If the municipality in which the Project is located has adopted a comprehensive plan or growth management plan that is consistent with the State’s Growth Management Law, submit the following documentation:
A46: 5F1. Letter from Town Official | D46: (1) A letter from the town manager or the city planning director of the municipality in which the Project is located (1) identifying the municipality’s comprehensive plan or growth management plan and the date of its adoption by the municipality and (2) verifying that the plan was duly adopted by the municipality, the plan is consistent with the State’s Growth Management Law and the Project is located in a growth area designated in the plan, and
A47: 5F2. Copy of the Plan | D47: (2) A copy of the front page and index of the municipality’s comprehensive plan or growth management plan and all portions of the plan defining and describing the designated growth areas in the municipality and any maps showing the designated growth areas
D48: If the municipality in which the Project is located has not adopted a comprehensive plan or growth management plan that is consistent with the State’s Growth Management Law, submit one or more of the following:
A49: 5F3. Other Documentation | D49: Letter from the chief official of the municipality’s sewer district verifying the Project will be served by a public sewer system with existing capacity to serve the Project; or Verification from the market study analyst or other acceptable evidence that the Project will be located in a Census-designated Place in the latest Federal Decennial Census; or Letter from the town manager or the city planning director of the municipality in which the Project is located verifying that the Project will be located in a compact area of an urban compact municipality.
A50: 5G. Project Feasibility | D50: Complete the Project Income tab and the Utility Allowance tab
D51: Complete the Operating Budget tab
D52: Complete the Construction Costs tab, the Project Costs & Basis tab and the Tax Credit Calculation tab
D53: Complete the Sources tab
A54: 5G1. Construction Lender Documents | D54: Current letter of interest, intent, term sheet or a commitment from a construction lender to provide construction financing tor the Project that includes the loan amount, the interest rate, the term, the repayment terms, any points, any fees (e.g. commitment, origination, etc.) and any unique conditions or requirements
A55: 5G2. LIHTC Syndication Letter | D55: Current letter of interest or intent from an acceptable tax credit investor(s) or syndicator(s) to purchase an ownership interest in the Owner in connection with the Credit that includes the pricing, amount, terms and conditions of the purchase
A56: 5G3. Historic Credit Syndication Letter | D56: Current letter of interest or intent from an acceptable tax credit investor(s) or syndicator(s) to purchase an ownership interest in the Owner in connection with any federal and state historic rehabilitation tax credits that includes the pricing, amount, terms and conditions in connection with the purchase and identification of the Special Limited Partner for the SHTC
A57: 5G4. Permanent Financing Commitment(s) | D57: Current letter of award or commitment letter from all non-MaineHousing permanent funding sources that includes the amount of the funding, the interest rate, the term, the repayment terms, any points, any fees (e.g. commitment, origination, etc.) and any unique conditions or requirements
A58: 5G5. Description of Permanent Financing not yet committed | D58: If no letter of award or commitment of any proposed permanent financing has been issued at the time of the Application, submit a description of the permanent financing including (1) the funding source, (2) the application date and the anticipated date that awards will be decided, and (3) the terms of the funding, including the amount, the interest rate, the term, the repayment terms, any points, any fees (e.g. commitment, origination, etc.) and any unique conditions or requirements
A59: 5G6. Rental Assistance Transition Plan | D59: If the project-based rental assistance may terminate or is subject to renewal during the tax credit period (i.e. 15 years), submit (1) a written explanation of the impact on the continued operation of the Project after the termination or non-renewal, and (2) a pro forma operating statement for a period of 5 years after the possible termination or non-renewal of the contract that shows the impact of transitioning from the contract rent(s) to the applicable tax credit rent(s).
A60: 5G7. History of Use and Ownership | D60: If you are applying for low-income housing tax credits for the acquisition of an existing building(s), submit: (1) a detailed history of the use and ownership of each building for at least the last 10 years, including the use(s) of each building, the placed in service date(s) of each building and the name of the seller and prior owner(s) of each building, and (2) if the seller is related to the Owner of the Project, identify all entities and individuals that own an interest in the seller and own/will own an interest in the Owner and their respective ownership interests.
D61: If the Application includes a request for Credit for a community service facility, submit all of the following:
A62: 5G8. Description of Community Service Facility | D62: (1) Narrative describing the facility, including:
D63: (a) The location of the facility within the project (must be located on the same tract of land as one of the buildings that is a part of the project); (b) the square footage; (c) the population that will be served by the facility (must serve primarily individuals with income at or below 60% AMI); (d) the services that will be offered at the facility (must improve the quality of life of and be appropriate and helpful to 60% AMI residents in the community); (e) Any fees that will be charged for services are affordable to persons with income at or below 60% AMI or be free; (f) the person or entity who will operate the facility; (g) the operating budget for the facility; and (h) all source(s) of funding for the facility
A64: 5G9. Accountants Opinion | D64: (2) Opinion from the Project’s accountant that the adjusted basis of the building in which the community service facility is located does not exceed the sum of (a) 25% of so much of the eligible basis of the Project of which it is a part as does not exceed $15,000,000 and (b) 10% of so much of the said eligible basis of the Project as exceeds $15,000,000, and
D65: (3) If selected, the Market Study, when commissioned, must conclude that (a) the community service facility will be used to provide services that improve the quality of life for 60% AMI residents in the community, and (b) the services provided are appropriate and helpful to the 60% AMI residents in the community
A66: 5H/I. Project Design and Amenities 5H. Architectural Plans | D66: The schematic to-scale plans that were submitted as part of the Pre-application process are sufficient for the full application unless changes have been made to the plans.
D67: If changes have been made, resubmit the plans that have changed for subsequent review Ensure that electrial raceways/conduits to satisy 5I1 (future level 2 eletric vehicle chargers) and 5I2 (future EV solar panels are clealy labeled
D68: Complete Building Summary tab
A69: 5I1. Architect Tabulations | D69: Complete Building Tabulations tab
A70: 5I2. Offsite Community Room/Laundry | D70: If proposing to use an existing Community Room and/or Laundry Facilities, submit a letter from the owner of the existing community room and/or laundry facilities that the facilities will be available to the tenants of the Project at no cost and on the same terms and conditions as the tenants of the existing housing project served by the amenities, and design documents that show that the existing community room and/or laundry facilities are or will be, with modifications, properly sized and have sufficient capacity to serve all of the tenants of the Project and the existing project.
A71: 5I3. Offsite Areas of Activity | D71: If no areas of activity are located on the Project site, submit (1) a map(s) or other evidence clearly showing the location and distance of the area(s) of activity within ½ mile of the Project site,
D72: and (2) Certification from the Applicant that the identified area(s) of activity will be free of charge to the tenants of the Project and no membership is required to the facilities or equipment.
D73: Complete Project Completion Schedule tab
A74: 5J. Resident Service Coordination 5J1. Service Plan | D74: Detailed service plan which describes all of the supportive services that will be offered, if there are any eligibility requirements, when and how often the services will be offered and where the services will be offered to the tenants of the Project in accordance with the requirements of the Qualified Allocation Plan
A75: 5J2. Service Provider Commitment | D75: Commitment from all service providers who will offer the services described in the service plan, including the Project’s resident service coordinator(s) and other service providers directly offering services to the tenants
A76: 5J3. Service Provider Resume(s) | D76: Resume describing the experience and training of the Project’s resident service coordinator(s) and all service providers that will offer the services described in the service plan
D77: Include the cost of the Resident Services Coordinator and any other costs to the Project in the Operating Budget tab
A78: 5J4. Service Funding Commitment | D78: If funding for resident services is from an external source, submit a commitment of funding from the source
A79: 5K. Smoke Free Housing 5K1. Smoke Free Occupancy Policy | D79: Written occupancy policy for the Project prohibiting smoking in all units and common areas of the Project;
A80: 5K2. Smoke Free Lease Provisions | D80: Written lease provision or addendum to the lease agreement for the Project implementing the policy prohibiting smoking in all units and common areas of the Project
D81: Provisions in the service plan submitted in 5K1 above to make educational materials on tobacco treatment programs, including the phone number for the statewide Maine Tobacco Helpline, available to tenants in the Project and to offer or refer tenants to smoking cessation programs.
A82: 5L. Waiting List Preference | B82: N/A | C82: N/A | D82: See Certification tab

Sheet Scoring Documentation (hidden)
A1: MaineHousing | F1: ='Project Information'!D4 -> Project Name
A2: SCORING CATEGORIES - required documentation checklist
A3: Instructions: For each category/criteria, the specified document(s) must be submitted and/or specified tab(s) must be completed to be eligible for the points under the scroing category/criteria. For documents uploaded to Sharefile, you MUST use the Document Number and Name as the name of the file submitted.
A4: Document Number and Name | B4: Document(s) uploaded to Sharefile? | C4: Application Tab Completed? | D4: N/A or not seeking points | E4: Submission Requirements | F4: Points Available | G4: Self- score | H4: MH- score
A5: 6A - Re-use of Existing Housing, Structures or Sites 6A1 Narrative | E5: Narrative describing the eligiblity of the Project for the points. If the Project involves the re-use of existing housing, the narrative must describe how existing tenant(s) will be protected from displacement and increases in rent of 10% or more, and submit | F5: 5
E6: Current rent roll as of the date of the Application , either by
A7: 6A2 Current Rent Roll | E7: Completing Current Rent Roll tab, or
E8: By providing the same information as required by Current Rent Roll tab in electronic format, including the Certification of the Seller
E9: and by completing the Proposed Rent Roll tab
A10: 6B- Historic Rehabilitation 6B National Park Service Approval | E10: Part I approval signed by the National Park Service indicating that the building(s) that will be rehabilitated as part of the Project is a certified historic structure(s) that (i) is listed individually in the National Register of Historic Places, (ii) is eligible for listing in the National Register of Historic Places, or (iii) contributes to the historic significance of an historic district listed on the National Register of Historic Places or a State or local historic district certified by the Secretary of the Interior | F10: 5
A11: 6C - Preference for Special Needs Populations 6C1 (1) Population and Services | E11: Narrative describing the population being served, the types of services being offered and agreement to maintain a waiting list for persons for whom the set aside is provided, and | F11: 6
A12: 6C1 (2) Service Provider Commitment | E12: a written commitment or letter of support from the service provider that will offer the services
A13: 6D - Family Housing | E13: Project Income tab and Design drawings submitted under Section 5I. specifically showing the number of 2BR and 3BR units planned | F13: up to 6 | G13: ='MH Underwriting'!AC157 -> 0 | H13: ='MH Underwriting'!AC157 -> 0
A14: 6E - Accessibility | B14: N/A | C14: N/A | E14: Show all accessible units (UFAS, ADAAG and Type A units) required by state and federal law and all additional 2009 ANSI Type A units on the schematic to-scale plans submitted under Threshold Criteria 5I | F14: up to 12
A15: 6F - National Housing Trust Fund | B15: N/A | C15: N/A | E15: Adding one point to the Self-score column to commits the Applicant to accept all funding from the National Housing Trust Fund awarded by MaineHousing for the Project and to comply with all applicable requirements of the funding. | F15: 2
A16: 6G - Acquisition Cost | E16: Complete Project Cost and Basis tab | F16: up to 5 | G16: ='Below Mrk Funding & Acq Cost'!F51 -> 0 | H16: ='Below Mrk Funding & Acq Cost'!F51 -> 0
A17: 6H - Property Tax Relief 6H1 Municipal Tax Relief Agreement | E17: A complete copy of the commitment from or agreement with the municipality specifically describing the tax relief arrangement. | F17: up to 3
A18: 6H2 Municipal Vote | E18: The vote or resolution of the governing body of the municipality adopting the tax relief arrangement
A19: 6H3 MaineHousing TIF Approval or DECD TIF Approval | E19: Evidence of approval of other governing entities, such as Certificate of Approval from MaineHousing for an Affordable Housing TIF, or Approval letter from Maine Department of Economic and Community Development for a commercial TIF
A20: 6H4 Beneficiary Tax Relief Agreement | E20: If the municipal tax relief arrangement is not directly with the Project, if the Project is part of a larger tax relief arrangement with a municipality or if the tax relief arrangement is not directly with the municipality, submit a complete copy of the commitment from or the agreement between the beneficiary of the tax relief arrangement and the Owner, specifically describing how the tax relief arrangement will benefit the project
A21: 6I - Housing Need | B21: N/A | C21: N/A | E21: No submission requirement | F21: up to 10
A22: 6J - Community Revitilization | E22: If the Project is located in an area designated by HUD or Rural Development as an Empowerment Zone, a Renewal or Enterprise Community or a Neighborhood Revitalization Strategy Area, submit | F22: 2
A23: 6J1 Verification of Area Designation | E23: Third-party verification that the area is currently designated by HUD or Rural Development as an Empowerment Zone, a Renewal or Enterprise Community or a Neighborhood Revitalization Strategy Area; and
A24: 6J2 Map of Designated Area | E24: Map clearly showing the Project site is located in the designated area
E25: If the Project is part of a municipal community revitalization plan, submit
A26: 6J3 Community Revitalization Plan | E26: Complete copy of the community revitalization plan;
A27: 6J4 Municipal Vote | E27: Copy of the resolution or vote of the governing body of the municipality in which the project is located formally adopting the plan;
A28: 6J5 Map of Target Area | E28: Map of the targeted area clearly showing the Project site is located in the targeted area; and
A29: 6J6 Letter From Municipal Official | E29: Letter from the appropriate municipal official or body which: 1) Describes the process of developing the plan, including the planning effort and public input, 2) Confirms that the plan is still in effect, 3) Confirms the project site is located in the targeted area, and 4) Confirms the project is part of current and ongoing revitalization efforts identified in the plan because it is a specifically identified goal or action or contributes to the goal of rehabilitating or developing housing, including multi-family rental housing
A30: 6J7 Preservation/Diversity Bonus | E30: Check Preservation Set-aside on Project Information Tab or complete the Project Income Tab with the appropriate number of market rate units | F30: up to 3
A31: 6K - Smart Growth | E31: For the purposes in this category all maps used to demonstrate acceptable distances must be generated by readily available internet services or commercial software, preferably Mapquest, Google Maps (free to user version), MSN Livesearch or Google Earth (subscription service), that clearly shows:
E32: 1) the specific address for the entrance to the Project, (Point A) and the designated destinations as described below (Point B); 2) the distance between Point A and Point B in miles or fractions thereof and 3) the exact route from Point A to Point B used in determining the distance which must be a Safe Walking Distance and should not cut across parking lots.
E33: For Fixed-Route Public Transportation, submit | F33: 5
A34: 6K1 Fixed Route Schedule and Map | E34: The schedule and map for the Fixed-route Public Transportation; and a map from the entrance to the Project, (Point A) to the designated pick-up location for the Fixed-Route Public Transportation (Point B)
E35: For Demand Response Transportation, submit | F35: 5
A36: 6K2 Demand Response | E36: The schedule for the Demand Response Transportation service, a brochure, letter or other documentation from the Demand Response Transportation service specifically identifying the eligibility criteria for the Demand Response Transportation service, and a letter from the Demand Response Transportation service confirming that it will provide services to the Project and that all residents of the Project will be served.
E37: For proximity to at least 3 important destinations, submit | F37: up to 5
A38: 6K3 Maps to Each Destination | E38: A Map for each destination from the entrance to the Project, (Point A) to each destination (Point B)
A39: 3 | E39: If relying on a destination that is not identified as destination important to daily living in the Qualified Allocation Plan, then submit a detailed explanation justifying why the destination is important to the daily living of the residents of the project
A40: 6L - Readiness | E40: If the Project (and any Related Development) requires municipal land use approvals, submit: | F40: up to 10
A41: 6L1 Confirmation of Municipal Approvals | E41: 1) A legal opinion, certification from a design professional or letter from the appropriate municipal official or body (such as a planning board or planning director or other official or body with authority on land use matters) confirming that (1) the Project (and any Related Development) has all necessary municipal approvals, (2) the type of project approved (elderly, family or other), (3) the total number of units by bedroom-type, (4) the expiration date of the approvals/the approvals are in effect, (5) all appeal periods have expired and (6) no appeals have been filed or any appeals filed have been fully resolved; and
A42: 6L2 Municipal Approvals | E42: 2) A complete copy of all municipal approvals
A43: 6L3 Confirmation of No Municipal Approvals Required | E43: If no municipal land use approval are required for the Project (and any Related Development), submit a legal opinion, certification from a design professional or letter from the appropriate municipal official or body (such as a planning board or planning director or other official or body with authority on land use matters) confirming that no municipal land use approvals are required for the project (and any Related Development) and explaining why no approvals are required
E44: If the Project (and any Related Development) requires State land use approvals (such as site plan, subdivision, stormwater or wetlands approvals), submit:
A45: 6L4 Confirmation of State Approvals | E45: 1) A legal opinion or certification from a design professional confirming that (1) the Project (and any Related Development) has all necessary State approvals, (2) the expiration date of the approvals/the approvals are in effect, (3) all appeal periods have expired and (4) no appeals have been filed or any appeals filed have been fully resolved; and
A46: 6L5 Copy of all State Approvals | E46: 2) A complete copy of all State approvals
A47: 6L6 Confirmation of No State Approvals Required | E47: If no State approvals are required, submit a legal opinion or certification from a design professional confirming that no State approvals are required for the project (and any Related Development) and explaining why no approvals are required
A48: 6M - Development Capacity | E48: No submission requirement if the Applicant or any Principal or Affiliate of either previously completed the development of multifamily rental housing funded by MaineHousing. MaineHousing will rely on its own records to assess experience. | F48: up to 5
A49: 6M Non-MaineHousing Development Certification | E49: If the Applicant or any Principal or Affiliates of either has no experience developing multifamily rental housing funded by MaineHousing, submit
E50: A description of all LIHTC Projects completed by Applicant or any Principal or Affiliate of either, including the name, location, number of units and Placed In Service date for each LIHTC Project, and an explanation of the relationship between the owner of each LIHTC Project and the Applicant or any Principal or Affiliate of either.
E51: A description of all multifamily rental housing completed by Applicant or any Principal or Affiliate of either, including the name, location, number of units and completion date for each multifamily rental housing project, and an explanation of the relationship between the owner of each multifamily rental housing project and the Applicant or any Principal or Affiliate of either.
E52: A description of all Affordable Housing managed by Applicant or any Principal or Affiliate of either, including the name, location, number of units and the type of Affordable Housing for each project, and an explanation of the relationship between the manager of the Affordable Housing and the Applicant or any Principal or Affiliate of either.
E53: A copy of the executed contract with a qualified consultant. If the consultant has not developed and completed any LIHTC Projects in the State, then also include a description of all LIHTC Projects completed by the consultant, including the name, location, number of units and Placed In Service date for each LIHTC Project.
A54: 6N - Owner Performance | B54: N/A | C54: N/A | E54: No submission requirement. MaineHousing will rely on its records to determine the experience and success of the applicant, its Principals and affiliates. | F54: up to -5
A55: 6O - Management Experience
A56: 6O1 Management Agreement | E56: Commitment from or agreement with the proposed management company | F56: up to 2
A57: 6O2 Staff Resumes | E57: Resumes of all staff of the management company that will be involved in the management of the Project, including a description of each staff person’s experience managing LIHTC projects
E58: Description of all LIHTC Projects that the management company currently manages or plans to manage, including the name, location and number of units in each LIHTC Project, and the resumes of all staff of the management company with low-income housing tax credit training in the last 3 years.
A59: 6O3 LIHTC Training Certification(s) | E59: Most recent certificates or other evidence of low-income housing tax credit training by the staff of the management company that will be involved in the management of the Project
A60: 6P - Management Performance | B60: N/A | C60: N/A | E60: No submission requirement. MaineHousing will rely on its records to determine the experience and success of management companies with properties in MaineHousing's portfolio | F60: up to -3
F61: Total Score | G61: =SUM(G1:G60) -> 0 | H61: =SUM(H1:H60) -> 0
A62: 6Q - Tie-Breaker 6Q Tenant Ownership Plan | E62: Narrative describing how the transfer to the residents will occur, the price or process for determining the purchase price, what financial assistance will be available for the residents and how the affordability will be maintained. | F62: Secondary Tie-breaker after use of MH resources

Sheet Below Mrk Funding & Acq Cost (hidden)
A1: MaineHousing | I1: ='Project Information'!D4 -> Project Name
A3: Project Name: | C3: ='MH Underwriting'!E1 -> Project Name
A4: Location: | C4: ='MH Underwriting'!E2 -> Town
A6: Below Market Capital
E8: $100,000 up to 3% = 1 pt
E9: > 3% up to 6% = 2 pts
E10: > 6% up to 9% = 3 pts
E11: > 9% up to 12% = 4 pts
E12: > 12% up to 15% = 5 pts
E13: > 15% = 6 pts
A15: NPV of Sources
A17: Below Mrk Amortizing Loans | I17: ='NPV-PV calculations'!E632 -> 0
A18: Below Mrk Accruing Loans | I18: ='NPV-PV calculations'!H24+'NPV-PV calculations'!K24 -> 0
A19: 0% Deferred Loans | I19: ='NPV-PV calculations'!H632+'NPV-PV calculations'!K632 -> 0
A20: Grants | I20: =Sources!C15+Sources!C51 -> 0
A22: Total | I22: =SUM(I15:I21) -> 0
A24: Total Project Costs | I24: ='TDC per Unit'!F39+'TDC per Unit'!F36 -> 0
C26: Below Market Capital % | F26: =IF(I24=0,0,I22/I24) -> 0
E28: Points | F28: =IF(I22<100000,0,IF(F26>0.03,IF(F26>0.06,IF(F26>0.09,IF(F26>0.12,IF(F26>0.15,6,5),4),3),2),1)) -> 0
A32: Acquisition Cost
E34: 0 to 1% = 5 pts | H34: =SUM(G42:G44) -> 7500 | I34: =H34*0.01 -> 75
E35: > 1% to 20% = 4 pts | H35: =H34 -> 7500 | I35: =H35*0.25 -> 1875
E36: > 20% to 40% = 3 pts | H36: =H35 -> 7500 | I36: =H36*0.5 -> 3750
E37: > 40% to 60% = 2 pts | H37: =H36 -> 7500 | I37: =H37*0.75 -> 5625
E38: > 60% to 80% = 1 pt | H38: =H37 -> 7500
A40: Per unit Benchmarks
A42: New Construction | D42: 7500 | G42: =IF($D$47=A42,D42,0) -> 7500
A43: Acquisition/Rehab | D43: 60500 | G43: =IF($D$47=A43,D43,0) -> 0
A44: Adaptive Reuse | D44: 10500 | G44: =IF($D$47=A44,D44,0) -> 0
A47: Project Type | D47: =IF('TDC per Unit'!I15>0, "Adaptive Reuse",IF('TDC per Unit'!I17>0,"Acquisition/Rehab","New Construction")) -> New Construction | F47: Cost per Unit | I47: =IF(D49=0,0,D48/D49) -> 0
A48: Acquisition Cost | D48: ='Tax Credit Calc'!D89+'Tax Credit Calc'!D90+'Tax Credit Calc'!D93 -> 0
A49: Number of Units | D49: ='TDC per Unit'!F40 -> 0 | F49: Benchmark Comparison | I49: =I47/SUM(G42:G44) -> 0
E51: Points | F51: =IF(D49=0,0,IF(I49<=1%,5,IF(I49<=20%,4,IF(I49<=40%,3,IF(I49<=60%,2,IF(I49<=80%,1,0)))))) -> 0

Sheet Applicant Information
A1: MaineHousing | M1: ='Project Information'!D4 -> Project Name
A3: APPLICANT INFORMATION
B4: Name of Applicant | E4: Name of Partnership
B6: Taxpayer ID Number or Social Security Number
B8: Contact Person & Title
B10: Mailing Address
B14: Telephone Number | J14: FAX Number
B16: Email Address
E18: Drop Down Menus
E19: Limited Partnership
E20: Qualified Non-Profit
E21: Limited Liability Corp.
E22: Corporation
E23: Partnership | J23: Existing or To Be Formed
E24: Bond for Deed | J24: Existing
E25: Individual | J25: To Be Formed
B26: Form/Type of Ownership | E26: Limited Partnership | J26: Existing or To Be Formed
B30: Please Provide Detail for Proposed Owner Entity: | G30: Note: to get 0.01%, type 0.01
B31: Name of Participants | E31: Position | G31: % Interest | H31: Address
B36: Identity of Interest: | E36: [explain relationship between partners or principals in the ownership entity, any
E37: relationship between the owner and seller, the owner and contractor, the owner
E38: and management company, etc.]
B44: Development Team (please complete where applicable)
E45: Entity Name | G45: Contact Name | I45: Email | L45: Telephone
B47: Project Developer
B49: Architect
B51: Attorney
B53: Accountant
B55: Tax Professional
B57: General Contractor
B59: Construction Lender
B61: Development Consultant
B63: Service Provider
B65: Management Agent

Sheet Conflict of Interest (hidden)
A1: APPLICANT CONFLICT OF INTEREST DISCLOSURE FORM
A2: To ensure that we maintain the continued confidence of Maine people and our partners in carrying out our mission of providing affordable housing, our employees and commissioners and former employees and commissioners must avoid situations which are, or appear to be, at odds with their responsibility to MaineHousing. These situations can include obligations or commitments to other organizations or individuals or personal or financial relationships or interests.
A3: Maine law and, when federal funding is involved, federal regulations govern conflicts of interest. In general, these laws prohibit MaineHousing employees and commissioners from working on transactions with applicants with whom they have financial, business, professional, or personal relationships or other ties. In addition, these laws prohibit former MaineHousing employees and commissioners from working on certain transactions for up to two years after leaving MaineHousing.
A4: To help ensure the continuing integrity of MaineHousing’s business and compliance with these laws, applicants for loans or certain other assistance under MaineHousing’s programs must disclose any financial, business, professional, civic, charitable, family (or other personal) relationships, associations or connections that the applicant, its affiliates, employees of applicant who may work on the MaineHousing project, or any parties the applicant intends to hire to work on the MaineHousing project (whether employees, contractors or consultants) may currently have with MaineHousing or any MaineHousing employee or commissioner or may have had within the past two years. An applicant and its affiliates include:
A5: ▪ if the applicant is one or more individuals, all individuals;
A6: ▪ if the applicant is a business or nonprofit entity, that entity;
A7: ▪ the officers and board members of the applicant;
A8: ▪ employees of the applicant with decision-making authority, including an executive director, manager or someone
A9: in a similar position;
A10: ▪ if the applicant is a business corporation, any shareholder with a controlling interest;
A11: ▪ if the applicant is a partnership, the applicant’s partners;
A12: ▪ any other business partner or associate of the applicant involved in this MaineHousing project;
A13: ▪ if the applicant is a limited liability company, the members and managers;
A14: ▪ a family member (including husband, wife, child, brother, sister) or other person in a personal relationship;
A16: If you are unsure whether a relationship, association, or connection you have may constitute a conflict of interest, please consult with MaineHousing’s Manager of Internal Audit.
M17: ='Project Information'!D4 -> Project Name
A18: To the best of your knowledge:
M20: Yes/No drop down
M21: Yes
M22: No
A23: 1. Does the Applicant, any Principal or any Affiliate of either, or anyone who will be paid for work on the program have business ties, familial relationships, or other close personal relationships with a current MaineHousing employee or commissioner or with anyone who was a MaineHousing employee or commissioner within the past two years? | M23: Yes/No drop down
A25: PLEASE NOTE: If you answered yes to any of the above questions, please describe below.
A41: Continue on next page if needed
M42: =M17 -> Project Name

Sheet Tax Credit Compliance (hidden)
A1: MaineHousing | K1: ='Project Information'!D4 -> Project Name
A2: Tax Credit Experience Certification
A5: Select one of the three options below by choosing
A6: yes or no from the drop down menues
A9: Yes/No
A10: Yes
A11: No
A12: Yes/No | C12: The applicant and/or affiliates of the applicant have prior experience with Qualified Low Income Housing Projects:
C13: 1. None of which have been declared in default in the last five years, and.
C14: 2. (a) has not been issued an IRS Form 8823 in the last three years or (b) has been
C15: issued an IRS Form 8823 in the last three years, but was subsequently reported as
C16: "noncompliance corrected" within the specified time period for correction, and
C17: 3. Has not had an IRS audit finding resulting in a recapture event in the last three years.
A20: Yes/No | C20: The applicant and/or affiliates of the applicant have prior experience with Qualified Low Income Housing Projects:
C21: 1. One or more of which have been declared in default in the last five years, or
C22: 2. Has been issued an IRS Form 8823 in the last three years that was not subsequently
C23: reported as "noncompliance corrected" within the specified time period for correction, or
C24: 3. Has had an IRS audit finding resulting in a recapture event in the last three years.
C25: If yes to any of these three statements, please provide the details of the event(s) below, including date(s)
C26: of the occurance(s), state(s) in which the action(s) took place, the specific circumstances that caused the
C27: event(s), and whether the situation(s) is/are ongoing or the details of the final resolution(s) by the state(s).
A30: Yes/No | C30: The applicant and/or affiliates of the applicant does not have prior experience with Qualified Low Income Housing Projects.

Sheet Project Information
A1: MaineHousing | M1: ='Project Information'!D4 -> Project Name
R2: Bangor HMFA
A3: PROJECT/BUILDING INFORMATION
B4: Name of Project | D4: Project Name | I4: Is this for Tax-exempt debt? | L4: Yes/No Drop Down | Q4: Bangor | T4: Kenduskeag
B6: Address | J6: =IF(L6="Yes","State LIHTC?","") ->  | Q6: Brewer | T6: Milford
B8: Municipality | D8: Town | I8: Per unit Subsidy cap is | J8: =IF(D10="",0,IF(AND(L4="Yes",L6=""),IF('Tax Credit Calculations'!D6="No",IF(OR(D10="York",D10="Cumberland",D10="Sagadahoc"),118000,IF(OR(D10="Androscoggin",D10="Hancock",D10="Kennebec",D10="Knox",D10="Lincoln",R18="Bangor HMFA"),142000,160000)),IF(OR(D10="York",D10="Cumberland",D10="Sagadahoc"),88000,IF(OR(D10="Androscoggin",D10="Hancock",D10="Kennebec",D10="Knox",D10="Lincoln",R18="Bangor HMFA"),118000,142000))),IF(OR(D10="York",D10="Cumberland",D10="Sagadahoc"),65000,IF(OR(D10="Androscoggin",D10="Hancock",D10="Kennebec",D10="Knox",D10="Lincoln",R18="Bangor HMFA"),70000,75000)))) -> 0 | L8: Project Subsidy cap is | M8: =IF(AND(L4="Yes",L6=""),IF(J8*'Tax Credit Calculations'!W31<=6000000,J8*'Tax Credit Calculations'!W31,6000000),IF(J8*'Tax Credit Calculations'!W31<=3000000,J8*'Tax Credit Calculations'!W31,3000000)) -> 0 | Q8: Eddington | T8: Old Town
B10: County | Q10: Glenburn | T10: Orono
B12: Chief Elected Official/Title | Q12: Hampden | T12: Orrington
C14: Mailing Address | Q14: Hermon | T14: Penobscot Indian Reservation
Q16: Holden | T16: Veazie
C18: Telephone | R18: =IF(OR(D8=Q4,D8=Q6,D8=Q8,D8=Q10,D8=Q12,D8=Q14,D8=Q16,D8=T4,D8=T6,D8=T8,D8=T10,D8=T12,D8=T14,D8=T16),R2,"") -> 
E20: Acquisition/Rehab | K20: =IF(D$26=E20,1,0) -> 0 | L20: =IF(K20=0,0,IF(I28=0,0,1)) -> 0
E21: Acquisition/Rehab With New Construction | K21: 0 | L21: =IF(K21=0,0,IF(OR(D28=0,I28=0),1,0)) -> 0
E22: Acquisition/Rehab With Adaptive Reuse/Conversion | K22: 0 | L22: =IF(K22=0,0,IF(OR(D28=0,I28=0),1,0)) -> 0
E23: Adaptive Reuse/Conversion | K23: 0 | L23: =IF(K23=0,0,IF(I28=0,0,1)) -> 0
E24: Adaptive Reuse/Conversion with New Construction | K24: 0 | L24: =IF(K24=0,0,IF(OR(D28=0,I28=0),1,0)) -> 0
E25: New Construction | K25: 1 | L25: =IF(K25=0,0,IF(D28=0,0,1)) -> 0
B26: Nature of Project | D26: New Construction | J26: This is a drop down menu
E28: =IF(D26="Acquisition/Rehab With Adaptive Reuse/Conversion","Number of Rehab Units","Number of Units in Existing Structures") -> Number of Units in Existing Structures | J28: =IF(D26="Acquisition/Rehab With Adaptive Reuse/Conversion","Number of New Units","Number of Units of N/C") -> Number of Units of N/C
B31: Does the project include at least 1 on-site parking space for each unit in the proposed development? | J31: Yes/No Drop Down
C32: If no, please describe in detail what parking arrangements are planned? For example, less than 1:1 parking or off-site parking such as surface parking being developed in conjunction with the project or leasing spaces in existing lots or garages, etc.
B34: =IF(D28+I28=0,"",IF(SUM(L20:L25)=0,"","WARNING: NUMBER OF UNITS INCONSISTENT WITH DROP DOWN MENU")) -> 
B36: Will any off-site improvements (e.g. public roads, sidewalks, water/sewer, etc.) be necessary? | J36: Yes/No Drop Down
C37: If yes, please describe?
B40: Are buildings being acquired from a related party? | J40: Yes/No Drop Down
B42: Is the site within an historic district or is the building on
J43: Yes/No Drop Down
J44: Yes
J45: No
B46: or eligible for placement on the National Historic Register? | J46: Yes/No Drop Down
B50: Type of Request: | D50: =IF(L4="Yes","With Federal subsidies","Without Federal subsidies") -> Without Federal subsidies | G50: Acquisition requires 10-year waiver ? | K50: Yes/No Drop Down
B52: All Benefit Pledges will be set forth in a document to be recorded in the local Registry of Deeds.
B54: MINIMUM SET-ASIDE
B55: Section 42 requires a MINIMUM SET-ASIDE ELECTION. Select only one of the following
B57: This is a drop down menu
B58: 20% of the units will be available to and occupied by households at or below 50% of the area median income
B59: Income Averaging with 80% AMI tenants included (discuss in more detail with MaineHousing before making this election)
B60: 40% of the units will be available to and occupied by households with incomes at or below 60% of the area median income
B61: 40% of the units will be available to and occupied by households with incomes at or below 60% of the area median income
B63: TENANT POPULATION
B64: This will be used when reviewing Selection Criteria for applicants to the 9% LIHTC round.
J66: Age limitation | L66: Elderly Definition
J67: 55+ or 62+ | L67: HUD or RD
J68: 55+ | L68: HUD
J69: 62+ | L69: RD
B71: Property will be restricted to elderly tenants | F71: Yes/No Drop Down | H71: =IF(F71="Yes","Select applicable limits","") -> 
B73: Property will be for families | F73: Yes/No Drop Down
B76: SET-ASIDES 9% LIHTC Round (Not applicable for Tax-exempt bond financed projects)
B77: Check one or more of the folowing set-asides in which you wish to participate.
B79: Non-profit Set-aside. | E79: Yes/No Drop Down
B81: Preservation Set-aside. | E81: Yes/No Drop Down
E84: Low Rise
E85: 2-3 story walk-up
E86: Garden
E87: Row/Townhouse
E88: Detached, Semi-Detached, Single Family
E89: High Rise (elevator)
B90: Structure Type | I90: This is a drop down menu
E92: This is a drop down menu
E93: Bond for Deed
E94: Deed
E95: Purchase & Sale Agreement
E96: Option Agreement
E97: Capital Lease Agreement
B98: Site Control: | E98: This is a drop down menu | J98: (Expiration Date, if applicable)
E100: Date of Purchase | I100: Purchase Price
B102: Age of Building (approx.) | F102: Years
B104: Is the building owner-occupied? | J104: Yes/No Drop Down
B105: Does any portion of the building include commercial space? | J105: Yes/No Drop Down | L105: =IF(J105="Yes","How Many?","") ->  | M105: =IF(J105="Yes","","N/A") -> N/A
B106: Are there any restrictive convenants, easements or conditions attached to the property? | J106: Yes/No Drop Down
B107: If yes, list and attach documents (if available)
B110: Does this project involve any relocation of tenants, whether temporary or permanent? | J110: Yes/No Drop Down
B111: If yes, please describe the proposed relocation assistance to be provided (note: MaineHousing or the Federal Relocation Policy will need to be followed):
B115: How many buildings will be acquired for the project? | H115: For each building that is being acquired, complete the information on the following tab of this application
B117: Number of Stories
B119: Number of existing parking spaces
H120: Attach a Current and Proposed Rent Roll. Samples are included, but these forms are not required so long as the submission includes all the data indentified on the samples
B121: Number of existing market rental units?
B123: Number of existing low income rental units?
B125: Are any of these low-income rental units likely to be converted to non-low income occupancy | J125: Yes/No Drop Down
B126: if the Low Income Housing Tax Credit is not made available?
C128: If yes, please describe how and why:

Sheet Additional Prj Information
A1: MaineHousing | J1: ='Project Information'!D4 -> Project Name
C4: For each building that is being acquired, complete the following information
C6: Address of Bldg | E6: Date last | F6: Date of most | H6: Proposed | I6: # Years between
C7: Street #/Map Lot | E7: placed | F7: recent non-qualified | H7: Acquire | I7: original date placed
B8: Bldg # | E8: in service | F8: sub improvement* | H8: Date | I8: in service and acq
B9: 1
B10: =B9+1 -> 2
B11: =B10+1 -> 3
B12: =B11+1 -> 4
B13: =B12+1 -> 5
C14: * Defined at Section 42(d)(2)
A16: Insert as many lines as necessary

Sheet Building Summary
A1: MaineHousing | J1: ='Project Information'!D4 -> Project Name
A3: Building Tabulations
A5: Note: When completing this form, it will be necessary for the architect identified on the Applicant Information tab to provide you with this information on a building by building basis from the plans that they are preparing. You may print the next page and provide it (or e-mail it) to the Architect for them to complete. Use this page for the aggregate the totals from each of the buildings in the project submitted by the Architect.
B8: Number of Building Tabulation Sheets
B10: Number of
B11: Building (s) | F11: Total # Units
B14: Total Dwellings | G14: sq. ft.
B16: Tenant Storage | G16: sq. ft.
B18: Office | G18: sq. ft.
B20: Social Area | G20: sq. ft.
B22: Community Laundry | G22: sq. ft.
B24: Community Kitchen | G24: sq. ft.
B26: Community Bathroom(s) | G26: sq. ft.
B28: Project Storage | G28: sq. ft.
B30: Project Maintenance | G30: sq. ft.
B32: Circulation | G32: sq. ft.
B34: Other (Describe) | G34: sq. ft.
B36: Total | F36: =F14+F16+F18+F20+F22+F24+F26+F28+F30+F32+F34 -> 0 | G36: sq. ft.

Sheet Building Tabulations (hidden)
A1: MaineHousing | K1: ='Project Information'!D4 -> Project Name
A4: Building Tabulations
A6: Note: Repeat this page for each building in the project
J9: This is a drop down menu
A10: Building # | D10: Total # Units
J12: Yes
J13: No
A14: Are all the units in this building identical in square footage and configuration? | J14: No
A15: =IF(J14="No", "Complete the unit tabulations below","") -> Complete the unit tabulations below
B17: Total Dwellings | G17: sq. ft.
B19: Tenant Storage | G19: sq. ft.
B21: Office | G21: sq. ft.
B23: Social Area | G23: sq. ft.
B25: Community Laundry | G25: sq. ft.
B27: Community Kitchen | G27: sq. ft.
B29: Community Bathroom(s) | G29: sq. ft.
B31: Project Storage | G31: sq. ft.
B33: Project Maintenance | G33: sq. ft.
B35: Circulation | G35: sq. ft.
B37: Other (Describe) | G37: 207
B39: Total | F39: =F17+F19+F21+F23+F25+F27+F29+F31+F33+F35+F37 -> 0 | G39: sq. ft.
A42: Unit Tabulations
A44: =IF(J14="yes","Unit Tabulation is unnecessary since unit sq ft = Total Dwellings / # of units","Note: add as many lines as necessary to identify all the unit types in the building") -> Note: add as many lines as necessary to identify all the unit types in the building
A47: Building # | B47: =B10 -> 0 | D47: Total # Units | E47: =E10 -> 0
C49: Unit Type | F49: Total # Units | H49: Unit Sq. Ft. | J49: Total Res. Sq. Ft.
B51: Type | C51: =C50+1 -> 1 | J51: =F51*H51 -> 0
B52: Type | C52: 2 | J52: =F52*H52 -> 0
B53: Type | C53: 3 | J53: 0
B54: Type | C54: 4 | J54: 0
B55: Type | C55: 5 | J55: 0
B56: Type | C56: 6 | J56: 0
B57: Type | C57: 7 | J57: 0
B58: Type | C58: 8 | J58: 0
B59: Type | C59: 9 | J59: 0
B61: TOTALS | F61: =SUM(F50:F60) -> 0 | J61: =SUM(J50:J60) -> 0

Sheet Current Rent Roll (hidden)
B1: MaineHousing | S1: ='Project Information'!D4 -> Project Name
B3: CURRENT RENT ROLL
B4: This sample form is not required so long as the actual submission includes all data indentified here and includes the certification from the seller
B5: Note: if using this form, you may add as many lines as necessary, print and provide (or e-mail) to the seller of the property to complete
B6: Apt. # | D6: Tenant Name | H6: Family Size | J6: Gross Annual Income | L6: # of Bedrooms | N6: Rent | O6: Tenant Receives Rental Assistance? Yes or No | R6: If yes, Decsribe Type of Assistance*
B125: =IF(COUNTA(B8:B124)=0,"",COUNTA(B8:B124)) ->  | D125: Total # of units | Q125: * Examples: | R125: Section 8 Voucher
R126: Project Based Section 8
B127: CERTIFICATIONS | R127: RD Rental Assistance
B128: I hereby certify that I have not required any tenant to move except for cause, such as for violation of the lease or local law, during the 12 months | R128: Other
B129: previous to the date of this Application. I acknowledge that I may be asked to assist in the gathering of employment verification information.
E131: Signature of Owner:
E134: Mailing Address:
E137: Building Address:

Sheet Proposed Rent Roll (hidden)
B1: MaineHousing | J1: ='Project Information'!D4 -> Project Name
B3: PROPOSED INCOME TARGETING AND RENTS (Units Must Match Current Rent Roll)
B4: Apt. # | D4: Income Target 50/60/Mkt | F4: Present Rent | H4: Proposed Rent | J4: % Increase > 10%
J6: =IF(OR(F6=0,H6=0),"",IF(H6/F6<1.1,"",H6/F6-1)) -> 
J7: =IF(OR(F7=0,H7=0),"",IF(H7/F7<1.1,"",H7/F7-1)) -> 
J71: =IF(OR(F71=0,H71=0),"",IF(H71/F71<1.1,"",H71/F71-1)) -> 
B121: =IF(COUNTA(B6:B120)=0,"",COUNTA(B6:B120)) ->  | D121: Total Rent | F121: =IF(COUNT(F6:F120)=0,"",SUM(F6:F120)) ->  | H121: =IF(COUNT(H6:H120)=0,"",SUM(H6:H120)) ->  | J121: =IF(F121="","",H121/F121-1) -> 
I123: =IF(J123="","","# of Units with Substantial Rent Increases") ->  | J123: =IF(COUNT(J6:J119)=0,"",COUNT(J6:J119)) -> 

Sheet Project Income & UA
D2: Utility Allowance Detail
J4: BR Size
D5: Utility/Service | F5: Payee | H5: Type | J5: 0 | K5: 1 | L5: 2 | M5: 3 | N5: 4 | O5: 5 | P5: 6
D6: Heating
D7: Hot Water
D8: Cooking
D9: Lighting
D10: Water
D11: Sewer
D12: Trash
D13: Air Conditioning
H14: Total | J14: =SUM(J6:J13) -> 0 | K14: 0 | L14: 0 | M14: 0 | N14: 0 | O14: 0 | P14: 0
F17: UA Calculation Method | N17: Helpful Links
G18: LIHTC Allocating Agency Utility Estimate | N18: MaineHousing Rent Charts
G19: Energy Consumption Model (Engineer Model) | N19: LIHTC Allocating Agency Utility Allowance
G20: UA through Rural Development (RD Assisted Units)
G21: Section 8 UA through local housing authority (PBV Units)
G22: HUD Approved UA (project based rental assistance units)
G23: Other:
F25: UA Unit Type: | H25: ='Project Information'!E90 -> 0
E28: Income
E30: # of BR | F30: AMI | G30: # of Units | H30: LIHTC Rent | I30: LIHTC UA | J30: Collectible | K30: Proposed to Tenant | L30: Monthly | M30: Market Study Rent | N30: Annual | R30: 60% AMI Helper | S30: Monthly Unit Rent in Helper
A31: =IF(OR(E31="",F31="",K31=""),100000,(E31*1000)+(IF(F31="MKT",0.9,_xlfn.NUMBERVALUE(LEFT(F31,3)))*1000)+IF(RIGHT(F31,2)="LH",100,IF(RIGHT(F31,2)="HH",101,0))+_xlfn.RANK.EQ(K31,$K$31:$K$54,1)) -> 100000 | B31: =IF(OR(E31="",F31="",K31=""),"",_xlfn.RANK.EQ(A31,$A$31:$A$53,0)) ->  | C31: =IF(B31="","",ROUND(SUMPRODUCT((B31<=$B$31:$B$53)/COUNTIF($B$31:$B$53,$B$31:$B$53))-1,)) ->  | I31: =IF(E31="",0,IF(F31="Mkt",0,HLOOKUP(E31,$J$5:$P$14,10,FALSE))) -> 0 | J31: =H31-I31 -> 0 | L31: =IF(F31="Mkt",IF(M31="",K31*G31,MIN(K31,M31)*G31),IF(M31="",MIN(J31:K31)*G31,MIN(J31:K31,M31)*G31)) -> 0 | N31: =L31*12 -> 0 | R31: =IF(F31="Mkt",G31*K31*12,IF(OR(H31="",H31<1),0,ROUND(((H31/LEFT(F31,3)/0.3)*12)*((0.6/12)*0.3),)*G31*12)) -> 0 | S31: =IF(R31>0,R31/12/G31,"") -> 
A32: 100000 | B32: =IF(OR(E32="",F32="",K32=""),"",_xlfn.RANK.EQ(A32,$A$31:$A$53,0)) ->  | C32: =IF(B32="","",ROUND(SUMPRODUCT((B32<=$B$31:$B$53)/COUNTIF($B$31:$B$53,$B$31:$B$53))-1,)) ->  | I32: =IF(E32="",0,IF(F32="Mkt",0,HLOOKUP(E32,$J$5:$P$14,10,FALSE))) -> 0 | J32: =H32-I32 -> 0 | L32: =IF(F32="Mkt",IF(M32="",K32*G32,MIN(K32,M32)*G32),IF(M32="",MIN(J32:K32)*G32,MIN(J32:K32,M32)*G32)) -> 0 | N32: =L32*12 -> 0 | R32: =IF(F32="Mkt",G32*K32*12,IF(OR(H32="",H32<1),0,ROUND(((H32/LEFT(F32,3)/0.3)*12)*((0.6/12)*0.3),)*G32*12)) -> 0 | S32: =IF(R32>0,R32/12/G32,"") -> 
A33: 100000 | I33: 0 | J33: 0 | L33: 0 | N33: 0 | R33: 0
A34: 100000 | I34: 0 | J34: 0 | L34: 0 | N34: 0 | R34: 0
A35: 100000 | I35: 0 | J35: 0 | L35: 0 | N35: 0 | R35: 0
A36: 100000 | I36: 0 | J36: 0 | L36: 0 | N36: 0 | R36: 0
A37: 100000 | I37: 0 | J37: 0 | L37: 0 | N37: 0 | R37: 0
A38: 100000 | I38: 0 | J38: 0 | L38: 0 | N38: 0 | R38: 0
A39: 100000 | I39: 0 | J39: 0 | L39: 0 | N39: 0 | R39: 0
A40: 100000 | I40: 0 | J40: 0 | L40: 0 | N40: 0 | R40: 0
A41: 100000 | I41: 0 | J41: 0 | L41: 0 | N41: 0 | R41: 0
A42: 100000 | I42: 0 | J42: 0 | L42: 0 | N42: 0 | R42: 0
A43: 100000 | I43: 0 | J43: 0 | L43: 0 | N43: 0 | R43: 0
A44: 100000 | I44: 0 | J44: 0 | L44: 0 | N44: 0 | R44: 0
A45: 100000 | I45: 0 | J45: 0 | L45: 0 | N45: 0 | R45: 0
A46: 100000 | I46: 0 | J46: 0 | L46: 0 | N46: 0 | R46: 0
A47: 100000 | I47: 0 | J47: 0 | L47: 0 | N47: 0 | R47: 0
A48: 100000 | I48: 0 | J48: 0 | L48: 0 | N48: 0 | R48: 0
A49: 100000 | I49: 0 | J49: 0 | L49: 0 | N49: 0 | R49: 0
A50: 100000 | I50: 0 | J50: 0 | L50: 0 | N50: 0 | R50: 0
A51: 100000 | I51: 0 | J51: =H51-I51 -> 0 | L51: 0 | N51: =L51*12 -> 0 | R51: 0
A52: 100000 | I52: 0 | J52: =H52-I52 -> 0 | L52: 0 | N52: =L52*12 -> 0 | R52: 0
A53: 100000 | I53: 0 | J53: =H53-I53 -> 0 | L53: 0 | N53: =L53*12 -> 0 | R53: 0
E55: Total # Units | G55: =SUM(G31:G53) -> 0 | J55: Gross Rental Income | L55: =SUM(L31:L53) -> 0 | N55: =SUM(N31:N53) -> 0
E56: =IF($G$55<>SUM('Project Information'!D28,'Project Information'!I28),"WARNING: TOTAL UNITS DOES NOT MATCH PROJECT INFORMATION TAB","") -> 
E58: Income from Laundry | N58: =L58*12 -> 0
E59: Other Income: | G59: If monthly amount is affected by Vacancy Loss | N59: =L59*12 -> 0
N60: =L60*12 -> 0
E62: Total Schedule Income | L62: =SUM(L55:L60) -> 0 | N62: =SUM(N55:N60) -> 0
E63: Projected Vacancy Loss | J63: 0.05 | L63: =L62*-$J$63 -> 0 | N63: =N62*-$J$63 -> 0
E65: Other Income: | G65: Only if not affected by Vacancy Loss such as TIF income | N65: =L65*12 -> 0
E67: Gross Effective Income | L67: =SUM(L62:L65) -> 0 | N67: =SUM(N62:N65) -> 0
E69: =IF($G$55=0,"",IF(AND(LEFT('Project Information'!B61,3)="40%",(SUMIFS($G$31:$G$53,$F$31:$F$53,"<>"&"80%",$F$31:$F$53,"<>"&"Mkt")/$G$55)<0.4),"WARNING: INSUFFICIENT NUMBER OF LIHTS UNITS TO MEET MINIMUM ELECTION",IF(AND(LEFT('Project Information'!B61,3)="20%",(SUMIFS($G$31:$G$53,$F$31:$F$53,"<>"&"80%",$F$31:$F$53,"<>"&"Mkt",$F$31:$F$53,"<>"&"60% - HH",$F$31:$F$53,"<>"&"60%")/$G$55)<0.2),"WARNING: INSUFFICIENT NUMBER OF LIHTS UNITS TO MEET MINIMUM ELECTION",""))) -> 
E70: =IF(G55=0,"",IF(SUMIFS($G$31:$G$53,$F$31:$F$53,"<>"&"80%",$F$31:$F$53,"<>"&"Mkt",$F$31:$F$53,"<>"&"60% - HH",$F$31:$F$53,"<>"&"60%")/SUMIFS($G$31:$G$53,$F$31:$F$53,"<>"&"Mkt")<0.6,"WARNING: INSUFFICIENT NUMBER OF 50% AMI UNITS TO MEET QAP THRESHOLD CRITERIA","")) -> 

Sheet Operating Budget
A1: MaineHousing | E1: ='Project Information'!D4 -> Project Name
B3: ANNUAL OPERATING BUDGET
C5: Prior Year's Actual | E5: Projected
C6: (If Existing Project) | E6: Annual Budget
B7: Administrative Expenses
B9: Management Fees | H9: ='MH Underwriting'!Q210 -> 
B11: Office Salaries
B13: Site Office Supplies
B15: Site Manager or Superintendent Salaries
B17: Property Bookkeeping Fees / Accounting Services
B19: Training Costs for Frontline Staff
B21: Site Internet, Telephone and Answering Services
B23: Management Charges (Addendum A) | C23: =SUM(C11:C21) -> 0 | E23: =SUM(E11:E21) -> 0
B25: Marketing Expenses
B27: Legal Expenses
B29: Auditing Expenses
B31: Other Administrative Expenses | C31: ='Additional Op Ex Information'!E18 -> 0 | E31: ='Additional Op Ex Information'!G18 -> 0 | G31: Provide detail for Other Admin Expenses on next tab
B33: TOTAL ADMINISTRATIVE EXPENSES | C33: =SUM(C9,C23,C25:C31) -> 0 | E33: =SUM(E9,E23,E25:E31) -> 0
B34: Operating Expenses
B36: Janitorial Payroll
B38: Janitorial Supplies and Equipment
B40: Janitorial Contractual Services
B42: Oil
B44: Gas
B46: Electricity
B48: Water
B50: Sewer
B52: Garbage and Trash Removal
B54: Vehicle and Equipment Expenses
B56: Other Operating Expenses | C56: ='Additional Op Ex Information'!E32 -> 0 | E56: ='Additional Op Ex Information'!G32 -> 0 | G56: Provide detail for Other Operating Expenses on next tab
B58: TOTAL OPERATING EXPENSES | C58: =SUM(C36:C56) -> 0 | E58: =SUM(E36:E56) -> 0
B59: Maintenance Expenses
B61: Grounds Maintenance Payroll
B63: Grounds Tools and Supplies
B65: Grounds Contractual Services
B67: Miscellaneous Ground Maintenance | C67: ='Additional Op Ex Information'!E46 -> 0 | E67: ='Additional Op Ex Information'!G46 -> 0 | G67: Provide detail for Misc Grounds Maintenance on next tab
B69: Sub-total Grounds Expenses | C69: =SUM(C61:C68) -> 0 | E69: =SUM(E61:E68) -> 0
B71: Building Maintenance Payroll
B73: Building Tools and Supplies
B75: Building Contractual Services
B77: Building Systems Maintenance
B79: Miscellaneous Building Maintenance | C79: ='Additional Op Ex Information'!E60 -> 0 | E79: ='Additional Op Ex Information'!G60 -> 0 | G79: Provide detail for Misc Building Maintenance on next tab
B81: Sub-total Building Expenses | C81: =SUM(C71:C80) -> 0 | E81: =SUM(E71:E80) -> 0
B83: TOTAL MAINTENANCE EXPENSES | C83: =C69+C81 -> 0 | E83: =E69+E81 -> 0
B84: General Expenses:
B86: Property Taxes
B88: Property and Liability Insurance
B90: Resident Service Coordinator
B92: Other General Expenses | C92: ='Additional Op Ex Information'!E74 -> 0 | E92: ='Additional Op Ex Information'!G74 -> 0 | G92: Provide detail for Other General Expenses on next tab
B94: TOTAL GENERAL EXPENSES | C94: =SUM(C86:C92) -> 0 | E94: =SUM(E86:E92) -> 0
B96: Replacement Reserve | E96: ='Project Income & UA'!G55*500 -> 0
B98: Total Commercial Expense | H98: =IF('Project Income & UA'!G55=0,"",IF(E96/'Project Income & UA'!G55<450,"WARNING: REPLACEMENT RESERVE FUNDING LESS THAN MAINEHOUSING GUIDELINES","")) -> 
B100: TOTAL BUDGETED EXPENSE | C100: =C33+C58+C83+C94+C96+C98 -> 0 | E100: =E33+E58+E83+E94+E96+E98 -> 0

Sheet Additional Op Ex Information
A1: MaineHousing | L1: ='Project Information'!D4 -> Project Name
E3: Prior Year's Actual | G3: Projected
A4: Insert as many lines as necessary | E4: (If Existing Project) | G4: Annual Budget
I5: Notes:
B7: Other Administrative Expenses
B8: 1
B9: =B8+1 -> 2
B10: =B9+1 -> 3
B11: 4
B12: 5
B13: 6
B14: 7
B15: 8
B16: 9
B17: 10
C18: Total Other Administrative Expenses | E18: =SUM(E7:E17) -> 0 | G18: =SUM(G7:G17) -> 0
B21: Other Operating Expenses
B22: 1
B23: =B22+1 -> 2
B24: 3
B25: 4
B26: 5
B27: 6
B28: 7
B29: 8
B30: 9
B31: 10
C32: Total Other Operating Expenses | E32: =SUM(E21:E31) -> 0 | G32: =SUM(G21:G31) -> 0
B35: Miscellaneous Ground Maintenance
B36: 1
B37: =B36+1 -> 2
B38: 3
B39: 4
B40: 5
B41: 6
B42: 7
B43: 8
B44: 9
B45: 10
C46: Total Miscellaneous Ground Maintenance | E46: =SUM(E35:E45) -> 0 | G46: =SUM(G35:G45) -> 0
B49: Miscellaneous Building Maintenance
B50: 1
B51: =B50+1 -> 2
B52: 3
B53: 4
B54: 5
B55: 6
B56: 7
B57: 8
B58: 9
B59: 10
C60: Total Miscellaneous Building Maintenance | E60: =SUM(E49:E59) -> 0 | G60: =SUM(G49:G59) -> 0
B63: Other General Expenses
B64: 1
B65: =B64+1 -> 2
B66: 3
B67: 4
B68: 5
B69: 6
B70: 7
B71: 8
B72: 9
B73: 10
C74: Total Other General Expenses | E74: =SUM(E63:E73) -> 0 | G74: =SUM(G63:G73) -> 0

Sheet Construction Costs
A1: MaineHousing | U1: ='Project Information'!D4 -> Project Name
E3: Total Cost
A5: 1 | B5: Site Costs:
B7: Earth Works | J7: Please explain Unusual site condition
B9: Site Utilities
B11: Lawns/Plantings
B13: Road/Walks
B15: Site Improvement
B17: Unusual Site Condition
B19: TOTAL SITE COST | E19: =E7+E9+E11+E13+E15+E17 -> 0 | J19: NOTES for Construction Costs and Project Costs and Basis: --Builder overhead and profit MUST be identified --Use of any "other" category must be accompanied by specific details on the next page of this application. This page can be expanded to accomodate as many line items as necessary. --Acquisition costs must be supported by site control documentation and is subject to verification by an "As Is" appraisal --Professional services such as legal or accounting which are performed by employees of the development entity should be documented in writing if they are to be allocated to any line item other than Developer Fee -- Developer Fee & Consultants Fees: Consultants Fees do not include fees paid for services such as environmental studies, market studies, soils analysis, etc. Consultant fees do include fees for services normally conducted by the Developer such as obtaining site control, financing, regulatory approvals, and negotiating the syndication, among others. -- Developer overhead and profit MUST be separately identified
A21: 2 | B21: Structures:
B23: Main Buildings
B25: Accessory Structures
B27: TOTAL STRUCTURE | E27: =E23+E25 -> 0
A29: 3 | B29: General Requirements:
B31: Supervision
B33: Field Engineering
B35: Field Office
B37: Temp. Facilities
B39: Temp Utilities
B41: Cleaning/Rubbish
B43: Permits
B45: TOTAL GEN REQMTS | E45: =E31+E33+E35+E37+E39+E41+E43 -> 0
J46: Please explain any other unique construction characteristics
A48: 4 | B48: TOTAL BUILDER OH & PROFIT
A50: 5 | B50: TOTAL BOND PREMIUM | W50: =IF('Project Information'!D26="Acquisition/Rehab",IF(('Project Costs & Basis'!E9-E52)/#REF!<30000,"WARNING: HARD CONSTRUCTION COSTS BELOW MINIMUM REQUIREMENT",""),"") -> 
A52: 6 | B52: CONSTRUCTION CONTINGENCY
E55: =IF('Project Information'!D26="New Construction",IF(E52+0.49<SUM(E50,E48,E45,E27,E19)*0.05,"WARNING: CONTINGENY IS LESS THAN THE 5% RECOMMENDED BY MAINEHOUSING",""),IF(E52<SUM(E50,E48,E45,E27,E19)*0.1,"WARNING: CONTINGENY IS LESS THAN THE 10% RECOMMENDED BY MAINEHOUSING","")) -> 
E56: =IF(E55="","","PLEASE PROVIDE AN EXPLANATION FOR USING A LOWER CONTINGENCY") -> 

Sheet Project Costs & Basis
A1: MaineHousing | Y1: ='Project Information'!D4 -> Project Name
P2: Eligible Basis Calculations
E3: Project Costs and Eligible Basis | P3: Include Only Residential
P4: Depreciable Costs for:
H5: Residential | J5: Commercial
E6: Total Cost | H6: Depreciable | J6: Depreciable | L6: Amortizable | N6: Non-Amort | Q6: Acq Credit | S6: Const/Reh
A9: 7 | B9: TOTAL CONSTRUCTION: | E9: =ROUND('Construction Costs'!E19+'Construction Costs'!E27+'Construction Costs'!E45+'Construction Costs'!E48+'Construction Costs'!E50+'Construction Costs'!E52,) -> 0 | H9: =E9-J9-L9-N9 -> 0 | S9: =H9 -> 0
A11: 8 | B11: SOFT COSTS: | V11: Notes:
B13: Permits | E13: =SUM(H13:N13) -> 0 | S13: =H13-Q13 -> 0
B15: Survey & Engineering | E15: =SUM(H15:N15) -> 0 | S15: =H15-Q15 -> 0
B17: Architect/Design & Inspec | E17: =SUM(H17:N17) -> 0 | S17: =H17-Q17 -> 0
B19: Project Legal | E19: =SUM(H19:N19) -> 0 | S19: =H19-Q19 -> 0
B21: Title & Recording | E21: =SUM(H21:N21) -> 0 | S21: =H21-Q21 -> 0
B23: Project Audit/Accounting | E23: =SUM(H23:N23) -> 0 | S23: =H23-Q23 -> 0
B25: Const. Period Taxes | E25: =SUM(H25:N25) -> 0 | S25: =H25-Q25 -> 0
B27: Const. Period Insurance | E27: =SUM(H27:N27) -> 0 | S27: =H27-Q27 -> 0
B29: Other | E29: ='Additional Prj Cost Information'!E16 -> 0 | H29: ='Additional Prj Cost Information'!E16-J29-L29-N29 -> 0 | S29: =H29-Q29 -> 0 | V29: Provide detail for Other Costs on next tab
B31: TOTAL SOFT COSTS: | E31: =(E13+E15+E17+E19+E21+E23+E25+E27+E29) -> 0
A33: 9 | B33: FINANCING FEES:
B34: Note: MaineHousing Fees will calculate automatically when loans on the Sources tab are completed | H34: =IF('Project Information'!L4="Yes","MaineHousing Construction Origination Fee is: ","") ->  | N34: =IF('Project Information'!L4="Yes",ROUND('MH Underwriting'!T80*0.0175,),"") -> 
AA35: =IF($V$34="","","Yes") -> 
AA36: =IF($V$34="","","No") -> 
B38: Const Loan Orig. Fee | E38: =SUM(H38:N38) -> 0 | S38: =H38-Q38 -> 0
B40: Const Loan Interest | E40: =SUM(H40:N40) -> 0 | S40: =H40-Q40 -> 0
B42: =IF('Project Information'!L4="Yes"," MaineHousing Loan Fees"," MaineHousing Permanent Loan Fees") -> MaineHousing Permanent Loan Fees | E42: =SUM(H42:N42) -> 0 | L42: =IF(Sources!C32+Sources!C39=0,"",ROUND(IF('Project Information'!L4="Yes",1000+2000,1000+2000+SUM(Sources!C39*0.02)),0)) ->  | S42: =IF(Sources!C32+Sources!C39=0,0,IF(AA38="Yes",'MH Underwriting'!W83*0.02,0)) -> 0
B44: Conventional Lender Permanent Loan Fees | E44: =SUM(H44:N44) -> 0 | S44: 0
B46: Other | E46: ='Additional Prj Cost Information'!E30 -> 0 | H46: ='Additional Prj Cost Information'!E30-J46-L46-N46 -> 0 | S46: =H46-Q46 -> 0 | V46: Provide detail for Other Costs on next tab
B48: TOTAL FINANCING FEES | E48: =(E38+E40+E42+E44+E46) -> 0
A50: 10 | B50: MISCELLANEOUS COSTS & EXPENSES:
B51: Note: LIHTC Fees will recalculate automatically as the application is completed
B53: Market Study | E53: =SUM(H53:N53) -> 0 | S53: =H53-Q53 -> 0
B55: Property Appraisal | E55: =SUM(H55:N55) -> 0 | S55: =H55-Q55 -> 0
B57: Environmental Study | E57: =SUM(H57:N57) -> 0 | S57: =H57-Q57 -> 0
B59: LIHTC Process & Monitoring Fees | E59: =SUM(H59:N59) -> 0 | L59: =IF('Project Income & UA'!G55=0,"",ROUND(2000+2500+('Tax Credit Calculations'!Q40+'Tax Credit Calculations'!S40)*0.075+'Tax Credit Calculations'!W31*1000,0)) ->  | S59: 0
B61: Relocation | E61: =SUM(H61:N61) -> 0 | S61: =H61-Q61 -> 0
B63: F, F, & E | E63: =SUM(H63:N63) -> 0 | S63: =H63-Q63 -> 0
B65: Other | E65: ='Additional Prj Cost Information'!E44 -> 0 | H65: ='Additional Prj Cost Information'!E44-J65-L65-N65 -> 0 | S65: =H65-Q65 -> 0 | V65: Provide detail for Other Costs on next tab
B67: TOTAL MISCELLANEOUS | E67: =E53+E55+E57+E59+E61+E63+E65 -> 0
A70: 11 | B70: ACQUISITION:
B71: Note: Value of Buildings acquired to be razed and the cost of such demolition should be included as Land. The Net Present Value of lease payments made for any Land or Land and Buildings that are obtained through a long term capital lease should be included as Other.
B73: Structure | E73: =SUM(H73:N73) -> 0 | Q73: =H73 -> 0
B75: Land | E75: =SUM(H75:N75) -> 0
B77: Existing Reserve Account Balances | E77: =SUM(H77:N77) -> 0
B79: Legal associated w/ acquisition | E79: =SUM(H79:N79) -> 0 | Q79: =H79 -> 0
B81: Other | E81: =SUM(H81:N81) -> 0 | H81: ='Additional Prj Cost Information'!E58-J81-L81-N81 -> 0 | Q81: =H81 -> 0 | V81: Provide detail for Other Costs on next tab
B83: TOTAL ACQUISITION | E83: =(E73+E75+E77+E79+E81) -> 0
A85: 12 | B85: RESERVES
B86: Note: Reserve amounts will calculate according to MaineHousing guidelines, if a different amount is used, higher or lower, please provide an explanation
B88: Operating Deficit Escrow | E88: =SUM(H88:N88) -> 0 | N88: =ROUND(('Operating Budget'!E100+Sources!F61)/2,0) -> 0
B90: Replacement Reserve | E90: =SUM(H90:N90) -> 0 | N90: =ROUND((E9-'Construction Costs'!E52-'Construction Costs'!E19+E73)*0.01,0) -> 0
B92: Tax & Insurance Escrow | E92: =SUM(H92:N92) -> 0 | N92: =ROUND('Operating Budget'!E86/2+'Operating Budget'!E88/6+'Operating Budget'!E88,0) -> 0
B94: Working Capital | E94: =SUM(H94:N94) -> 0 | N94: =IF('Project Income & UA'!G55<50,'Project Income & UA'!G55*1000,50000) -> 0
B96: Other | E96: ='Additional Prj Cost Information'!E71 -> 0 | N96: =E96 -> 0 | V96: Provide detail for Other Costs on next tab
B98: TOTAL RESERVES: | E98: =(E88+E90+E92+E94+E96) -> 0
A100: 13 | B100: SYNDICATION:
B102: Organizational (Partnership) | E102: =SUM(H102:N102) -> 0
B104: Bridge Loan Fees & Expenses | E104: =SUM(H104:N104) -> 0
B106: Tax Opinion | E106: =SUM(H106:N106) -> 0
B108: Accounting | E108: =SUM(H108:N108) -> 0
B110: Legal | E110: =SUM(H110:N110) -> 0
B112: TOTAL SYNDICATION | E112: =(E102+E104+E106+E108+E110) -> 0
A114: 14 | B114: DEVELOPER FEE:
B116: Consultant Fees | E116: =SUM(H116:N116) -> 0 | S116: =H116-Q116 -> 0
B118: Developer Overhead | E118: =SUM(H118:N118) -> 0 | S118: =H118-Q118 -> 0
B120: Developer Profit | E120: =SUM(H120:N120) -> 0 | S120: =H120-Q120 -> 0
B122: TOTAL DEVELOPER FEE | E122: =(E116+E118+E120) -> 0 | H122: =SUM(H9:H120) -> 0 | J122: =SUM(J9:J120) -> 0 | L122: =SUM(L9:L120) -> 0 | N122: =SUM(N9:N120) -> 0
A125: TOTAL PROJECT COSTS | E125: =E9+E31+E48+E67+E83+E98+E112+E122 -> 0 | Q125: =SUM(Q7:Q122) -> 0 | S125: =SUM(S7:S122) -> 0
G127: ='MH Underwriting'!W62 ->  | L127: ='MH Underwriting'!W64 ->  | N127: ='MH Underwriting'!W66 -> 

Sheet Additional Prj Cost Information
A1: MaineHousing | J1: ='Project Information'!D4 -> Project Name
A3: Insert as many lines as necessary | G3: Notes:
B5: OTHER SOFT COSTS:
B6: 1
B7: =B6+1 -> 2
B8: =B7+1 -> 3
B9: 4
B10: 5
B11: 6
B12: 7
B13: 8
B14: 9
B15: 10
C16: TOTAL OTHER SOFT COSTS: | E16: =SUM(E5:E15) -> 0
B19: FINANCING FEES:
B20: 1
B21: =B20+1 -> 2
B22: =B21+1 -> 3
B23: 4
B24: 5
B25: 6
B26: 7
B27: 8
B28: 9
B29: 10
C30: TOTAL FINANCING FEES | E30: =SUM(E19:E29) -> 0
B33: MISCELLANEOUS COSTS & EXPENSES:
B34: 1
B35: =B34+1 -> 2
B36: 3
B37: 4
B38: 5
B39: 6
B40: 7
B41: 8
B42: 9
B43: 10
C44: TOTAL MISCELLANEOUS | E44: =SUM(E33:E43) -> 0
B47: ACQUISITION
B48: 1
B49: =B48+1 -> 2
B50: 3
B51: 4
B52: 5
B53: 6
B54: 7
B55: 8
B56: 9
B57: 10
C58: TOTAL ACQUISITION | E58: =SUM(E47:E57) -> 0
B60: RESERVES
B61: 1
B62: =B61+1 -> 2
B63: 3
B64: 4
B65: 5
B66: 6
B67: 7
B68: 8
B69: 9
B70: 10
C71: TOTAL RESERVES: | E71: =SUM(E60:E70) -> 0
B74: NON-HTC ELIGIBLE COSTS
B75: 1
B76: =B75+1 -> 2
B77: 3
B78: 4
B79: 5
B80: 6
B81: 7
B82: 8
B83: 9
B84: 10
C85: TOTAL NON-HTC ELIGIBLE COSTS | E85: =SUM(E74:E84) -> 0

Sheet TDC per Unit (hidden)
A1: MaineHousing | K1: ='Project Information'!D4 -> Project Name
A3: Project Name: | C3: ='MH Underwriting'!E1 -> Project Name
A4: Location: | C4: ='MH Underwriting'!E2 -> Town
A6: Total Development Cost Index
K8: Drop Down
K9: Yes
K10: No
B11: Project Configuration | F11: ='Project Information'!D26 -> New Construction
B15: Adaptive Reuse/Conversion | I15: =IF(B15=$F$11,1,IF($F$11="Acquisition/Rehab With Adaptive Reuse/Conversion",1-I17,IF($F$11="Adaptive Reuse/Conversion with New Construction",'Project Information'!D28/('Project Information'!I28+'Project Information'!D28),0))) -> 0
B16: New Construction | I16: =IF(B16=$F$11, 1,IF($F$11="Acquisition/Rehab With New Construction",'Project Information'!I28/('Project Information'!I28+'Project Information'!D28),IF($F$11="Adaptive Reuse/Conversion with New Construction",'Project Information'!I28/('Project Information'!I28+'Project Information'!D28),0))) -> 1
B17: Acquisition/Rehab | I17: =IF(B17=$F$11, 1,IF(OR($F$11="Acquisition/Rehab With New Construction",$F$11="Acquisition/Rehab With Adaptive Reuse/Conversion"),'Project Information'!D28/('Project Information'!I28+'Project Information'!D28),0)) -> 0
B19: Per unit Caps
B21: Adaptive Reuse | H21: 395000
B22: New Construction | H22: 370000
B23: Acquisition/Rehab | H23: 340000
A27: Total Project Cost | F27: ='MH Underwriting'!P68 -> 0
A30: Excluded Costs
A31: MaineHousing Fees | F31: ='MH Underwriting'!H44+'MH Underwriting'!H36+IF('Project Information'!L4="Yes",'Project Costs & Basis'!N34,0) -> 0
A32: Operating Deficit Escrow | F32: ='MH Underwriting'!H57 -> 0
A33: Commercial Costs | F33: ='MH Underwriting'!L68 -> 0
A34: Excess Developer Fee | F34: =IF('MH Underwriting'!V64>'MH Underwriting'!V63,'MH Underwriting'!V64-'MH Underwriting'!V63,0) -> 0
A36: Total | F36: =SUM(F31:F34) -> 0
A39: Total Eligible Development Cost | F39: ='MH Underwriting'!P68-F36 -> 0
A40: Number of Units | F40: ='Project Income & UA'!G55 -> 0
A41: Total Number of Bedrooms | F41: =SUMPRODUCT('Project Income & UA'!$E$31:$E$53,'Project Income & UA'!$G$31:$G$53)+SUMIFS('Project Income & UA'!G31:G53,'Project Income & UA'!E31:E53,0) -> 0
A43: TDC/Unit | F43: =IF(F40=0,0,F39/F40) -> 0
A44: TDC/BR | F44: =IF(F41=0,0,F39/F41) -> 0
A46: TDC Index | F46: =(F43*2+F44)/3 -> 0 | H46: Project Cap | K46: =I16*H22+I17*H23+I15*H21 -> 370000
A49: =IF(F46>K46,"WARNING: COSTS ARE TOO HIGH, PROJECT IS NOT ELIGIBLE","") -> 

Sheet Tax Credit Calculations
A1: MaineHousing | Y1: ='Project Information'!D4 -> Project Name
A3: Historic Tax Credits (HTC) | Q3: Eligible Basis | S3: Eligible Basis
D4: Yes
D5: No
B6: HTC Eligible ? | D6: No | Q6: Acquisition | S6: Const/Rehab
D7: This is a drop down menu
G8: Eligible Basis before adjustments | Q8: ='Project Costs & Basis'!Q125 -> 0 | S8: ='Project Costs & Basis'!S125 -> 0
A9: Total Development Cost | D9: =IF(D6="Yes",'Project Costs & Basis'!E125,"") ->  | H9: LESS: portion of Federal grant
H10: used to finance qualifying
A11: Less: | H11: development costs
B12: Acquisition Costs | D12: =IF(D9="","",'Project Costs & Basis'!E83) ->  | H12: Source:
H13: LESS: amount of nonqualified
H14: non-recourse debt
H15: LESS: either nonqualifying units of
H16: higher quality OR nonqualifying
H17: excess cost of higher quality units
H18: LESS: Historic Tax Credit | V18: =IF(D6="yes","Historic Tax Credit Amount will need to be adjusted manually each time the LIHTC amount changes","") -> 
B19: Other | D19: =IF(D9="","",'Additional Prj Cost Information'!E85) ->  | H19: (Residential Portion only) | U19: =IF(V18="","","=") -> 
B20: Provide detail for Other Costs on previous tab | H20: PLUS: portion of basis for
H21: homeless support services | V21: =IF(V18="","","Begin by entering the amount from cell D29 applicable to the residential portion") -> 
A22: Historic Eligible Basis | D22: =IF(D9="","",D9-SUM(D12:D19)) -> 
V23: For Tax-exempt Financing
G24: Adjusted Eligible Basis | Q24: =Q8-Q12-Q14-Q17-Q19+Q21 -> 0 | S24: =S8-S12-S14-S17-S19+S21 -> 0 | V24: DDA's and QCT's can be found
A25: Federal Historic Tax Credit | H25: If improvements are eligible for 130% | V25: at the following web link (left click):
H26: high cost or difficult development area | V26: https://www.novoco.com/resource-centers/affordable-housing-tax-credits/data-tools/fair-market-rents/fair-market-rents/qualified-census-tracts-qcts-and-difficult-development-areas-ddas
B27: multiply by | D27: 0.2 | H27: adjustment, AND developer wishes to | Q27: 1 | S27: 1.3
H28: request such adjustment, insert value. | W28: Applicable Fraction
A29: Total Federal HTC | D29: =IF(D9="",0,D22*D27) -> 0 | E29: =IF(V18="","","=") ->  | V29: Total # | W29: Total # | X29: Gross Res | Y29: Gross L.I.
G30: Total Eligible Basis | Q30: =Q24*Q27 -> 0 | S30: =S24*S27 -> 0 | V30: Res Units | W30: L.I Units | X30: Unit Sq.Ft. | Y30: Unit Sq.Ft.*
A31: Multiply by NET equity | V31: ='Project Income & UA'!G55 -> 0 | W31: =SUMIFS('Project Income & UA'!$G$31:$G$53,'Project Income & UA'!$F$31:$F$53,"<>"&"Mkt") -> 0 | X31: ='Building Summary'!F14 -> 0 | Y31: =X31 -> 0
A32: per $1 of Credit | D32: 0.87 | G32: Multiply by applicable fraction | Q32: =ROUND(MIN(V32,X32),4) -> 0 | S32: =Q32 -> 0 | V32: =IF(V31=0,0,W31/V31) -> 0 | X32: =IF(X31=0,0,Y31/X31) -> 0
W33: Total Prj. Sq. Ft. | X33: ='Building Summary'!F36 -> 0
A34: Equity Investment | D34: =D29*D32*Y48 -> 0 | V34: * if not 100% L.I., work w/ Archictect determine Sq. Ft. in Market Units
G35: Qualified Basis | Q35: =Q30*Q32 -> 0 | S35: =S30*S32 -> 0
A37: Maine Historic Tax Credit | G37: Multiply by est'd Tax Credit Percentage | Q37: 0.04 | S37: =IF('Project Information'!L4="Yes",Q37,9%) -> 0.09
B38: =IF(D6="Yes","MH Bridge Loan?","") ->  | D38: =IF(B38<>"","Yes","") -> 
B39: multiply by 25% or 35% | D39: 0.35
G40: Annual LIH Tax Credits | Q40: =ROUND(Q35*Q37,0) -> 0 | S40: =ROUND(S35*S37-Y45,0) -> 0
A41: Total State Historic Tax Credit | D41: =IF(D9="",0,D22*D39) -> 0
G42: Total LIH Tax Credits - 10 years | Q42: =Q40*10 -> 0 | S42: =S40*10 -> 0 | V42: Reduction in Maximum LIHTC Allocation resulting from excess sources and/or investor requirements
A43: Multiply by NET equity
A44: per $1 of Credit | D44: 0.88
G45: Multiply by NET equity per $1 of Credit | Q45: =S45 -> 0.87 | S45: 0.87
A46: Equity Investment | D46: =D41*D44 -> 0
G48: TOTAL LIHTC EQUITY | Q48: =ROUND(Q42*Q45*Y48,0) -> 0 | S48: =ROUND(S42*S45*Y48,0) -> 0 | V48: LIHTC Ltd. Partner Percentage | Y48: =IF(OR(D6="Yes",'MH Underwriting'!W4<>""),0.9899,0.9999) -> 0.9999
A49: TOTAL HTC EQUITY | D49: =D34+D46 -> 0
G50: TOTAL EQUITY INVESTMENT | Q50: =D49+Q48+S48 -> 0
R52: =IF(Q40+S40>'Tax Credit Calc'!I25, "WARNING: LITHC EXCEEDS QAP CAP BY","") -> 
Q53: =IF(R52="","",Q40+S40-'Tax Credit Calc'!I25) -> 

Sheet Sources
A1: MaineHousing | I1: ='Project Information'!D4 -> Project Name
D2: Sources of Funding
E5: AMORT-
E6: IZATION | F6: MONTHLY | G6: SPECIAL TERMS/CONDITIONS
B7: LENDER | C7: AMOUNT | D7: RATE | E7: TERM (YRS) | F7: PAYMENT | G7: (deferrals, balloons, adjustable rate, etc.)
A9: CONSTRUCTION SOURCES OF FUNDS
A10: MaineHousing
B11: 0% Deferrred Loan during construction: 50% of requested subsidy for 9% LIHTC Credits Any subsidy for Tax-exempt Applications during construction is at MaineHousing's discretion | C11: =IF('Project Information'!L4="No",C32,0) -> 0 | D11: 0 | E11: 31 | F11: 0 | G11: 0% Deferred Payment Loan
A12: Equity Available during Construction (Aggregate multiple contributions)
B13: GP Contribution + Syndicator TBD | C13: =100 -> 100
A14: Grants Available during Construction
B15: Grant*
A16: Other Permanent Loans Available during Construction, if any
B17: City FEDHOME* | E17: 30 | F17: =IF(C17<1,0,PMT(D17/12,E17*12,C17)*-1) -> 0 | G17: First Installment
B18: AHP Capital Advance* | E18: 30 | F18: 0 | G18: Deferred loan from GP - 100% during Construction
B19: TIF Loan* | E19: 30 | F19: =IF(C19<1,0,PMT(D19/12,E19*12,C19)*-1) -> 0 | G19: 100% at PLC
A20: Conventional Construction Loan
E21: 1
A22: General Partner Loan, if necessary
B25: TOTAL DURING CONSTRUCTION | C25: =SUM(C11:C23) -> 100 | E25: * prefilled sources are for demonstration purposes only and can be replaced by actual funding sources
A28: SOURCES OF FUNDS AT PLC/STABILIZATION
A29: Note: it is not necessary to repeat Permanent Source Advanced during Construction
A31: MaineHousing
B32: 0% Deferred Loan: 9% LIHTC applicants input 50% of the requested subsidy, remaining 50% is completed automatically Tax-exempt applicants input 100% of the subsidy | D32: 0 | E32: 30 | F32: 0 | G32: Deferred Payment | J32: 30
G33: Drop Down Menu
G34: Straight Amortization
G35: 40 year Amortization with Ballon at end of 30 years
G36: Interest only for 15 yrs., then 30 year Am with Balloon
G37: Interest only for 15 yrs., then 40 year Am with Balloon
G38: Interest Only for 30 Years
B39: MH Interest Bearing Loan | D39: =IF('Project Information'!L4="Yes",0.055,0.06) -> 0.06 | E39: =IF(OR(G39=$G$35,G39=$G$37),40,30) -> 30 | F39: =IF(OR(G39=$G$38,G39=$G$37,G39=$G$36),C39*D39/12,PMT(D39/12,E39*12,C39)*-1) -> 0 | G39: Interest Only for 30 Years | J39: 30
B40: MH Interest Bearing Loan #2 | D40: =IF('Project Information'!L4="Yes",0.055,0.06) -> 0.06 | E40: =IF(OR(G40=$G$35,G40=$G$37),40,30) -> 30 | F40: =IF(OR(G40=$G$38,G40=$G$37,G40=$G$36),C40*D40/12,PMT(D40/12,E40*12,C40)*-1) -> 0 | G40: Straight Amortization
B41: MH Interest Bearing Loan #3 | C41: =IF('Tax Credit Calculations'!D38="Yes",'MH Underwriting'!V17,0) -> 0 | D41: =IF('MH Underwriting'!V17>0,0.05,IF('Project Information'!L4="Yes",0.055,0.06)) -> 0.06 | E41: =IF('MH Underwriting'!V17>0,IF('MH Underwriting'!V14>5000000,5,4),IF(OR(G41=$G$35,G41=$G$37),40,30)) -> 30 | F41: =IF('MH Underwriting'!V17>0,0,IF(OR(G41=$G$38,G41=$G$37,G41=$G$36),C41*D41/12,PMT(D41/12,E41*12,C41)*-1)) -> 0 | G41: Straight Amortization
A42: Conventional First Mortgage in lieu of MaineHousing (RD, HUD, FHLB) at PLC
B43: AHP Subsidized Advance | D43: 0.07 | E43: 30 | F43: =IF(C43<1,0,PMT(D43/12,E43*12,C43)*-1) -> 0 | G43: 30 year am - 20 year ballon | J43: 30
A44: Other Loans at PLC
B45: =IF(B17="","",B17) -> City FEDHOME* | D45: 0 | E45: 30 | F45: =C45*D45/12 -> 0 | G45: Balance at PLC | J45: 30
B46: =IF(B18="","",B18) -> AHP Capital Advance* | D46: 0 | E46: 30 | F46: 0 | G46: 100% at CLC | J46: 30
B47: =IF(B19="","",B19) -> TIF Loan* | E47: 30 | F47: =IF(C47<1,0,PMT(D47/12,E47*12,C47)*-1) -> 0 | G47: 100% at PLC | J47: 30
E48: 30 | F48: =IF(C48<1,0,PMT(D48/12,E48*12,C48)*-1) -> 0 | J48: 30
E49: 30 | F49: =IF(C49<1,0,PMT(D49/12,E49*12,C49)*-1) -> 0 | J49: 30
A50: Grants
B51: =IF(B15="","",B15) -> Grant*
A52: Equity and Other Unsecured Debts
B53: General Partner (or Affiliate) Loan | G53: Payable from Surplus Cash | J53: 30
B54: Deferred Developer Fee | G54: Payable from Surplus Cash
B55: =IF(B13="","",B13) -> GP Contribution + Syndicator TBD | C55: =IF('Tax Credit Calculations'!Q50=0,"",IF('Tax Credit Calculations'!D38="Yes",'Tax Credit Calculations'!Q50+100-C13-'Tax Credit Calculations'!D46,'Tax Credit Calculations'!Q50+100-C13)) ->  | G55: Equity @ Completion/Stabiliztion
B56: MH Determined SLIHTC | D56: =IF(C56="","",0.96) ->  | E56: =IF(D56="","",C56*D56) -> 
B58: TOTAL AT PLC/STABILIZATION | C58: =SUM(C32:C56) -> 0 | F58: =SUM(F32:F55)+SUM(F17:F19) -> 0 | H58: =IF(C32+C39=0,"",IF('MH Underwriting'!W82<55%,"POTENTIAL 50% PROBLEM, DISCUSS WITH MAINEHOUSING","")) -> 
B59: Multiply by 12 months | F59: X 12
B61: TOTAL ANNUAL DEBT SERVICE | F61: =F58*12 -> 0
H62: =IF(F63="","",IF(G63>0,"TO ELIMINATE SURPLUS: REDUCE MAINEHOUSING SUBSIDY LOAN FIRST, THEN ADJUST LIHTC, IF NECESSARY","")) -> TO ELIMINATE SURPLUS: REDUCE MAINEHOUSING SUBSIDY LOAN FIRST, THEN ADJUST LIHTC, IF NECESSARY
B63: TOTAL PERMANENT SOURCES | C63: =C58+SUM(C11:C19)+C23 -> 100 | F63: =IF(C63<'Project Costs & Basis'!E125-0.5,"FUNDING GAP OF",IF(C63>'Project Costs & Basis'!E125+0.5,"FUNDING SURPLUS OF","")) -> FUNDING SURPLUS OF | G63: =IF(C63<'Project Costs & Basis'!E125-0.5,C63-'Project Costs & Basis'!E125,IF(C63>'Project Costs & Basis'!E125+0.5,C63-'Project Costs & Basis'!E125,"")) -> 100
B64: =IF('Project Information'!L4="No",IF('Tax Credit Calculations'!D6="No",IF(C11+C32<=3000000,IF(C11+C32<='Project Information'!M8,"","REQUESTING TOO MUCH SUBSIDY"),"REQUESTING TOO MUCH SUBSIDY"),"NOT ELIGIBLE FOR SUBSIDY"),IF('Tax Credit Calculations'!D6="No",IF(C11+C32<=6000000,IF(C11+C32<='Project Information'!M8,"","REQUESTING TOO MUCH SUBSIDY"),"REQUESTING TOO MUCH SUBSIDY"),IF(C11+C32<=6000000,IF(C11+C32<='Project Information'!M8,"","REQUESTING TOO MUCH SUBSIDY"),"REQUESTING TOO MUCH SUBSIDY"))) ->  | E64: =IF(B64="","",IF('Tax Credit Calculations'!D6="Yes","","PROGRAM CAP IS")) ->  | F64: =IF(E64="","",'Project Information'!M8) -> 

Sheet NPV-PV calculations (hidden)
A1: Project Name: | C1: ='Project Information'!D4 -> Project Name
A2: Location: | C2: ='Project Information'!D8 -> Town
A4: For each Source of Funds on the previous Tab that qualifies as Below Market Funding, calculate the value of the funds using the appropriate method below
A6: Amortizing Loan | G6: Accruing Loan | J6: Accruing Loan
A9: Amount | C9: Amortization | D9: Term | E9: Note Rate | G9: Amount | J9: Amount
C11: 30 | D11: 20 | E11: 0.03 | G11: Term | H11: 30 | J11: Term | K11: 30
G13: Note Rate | H13: 0.03 | J13: Note Rate | K13: 0
C14: ="@" -> @ | D14: ="@" -> @
C15: =H15 -> 0.0454 | D15: =E11 -> 0.03 | E15: Difference | G15: Market Rate | H15: =1.54%+3% -> 0.0454 | J15: Market Rate | K15: =H15 -> 0.0454
A18: Equal Monthly
A19: Payments of | B19: 1 | C19: =PMT(C15/12,C11*12,-A11) -> 0 | D19: =PMT(E11/12,C11*12,-A11) -> 0 | E19: =C19-D19 -> 0 | G19: Accrued Value @ Mkt | H19: =H9*(1+H15)^H11 -> 0 | J19: Accrued Value @ Mkt | K19: =K9*(1+K15)^K11 -> 0
G20: Accrued Value @ Note Rate | H20: =H9*(1+H13)^H11 -> 0 | J20: Accrued Value @ Note Rate | K20: =K9*(1+K13)^K11 -> 0
A21: =IF(C11>D11,"for","") -> for
A22: =IF(A21="","",IF(D11=15,"Fourteen Yrs.",IF(D11=20,"Nineteen Yrs.",IF(D11=25,"Twenty-four Yrs.","Twenty-nine Yrs.")))) -> Nineteen Yrs. | G22: Difference | H22: =H19-H20 -> 0 | J22: Difference | K22: =K19-K20 -> 0
A23: =IF(A22="","","& Eleven Mos.") -> & Eleven Mos.
G24: PV of Subsidy | H24: =-PV(H15,H11,0,H22) -> 0 | J24: PV of Subsidy | K24: =-PV(K15,K11,0,K22) -> 0
B25: =B19+1 -> 2 | C25: =IF($B25>$C$11*12,"",C$19) -> 0 | D25: 0 | E25: 0
B26: =B25+1 -> 3 | C26: 0 | D26: 0 | E26: 0
B27: 4 | C27: 0 | D27: 0 | E27: 0
B28: 5 | C28: 0 | D28: 0 | E28: 0
B29: 6 | C29: 0 | D29: 0 | E29: 0
B30: 7 | C30: 0 | D30: 0 | E30: 0
B31: 8 | C31: 0 | D31: 0 | E31: 0
B32: 9 | C32: 0 | D32: 0 | E32: 0
B33: 10 | C33: 0 | D33: 0 | E33: 0
B34: 11 | C34: 0 | D34: 0 | E34: 0
B35: 12 | C35: 0 | D35: 0 | E35: 0
B36: 13 | C36: 0 | D36: 0 | E36: 0
B37: 14 | C37: 0 | D37: 0 | E37: 0
B38: 15 | C38: 0 | D38: 0 | E38: 0
B39: 16 | C39: 0 | D39: 0 | E39: 0
B40: 17 | C40: 0 | D40: 0 | E40: 0
B41: 18 | C41: 0 | D41: 0 | E41: 0
B42: 19 | C42: 0 | D42: 0 | E42: 0
B43: 20 | C43: 0 | D43: 0 | E43: 0
B44: 21 | C44: 0 | D44: 0 | E44: 0
B45: 22 | C45: =IF($B45>$C$11*12,"",C$19) -> 0 | D45: 0 | E45: 0
B46: 23 | C46: 0 | D46: 0 | E46: 0
B47: 24 | C47: 0 | D47: 0 | E47: 0
B48: 25 | C48: 0 | D48: 0 | E48: 0
B49: 26 | C49: 0 | D49: 0 | E49: 0
B50: 27 | C50: 0 | D50: 0 | E50: 0
B51: 28 | C51: 0 | D51: 0 | E51: 0
B52: 29 | C52: 0 | D52: 0 | E52: 0
B53: 30 | C53: 0 | D53: 0 | E53: 0
B54: 31 | C54: 0 | D54: 0 | E54: 0
B55: 32 | C55: 0 | D55: 0 | E55: 0
B56: 33 | C56: 0 | D56: 0 | E56: 0
B57: 34 | C57: 0 | D57: 0 | E57: 0
B58: 35 | C58: 0 | D58: 0 | E58: 0
B59: 36 | C59: 0 | D59: 0 | E59: 0
B60: 37 | C60: 0 | D60: 0 | E60: 0
B61: 38 | C61: 0 | D61: 0 | E61: 0
B62: 39 | C62: 0 | D62: 0 | E62: 0
B63: 40 | C63: 0 | D63: 0 | E63: 0
B64: 41 | C64: 0 | D64: 0 | E64: 0
B65: 42 | C65: =IF($B65>$C$11*12,"",C$19) -> 0 | D65: 0 | E65: 0
B66: 43 | C66: 0 | D66: 0 | E66: 0
B67: 44 | C67: 0 | D67: 0 | E67: 0
B68: 45 | C68: 0 | D68: 0 | E68: 0
B69: 46 | C69: 0 | D69: 0 | E69: 0
B70: 47 | C70: 0 | D70: 0 | E70: 0
B71: 48 | C71: 0 | D71: 0 | E71: 0
B72: 49 | C72: 0 | D72: 0 | E72: 0
B73: 50 | C73: 0 | D73: 0 | E73: 0
B74: 51 | C74: 0 | D74: 0 | E74: 0
B75: 52 | C75: 0 | D75: 0 | E75: 0
B76: 53 | C76: 0 | D76: 0 | E76: 0
B77: 54 | C77: 0 | D77: 0 | E77: 0
B78: 55 | C78: 0 | D78: 0 | E78: 0
B79: 56 | C79: 0 | D79: 0 | E79: 0
B80: 57 | C80: 0 | D80: 0 | E80: 0
B81: 58 | C81: 0 | D81: 0 | E81: 0
B82: 59 | C82: 0 | D82: 0 | E82: 0
B83: 60 | C83: 0 | D83: 0 | E83: 0
B84: 61 | C84: 0 | D84: 0 | E84: 0
B85: 62 | C85: =IF($B85>$C$11*12,"",C$19) -> 0 | D85: 0 | E85: 0
B86: 63 | C86: 0 | D86: 0 | E86: 0
B87: 64 | C87: 0 | D87: 0 | E87: 0
B88: 65 | C88: 0 | D88: 0 | E88: 0
B89: 66 | C89: 0 | D89: 0 | E89: 0
B90: =B89+1 -> 67 | C90: 0 | D90: 0 | E90: 0
B91: 68 | C91: 0 | D91: 0 | E91: 0
B92: 69 | C92: 0 | D92: 0 | E92: 0
B93: 70 | C93: 0 | D93: 0 | E93: 0
B94: 71 | C94: 0 | D94: 0 | E94: 0
B95: 72 | C95: 0 | D95: 0 | E95: 0
B96: 73 | C96: 0 | D96: 0 | E96: 0
B97: 74 | C97: 0 | D97: 0 | E97: 0
B98: 75 | C98: 0 | D98: 0 | E98: 0
B99: 76 | C99: 0 | D99: 0 | E99: 0
B100: 77 | C100: 0 | D100: 0 | E100: 0
B101: 78 | C101: 0 | D101: 0 | E101: 0
B102: 79 | C102: 0 | D102: 0 | E102: 0
B103: 80 | C103: 0 | D103: 0 | E103: 0
B104: 81 | C104: 0 | D104: 0 | E104: 0
B105: 82 | C105: =IF($B105>$C$11*12,"",C$19) -> 0 | D105: 0 | E105: 0
B106: 83 | C106: 0 | D106: 0 | E106: 0
B107: 84 | C107: 0 | D107: 0 | E107: 0
B108: 85 | C108: 0 | D108: 0 | E108: 0
B109: 86 | C109: 0 | D109: 0 | E109: 0
B110: 87 | C110: 0 | D110: 0 | E110: 0
B111: 88 | C111: 0 | D111: 0 | E111: 0
B112: 89 | C112: 0 | D112: 0 | E112: 0
B113: 90 | C113: 0 | D113: 0 | E113: 0
B114: 91 | C114: 0 | D114: 0 | E114: 0
B115: 92 | C115: 0 | D115: 0 | E115: 0
B116: 93 | C116: 0 | D116: 0 | E116: 0
B117: 94 | C117: 0 | D117: 0 | E117: 0
B118: 95 | C118: 0 | D118: 0 | E118: 0
B119: 96 | C119: 0 | D119: 0 | E119: 0
B120: 97 | C120: 0 | D120: 0 | E120: 0
B121: 98 | C121: 0 | D121: 0 | E121: 0
B122: 99 | C122: 0 | D122: 0 | E122: 0
B123: 100 | C123: 0 | D123: 0 | E123: 0
B124: 101 | C124: 0 | D124: 0 | E124: 0
B125: 102 | C125: =IF($B125>$C$11*12,"",C$19) -> 0 | D125: 0 | E125: 0
B126: 103 | C126: 0 | D126: 0 | E126: 0
B127: 104 | C127: 0 | D127: 0 | E127: 0
B128: 105 | C128: 0 | D128: 0 | E128: 0
B129: 106 | C129: 0 | D129: 0 | E129: 0
B130: 107 | C130: 0 | D130: 0 | E130: 0
B131: 108 | C131: 0 | D131: 0 | E131: 0
B132: 109 | C132: 0 | D132: 0 | E132: 0
B133: 110 | C133: 0 | D133: 0 | E133: 0
B134: 111 | C134: 0 | D134: 0 | E134: 0
B135: 112 | C135: 0 | D135: 0 | E135: 0
B136: 113 | C136: 0 | D136: 0 | E136: 0
B137: 114 | C137: 0 | D137: 0 | E137: 0
B138: 115 | C138: 0 | D138: 0 | E138: 0
B139: 116 | C139: 0 | D139: 0 | E139: 0
B140: 117 | C140: 0 | D140: 0 | E140: 0
B141: 118 | C141: 0 | D141: 0 | E141: 0
B142: 119 | C142: 0 | D142: 0 | E142: 0
B143: 120 | C143: 0 | D143: 0 | E143: 0
B144: 121 | C144: 0 | D144: 0 | E144: 0
B145: 122 | C145: =IF($B145>$C$11*12,"",C$19) -> 0 | D145: 0 | E145: 0
B146: 123 | C146: 0 | D146: 0 | E146: 0
B147: 124 | C147: 0 | D147: 0 | E147: 0
B148: 125 | C148: 0 | D148: 0 | E148: 0
B149: 126 | C149: 0 | D149: 0 | E149: 0
B150: 127 | C150: 0 | D150: 0 | E150: 0
B151: 128 | C151: 0 | D151: 0 | E151: 0
B152: 129 | C152: 0 | D152: 0 | E152: 0
B153: 130 | C153: 0 | D153: 0 | E153: 0
B154: =B153+1 -> 131 | C154: 0 | D154: 0 | E154: 0
B155: 132 | C155: 0 | D155: 0 | E155: 0
B156: 133 | C156: 0 | D156: 0 | E156: 0
B157: 134 | C157: 0 | D157: 0 | E157: 0
B158: 135 | C158: 0 | D158: 0 | E158: 0
B159: 136 | C159: 0 | D159: 0 | E159: 0
B160: 137 | C160: 0 | D160: 0 | E160: 0
B161: 138 | C161: 0 | D161: 0 | E161: 0
B162: 139 | C162: 0 | D162: 0 | E162: 0
B163: 140 | C163: 0 | D163: 0 | E163: 0
B164: 141 | C164: 0 | D164: 0 | E164: 0
B165: 142 | C165: =IF($B165>$C$11*12,"",C$19) -> 0 | D165: 0 | E165: 0
B166: 143 | C166: 0 | D166: 0 | E166: 0
B167: 144 | C167: 0 | D167: 0 | E167: 0
B168: 145 | C168: 0 | D168: 0 | E168: 0
B169: 146 | C169: 0 | D169: 0 | E169: 0
B170: 147 | C170: 0 | D170: 0 | E170: 0
B171: 148 | C171: 0 | D171: 0 | E171: 0
B172: 149 | C172: 0 | D172: 0 | E172: 0
B173: 150 | C173: 0 | D173: 0 | E173: 0
B174: 151 | C174: 0 | D174: 0 | E174: 0
B175: 152 | C175: 0 | D175: 0 | E175: 0
B176: 153 | C176: 0 | D176: 0 | E176: 0
B177: 154 | C177: 0 | D177: 0 | E177: 0
B178: 155 | C178: 0 | D178: 0 | E178: 0
B179: 156 | C179: 0 | D179: 0 | E179: 0
B180: 157 | C180: 0 | D180: 0 | E180: 0
B181: 158 | C181: 0 | D181: 0 | E181: 0
B182: 159 | C182: 0 | D182: 0 | E182: 0
B183: 160 | C183: 0 | D183: 0 | E183: 0
B184: 161 | C184: 0 | D184: 0 | E184: 0
B185: 162 | C185: =IF($B185>$C$11*12,"",C$19) -> 0 | D185: 0 | E185: 0
B186: 163 | C186: 0 | D186: 0 | E186: 0
B187: 164 | C187: 0 | D187: 0 | E187: 0
B188: 165 | C188: 0 | D188: 0 | E188: 0
B189: 166 | C189: 0 | D189: 0 | E189: 0
B190: 167 | C190: 0 | D190: 0 | E190: 0
B191: 168 | C191: 0 | D191: 0 | E191: 0
B192: 169 | C192: 0 | D192: 0 | E192: 0
B193: 170 | C193: 0 | D193: 0 | E193: 0
B194: 171 | C194: 0 | D194: 0 | E194: 0
B195: 172 | C195: 0 | D195: 0 | E195: 0
B196: 173 | C196: 0 | D196: 0 | E196: 0
B197: 174 | C197: 0 | D197: 0 | E197: 0
B198: 175 | C198: 0 | D198: 0 | E198: 0
B199: 176 | C199: 0 | D199: 0 | E199: 0
B200: 177 | C200: 0 | D200: 0 | E200: 0
B201: 178 | C201: 0 | D201: 0 | E201: 0
B202: 179 | C202: 0 | D202: 0 | E202: 0
B203: =B202+1 -> 180 | C203: =IF($B203>$C$11*12,"",IF(AND($C$11>$D$11,B203>=$D$11*12),"",C$19)) -> 0 | D203: =IF($B203>$C$11*12,"",IF(AND($C$11>$D$11,B203>=$D$11*12),"",D$19)) -> 0 | E203: =IF($B203>$C$11*12,"",IF(AND($C$11>$D$11,B203>=$D$11*12),"",E$19)) -> 0
B204: 181 | C204: =IF($B204>$C$11*12,"",IF(AND($C$11>$D$11,B204>=$D$11*12),"",C$19)) -> 0 | D204: =IF($B204>$C$11*12,"",IF(AND($C$11>$D$11,B204>=$D$11*12),"",D$19)) -> 0 | E204: =IF($B204>$C$11*12,"",IF(AND($C$11>$D$11,B204>=$D$11*12),"",E$19)) -> 0
B205: 182 | C205: 0 | D205: 0 | E205: 0
B206: 183 | C206: 0 | D206: 0 | E206: 0
B207: 184 | C207: 0 | D207: 0 | E207: 0
B208: 185 | C208: 0 | D208: 0 | E208: 0
... 423 more rows

Sheet Project Completion Sch (hidden)
A1: MaineHousing | K1: ='Project Information'!D4 -> Project Name
E3: Project Completion Schedule
C7: Activity | G7: Actual/Scheduled Date
G8: Month/Year
C10: A. SITE
D12: Option/Contract
D14: Site Acquisition
D16: Zoning Approval
D18: Site Analysis
C20: B. FINANCING
D22: Construction Loan Commitment
D24: Permanent Loan Commitment
D26: Other Sources Committed
C28: C. PLANS AND SPECIFICATIONS
D30: 0.5
D32: 0.9
D34: 1
C36: D. CONSTRUCTION LOAN CLOSING
C38: E. CONSTRUCTION START
C40: F. COMPLETION OF CONSTRUCTION
C42: G. LEASE-UP
D44: Initial Lease-up
D46: Sustained (95%) Occupancy
C49: Please account for application processing - approximately 60 days from the application due date.

Sheet MH Underwriting
C1: PROJECT NAME: | E1: ='Project Information'!D4 -> Project Name | I1: Date:
C2: LOCATION: | E2: ='Project Information'!D8 -> Town
T3: Max LIHTC Available | V3: ='Tax Credit Calc'!I23 -> 0 | W3: =IF(W4<>"","SLIHTC","") -> 
C4: DEVELOPMENT ASSUMPTIONS | T4: LIHTC Alloc. | V4: ='Tax Credit Calc'!I25 -> 0 | W4: =IF(Sources!C56<>"",Sources!C56,"") -> 
C5: Total Units | G5: =F180 -> 0 | I5: Inflation Adjustments | K5: Yr 1-5 | L5: Yr. 6-15 | M5: Yr. 16-30 | T5: Equity yield | V5: ='Tax Credit Calculations'!S45 -> 0.87 | W5: =IF(W4="","",Sources!D56) -> 
C6: =IF(SUM(SUMIFS(F153:F177,E153:E177,"30% - LH"),SUMIFS(F153:F177,E153:E177,"40% - LH"))=0,"# @ 50% AMI (low HOME)","# @ 50% AMI or less (low HOME)") -> # @ 50% AMI (low HOME) | F6: =IF($G$5=0,0,G6/$G$5) -> 0 | G6: =SUM(SUMIFS(F153:F177,E153:E177,"30% - LH"),SUMIFS(F153:F177,E153:E177,"40% - LH"),SUMIFS(F153:F177,E153:E177,"50% - LH")) -> 0 | I6: Rent | K6: 0.02 | L6: 0.025 | M6: 0.03 | T6: Synd. % | V6: ='Tax Credit Calculations'!Y48 -> 0.9999 | W6: =IF(W5="","",1) ->  | X6: =IF(AND(S79>0,S107>0,S114>0),"Make Sure to add Q107 (Difference between tax credits and equity) to CL interest development costs (not basis eligible)","") -> 
C7: =IF(SUM(SUMIFS(F153:F177,E153:E177,"30% - HH"),SUMIFS(F153:F177,E153:E177,"40% - HH"))=0,"# @ 50% AMI (High HOME)","# @ 50% AMI or less (High HOME)") -> # @ 50% AMI (High HOME) | F7: =IF($G$5=0,0,G7/$G$5) -> 0 | G7: =SUM(SUMIFS(F153:F177,E153:E177,"30% - HH"),SUMIFS(F153:F177,E153:E177,"40% - HH"),SUMIFS(F153:F177,E153:E177,"50% - HH")) -> 0 | I7: Operating Expense | K7: 0.03 | L7: =K7 -> 0.03 | M7: =L7 -> 0.03 | T7: Equity Raise | V7: =V4*V5*10*V6 -> 0 | W7: =IF(W6="","",W4*W5*W6) -> 
C8: =IF(SUM(SUMIFS(F153:F177,E153:E177,"30%"),SUMIFS(F153:F177,E153:E177,"40%"))=0,"# @ 50% AMI (LIHTC)","# @ 50% AMI or less (LIHTC)") -> # @ 50% AMI (LIHTC) | F8: =IF($G$5=0,0,G8/$G$5) -> 0 | G8: =SUM(SUMIFS(F153:F177,E153:E177,"30%"),SUMIFS(F153:F177,E153:E177,"40%"),SUMIFS(F153:F177,E153:E177,"50%")) -> 0 | I8: Other Income | K8: =K6 -> 0.02 | L8: =L6 -> 0.025 | M8: =M6 -> 0.03
C9: =IF(SUMIFS(F153:F177,E153:E177,"80%")=0,"# @ 60% AMI (LIHTC)","# @ 60% AMI or more (LIHTC)") -> # @ 60% AMI (LIHTC) | F9: =IF($G$5=0,0,G9/$G$5) -> 0 | G9: =SUM(SUMIFS(F153:F177,E153:E177,60%),SUMIFS(F153:F177,E153:E177,80%)) -> 0 | I9: Debt Coverage Ratio | K9: =H197 -> 1.15 | T9: Historic Credit-Federal | V9: =IF('Tax Credit Calc'!E8="No",0,IF('Tax Credit Calculations'!S19="",(H21-H15+H32+H34+H35+H41+H42+H43+H55+H62+H63+H64)*0.2,'Tax Credit Calculations'!S19)) -> 0
C10: # @ Market | F10: =IF($G$5=0,0,G10/$G$5) -> 0 | G10: =SUMIFS(F153:F177,E153:E177,"Mkt") -> 0 | I10: Vacancy | K10: =K185 -> 0.05 | T10: Equity yield | V10: ='Tax Credit Calculations'!D32 -> 0.87
C11: Appraised Market Value | H11: =(J196+(O180-M180))/0.08 -> 0 | I11: Market Value/Unit | K11: =IF($G$5=0,0,$H$11/$G$5) -> 0 | T11: Synd. % | V11: =V6 -> 0.9999
T12: Equity Raise | V12: =V9*V10*V11 -> 0
C13: PRO FORMA DEVELOPMENT BUDGET
H14: Residential | J14: Per Unit | L14: Commercial | P14: TDC | T14: Historic Credit-State | V14: =V9/0.2*'Tax Credit Calculations'!D39 -> 0
C15: ='Tax Credit Calc'!A54 -> Site Improvements | H15: =P15-L15 -> 0 | J15: =IF($G$5=0,0,H15/$G$5) -> 0 | P15: ='Construction Costs'!E19 -> 0 | T15: Equity yield Equivilent | V15: ='Tax Credit Calculations'!D44 -> 0.88
C16: ='Tax Credit Calc'!A55 -> Construction | H16: 0 | J16: 0 | L16: ='Project Costs & Basis'!J9*(100/105) -> 0 | P16: ='Construction Costs'!E27 -> 0 | T16: Synd. % | V16: 1
C17: ='Tax Credit Calc'!A56 -> General Requirements | H17: 0 | J17: 0 | P17: ='Construction Costs'!E45 -> 0 | T17: Equity Raise | V17: =V14*V15*V16 -> 0
C18: ='Tax Credit Calc'!A57 -> Builder Profit | H18: 0 | J18: 0 | P18: ='Construction Costs'!E48 -> 0
C19: ='Tax Credit Calc'!A58 -> Bond Premium | H19: 0 | J19: 0 | P19: ='Construction Costs'!E50 -> 0 | T19: GP Contribution | V19: =IF(V7=0,0,100) -> 0
C20: ='Tax Credit Calc'!A59 -> Construction Contingency | G20: ='Tax Credit Calc'!C59 -> 0 | H20: 0 | J20: 0 | L20: ='Project Costs & Basis'!J9-L16 -> 0 | P20: ='Construction Costs'!E52 -> 0
C21: ='Tax Credit Calc'!A60 -> Subtotal Construction Costs | H21: =SUM(H15:H20) -> 0 | J21: 0 | L21: =SUM(L15:L20) -> 0 | P21: =H21+L21 -> 0 | T21: Total Equity: | V21: =V7+V12+V17+V19 -> 0
C23: ='Tax Credit Calc'!A62 -> Building Permits and Fees | H23: =P23-L23 -> 0 | J23: =IF($G$5=0,0,H23/$G$5) -> 0 | L23: ='Project Costs & Basis'!J13 -> 0 | P23: ='Project Costs & Basis'!E13 -> 0 | T23: Gross Square Footage | V23: ='Building Summary'!F36 -> 0
C24: ='Tax Credit Calc'!A63 -> Survey & Engineering | H24: =P24-L24 -> 0 | J24: 0 | L24: ='Project Costs & Basis'!J15 -> 0 | P24: ='Project Costs & Basis'!E15 -> 0 | T24: Construction Cost/Sq ft. | V24: =IF(V23=0,0,(H21-H20)/V23) -> 0
C25: ='Tax Credit Calc'!A64 -> Architectural & Design | H25: 0 | J25: 0 | L25: ='Project Costs & Basis'!J17 -> 0 | P25: ='Project Costs & Basis'!E17 -> 0 | T25: Total Project Cost/Sq ft. | V25: =IF(V23=0,0,P68/V23) -> 0
C26: ='Tax Credit Calc'!A65 -> Legal | H26: 0 | J26: 0 | L26: ='Project Costs & Basis'!J19 -> 0 | P26: ='Project Costs & Basis'!E19 -> 0
C27: ='Tax Credit Calc'!A66 -> Title & Recording | H27: 0 | J27: 0 | L27: ='Project Costs & Basis'!J21 -> 0 | P27: ='Project Costs & Basis'!E21 -> 0 | R27: Notes:
C28: ='Tax Credit Calc'!A67 -> Accounting | H28: 0 | J28: 0 | L28: ='Project Costs & Basis'!J23 -> 0 | P28: ='Project Costs & Basis'!E23 -> 0
C29: ='Tax Credit Calc'!A68 -> Construction Period Tax | H29: 0 | J29: 0 | L29: ='Project Costs & Basis'!J25 -> 0 | P29: ='Project Costs & Basis'!E25 -> 0
C30: ='Tax Credit Calc'!A69 -> Construction Period Insurance | H30: 0 | J30: 0 | L30: ='Project Costs & Basis'!J27 -> 0 | P30: ='Project Costs & Basis'!E27 -> 0
C31: ='Tax Credit Calc'!A70 -> Other | H31: 0 | J31: 0 | L31: ='Project Costs & Basis'!J29 -> 0 | P31: ='Project Costs & Basis'!E29 -> 0
C32: ='Tax Credit Calc'!A71 -> Subtotal Soft Costs | H32: =SUM(H23:H31) -> 0 | J32: 0 | L32: =SUM(L23:L31) -> 0 | P32: =H32+L32 -> 0
C34: ='Tax Credit Calc'!A73 -> Construction Loan Origination Fees | H34: =P34-L34 -> 0 | J34: =IF($G$5=0,0,H34/$G$5) -> 0 | L34: ='Project Costs & Basis'!J38 -> 0 | P34: ='Project Costs & Basis'!E38 -> 0
C35: ='Tax Credit Calc'!A74 -> Construction Loan Interest | H35: =P35-L35 -> 0 | J35: 0 | L35: ='Project Costs & Basis'!J40 -> 0 | P35: ='Project Costs & Basis'!E40 -> 0
C36: ='Tax Credit Calc'!A75 -> MaineHousing Permanent Loan Fees | H36: =P36-L36 -> 0 | J36: 0 | L36: ='Project Costs & Basis'!J42 -> 0 | P36: ='Project Costs & Basis'!E42 -> 0
C37: ='Tax Credit Calc'!A76 -> Other Permanent Loan Fees | H37: =P37-L37 -> 0 | J37: 0 | L37: ='Project Costs & Basis'!J44 -> 0 | P37: ='Project Costs & Basis'!E44 -> 0
C38: ='Tax Credit Calc'!A77 -> Other | H38: =P38-L38 -> 0 | J38: 0 | L38: ='Project Costs & Basis'!J46 -> 0 | P38: ='Project Costs & Basis'!E46 -> 0
C39: ='Tax Credit Calc'!A78 -> Subtotal Finance Costs | H39: =SUM(H34:H38) -> 0 | J39: 0 | L39: =SUM(L34:L38) -> 0 | P39: =H39+L39 -> 0
C41: ='Tax Credit Calc'!A80 -> Market Survey | H41: =P41-L41 -> 0 | J41: =IF($G$5=0,0,H41/$G$5) -> 0 | L41: ='Project Costs & Basis'!J53 -> 0 | P41: ='Project Costs & Basis'!E53 -> 0
C42: ='Tax Credit Calc'!A81 -> Appraisal | H42: 0 | J42: 0 | L42: ='Project Costs & Basis'!J55 -> 0 | P42: ='Project Costs & Basis'!E55 -> 0
C43: ='Tax Credit Calc'!A82 -> Environmental Study | H43: 0 | J43: 0 | L43: ='Project Costs & Basis'!J57 -> 0 | P43: ='Project Costs & Basis'!E57 -> 0
C44: ='Tax Credit Calc'!A83 -> LIHTC Fees & Prepaid Monitoring | H44: 0 | J44: 0 | L44: ='Project Costs & Basis'!J59 -> 0 | P44: ='Project Costs & Basis'!E59 -> 0
C45: ='Tax Credit Calc'!A84 -> Relocation Costs | H45: 0 | J45: 0 | L45: ='Project Costs & Basis'!J61 -> 0 | P45: ='Project Costs & Basis'!E61 -> 0
C46: ='Tax Credit Calc'!A85 -> FF&E | H46: 0 | J46: 0 | L46: ='Project Costs & Basis'!J63 -> 0 | P46: ='Project Costs & Basis'!E63 -> 0
C47: ='Tax Credit Calc'!A86 -> Other | H47: 0 | J47: 0 | L47: ='Project Costs & Basis'!J65 -> 0 | P47: ='Project Costs & Basis'!E65 -> 0
C48: ='Tax Credit Calc'!A87 -> Subtotal Miscellaneous | H48: =SUM(H41:H47) -> 0 | J48: 0 | L48: =SUM(L41:L47) -> 0 | P48: =H48+L48 -> 0
C50: ='Tax Credit Calc'!A89 -> Acquisition: Buildings | H50: =P50-L50 -> 0 | J50: =IF($G$5=0,0,H50/$G$5) -> 0 | L50: ='Project Costs & Basis'!J73 -> 0 | P50: ='Project Costs & Basis'!E73 -> 0
C51: ='Tax Credit Calc'!A90 -> Acquisition: Land | H51: =P51-L51 -> 0 | J51: 0 | L51: ='Project Costs & Basis'!J75 -> 0 | P51: ='Project Costs & Basis'!E75 -> 0
C52: ='Tax Credit Calc'!A91 -> Acquisition: Existing Reserves | H52: =P52-L52 -> 0 | J52: 0 | L52: ='Project Costs & Basis'!J77 -> 0 | P52: ='Project Costs & Basis'!E77 -> 0
C53: ='Tax Credit Calc'!A92 -> Acquisition: Legal | H53: =P53-L53 -> 0 | J53: 0 | L53: ='Project Costs & Basis'!J79 -> 0 | P53: ='Project Costs & Basis'!E79 -> 0
C54: ='Tax Credit Calc'!A93 -> Acquisition: other | H54: =P54-L54 -> 0 | J54: 0 | L54: ='Project Costs & Basis'!J81 -> 0 | P54: ='Project Costs & Basis'!E81 -> 0
C55: ='Tax Credit Calc'!A94 -> Subtotal Acquisition | H55: =SUM(H50:H54) -> 0 | J55: 0 | L55: =SUM(L50:L54) -> 0 | P55: =H55+L55 -> 0
C57: ='Tax Credit Calc'!A96 -> Operating Deficit Escrow | H57: =P57-L57 -> 0 | J57: =IF($G$5=0,0,H57/$G$5) -> 0 | L57: ='Project Costs & Basis'!J88 -> 0 | P57: ='Project Costs & Basis'!E88 -> 0
C58: ='Tax Credit Calc'!A97 -> Pre-funded Replacements | H58: 0 | J58: 0 | L58: ='Project Costs & Basis'!J90 -> 0 | P58: ='Project Costs & Basis'!E90 -> 0
C59: ='Tax Credit Calc'!A98 -> Tax & Insurance Escrow | H59: 0 | J59: 0 | L59: ='Project Costs & Basis'!J92 -> 0 | P59: ='Project Costs & Basis'!E92 -> 0
C60: ='Tax Credit Calc'!A99 -> Working Capital | H60: 0 | J60: 0 | L60: ='Project Costs & Basis'!J94 -> 0 | P60: ='Project Costs & Basis'!E94 -> 0
C61: ='Tax Credit Calc'!A100 -> Total Syndication Expenses | H61: 0 | J61: 0 | L61: ='Project Costs & Basis'!J112 -> 0 | P61: ='Project Costs & Basis'!E112 -> 0 | T61: =IF(G5<20,G5*17500,20*17500+(G5-20)*15000) -> 0 | U61: =IF(G5<20,G5*10000,20*10000+(G5-20)*5000) -> 0 | V61: =IF('Project Information'!D28+'Project Information'!I28 =0,0,IF(OR('Project Information'!D26="Acquisition/Rehab",'Project Information'!D26="Acquisition/Rehab With New Construction"),U61*('Project Information'!D28/('Project Information'!D28+'Project Information'!I28))+T61*(1-('Project Information'!D28/('Project Information'!D28+'Project Information'!I28))),T61)) -> 0
C62: ='Tax Credit Calc'!A101 -> Consultant Fee | H62: 0 | J62: 0 | L62: ='Project Costs & Basis'!J116 -> 0 | P62: ='Project Costs & Basis'!E116 -> 0 | R62: Maximum Gross Developer Fee (10%/15%) | V62: =(H68-H55-H62-H63-H64)*15%+(H55*10%) -> 0 | W62: =IF(V64>V62,"Gross Fee is Too High","") -> 
C63: ='Tax Credit Calc'!A102 -> Developer Overhead | H63: 0 | J63: 0 | L63: ='Project Costs & Basis'!J118 -> 0 | P63: ='Project Costs & Basis'!E118 -> 0 | R63: Maximum Net Developer Fee (per unit max) | V63: =IF(V62<750000,V62,750000) -> 0
C64: ='Tax Credit Calc'!A103 -> Developer Profit | H64: 0 | J64: 0 | L64: ='Project Costs & Basis'!J120 -> 0 | P64: ='Project Costs & Basis'!E120 -> 0 | R64: Actual Proposed Gross Fee | V64: =H62+H63+H64 -> 0 | W64: =IF(W62="","",IF(V66>V63,"and","")) -> 
C65: ='Tax Credit Calc'!A104 -> Other | H65: 0 | J65: 0 | L65: ='Project Costs & Basis'!J96 -> 0 | P65: ='Project Costs & Basis'!E96 -> 0 | R65: % of maximum Gross Fee | V65: =IF(V62=0,0,V64/V62) -> 0
C66: ='Tax Credit Calc'!A105 -> Subtotal Fee and Reserves | H66: =SUM(H57:H65) -> 0 | J66: 0 | L66: =SUM(L57:L65) -> 0 | P66: =H66+L66 -> 0 | R66: Proposed Net Fee Collected | V66: =V64-T99 -> 0 | W66: =IF(V66>V63,"Net Fee is Too High","") -> 
R67: % of Maximum Net Fee | V67: =IF(V62=0,0,V66/V63) -> 0
E68: ='Tax Credit Calc'!A107 -> Total Project Costs | H68: =H21+H32+H39+H48+H55+H66 -> 0 | J68: =IF($G$5=0,0,H68/$G$5) -> 0 | L68: =L21+L32+L39+L48+L55+L66 -> 0 | P68: =H68+L68 -> 0 | U68: =IF(V68="","","Net Fee Collected should not exceed") ->  | V68: =IF(W66="","",V63) -> 
R69: =IF(W64="","",W64) ->  | U69: =IF(V69="","","Gross Fee should not exceed") ->  | V69: =IF(W62="","",V62) -> 
W70: ='Project Information'!D4 -> Project Name
C71: FLOW OF FUNDS
R72: 1st Equity | S72: Final
G73: =IF(INDIRECT("'Project Completion Sch'!G35",TRUE)="",EOMONTH(TODAY(),12),INDIRECT("'Project Completion Sch'!G35",TRUE)) -> 2025-06-30 | I73: During Construction | P73: =EOMONTH(G73,SUM(Y92,AC92)) -> 2026-09-30 | R73: Occupancy | S73: Capital
C74: Sources | G74: CLC | I74: 0.25 | J74: 0.5 | K74: 0.75 | L74: 1 | P74: PLC | R74: Milestone | S74: Payment | T74: Total
C76: Beginning Cash | G76: 0 | I76: =G120 -> 0 | J76: =I120 -> 0 | K76: =J120 -> 0 | L76: =K120 -> 0 | P76: =L120 -> 0 | R76: =P120 -> 0 | S76: =R120 -> 0 | T76: =G76 -> 0
V77: 50% Test
C78: Fed Tax Credit Capital | G78: =IF(P68=0,0,IF(Sources!C13=0,0,Sources!C13-SUM(I78:L78))) -> 0 | J78: =(Sources!C13-100)/2 -> 0 | P78: =V21-V17-G78-SUM(I78:L78)-R78-S78 -> 0 | R78: =V21*0.05 -> 0 | S78: =V21*0.0125 -> 0 | T78: =SUM(G78:S78) -> 0 | V78: Agg. Basis | W78: =IF(V81="Not Applicable","",'Tax Credit Calc'!F107+'MH Underwriting'!L68+'MH Underwriting'!P51) -> 
C79: ME Tax Credit Capital | G79: =IF('Tax Credit Calculations'!D38="No",'MH Underwriting'!V17*0.1,0) -> 0 | P79: =IF(G79<>0,V17*0.9,0) -> 0 | S79: =IF(W4<>"",W4,0) -> 0 | T79: =SUM(G79:S79) -> 0
C80: Construction Loan | G80: =IF(G118-G78-G79-G81-SUM(G83:G99)-G76>0,G118-G78-G79-G81-SUM(G83:G99)-G76,0) -> 0 | I80: =IF(I118-I78-I79-I81-SUM(I83:I99)-I76>0,I118-I78-I79-I81-SUM(I83:I99)-I76,0) -> 0 | J80: =IF(J118-J78-J79-J81-SUM(J83:J99)-J76>0,J118-J78-J79-J81-SUM(J83:J99)-J76,0) -> 0 | K80: =IF(K118-K78-K79-K81-SUM(K83:K99)-K76>0,K118-K78-K79-K81-SUM(K83:K99)-K76,0) -> 0 | L80: =IF(L118-L78-L79-L81-SUM(L83:L99)-L76>0,L118-L78-L79-L81-SUM(L83:L99)-L76,0) -> 0 | T80: =ROUNDUP(SUM(G80:S80),-5) -> 0 | V80: Perm. TE | W80: =IF(W78="","",IF('Tax Credit Calculations'!D6="Yes",SUM(I129:I130),SUM(I129:I131))) -> 
C81: GP Bridge Loan | T81: =SUM(G81:S81) -> 0 | V81: =IF('Tax Credit Calc'!E10="No","Not Applicable","") -> Not Applicable
W82: =IF(W78="","",IF(W78=0,0,W80/W78)) -> 
B83: =CONCATENATE(IF(OR(D83="0% Deferred Loan",D83="0% Deferred Loan 2",D83="0% Deferred Loan 3"),"0% Loan",IF(OR(D83="MH Interest Bearing Loan ",D83="MH Interest Bearing Loan #2",D83="MH Interest Bearing Loan #3"),"MH Loan ",D83))," - ",F83) -> 0% Deferred Loan - FedHOME - | C83: MH: | D83: =IF(F83="","0% Deferred Loan - FedHOME","0% Deferred Loan ") -> 0% Deferred Loan - FedHOME | G83: =IF('Project Information'!L4="Yes",0,Sources!C11-SUM(I83:L83)) -> 0 | P83: =IF('Project Information'!L4="Yes",Sources!C32-SUM(G83:L83)-T84-T85,Sources!C32-T84-T85) -> 0 | T83: =SUM(G83:S83) -> 0 | V83: Min TE Amt | W83: =IF(W78="","",ROUNDUP(W78*0.55,-4)) -> 
B84: =CONCATENATE(IF(OR(D84="0% Deferred Loan",D84="0% Deferred Loan 2",D84="0% Deferred Loan 3"),"0% Loan",IF(OR(D84="MH Interest Bearing Loan ",D84="MH Interest Bearing Loan #2",D84="MH Interest Bearing Loan #3"),"MH Loan ",D84))," - ",F84) -> 0% Loan - | D84: 0% Deferred Loan 2 | P84: =SUM(G83:I83)*0.5 -> 0 | T84: 0 | V84: % of CL | W84: =IF(W83="","",IF(T80=0,0,W83/T80)) -> 
B85: 0% Loan - | D85: 0% Deferred Loan 3 | T85: 0
B86: MH Loan - | D86: =Sources!B39 -> MH Interest Bearing Loan | P86: =Sources!C39 -> 0 | T86: 0 | V86: Bal. of CL | W86: =IF(W78="","",T80-W90) -> 
B87: MH Loan - | D87: =Sources!B40 -> MH Interest Bearing Loan #2 | P87: =Sources!C40 -> 0 | T87: 0
B88: MH Loan - | D88: =Sources!B41 -> MH Interest Bearing Loan #3 | P88: =Sources!C41 -> 0 | T88: 0
B89: - | C89: Conventional First Mortgage
B90: AHP Subsidized Advance - | D90: =IF(Sources!B43="","",Sources!B43) -> AHP Subsidized Advance | P90: =Sources!C43 -> 0 | T90: =SUM(G90:S90) -> 0 | V90: Actual TE Bonds | W90: =W83 ->  | Y90: Construction Loan Interest Estimate
B91: - | C91: Other Outside Sources | Y91: Construction Period | Z91: Mon. Per Quarter | AA91: Interest Rate | AC91: Mon. to Close | AD91: Utilization Rate
B92: City FEDHOME* - | D92: =IF(Sources!B17="",IF(Sources!B45="","",Sources!B45),Sources!B17) -> City FEDHOME* | G92: =Sources!C17-SUM(I92:L92) -> 0 | P92: =Sources!C45 -> 0 | T92: =SUM(G92:S92) -> 0 | Y92: =IF(INDIRECT("'Project Completion Sch'!G39",TRUE)="",12,ROUND(((INDIRECT("'Project Completion Sch'!G39",TRUE)-INDIRECT("'Project Completion Sch'!G35",TRUE)))/30,)) -> 12 | Z92: =Y92/4 -> 3 | AA92: =IF('Project Information'!L4="No",Sources!D21,4.5%) -> 0.045 | AC92: 3 | AD92: 0.6
B93: AHP Capital Advance* - | D93: =IF(Sources!B18="",IF(Sources!B46="","",Sources!B46),Sources!B18) -> AHP Capital Advance* | I93: =Sources!C18-SUM(G93,J93:L93) -> 0 | P93: =Sources!C46 -> 0 | T93: =SUM(H93:S93) -> 0
B94: TIF Loan* - | D94: =IF(Sources!B19="",IF(Sources!B47="","",Sources!B47),Sources!B19) -> TIF Loan* | G94: =Sources!C19-SUM(I94:L94) -> 0 | P94: =Sources!C47 -> 0 | T94: =SUM(G94:S94) -> 0 | Y94: Drawn | Z94: Cummulative
B95: - | C95: =Sources!B48 ->  | G95: 0 | P95: =Sources!C48 -> 0 | T95: 0 | X95: CLC | Y95: =$G$80 -> 0 | Z95: =Y95 -> 0
B96: - | C96: =Sources!B49 ->  | G96: 0 | P96: =Sources!C49 -> 0 | T96: 0 | X96: 1 | Y96: =IF(OR(X96<$Z$92,X96=$Z$92),$I$80/$Z$92,IF(OR(X96<$Z$92*2,X96=$Z$92*2),$J$80/$Z$92,IF(OR(X96<$Z$92*3,X96=$Z$92*3),$K$80/$Z$92,IF(OR(X96<$Z$92*4,X96=$Z$92*4),$L$80/$Z$92,IF(X96=$Y$92+1,$T$80-SUM(Y95:$Y$95),0))))) -> 0 | Z96: =Z95+Y96 -> 0 | AA96: =Z95*$AA$92/12 -> 0 | AB96: =AB95+AA96 -> 0 | AC96: =IF(X96=ROUND($Z$92,),ROUND(AB96-$AB$95,),IF(X96=ROUND($Z$92*2,),ROUND(AB96-VLOOKUP(ROUND($Z$92,),$X$95:$AB$124,5,FALSE),),IF(X96=ROUND($Z$92*3,),ROUND(AB96-VLOOKUP(ROUND($Z$92*2,),$X$95:$AB$124,5,FALSE),),IF(X96=ROUND($Z$92*4,),ROUND(AB96-VLOOKUP(ROUND($Z$92*3,),$X$95:$AB$124,5,FALSE),),IF(X96=ROUND($Z$92*4,)+$AC$92,ROUND(AB96-VLOOKUP(ROUND($Z$92*4,),$X$95:$AB$124,5,FALSE),),)))))/(VLOOKUP($Y$92+1,$X$95:$AB$124,5,FALSE)+((VLOOKUP($Y$92+1,$X$95:$AB$124,4,FALSE))*($AC$92-1))) ->  | AD96: =IF(X96=$Y$92+$AC$92,$T$80*$AD$92*($AA$92/12)*($Y$92+$AC$92),"") -> 
B97: Grant* - | D97: =IF(Sources!B15="",IF(Sources!B51="","",Sources!B51),Sources!B15) -> Grant* | G97: =Sources!C15 -> 0 | P97: =Sources!C51 -> 0 | T97: 0 | X97: 2 | Y97: =IF(OR(X97<$Z$92,X97=$Z$92),$I$80/$Z$92,IF(OR(X97<$Z$92*2,X97=$Z$92*2),$J$80/$Z$92,IF(OR(X97<$Z$92*3,X97=$Z$92*3),$K$80/$Z$92,IF(OR(X97<$Z$92*4,X97=$Z$92*4),$L$80/$Z$92,IF(X97=$Y$92+1,$T$80-SUM(Y$95:$Y96),0))))) -> 0 | Z97: 0 | AA97: 0 | AB97: =AB96+AA97 -> 0 | AC97: =IF(X97=ROUND($Z$92,),ROUND(AB97-$AB$95,),IF(X97=ROUND($Z$92*2,),ROUND(AB97-VLOOKUP(ROUND($Z$92,),$X$95:$AB$124,5,FALSE),),IF(X97=ROUND($Z$92*3,),ROUND(AB97-VLOOKUP(ROUND($Z$92*2,),$X$95:$AB$124,5,FALSE),),IF(X97=ROUND($Z$92*4,),ROUND(AB97-VLOOKUP(ROUND($Z$92*3,),$X$95:$AB$124,5,FALSE),),IF(X97=ROUND($Z$92*4,)+$AC$92,ROUND(AB97-VLOOKUP(ROUND($Z$92*4,),$X$95:$AB$124,5,FALSE),),)))))/(VLOOKUP($Y$92+1,$X$95:$AB$124,5,FALSE)+((VLOOKUP($Y$92+1,$X$95:$AB$124,4,FALSE))*($AC$92-1))) -> 
B98: General Partner (or Affiliate) Loan - | D98: =Sources!B53 -> General Partner (or Affiliate) Loan | G98: =Sources!C23-G81 -> 0 | P98: =Sources!C53 -> 0 | T98: 0 | X98: 3 | Y98: =IF(OR(X98<$Z$92,X98=$Z$92),$I$80/$Z$92,IF(OR(X98<$Z$92*2,X98=$Z$92*2),$J$80/$Z$92,IF(OR(X98<$Z$92*3,X98=$Z$92*3),$K$80/$Z$92,IF(OR(X98<$Z$92*4,X98=$Z$92*4),$L$80/$Z$92,IF(X98=$Y$92+1,$T$80-SUM(Y$95:$Y97),0))))) -> 0 | Z98: 0 | AA98: 0 | AB98: 0
B99: Deferred Developer Fee - | D99: =Sources!B54 -> Deferred Developer Fee | P99: =Sources!C54 -> 0 | T99: 0 | X99: 4 | Y99: =IF(OR(X99<$Z$92,X99=$Z$92),$I$80/$Z$92,IF(OR(X99<$Z$92*2,X99=$Z$92*2),$J$80/$Z$92,IF(OR(X99<$Z$92*3,X99=$Z$92*3),$K$80/$Z$92,IF(OR(X99<$Z$92*4,X99=$Z$92*4),$L$80/$Z$92,IF(X99=$Y$92+1,$T$80-SUM(Y$95:$Y98),0))))) -> 0 | Z99: 0 | AA99: 0 | AB99: 0
C100: TOTAL SOURCES | G100: =SUM(G76:G99) -> 0 | I100: =SUM(I76:I99) -> 0 | J100: =SUM(J76:J99) -> 0 | K100: =SUM(K76:K99) -> 0 | L100: =SUM(L76:L99) -> 0 | P100: =SUM(P76:P99) -> 0 | R100: =SUM(R76:R99) -> 0 | S100: =SUM(S76:S99) -> 0 | T100: =SUM(T78:T99) -> 0 | X100: 5 | Y100: =IF(OR(X100<$Z$92,X100=$Z$92),$I$80/$Z$92,IF(OR(X100<$Z$92*2,X100=$Z$92*2),$J$80/$Z$92,IF(OR(X100<$Z$92*3,X100=$Z$92*3),$K$80/$Z$92,IF(OR(X100<$Z$92*4,X100=$Z$92*4),$L$80/$Z$92,IF(X100=$Y$92+1,$T$80-SUM(Y$95:$Y99),0))))) -> 0 | Z100: 0 | AA100: 0 | AB100: 0
X101: 6 | Y101: =IF(OR(X101<$Z$92,X101=$Z$92),$I$80/$Z$92,IF(OR(X101<$Z$92*2,X101=$Z$92*2),$J$80/$Z$92,IF(OR(X101<$Z$92*3,X101=$Z$92*3),$K$80/$Z$92,IF(OR(X101<$Z$92*4,X101=$Z$92*4),$L$80/$Z$92,IF(X101=$Y$92+1,$T$80-SUM(Y$95:$Y100),0))))) -> 0 | Z101: 0 | AA101: 0 | AB101: 0
C102: Uses | X102: 7 | Y102: =IF(OR(X102<$Z$92,X102=$Z$92),$I$80/$Z$92,IF(OR(X102<$Z$92*2,X102=$Z$92*2),$J$80/$Z$92,IF(OR(X102<$Z$92*3,X102=$Z$92*3),$K$80/$Z$92,IF(OR(X102<$Z$92*4,X102=$Z$92*4),$L$80/$Z$92,IF(X102=$Y$92+1,$T$80-SUM(Y$95:$Y101),0))))) -> 0 | Z102: 0 | AA102: 0 | AB102: 0
X103: 8 | Y103: =IF(OR(X103<$Z$92,X103=$Z$92),$I$80/$Z$92,IF(OR(X103<$Z$92*2,X103=$Z$92*2),$J$80/$Z$92,IF(OR(X103<$Z$92*3,X103=$Z$92*3),$K$80/$Z$92,IF(OR(X103<$Z$92*4,X103=$Z$92*4),$L$80/$Z$92,IF(X103=$Y$92+1,$T$80-SUM(Y$95:$Y102),0))))) -> 0 | Z103: 0 | AA103: 0 | AB103: 0
C104: Acquisition | G104: =H55 -> 0 | T104: =SUM(G104:S104) -> 0 | X104: 9 | Y104: =IF(OR(X104<$Z$92,X104=$Z$92),$I$80/$Z$92,IF(OR(X104<$Z$92*2,X104=$Z$92*2),$J$80/$Z$92,IF(OR(X104<$Z$92*3,X104=$Z$92*3),$K$80/$Z$92,IF(OR(X104<$Z$92*4,X104=$Z$92*4),$L$80/$Z$92,IF(X104=$Y$92+1,$T$80-SUM(Y$95:$Y103),0))))) -> 0 | Z104: 0 | AA104: 0 | AB104: 0
C105: Construction | I105: =$H$21/4 -> 0 | J105: =$H$21/4 -> 0 | K105: =$H$21/4 -> 0 | L105: =$H$21/4 -> 0 | T105: 0 | X105: 10 | Y105: =IF(OR(X105<$Z$92,X105=$Z$92),$I$80/$Z$92,IF(OR(X105<$Z$92*2,X105=$Z$92*2),$J$80/$Z$92,IF(OR(X105<$Z$92*3,X105=$Z$92*3),$K$80/$Z$92,IF(OR(X105<$Z$92*4,X105=$Z$92*4),$L$80/$Z$92,IF(X105=$Y$92+1,$T$80-SUM(Y$95:$Y104),0))))) -> 0 | Z105: 0 | AA105: 0 | AB105: 0
C106: Soft Costs | G106: =H32-SUM(I106:S106) -> 0 | I106: =IF($P32=0,0,10000) -> 0 | J106: =IF($P32=0,0,10000) -> 0 | K106: =IF($P32=0,0,10000) -> 0 | L106: =IF($P32=0,0,10000) -> 0 | P106: =IF(P$32=0,0,H28+10000) -> 0 | T106: 0 | X106: 11 | Y106: =IF(OR(X106<$Z$92,X106=$Z$92),$I$80/$Z$92,IF(OR(X106<$Z$92*2,X106=$Z$92*2),$J$80/$Z$92,IF(OR(X106<$Z$92*3,X106=$Z$92*3),$K$80/$Z$92,IF(OR(X106<$Z$92*4,X106=$Z$92*4),$L$80/$Z$92,IF(X106=$Y$92+1,$T$80-SUM(Y$95:$Y105),0))))) -> 0 | Z106: 0 | AA106: 0 | AB106: 0
C107: Financing Costs | G107: =H39-SUM(I107:S107) -> 0 | I107: =$P$35*0.04 -> 0 | J107: =$P$35*0.12 -> 0 | K107: =$P$35*0.22 -> 0 | L107: =$P$35*0.34 -> 0 | P107: =$P$35*0.28 -> 0 | S107: =IF(S114>0,S79-S114,0) -> 0 | T107: =SUM(G107:S107) -> 0 | X107: 12 | Y107: =IF(OR(X107<$Z$92,X107=$Z$92),$I$80/$Z$92,IF(OR(X107<$Z$92*2,X107=$Z$92*2),$J$80/$Z$92,IF(OR(X107<$Z$92*3,X107=$Z$92*3),$K$80/$Z$92,IF(OR(X107<$Z$92*4,X107=$Z$92*4),$L$80/$Z$92,IF(X107=$Y$92+1,$T$80-SUM(Y$95:$Y106),0))))) -> 0 | Z107: 0 | AA107: 0 | AB107: 0
C108: Miscellaneous | G108: =H48+H65-SUM(I108:S108) -> 0 | P108: =+'Tax Credit Calculations'!W31*1000 -> 0 | T108: 0 | X108: 13 | Y108: =IF(OR(X108<$Z$92,X108=$Z$92),$I$80/$Z$92,IF(OR(X108<$Z$92*2,X108=$Z$92*2),$J$80/$Z$92,IF(OR(X108<$Z$92*3,X108=$Z$92*3),$K$80/$Z$92,IF(OR(X108<$Z$92*4,X108=$Z$92*4),$L$80/$Z$92,IF(X108=$Y$92+1,$T$80-SUM(Y$95:$Y107),0))))) -> 0 | Z108: 0 | AA108: 0 | AB108: 0
C109: Dev Fee | G109: =H62 -> 0 | P109: =($H$63+$H$64)-SUM(G109:L109)-R109-S109 -> 0 | R109: =R78-SUM(R104:R108)-R110-R117 -> 0 | S109: =S78+S79-SUM(S104:S108)-S110-S117 -> 0 | T109: 0 | X109: 14 | Y109: =IF(OR(X109<$Z$92,X109=$Z$92),$I$80/$Z$92,IF(OR(X109<$Z$92*2,X109=$Z$92*2),$J$80/$Z$92,IF(OR(X109<$Z$92*3,X109=$Z$92*3),$K$80/$Z$92,IF(OR(X109<$Z$92*4,X109=$Z$92*4),$L$80/$Z$92,IF(X109=$Y$92+1,$T$80-SUM(Y$95:$Y108),0))))) -> 0 | Z109: 0 | AA109: 0 | AB109: =AB108+AA109 -> 0
C110: Reserves | L110: =H60 -> 0 | P110: =H57+H58+H59 -> 0 | T110: 0 | X110: 15 | Y110: =IF(OR(X110<$Z$92,X110=$Z$92),$I$80/$Z$92,IF(OR(X110<$Z$92*2,X110=$Z$92*2),$J$80/$Z$92,IF(OR(X110<$Z$92*3,X110=$Z$92*3),$K$80/$Z$92,IF(OR(X110<$Z$92*4,X110=$Z$92*4),$L$80/$Z$92,IF(X110=$Y$92+1,$T$80-SUM(Y$95:$Y109),0))))) -> 0 | Z110: 0 | AA110: 0 | AB110: =AB109+AA110 -> 0 | AD110: 0
C111: TOTAL DEV. COSTS | G111: =SUM(G104:G110) -> 0 | I111: =SUM(I104:I110) -> 0 | J111: =SUM(J104:J110) -> 0 | K111: =SUM(K104:K110) -> 0 | L111: =SUM(L104:L110) -> 0 | P111: =SUM(P104:P110) -> 0 | R111: =SUM(R104:R110) -> 0 | S111: =SUM(S104:S110) -> 0 | T111: =SUM(T104:T110) -> 0 | X111: 16 | Y111: =IF(OR(X111<$Z$92,X111=$Z$92),$I$80/$Z$92,IF(OR(X111<$Z$92*2,X111=$Z$92*2),$J$80/$Z$92,IF(OR(X111<$Z$92*3,X111=$Z$92*3),$K$80/$Z$92,IF(OR(X111<$Z$92*4,X111=$Z$92*4),$L$80/$Z$92,IF(X111=$Y$92+1,$T$80-SUM(Y$95:$Y110),0))))) -> 0 | Z111: 0 | AA111: 0 | AB111: =AB110+AA111 -> 0
X112: 17 | Y112: =IF(OR(X112<$Z$92,X112=$Z$92),$I$80/$Z$92,IF(OR(X112<$Z$92*2,X112=$Z$92*2),$J$80/$Z$92,IF(OR(X112<$Z$92*3,X112=$Z$92*3),$K$80/$Z$92,IF(OR(X112<$Z$92*4,X112=$Z$92*4),$L$80/$Z$92,IF(X112=$Y$92+1,$T$80-SUM(Y$95:$Y111),0))))) -> 0 | Z112: 0 | AA112: 0 | AB112: 0
C113: Repay GP Bridge Loan | P113: =T81-R113-S113 -> 0 | T113: =SUM(G113:S113) -> 0 | X113: 18 | Y113: =IF(OR(X113<$Z$92,X113=$Z$92),$I$80/$Z$92,IF(OR(X113<$Z$92*2,X113=$Z$92*2),$J$80/$Z$92,IF(OR(X113<$Z$92*3,X113=$Z$92*3),$K$80/$Z$92,IF(OR(X113<$Z$92*4,X113=$Z$92*4),$L$80/$Z$92,IF(X113=$Y$92+1,$T$80-SUM(Y$95:$Y112),0))))) -> 0 | Z113: 0 | AA113: 0 | AB113: 0
C114: Repay Construction Loan | P114: =SUM(G80:L80)-R114-S114 -> 0 | S114: =IF(S79=0,0,W7) -> 0 | T114: =T80 -> 0 | X114: 19 | Y114: =IF(OR(X114<$Z$92,X114=$Z$92),$I$80/$Z$92,IF(OR(X114<$Z$92*2,X114=$Z$92*2),$J$80/$Z$92,IF(OR(X114<$Z$92*3,X114=$Z$92*3),$K$80/$Z$92,IF(OR(X114<$Z$92*4,X114=$Z$92*4),$L$80/$Z$92,IF(X114=$Y$92+1,$T$80-SUM(Y$95:$Y113),0))))) -> 0 | Z114: 0 | AA114: 0 | AB114: 0
C115: Other Syndication Costs | G115: =H61-SUM(I115:P115) -> 0 | T115: =SUM(G115:S115) -> 0 | X115: 20 | Y115: =IF(OR(X115<$Z$92,X115=$Z$92),$I$80/$Z$92,IF(OR(X115<$Z$92*2,X115=$Z$92*2),$J$80/$Z$92,IF(OR(X115<$Z$92*3,X115=$Z$92*3),$K$80/$Z$92,IF(OR(X115<$Z$92*4,X115=$Z$92*4),$L$80/$Z$92,IF(X115=$Y$92+1,$T$80-SUM(Y$95:$Y114),0))))) -> 0 | Z115: 0 | AA115: 0 | AB115: 0
C116: Total Commercial Costs | I116: =L68/4 -> 0 | J116: =I116 -> 0 | K116: =J116 -> 0 | L116: =K116 -> 0 | T116: =SUM(G116:S116) -> 0 | X116: 21 | Y116: =IF(OR(X116<$Z$92,X116=$Z$92),$I$80/$Z$92,IF(OR(X116<$Z$92*2,X116=$Z$92*2),$J$80/$Z$92,IF(OR(X116<$Z$92*3,X116=$Z$92*3),$K$80/$Z$92,IF(OR(X116<$Z$92*4,X116=$Z$92*4),$L$80/$Z$92,IF(X116=$Y$92+1,$T$80-SUM(Y$95:$Y115),0))))) -> 0 | Z116: 0 | AA116: 0 | AB116: 0 | AE116: =IF(S79>0,W7,0) -> 0
C117: SUBTOTAL OTHER ITEMS | G117: =SUM(G113:G116) -> 0 | I117: =SUM(I113:I116) -> 0 | J117: =SUM(J113:J116) -> 0 | K117: =SUM(K113:K116) -> 0 | L117: =SUM(L113:L116) -> 0 | P117: =SUM(P113:P116) -> 0 | R117: =SUM(R113:R115) -> 0 | S117: =SUM(S113:S115) -> 0 | T117: =SUM(T113:T116) -> 0 | X117: 22 | Y117: =IF(OR(X117<$Z$92,X117=$Z$92),$I$80/$Z$92,IF(OR(X117<$Z$92*2,X117=$Z$92*2),$J$80/$Z$92,IF(OR(X117<$Z$92*3,X117=$Z$92*3),$K$80/$Z$92,IF(OR(X117<$Z$92*4,X117=$Z$92*4),$L$80/$Z$92,IF(X117=$Y$92+1,$T$80-SUM(Y$95:$Y116),0))))) -> 0 | Z117: 0 | AA117: 0 | AB117: 0
C118: TOTAL USES OF FUNDS | G118: =G111+G117 -> 0 | I118: =I111+I117 -> 0 | J118: =J111+J117 -> 0 | K118: =K111+K117 -> 0 | L118: =L111+L117 -> 0 | P118: =P111+P117 -> 0 | R118: =R111+R117 -> 0 | S118: =S111+S117 -> 0 | T118: =T111+T117 -> 0 | X118: 23 | Y118: =IF(OR(X118<$Z$92,X118=$Z$92),$I$80/$Z$92,IF(OR(X118<$Z$92*2,X118=$Z$92*2),$J$80/$Z$92,IF(OR(X118<$Z$92*3,X118=$Z$92*3),$K$80/$Z$92,IF(OR(X118<$Z$92*4,X118=$Z$92*4),$L$80/$Z$92,IF(X118=$Y$92+1,$T$80-SUM(Y$95:$Y117),0))))) -> 0 | Z118: 0 | AA118: 0 | AB118: 0
V119: Sub. Per Unit | W119: =IF(G5=0,0,(I126+I127+I128)/G5) -> 0 | X119: 24 | Y119: =IF(OR(X119<$Z$92,X119=$Z$92),$I$80/$Z$92,IF(OR(X119<$Z$92*2,X119=$Z$92*2),$J$80/$Z$92,IF(OR(X119<$Z$92*3,X119=$Z$92*3),$K$80/$Z$92,IF(OR(X119<$Z$92*4,X119=$Z$92*4),$L$80/$Z$92,IF(X119=$Y$92+1,$T$80-SUM(Y$95:$Y118),0))))) -> 0 | Z119: 0 | AA119: 0 | AB119: 0
C120: Ending Cash | G120: =G100-G118 -> 0 | I120: =I100-I118 -> 0 | J120: =J100-J118 -> 0 | K120: =K100-K118 -> 0 | L120: =L100-L118 -> 0 | P120: =P100-P118 -> 0 | R120: =R100-R118 -> 0 | S120: =S100-S118 -> 0 | T120: =T100-T118 -> 0 | V120: Sub. Per L.I Unit | W120: =IF(G5=0,0,(I126+I127+I128)/SUM(G6:G9)) -> 0 | X120: 25 | Y120: =IF(OR(X120<$Z$92,X120=$Z$92),$I$80/$Z$92,IF(OR(X120<$Z$92*2,X120=$Z$92*2),$J$80/$Z$92,IF(OR(X120<$Z$92*3,X120=$Z$92*3),$K$80/$Z$92,IF(OR(X120<$Z$92*4,X120=$Z$92*4),$L$80/$Z$92,IF(X120=$Y$92+1,$T$80-SUM(Y$95:$Y119),0))))) -> 0 | Z120: 0 | AA120: 0 | AB120: 0
V121: Mkt. Diff. Per Unit | W121: =IF(F180=0,0,(O180-M180)/F180/12) -> 0 | X121: 26 | Y121: =IF(OR(X121<$Z$92,X121=$Z$92),$I$80/$Z$92,IF(OR(X121<$Z$92*2,X121=$Z$92*2),$J$80/$Z$92,IF(OR(X121<$Z$92*3,X121=$Z$92*3),$K$80/$Z$92,IF(OR(X121<$Z$92*4,X121=$Z$92*4),$L$80/$Z$92,IF(X121=$Y$92+1,$T$80-SUM(Y$95:$Y120),0))))) -> 0 | Z121: 0 | AA121: 0 | AB121: 0
X122: 27 | Y122: =IF(OR(X122<$Z$92,X122=$Z$92),$I$80/$Z$92,IF(OR(X122<$Z$92*2,X122=$Z$92*2),$J$80/$Z$92,IF(OR(X122<$Z$92*3,X122=$Z$92*3),$K$80/$Z$92,IF(OR(X122<$Z$92*4,X122=$Z$92*4),$L$80/$Z$92,IF(X122=$Y$92+1,$T$80-SUM(Y$95:$Y121),0))))) -> 0 | Z122: 0 | AA122: 0 | AB122: 0
D123: PROJECT FINANCING | S123: COLLATERAL COVERAGE (Permanent) | X123: 28 | Y123: =IF(OR(X123<$Z$92,X123=$Z$92),$I$80/$Z$92,IF(OR(X123<$Z$92*2,X123=$Z$92*2),$J$80/$Z$92,IF(OR(X123<$Z$92*3,X123=$Z$92*3),$K$80/$Z$92,IF(OR(X123<$Z$92*4,X123=$Z$92*4),$L$80/$Z$92,IF(X123=$Y$92+1,$T$80-SUM(Y$95:$Y122),0))))) -> 0 | Z123: 0 | AA123: 0 | AB123: 0
K124: Amortization | M124: Annual D/S | V124: Total | W124: Per Unit
D125: Source | G125: Terms | I125: Amount | J125: Rate | K125: and/or Term | L125: Lien | M125: Yr. 1-5 | P125: Yr. 6-15 | Q125: Yr. 16-30 | S125: First Lien Financing | V125: =SUMIFS(I126:I141,L126:L141,"First") -> 0 | W125: =IF($G$5=0,0,V125/$G$5) -> 0
D126: 1 | E126: =IF(F83<>"","0% Loan - "&F83,D83) -> 0% Deferred Loan - FedHOME | H126: =IF(P83=0,"",Sources!G32) ->  | I126: =T83 -> 0 | J126: =Sources!D32 -> 0 | K126: =Sources!E32 -> 30 | L126: Second | M126: 0 | P126: =M126 -> 0 | Q126: =P126 -> 0 | S126: Appraised Market Value | V126: =H11 -> 0 | W126: =IF($G$5=0,0,V126/$G$5) -> 0 | Y126: =_xlfn.IFNA(SUM(VLOOKUP(E126,$D$83:$L$99,4,FALSE),VLOOKUP(E126,$D$83:$L$99,6,FALSE),VLOOKUP(E126,$D$83:$L$99,7,FALSE),VLOOKUP(E126,$D$83:$L$99,8,FALSE),VLOOKUP(E126,$D$83:$L$99,9,FALSE)),_xlfn.IFNA(SUM(VLOOKUP(E126,$B$83:$L$99,6,FALSE),VLOOKUP(E126,$B$83:$L$99,8,FALSE),VLOOKUP(E126,$B$83:$L$99,9,FALSE),VLOOKUP(E126,$B$83:$L$99,10,FALSE),VLOOKUP(E126,$B$83:$L$99,11,FALSE)),0)) -> 0
D127: =D126+1 -> 2 | E127: =IF(F84<>"","0% Loan - "&F84,D84) -> 0% Deferred Loan 2 | H127: =IF(P84=0,"",Sources!G32) ->  | I127: 0 | J127: =J126 -> 0 | K127: =K126 -> 30 | L127: =L126 -> Second | M127: 0 | P127: =M127 -> 0 | Q127: =P127 -> 0 | S127: Loan to Value Ratio | V127: =IF(V126=0,0,V125/V126) -> 0 | Y127: =_xlfn.IFNA(SUM(VLOOKUP(E127,$D$83:$L$99,4,FALSE),VLOOKUP(E127,$D$83:$L$99,6,FALSE),VLOOKUP(E127,$D$83:$L$99,7,FALSE),VLOOKUP(E127,$D$83:$L$99,8,FALSE),VLOOKUP(E127,$D$83:$L$99,9,FALSE)),_xlfn.IFNA(SUM(VLOOKUP(E127,$B$83:$L$99,6,FALSE),VLOOKUP(E127,$B$83:$L$99,8,FALSE),VLOOKUP(E127,$B$83:$L$99,9,FALSE),VLOOKUP(E127,$B$83:$L$99,10,FALSE),VLOOKUP(E127,$B$83:$L$99,11,FALSE)),0)) -> 0
D128: =IF(I128<1,D127,D127+1) -> 2 | E128: =IF(F85<>"","0% Loan - "&F85,D85) -> 0% Deferred Loan 3 | H128: =IF(P85=0,"",Sources!G32) ->  | I128: 0 | J128: =J127 -> 0 | K128: =K127 -> 30 | L128: =L126 -> Second | M128: 0 | P128: 0 | Q128: 0 | Y128: 0
D129: =D128+1 -> 3 | E129: =IF(F86<>"","MH Loan - "&F86,D86) -> MH Interest Bearing Loan | H129: =IF(P86=0,"",IF(Sources!G39=Sources!$G$38,"Interest Only for 30 years",IF(OR(Sources!G39=Sources!$G$37,Sources!G39=Sources!$G$36),"Interest Only for 15 years",IF(Sources!G39=Sources!$G$35,"40 year Am with Ballon in 30","Straight Amortization")))) ->  | I129: 0 | J129: =Sources!D39 -> 0.06 | K129: =Sources!E39 -> 30 | L129: First | M129: =IF(OR(Sources!G39="Straight Amortization",Sources!G39="40 year Amortization with Ballon at end of 30 years"),PMT(J129/12,K129*12,I129)*-12,I129*J129) -> 0 | P129: =IF(K129<=5,0,M129) -> 0 | Q129: =IF(H129="Interest Only for 15 Years",PMT(J129/12,K129*12,I129)*-12,P129) -> 0 | S129: Second Lien Financing | V129: =V125+SUMIFS(I126:I141,L126:L141,"Second") -> 0 | W129: =IF($G$5=0,0,V129/$G$5) -> 0 | Y129: 0
D130: =IF(I130<1,D129,D129+1) -> 3 | E130: =IF(F87<>"","MH Loan - "&F87,D87) -> MH Interest Bearing Loan #2 | H130: =IF(P87=0,"",IF(Sources!G40=Sources!$G$38,"Interest Only for 30 years",IF(OR(Sources!G40=Sources!$G$37,Sources!G40=Sources!$G$36),"Interest Only for 15 years",IF(Sources!G40=Sources!$G$35,"40 year Am with Ballon in 30","Straight Amortization")))) ->  | I130: 0 | J130: =Sources!D40 -> 0.06 | K130: =Sources!E40 -> 30 | L130: =L129 -> First | M130: =IF(OR(Sources!G40="Straight Amortization",Sources!G40="40 year Amortization with Ballon at end of 30 years"),PMT(J130/12,K130*12,I130)*-12,I130*J130) -> 0 | P130: =IF(K130<=5,0,M130) -> 0 | Q130: =IF(H130="Interest Only for 15 Years",PMT(J130/12,K130*12,I130)*-12,IF(K130<=15,0,P130)) -> 0 | Y130: 0
D131: =IF(I131<1,D130,D130+1) -> 3 | E131: =IF(F88<>"","MH Loan - "&F88,D88) -> MH Interest Bearing Loan #3 | H131: =IF(P88=0,"",IF(Sources!G41=Sources!$G$38,"Interest Only for 30 years",IF(OR(Sources!G41=Sources!$G$37,Sources!G41=Sources!$G$36),"Interest Only for 15 years",IF(Sources!G41=Sources!$G$35,"40 year Am with Ballon in 30","Straight Amortization")))) ->  | I131: 0 | J131: =Sources!D41 -> 0.06 | K131: =Sources!E41 -> 30 | L131: =L130 -> First | M131: =IF('Tax Credit Calculations'!D38="Yes",0,IF(OR(Sources!G41="Straight Amortization",Sources!G41="40 year Amortization with Ballon at end of 30 years"),PMT(J131/12,K131*12,I131)*-12,I131*J131)) -> 0 | P131: =IF(K131<=5,0,M131) -> 0 | Q131: =IF(H131="Interest Only for 15 Years",PMT(J131/12,K131*12,I131)*-12,IF(K131<=15,0,P131)) -> 0 | Y131: 0
D132: 4 | E132: =D90 -> AHP Subsidized Advance | H132: =IF(P90=0,"",Sources!G43) ->  | I132: =T90 -> 0 | J132: =Sources!D43 -> 0.07 | K132: =Sources!E43 -> 30 | L132: =L129 -> First | M132: =IF(I132<1,0,Sources!F43*12) -> 0 | P132: =M132 -> 0 | Q132: =IF(K132<=15,0,P132) -> 0 | S132: Loan to Value Ratio | V132: =IF(V126=0,0,V129/V126) -> 0 | Y132: 0
D133: 5 | E133: =D92 -> City FEDHOME* | I133: =T92 -> 0 | J133: =Sources!D45 -> 0 | K133: =Sources!E45 -> 30 | L133: Third | M133: =IF(I133=0,0,Sources!F45*12) -> 0 | P133: =IF(K133<=5,0,M133) -> 0 | Q133: 0 | S133: Third Lien Financing | V133: =V129+SUMIFS(I126:I141,L126:L141,"Third") -> 0 | W133: =IF($G$5=0,0,V133/$G$5) -> 0 | Y133: 0
D134: 6 | E134: =D93 -> AHP Capital Advance* | I134: 0 | J134: =Sources!D46 -> 0 | K134: =IF(I134=0,30,Sources!E46) -> 30 | L134: Third | M134: =IF(I134=0,0,(Sources!F46+Sources!F18)*12) -> 0 | P134: =IF(K134<=5,0,M134) -> 0 | Q134: 0 | S134: Loan to Value Ratio | V134: =IF(V126=0,0,V133/V126) -> 0 | Y134: 0
D135: 7 | E135: =D94 -> TIF Loan* | I135: 0 | J135: =Sources!D47 -> 0 | K135: =IF(I135=0,30,Sources!E47) -> 30 | L135: Third | M135: =IF(I135=0,0,Sources!F47*12) -> 0 | P135: =IF(K135<=5,0,M135) -> 0 | Q135: 0 | Y135: 0
D136: 8 | E136: =C95 ->  | I136: 0 | J136: =Sources!D48 -> 0 | K136: =IF(I136=0,30,Sources!E48) -> 30 | L136: Third | M136: =IF(I136=0,0,Sources!F48*12) -> 0 | P136: =IF(K136<=5,0,M136) -> 0 | Q136: 0 | S136: COLLATERAL COVERAGE (Construction) | Y136: 0
D137: 9 | E137: =C96 ->  | I137: 0 | J137: =Sources!D49 -> 0 | K137: =IF(I137=0,30,Sources!E49) -> 30 | L137: Third | M137: =IF(I137=0,0,Sources!F49*12) -> 0 | P137: =IF(K137<=5,0,M137) -> 0 | Q137: 0 | V137: Total | W137: Per Unit | Y137: 0
D138: 10 | E138: =D97 -> Grant* | H138: =IF(P97=0,"",Sources!B51) ->  | I138: 0 | L138: Third | S138: First Lien Financing | V138: =T80+SUMIFS($Y$126:$Y$140,$L$126:$L$140,"First") -> 0 | W138: =IF($G$5=0,0,V138/$G$5) -> 0 | Y138: 0
D139: 11 | E139: =D98 -> General Partner (or Affiliate) Loan | H139: =IF(P98=0,"",Sources!G53) ->  | I139: 0 | L139: Unsecured | S139: Appraised Market Value | V139: =V126+I141 -> 0 | W139: =IF($G$5=0,0,V139/$G$5) -> 0 | Y139: 0
D140: 12 | E140: =D99 -> Deferred Developer Fee | H140: =IF(P99=0,"",Sources!G54) ->  | I140: 0 | L140: Unsecured | S140: Loan to Value Ratio | V140: =IF(V139=0,0,V138/V139) -> 0 | Y140: 0
D141: 13 | E141: Net Syndication | I141: =T78+T79 -> 0 | J141: =IF(I141=0,0,I141/(V4*10)) -> 0 | S141: Second Lien Financing | V141: =V138+SUMIFS(Y126:Y140,L126:L140,"Second") -> 0 | W141: =IF($G$5=0,0,V141/$G$5) -> 0 | Y141: 0
S142: Loan to Value Ratio | V142: =IF(V139=0,0,V141/V139) -> 0
E143: Capitalization Gap | I143: =I145-SUM(I126:I141) -> 0 | S143: Third Lien Financing | V143: =V141+SUMIFS(Y126:Y140,L126:L140,"Third") -> 0 | W143: =IF($G$5=0,0,V143/$G$5) -> 0
S144: Loan to Value Ratio | V144: =IF(V139=0,0,V143/V139) -> 0
E145: Total | I145: =P68 -> 0
W147: ='Project Information'!D4 -> Project Name
D149: PROPOSED RENT SCHEDULE | H149: Maximum | J149: Maximum | Q149: OPERATING EXPENSES
H150: Gross | I150: Less | J150: Net
H151: LIHTC/HOME | I151: Utility | J151: Tenant | K151: Rents from | L151: Market | M151: Total | V151: Annual | W151: Monthly
D152: Type | E152: AMI | F152: # Units | H152: Rents | I152: Allow. | J152: Rent | K152: Applicant | L152: Rent | M152: Rent | Q152: Expense | U152: Annual | V152: Per Unit | W152: Per Unit
A153: =IF(COUNT('Project Income & UA'!E31:E53)>13,1,0) -> 0 | D153: =_xlfn.IFNA(VLOOKUP(A153,'Project Income & UA'!$C$31:$N$53,3,FALSE)&" BR","") ->  | E153: =_xlfn.IFNA(VLOOKUP($A153,'Project Income & UA'!$C$31:$N$53,4,FALSE)," - ") -> - | F153: =IF(A153>0,SUMIFS('Project Income & UA'!$G$31:$G$53,'Project Income & UA'!$C$31:$C$53,A153),) -> 0 | H153: =_xlfn.IFNA(VLOOKUP($A153,'Project Income & UA'!$C$31:$N$53,6,FALSE),) -> 0 | I153: =_xlfn.IFNA(VLOOKUP($A153,'Project Income & UA'!$C$31:$N$53,7,FALSE),) -> 0 | J153: =H153-I153 -> 0 | K153: =_xlfn.IFNA(VLOOKUP($A153,'Project Income & UA'!$C$31:$N$53,9,FALSE),) -> 0 | L153: =_xlfn.IFNA(VLOOKUP($A153,'Project Income & UA'!$C$31:$N$53,11,FALSE),) -> 0 | M153: =IF(F153="","",IF(E153="Mkt",F153*K153*12,IF(H153<L153,IF(K153<J153,K153*F153*12,J153*F153*12),(L153-I153)*F153*12))) -> 0 | N153: =_xlfn.IFNA(VLOOKUP($A153,'Project Income & UA'!$C$31:$R$53,16,FALSE),) -> 0 | O153: =IF(F153="","",L153*F153*12) -> 0 | Q153: Administrative Expenses: | AE153: =_xlfn.NUMBERVALUE(LEFT(D153,1)) -> 0
A154: =IF(COUNT('Project Income & UA'!$E$31:$E$53)<9,0,_xlfn.IFNA(IF(A153=0,MAX($A$153:A153)+1,IF(VLOOKUP(A153,'Project Income & UA'!$C$31:$X$53,3,FALSE)=VLOOKUP(A153+1,'Project Income & UA'!$C$31:$X$53,3,FALSE),A153+1,IF(A153=0,MAX($A$153:A153)+1,0))),)) -> 0 | D154: =_xlfn.IFNA(VLOOKUP(A154,'Project Income & UA'!$C$31:$N$53,3,FALSE)&" BR","") ->  | E154: =_xlfn.IFNA(VLOOKUP(A154,'Project Income & UA'!$C$31:$N$53,4,FALSE)," - ") -> - | F154: =IF(A154>0,SUMIFS('Project Income & UA'!$G$31:$G$53,'Project Income & UA'!$C$31:$C$53,A154),) -> 0 | H154: =_xlfn.IFNA(VLOOKUP($A154,'Project Income & UA'!$C$31:$N$53,6,FALSE),) -> 0 | I154: =_xlfn.IFNA(VLOOKUP($A154,'Project Income & UA'!$C$31:$N$53,7,FALSE),) -> 0 | J154: =H154-I154 -> 0 | K154: =_xlfn.IFNA(VLOOKUP($A154,'Project Income & UA'!$C$31:$N$53,9,FALSE),) -> 0 | L154: =_xlfn.IFNA(VLOOKUP($A154,'Project Income & UA'!$C$31:$N$53,11,FALSE),) -> 0 | M154: 0 | N154: =_xlfn.IFNA(VLOOKUP($A154,'Project Income & UA'!$C$31:$R$53,16,FALSE),) -> 0 | O154: 0 | Q154: Management Fees | U154: ='Operating Budget'!E9 -> 0 | V154: =IF($G$5=0,0,U154/$G$5) -> 0 | W154: =V154/12 -> 0 | Y154: LIHTC Scoring Criteria A.3. Calculations | AE154: 0
A155: =IF(AND(COUNT('Project Income & UA'!$E$31:$E$53)<9,A154=0,A153<>0),0,_xlfn.IFNA(IF(A154=0,MAX($A$153:A154)+1,IF(VLOOKUP(A154,'Project Income & UA'!$C$31:$X$53,3,FALSE)=VLOOKUP(A154+1,'Project Income & UA'!$C$31:$X$53,3,FALSE),A154+1,IF(A154=0,MAX($A$153:A154)+1,0))),)) -> 1 | D155: =_xlfn.IFNA(VLOOKUP(A155,'Project Income & UA'!$C$31:$N$53,3,FALSE)&" BR","") ->  | E155: =_xlfn.IFNA(VLOOKUP(A155,'Project Income & UA'!$C$31:$N$53,4,FALSE)," - ") -> - | F155: =IF(A155>0,SUMIFS('Project Income & UA'!$G$31:$G$53,'Project Income & UA'!$C$31:$C$53,A155),) -> 0 | H155: =_xlfn.IFNA(VLOOKUP($A155,'Project Income & UA'!$C$31:$N$53,6,FALSE),) -> 0 | I155: =_xlfn.IFNA(VLOOKUP($A155,'Project Income & UA'!$C$31:$N$53,7,FALSE),) -> 0 | J155: 0 | K155: =_xlfn.IFNA(VLOOKUP($A155,'Project Income & UA'!$C$31:$N$53,9,FALSE),) -> 0 | L155: =_xlfn.IFNA(VLOOKUP($A155,'Project Income & UA'!$C$31:$N$53,11,FALSE),) -> 0 | M155: 0 | N155: =_xlfn.IFNA(VLOOKUP($A155,'Project Income & UA'!$C$31:$R$53,16,FALSE),) -> 0 | O155: 0 | Q155: Management Charges | U155: ='Operating Budget'!E23 -> 0 | V155: 0 | W155: 0 | AE155: 0
A156: =IF(AND(COUNT('Project Income & UA'!$E$31:$E$53)<9,A155=0,A154<>0),0,_xlfn.IFNA(IF(A155=0,MAX($A$153:A155)+1,IF(VLOOKUP(A155,'Project Income & UA'!$C$31:$X$53,3,FALSE)=VLOOKUP(A155+1,'Project Income & UA'!$C$31:$X$53,3,FALSE),A155+1,IF(A155=0,MAX($A$153:A155)+1,0))),)) -> 0 | D156: =_xlfn.IFNA(VLOOKUP(A156,'Project Income & UA'!$C$31:$N$53,3,FALSE)&" BR","") ->  | E156: =_xlfn.IFNA(VLOOKUP(A156,'Project Income & UA'!$C$31:$N$53,4,FALSE)," - ") -> - | F156: =IF(A156>0,SUMIFS('Project Income & UA'!$G$31:$G$53,'Project Income & UA'!$C$31:$C$53,A156),) -> 0 | H156: =_xlfn.IFNA(VLOOKUP($A156,'Project Income & UA'!$C$31:$N$53,6,FALSE),) -> 0 | I156: =_xlfn.IFNA(VLOOKUP($A156,'Project Income & UA'!$C$31:$N$53,7,FALSE),) -> 0 | J156: 0 | K156: =_xlfn.IFNA(VLOOKUP($A156,'Project Income & UA'!$C$31:$N$53,9,FALSE),) -> 0 | L156: =_xlfn.IFNA(VLOOKUP($A156,'Project Income & UA'!$C$31:$N$53,11,FALSE),) -> 0 | M156: 0 | N156: =_xlfn.IFNA(VLOOKUP($A156,'Project Income & UA'!$C$31:$R$53,16,FALSE),) -> 0 | O156: 0 | Q156: Marketing Expenses | U156: ='Operating Budget'!E25 -> 0 | V156: 0 | W156: 0 | Y156: Total 2+ BR LI | AA156: =SUMIFS(F153:F177,AE153:AE177,">="&2,E153:E177,"<>"&"Mkt") -> 0 | AB156: =IF(AA156=0,0,(AA156/AA160)) -> 0 | AE156: 0
A157: =IF(AND(COUNT('Project Income & UA'!$E$31:$E$53)<9,A156=0,A155<>0),0,_xlfn.IFNA(IF(A156=0,MAX($A$153:A156)+1,IF(VLOOKUP(A156,'Project Income & UA'!$C$31:$X$53,3,FALSE)=VLOOKUP(A156+1,'Project Income & UA'!$C$31:$X$53,3,FALSE),A156+1,IF(A156=0,MAX($A$153:A156)+1,0))),)) -> 0 | D157: =_xlfn.IFNA(VLOOKUP(A157,'Project Income & UA'!$C$31:$N$53,3,FALSE)&" BR","") ->  | E157: =_xlfn.IFNA(VLOOKUP(A157,'Project Income & UA'!$C$31:$N$53,4,FALSE)," - ") -> - | F157: =IF(A157>0,SUMIFS('Project Income & UA'!$G$31:$G$53,'Project Income & UA'!$C$31:$C$53,A157),) -> 0 | H157: =_xlfn.IFNA(VLOOKUP($A157,'Project Income & UA'!$C$31:$N$53,6,FALSE),) -> 0 | I157: =_xlfn.IFNA(VLOOKUP($A157,'Project Income & UA'!$C$31:$N$53,7,FALSE),) -> 0 | J157: 0 | K157: =_xlfn.IFNA(VLOOKUP($A157,'Project Income & UA'!$C$31:$N$53,9,FALSE),) -> 0 | L157: =_xlfn.IFNA(VLOOKUP($A157,'Project Income & UA'!$C$31:$N$53,11,FALSE),) -> 0 | M157: 0 | N157: =_xlfn.IFNA(VLOOKUP($A157,'Project Income & UA'!$C$31:$R$53,16,FALSE),) -> 0 | O157: 0 | Q157: Legal Expenses | U157: ='Operating Budget'!E27 -> 0 | V157: 0 | W157: 0 | Y157: Total 3+ BR LI | AA157: =SUMIFS(F153:F177,AE153:AE177,">="&3,E153:E177,"<>"&"Mkt") -> 0 | AB157: =IF(AA157=0,0,(AA157/AA160)) -> 0 | AC157: =IF(AB157<0.2,IF(AB156>=0.7,3,0),IF(AB156>=0.5,6,0)) -> 0 | AD157: Points | AE157: 0
A158: =IF(AND(COUNT('Project Income & UA'!$E$31:$E$53)<9,A157=0,A156<>0),0,_xlfn.IFNA(IF(A157=0,MAX($A$153:A157)+1,IF(VLOOKUP(A157,'Project Income & UA'!$C$31:$X$53,3,FALSE)=VLOOKUP(A157+1,'Project Income & UA'!$C$31:$X$53,3,FALSE),A157+1,IF(A157=0,MAX($A$153:A157)+1,0))),)) -> 2 | D158: =_xlfn.IFNA(VLOOKUP(A158,'Project Income & UA'!$C$31:$N$53,3,FALSE)&" BR","") ->  | E158: =_xlfn.IFNA(VLOOKUP(A158,'Project Income & UA'!$C$31:$N$53,4,FALSE)," - ") -> - | F158: =IF(A158>0,SUMIFS('Project Income & UA'!$G$31:$G$53,'Project Income & UA'!$C$31:$C$53,A158),) -> 0 | H158: =_xlfn.IFNA(VLOOKUP($A158,'Project Income & UA'!$C$31:$N$53,6,FALSE),) -> 0 | I158: =_xlfn.IFNA(VLOOKUP($A158,'Project Income & UA'!$C$31:$N$53,7,FALSE),) -> 0 | J158: 0 | K158: =_xlfn.IFNA(VLOOKUP($A158,'Project Income & UA'!$C$31:$N$53,9,FALSE),) -> 0 | L158: =_xlfn.IFNA(VLOOKUP($A158,'Project Income & UA'!$C$31:$N$53,11,FALSE),) -> 0 | M158: 0 | N158: =_xlfn.IFNA(VLOOKUP($A158,'Project Income & UA'!$C$31:$R$53,16,FALSE),) -> 0 | O158: 0 | Q158: Auditing Expenses | U158: ='Operating Budget'!E29 -> 0 | V158: 0 | W158: 0 | AE158: 0
A159: =IF(AND(COUNT('Project Income & UA'!$E$31:$E$53)<9,A158=0,A157<>0),0,_xlfn.IFNA(IF(A158=0,MAX($A$153:A158)+1,IF(VLOOKUP(A158,'Project Income & UA'!$C$31:$X$53,3,FALSE)=VLOOKUP(A158+1,'Project Income & UA'!$C$31:$X$53,3,FALSE),A158+1,IF(A158=0,MAX($A$153:A158)+1,0))),)) -> 0 | D159: =_xlfn.IFNA(VLOOKUP(A159,'Project Income & UA'!$C$31:$N$53,3,FALSE)&" BR","") ->  | E159: =_xlfn.IFNA(VLOOKUP(A159,'Project Income & UA'!$C$31:$N$53,4,FALSE)," - ") -> - | F159: =IF(A159>0,SUMIFS('Project Income & UA'!$G$31:$G$53,'Project Income & UA'!$C$31:$C$53,A159),) -> 0 | H159: =_xlfn.IFNA(VLOOKUP($A159,'Project Income & UA'!$C$31:$N$53,6,FALSE),) -> 0 | I159: =_xlfn.IFNA(VLOOKUP($A159,'Project Income & UA'!$C$31:$N$53,7,FALSE),) -> 0 | J159: 0 | K159: =_xlfn.IFNA(VLOOKUP($A159,'Project Income & UA'!$C$31:$N$53,9,FALSE),) -> 0 | L159: =_xlfn.IFNA(VLOOKUP($A159,'Project Income & UA'!$C$31:$N$53,11,FALSE),) -> 0 | M159: 0 | N159: =_xlfn.IFNA(VLOOKUP($A159,'Project Income & UA'!$C$31:$R$53,16,FALSE),) -> 0 | O159: 0 | Q159: Other Administrative Expenses | U159: ='Operating Budget'!E31 -> 0 | V159: 0 | W159: 0 | AE159: 0
A160: =IF(AND(COUNT('Project Income & UA'!$E$31:$E$53)<9,A159=0,A158<>0),0,_xlfn.IFNA(IF(A159=0,MAX($A$153:A159)+1,IF(VLOOKUP(A159,'Project Income & UA'!$C$31:$X$53,3,FALSE)=VLOOKUP(A159+1,'Project Income & UA'!$C$31:$X$53,3,FALSE),A159+1,IF(A159=0,MAX($A$153:A159)+1,0))),)) -> 0 | D160: =_xlfn.IFNA(VLOOKUP(A160,'Project Income & UA'!$C$31:$N$53,3,FALSE)&" BR","") ->  | E160: =_xlfn.IFNA(VLOOKUP(A160,'Project Income & UA'!$C$31:$N$53,4,FALSE)," - ") -> - | F160: =IF(A160>0,SUMIFS('Project Income & UA'!$G$31:$G$53,'Project Income & UA'!$C$31:$C$53,A160),) -> 0 | H160: =_xlfn.IFNA(VLOOKUP($A160,'Project Income & UA'!$C$31:$N$53,6,FALSE),) -> 0 | I160: =_xlfn.IFNA(VLOOKUP($A160,'Project Income & UA'!$C$31:$N$53,7,FALSE),) -> 0 | J160: 0 | K160: =_xlfn.IFNA(VLOOKUP($A160,'Project Income & UA'!$C$31:$N$53,9,FALSE),) -> 0 | L160: =_xlfn.IFNA(VLOOKUP($A160,'Project Income & UA'!$C$31:$N$53,11,FALSE),) -> 0 | M160: 0 | N160: =_xlfn.IFNA(VLOOKUP($A160,'Project Income & UA'!$C$31:$R$53,16,FALSE),) -> 0 | O160: 0 | Q160: Administrative Expenses | U160: =SUM(U154:U159) -> 0 | V160: 0 | W160: 0 | Y160: Total Low Income Units | AA160: =SUMIFS(F153:F177,E153:E177,"<>"&"Mkt") -> 0 | AE160: 0
A161: =IF(AND(COUNT('Project Income & UA'!$E$31:$E$53)<9,A160=0,A159<>0),0,_xlfn.IFNA(IF(A160=0,MAX($A$153:A160)+1,IF(VLOOKUP(A160,'Project Income & UA'!$C$31:$X$53,3,FALSE)=VLOOKUP(A160+1,'Project Income & UA'!$C$31:$X$53,3,FALSE),A160+1,IF(A160=0,MAX($A$153:A160)+1,0))),)) -> 3 | D161: =_xlfn.IFNA(VLOOKUP(A161,'Project Income & UA'!$C$31:$N$53,3,FALSE)&" BR","") ->  | E161: =_xlfn.IFNA(VLOOKUP(A161,'Project Income & UA'!$C$31:$N$53,4,FALSE)," - ") -> - | F161: =IF(A161>0,SUMIFS('Project Income & UA'!$G$31:$G$53,'Project Income & UA'!$C$31:$C$53,A161),) -> 0 | H161: =_xlfn.IFNA(VLOOKUP($A161,'Project Income & UA'!$C$31:$N$53,6,FALSE),) -> 0 | I161: =_xlfn.IFNA(VLOOKUP($A161,'Project Income & UA'!$C$31:$N$53,7,FALSE),) -> 0 | J161: 0 | K161: =_xlfn.IFNA(VLOOKUP($A161,'Project Income & UA'!$C$31:$N$53,9,FALSE),) -> 0 | L161: =_xlfn.IFNA(VLOOKUP($A161,'Project Income & UA'!$C$31:$N$53,11,FALSE),) -> 0 | M161: 0 | N161: =_xlfn.IFNA(VLOOKUP($A161,'Project Income & UA'!$C$31:$R$53,16,FALSE),) -> 0 | O161: 0 | Q161: Operating Expenses: | AE161: 0
A162: =IF(AND(COUNT('Project Income & UA'!$E$31:$E$53)<9,A161=0,A160<>0),0,_xlfn.IFNA(IF(A161=0,MAX($A$153:A161)+1,IF(VLOOKUP(A161,'Project Income & UA'!$C$31:$X$53,3,FALSE)=VLOOKUP(A161+1,'Project Income & UA'!$C$31:$X$53,3,FALSE),A161+1,IF(A161=0,MAX($A$153:A161)+1,0))),)) -> 0 | D162: =_xlfn.IFNA(VLOOKUP(A162,'Project Income & UA'!$C$31:$N$53,3,FALSE)&" BR","") ->  | E162: =_xlfn.IFNA(VLOOKUP(A162,'Project Income & UA'!$C$31:$N$53,4,FALSE)," - ") -> - | F162: =IF(A162>0,SUMIFS('Project Income & UA'!$G$31:$G$53,'Project Income & UA'!$C$31:$C$53,A162),) -> 0 | H162: =_xlfn.IFNA(VLOOKUP($A162,'Project Income & UA'!$C$31:$N$53,6,FALSE),) -> 0 | I162: =_xlfn.IFNA(VLOOKUP($A162,'Project Income & UA'!$C$31:$N$53,7,FALSE),) -> 0 | J162: 0 | K162: =_xlfn.IFNA(VLOOKUP($A162,'Project Income & UA'!$C$31:$N$53,9,FALSE),) -> 0 | L162: =_xlfn.IFNA(VLOOKUP($A162,'Project Income & UA'!$C$31:$N$53,11,FALSE),) -> 0 | M162: 0 | N162: =_xlfn.IFNA(VLOOKUP($A162,'Project Income & UA'!$C$31:$R$53,16,FALSE),) -> 0 | O162: 0 | Q162: Janitorial Payroll | U162: ='Operating Budget'!E36 -> 0 | V162: =IF($G$5=0,0,U162/$G$5) -> 0 | W162: =V162/12 -> 0 | AE162: 0
A163: =IF(AND(COUNT('Project Income & UA'!$E$31:$E$53)<9,A162=0,A161<>0),0,_xlfn.IFNA(IF(A162=0,MAX($A$153:A162)+1,IF(VLOOKUP(A162,'Project Income & UA'!$C$31:$X$53,3,FALSE)=VLOOKUP(A162+1,'Project Income & UA'!$C$31:$X$53,3,FALSE),A162+1,IF(A162=0,MAX($A$153:A162)+1,0))),)) -> 0 | D163: =_xlfn.IFNA(VLOOKUP(A163,'Project Income & UA'!$C$31:$N$53,3,FALSE)&" BR","") ->  | E163: =_xlfn.IFNA(VLOOKUP(A163,'Project Income & UA'!$C$31:$N$53,4,FALSE)," - ") -> - | F163: =IF(A163>0,SUMIFS('Project Income & UA'!$G$31:$G$53,'Project Income & UA'!$C$31:$C$53,A163),) -> 0 | H163: =_xlfn.IFNA(VLOOKUP($A163,'Project Income & UA'!$C$31:$N$53,6,FALSE),) -> 0 | I163: =_xlfn.IFNA(VLOOKUP($A163,'Project Income & UA'!$C$31:$N$53,7,FALSE),) -> 0 | J163: 0 | K163: =_xlfn.IFNA(VLOOKUP($A163,'Project Income & UA'!$C$31:$N$53,9,FALSE),) -> 0 | L163: =_xlfn.IFNA(VLOOKUP($A163,'Project Income & UA'!$C$31:$N$53,11,FALSE),) -> 0 | M163: 0 | N163: =_xlfn.IFNA(VLOOKUP($A163,'Project Income & UA'!$C$31:$R$53,16,FALSE),) -> 0 | O163: 0 | Q163: Janitorial Supplies and Equipment | U163: ='Operating Budget'!E38 -> 0 | V163: 0 | W163: 0 | AE163: 0
A164: =IF(AND(COUNT('Project Income & UA'!$E$31:$E$53)<9,A163=0,A162<>0),0,_xlfn.IFNA(IF(A163=0,MAX($A$153:A163)+1,IF(VLOOKUP(A163,'Project Income & UA'!$C$31:$X$53,3,FALSE)=VLOOKUP(A163+1,'Project Income & UA'!$C$31:$X$53,3,FALSE),A163+1,IF(A163=0,MAX($A$153:A163)+1,0))),)) -> 4 | D164: =_xlfn.IFNA(VLOOKUP(A164,'Project Income & UA'!$C$31:$N$53,3,FALSE)&" BR","") ->  | E164: =_xlfn.IFNA(VLOOKUP(A164,'Project Income & UA'!$C$31:$N$53,4,FALSE)," - ") -> - | F164: =IF(A164>0,SUMIFS('Project Income & UA'!$G$31:$G$53,'Project Income & UA'!$C$31:$C$53,A164),) -> 0 | H164: =_xlfn.IFNA(VLOOKUP($A164,'Project Income & UA'!$C$31:$N$53,6,FALSE),) -> 0 | I164: =_xlfn.IFNA(VLOOKUP($A164,'Project Income & UA'!$C$31:$N$53,7,FALSE),) -> 0 | J164: 0 | K164: =_xlfn.IFNA(VLOOKUP($A164,'Project Income & UA'!$C$31:$N$53,9,FALSE),) -> 0 | L164: =_xlfn.IFNA(VLOOKUP($A164,'Project Income & UA'!$C$31:$N$53,11,FALSE),) -> 0 | M164: 0 | N164: =_xlfn.IFNA(VLOOKUP($A164,'Project Income & UA'!$C$31:$R$53,16,FALSE),) -> 0 | O164: 0 | Q164: Janitorial Contractual Services | U164: ='Operating Budget'!E40 -> 0 | V164: 0 | W164: 0 | AE164: 0
A165: =IF(AND(COUNT('Project Income & UA'!$E$31:$E$53)<9,A164=0,A163<>0),0,_xlfn.IFNA(IF(A164=0,MAX($A$153:A164)+1,IF(VLOOKUP(A164,'Project Income & UA'!$C$31:$X$53,3,FALSE)=VLOOKUP(A164+1,'Project Income & UA'!$C$31:$X$53,3,FALSE),A164+1,IF(A164=0,MAX($A$153:A164)+1,0))),)) -> 0 | D165: =_xlfn.IFNA(VLOOKUP(A165,'Project Income & UA'!$C$31:$N$53,3,FALSE)&" BR","") ->  | E165: =_xlfn.IFNA(VLOOKUP(A165,'Project Income & UA'!$C$31:$N$53,4,FALSE)," - ") -> - | F165: =IF(A165>0,SUMIFS('Project Income & UA'!$G$31:$G$53,'Project Income & UA'!$C$31:$C$53,A165),) -> 0 | H165: =_xlfn.IFNA(VLOOKUP($A165,'Project Income & UA'!$C$31:$N$53,6,FALSE),) -> 0 | I165: =_xlfn.IFNA(VLOOKUP($A165,'Project Income & UA'!$C$31:$N$53,7,FALSE),) -> 0 | J165: 0 | K165: =_xlfn.IFNA(VLOOKUP($A165,'Project Income & UA'!$C$31:$N$53,9,FALSE),) -> 0 | L165: =_xlfn.IFNA(VLOOKUP($A165,'Project Income & UA'!$C$31:$N$53,11,FALSE),) -> 0 | M165: 0 | N165: =_xlfn.IFNA(VLOOKUP($A165,'Project Income & UA'!$C$31:$R$53,16,FALSE),) -> 0 | O165: 0 | Q165: Fuel and Gas | U165: ='Operating Budget'!E42+'Operating Budget'!E44 -> 0 | V165: 0 | W165: 0 | AE165: 0
A166: =IF(AND(COUNT('Project Income & UA'!$E$31:$E$53)<9,A165=0,A164<>0),0,_xlfn.IFNA(IF(A165=0,MAX($A$153:A165)+1,IF(VLOOKUP(A165,'Project Income & UA'!$C$31:$X$53,3,FALSE)=VLOOKUP(A165+1,'Project Income & UA'!$C$31:$X$53,3,FALSE),A165+1,IF(A165=0,MAX($A$153:A165)+1,0))),)) -> 0 | D166: =_xlfn.IFNA(VLOOKUP(A166,'Project Income & UA'!$C$31:$N$53,3,FALSE)&" BR","") ->  | E166: =_xlfn.IFNA(VLOOKUP(A166,'Project Income & UA'!$C$31:$N$53,4,FALSE)," - ") -> - | F166: =IF(A166>0,SUMIFS('Project Income & UA'!$G$31:$G$53,'Project Income & UA'!$C$31:$C$53,A166),) -> 0 | H166: =_xlfn.IFNA(VLOOKUP($A166,'Project Income & UA'!$C$31:$N$53,6,FALSE),) -> 0 | I166: =_xlfn.IFNA(VLOOKUP($A166,'Project Income & UA'!$C$31:$N$53,7,FALSE),) -> 0 | J166: 0 | K166: =_xlfn.IFNA(VLOOKUP($A166,'Project Income & UA'!$C$31:$N$53,9,FALSE),) -> 0 | L166: =_xlfn.IFNA(VLOOKUP($A166,'Project Income & UA'!$C$31:$N$53,11,FALSE),) -> 0 | M166: 0 | N166: =_xlfn.IFNA(VLOOKUP($A166,'Project Income & UA'!$C$31:$R$53,16,FALSE),) -> 0 | O166: 0 | Q166: Electricity | U166: ='Operating Budget'!E46 -> 0 | V166: 0 | W166: 0 | AE166: 0
A167: =IF(AND(COUNT('Project Income & UA'!$E$31:$E$53)<9,A166=0,A165<>0),0,_xlfn.IFNA(IF(A166=0,MAX($A$153:A166)+1,IF(VLOOKUP(A166,'Project Income & UA'!$C$31:$X$53,3,FALSE)=VLOOKUP(A166+1,'Project Income & UA'!$C$31:$X$53,3,FALSE),A166+1,IF(A166=0,MAX($A$153:A166)+1,0))),)) -> 5 | D167: =_xlfn.IFNA(VLOOKUP(A167,'Project Income & UA'!$C$31:$N$53,3,FALSE)&" BR","") ->  | E167: =_xlfn.IFNA(VLOOKUP(A167,'Project Income & UA'!$C$31:$N$53,4,FALSE)," - ") -> - | F167: =IF(A167>0,SUMIFS('Project Income & UA'!$G$31:$G$53,'Project Income & UA'!$C$31:$C$53,A167),) -> 0 | H167: =_xlfn.IFNA(VLOOKUP($A167,'Project Income & UA'!$C$31:$N$53,6,FALSE),) -> 0 | I167: =_xlfn.IFNA(VLOOKUP($A167,'Project Income & UA'!$C$31:$N$53,7,FALSE),) -> 0 | J167: 0 | K167: =_xlfn.IFNA(VLOOKUP($A167,'Project Income & UA'!$C$31:$N$53,9,FALSE),) -> 0 | L167: =_xlfn.IFNA(VLOOKUP($A167,'Project Income & UA'!$C$31:$N$53,11,FALSE),) -> 0 | M167: 0 | N167: =_xlfn.IFNA(VLOOKUP($A167,'Project Income & UA'!$C$31:$R$53,16,FALSE),) -> 0 | O167: 0 | Q167: Water and Sewer | U167: ='Operating Budget'!E48+'Operating Budget'!E50 -> 0 | V167: 0 | W167: 0 | AE167: 0
A168: =IF(AND(COUNT('Project Income & UA'!$E$31:$E$53)<9,A167=0,A166<>0),0,_xlfn.IFNA(IF(A167=0,MAX($A$153:A167)+1,IF(VLOOKUP(A167,'Project Income & UA'!$C$31:$X$53,3,FALSE)=VLOOKUP(A167+1,'Project Income & UA'!$C$31:$X$53,3,FALSE),A167+1,IF(A167=0,MAX($A$153:A167)+1,0))),)) -> 0 | D168: =_xlfn.IFNA(VLOOKUP(A168,'Project Income & UA'!$C$31:$N$53,3,FALSE)&" BR","") ->  | E168: =_xlfn.IFNA(VLOOKUP(A168,'Project Income & UA'!$C$31:$N$53,4,FALSE)," - ") -> - | F168: =IF(A168>0,SUMIFS('Project Income & UA'!$G$31:$G$53,'Project Income & UA'!$C$31:$C$53,A168),) -> 0 | H168: =_xlfn.IFNA(VLOOKUP($A168,'Project Income & UA'!$C$31:$N$53,6,FALSE),) -> 0 | I168: =_xlfn.IFNA(VLOOKUP($A168,'Project Income & UA'!$C$31:$N$53,7,FALSE),) -> 0 | J168: 0 | K168: =_xlfn.IFNA(VLOOKUP($A168,'Project Income & UA'!$C$31:$N$53,9,FALSE),) -> 0 | L168: =_xlfn.IFNA(VLOOKUP($A168,'Project Income & UA'!$C$31:$N$53,11,FALSE),) -> 0 | M168: 0 | N168: =_xlfn.IFNA(VLOOKUP($A168,'Project Income & UA'!$C$31:$R$53,16,FALSE),) -> 0 | O168: 0 | Q168: Garbage and Trash Removal | U168: ='Operating Budget'!E52 -> 0 | V168: 0 | W168: 0 | AE168: 0
A169: =IF(AND(COUNT('Project Income & UA'!$E$31:$E$53)<9,A168=0,A167<>0),0,_xlfn.IFNA(IF(A168=0,MAX($A$153:A168)+1,IF(VLOOKUP(A168,'Project Income & UA'!$C$31:$X$53,3,FALSE)=VLOOKUP(A168+1,'Project Income & UA'!$C$31:$X$53,3,FALSE),A168+1,IF(A168=0,MAX($A$153:A168)+1,0))),)) -> 0 | D169: =_xlfn.IFNA(VLOOKUP(A169,'Project Income & UA'!$C$31:$N$53,3,FALSE)&" BR","") ->  | E169: =_xlfn.IFNA(VLOOKUP(A169,'Project Income & UA'!$C$31:$N$53,4,FALSE)," - ") -> - | F169: =IF(A169>0,SUMIFS('Project Income & UA'!$G$31:$G$53,'Project Income & UA'!$C$31:$C$53,A169),) -> 0 | H169: =_xlfn.IFNA(VLOOKUP($A169,'Project Income & UA'!$C$31:$N$53,6,FALSE),) -> 0 | I169: =_xlfn.IFNA(VLOOKUP($A169,'Project Income & UA'!$C$31:$N$53,7,FALSE),) -> 0 | J169: 0 | K169: =_xlfn.IFNA(VLOOKUP($A169,'Project Income & UA'!$C$31:$N$53,9,FALSE),) -> 0 | L169: =_xlfn.IFNA(VLOOKUP($A169,'Project Income & UA'!$C$31:$N$53,11,FALSE),) -> 0 | M169: 0 | N169: =_xlfn.IFNA(VLOOKUP($A169,'Project Income & UA'!$C$31:$R$53,16,FALSE),) -> 0 | O169: 0 | Q169: Vehicle and Equipment Expenses | U169: ='Operating Budget'!E54 -> 0 | V169: 0 | W169: 0 | AE169: 0
A170: =IF(AND(COUNT('Project Income & UA'!$E$31:$E$53)<9,A169=0,A168<>0),0,_xlfn.IFNA(IF(A169=0,MAX($A$153:A169)+1,IF(VLOOKUP(A169,'Project Income & UA'!$C$31:$X$53,3,FALSE)=VLOOKUP(A169+1,'Project Income & UA'!$C$31:$X$53,3,FALSE),A169+1,IF(A169=0,MAX($A$153:A169)+1,0))),)) -> 6 | D170: =_xlfn.IFNA(VLOOKUP(A170,'Project Income & UA'!$C$31:$N$53,3,FALSE)&" BR","") ->  | E170: =_xlfn.IFNA(VLOOKUP(A170,'Project Income & UA'!$C$31:$N$53,4,FALSE)," - ") -> - | F170: =IF(A170>0,SUMIFS('Project Income & UA'!$G$31:$G$53,'Project Income & UA'!$C$31:$C$53,A170),) -> 0 | H170: =_xlfn.IFNA(VLOOKUP($A170,'Project Income & UA'!$C$31:$N$53,6,FALSE),) -> 0 | I170: =_xlfn.IFNA(VLOOKUP($A170,'Project Income & UA'!$C$31:$N$53,7,FALSE),) -> 0 | J170: 0 | K170: =_xlfn.IFNA(VLOOKUP($A170,'Project Income & UA'!$C$31:$N$53,9,FALSE),) -> 0 | L170: =_xlfn.IFNA(VLOOKUP($A170,'Project Income & UA'!$C$31:$N$53,11,FALSE),) -> 0 | M170: 0 | N170: =_xlfn.IFNA(VLOOKUP($A170,'Project Income & UA'!$C$31:$R$53,16,FALSE),) -> 0 | O170: 0 | Q170: Other Operating Expenses | U170: ='Operating Budget'!E56 -> 0 | V170: 0 | W170: 0 | AE170: 0
A171: =IF(AND(COUNT('Project Income & UA'!$E$31:$E$53)<9,A170=0,A169<>0),0,_xlfn.IFNA(IF(A170=0,MAX($A$153:A170)+1,IF(VLOOKUP(A170,'Project Income & UA'!$C$31:$X$53,3,FALSE)=VLOOKUP(A170+1,'Project Income & UA'!$C$31:$X$53,3,FALSE),A170+1,IF(A170=0,MAX($A$153:A170)+1,0))),)) -> 0 | D171: =_xlfn.IFNA(VLOOKUP(A171,'Project Income & UA'!$C$31:$N$53,3,FALSE)&" BR","") ->  | E171: =_xlfn.IFNA(VLOOKUP(A171,'Project Income & UA'!$C$31:$N$53,4,FALSE)," - ") -> - | F171: =IF(A171>0,SUMIFS('Project Income & UA'!$G$31:$G$53,'Project Income & UA'!$C$31:$C$53,A171),) -> 0 | H171: =_xlfn.IFNA(VLOOKUP($A171,'Project Income & UA'!$C$31:$N$53,6,FALSE),) -> 0 | I171: =_xlfn.IFNA(VLOOKUP($A171,'Project Income & UA'!$C$31:$N$53,7,FALSE),) -> 0 | J171: 0 | K171: =_xlfn.IFNA(VLOOKUP($A171,'Project Income & UA'!$C$31:$N$53,9,FALSE),) -> 0 | L171: =_xlfn.IFNA(VLOOKUP($A171,'Project Income & UA'!$C$31:$N$53,11,FALSE),) -> 0 | M171: 0 | N171: =_xlfn.IFNA(VLOOKUP($A171,'Project Income & UA'!$C$31:$R$53,16,FALSE),) -> 0 | O171: 0 | Q171: Operating Expenses | U171: =SUM(U162:U170) -> 0 | V171: 0 | W171: 0 | AE171: 0
A172: =IF(AND(COUNT('Project Income & UA'!$E$31:$E$53)<9,A171=0,A170<>0),0,_xlfn.IFNA(IF(A171=0,MAX($A$153:A171)+1,IF(VLOOKUP(A171,'Project Income & UA'!$C$31:$X$53,3,FALSE)=VLOOKUP(A171+1,'Project Income & UA'!$C$31:$X$53,3,FALSE),A171+1,IF(A171=0,MAX($A$153:A171)+1,0))),)) -> 0 | D172: =_xlfn.IFNA(VLOOKUP(A172,'Project Income & UA'!$C$31:$N$53,3,FALSE)&" BR","") ->  | E172: =_xlfn.IFNA(VLOOKUP(A172,'Project Income & UA'!$C$31:$N$53,4,FALSE)," - ") -> - | F172: =IF(A172>0,SUMIFS('Project Income & UA'!$G$31:$G$53,'Project Income & UA'!$C$31:$C$53,A172),) -> 0 | H172: =_xlfn.IFNA(VLOOKUP($A172,'Project Income & UA'!$C$31:$N$53,6,FALSE),) -> 0 | I172: =_xlfn.IFNA(VLOOKUP($A172,'Project Income & UA'!$C$31:$N$53,7,FALSE),) -> 0 | J172: 0 | K172: =_xlfn.IFNA(VLOOKUP($A172,'Project Income & UA'!$C$31:$N$53,9,FALSE),) -> 0 | L172: =_xlfn.IFNA(VLOOKUP($A172,'Project Income & UA'!$C$31:$N$53,11,FALSE),) -> 0 | M172: 0 | N172: =_xlfn.IFNA(VLOOKUP($A172,'Project Income & UA'!$C$31:$R$53,16,FALSE),) -> 0 | O172: 0 | Q172: Maintenance Expenses: | AE172: 0
A173: =IF(AND(COUNT('Project Income & UA'!$E$31:$E$53)<9,A172=0,A171<>0),0,_xlfn.IFNA(IF(A172=0,MAX($A$153:A172)+1,IF(VLOOKUP(A172,'Project Income & UA'!$C$31:$X$53,3,FALSE)=VLOOKUP(A172+1,'Project Income & UA'!$C$31:$X$53,3,FALSE),A172+1,IF(A172=0,MAX($A$153:A172)+1,0))),)) -> 7 | D173: =_xlfn.IFNA(VLOOKUP(A173,'Project Income & UA'!$C$31:$N$53,3,FALSE)&" BR","") ->  | E173: =_xlfn.IFNA(VLOOKUP(A173,'Project Income & UA'!$C$31:$N$53,4,FALSE)," - ") -> - | F173: =IF(A173>0,SUMIFS('Project Income & UA'!$G$31:$G$53,'Project Income & UA'!$C$31:$C$53,A173),) -> 0 | H173: =_xlfn.IFNA(VLOOKUP($A173,'Project Income & UA'!$C$31:$N$53,6,FALSE),) -> 0 | I173: =_xlfn.IFNA(VLOOKUP($A173,'Project Income & UA'!$C$31:$N$53,7,FALSE),) -> 0 | J173: 0 | K173: =_xlfn.IFNA(VLOOKUP($A173,'Project Income & UA'!$C$31:$N$53,9,FALSE),) -> 0 | L173: =_xlfn.IFNA(VLOOKUP($A173,'Project Income & UA'!$C$31:$N$53,11,FALSE),) -> 0 | M173: 0 | N173: =_xlfn.IFNA(VLOOKUP($A173,'Project Income & UA'!$C$31:$R$53,16,FALSE),) -> 0 | O173: 0 | Q173: Grounds Maintenance Payroll | U173: ='Operating Budget'!E61 -> 0 | V173: =IF($G$5=0,0,U173/$G$5) -> 0 | W173: =V173/12 -> 0 | AE173: 0
A174: =IF(AND(COUNT('Project Income & UA'!$E$31:$E$53)<9,A173=0,A172<>0),0,_xlfn.IFNA(IF(A173=0,MAX($A$153:A173)+1,IF(VLOOKUP(A173,'Project Income & UA'!$C$31:$X$53,3,FALSE)=VLOOKUP(A173+1,'Project Income & UA'!$C$31:$X$53,3,FALSE),A173+1,IF(A173=0,MAX($A$153:A173)+1,0))),)) -> 0 | D174: =_xlfn.IFNA(VLOOKUP(A174,'Project Income & UA'!$C$31:$N$53,3,FALSE)&" BR","") ->  | E174: =_xlfn.IFNA(VLOOKUP(A174,'Project Income & UA'!$C$31:$N$53,4,FALSE)," - ") -> - | F174: =IF(A174>0,SUMIFS('Project Income & UA'!$G$31:$G$53,'Project Income & UA'!$C$31:$C$53,A174),) -> 0 | H174: =_xlfn.IFNA(VLOOKUP($A174,'Project Income & UA'!$C$31:$N$53,6,FALSE),) -> 0 | I174: =_xlfn.IFNA(VLOOKUP($A174,'Project Income & UA'!$C$31:$N$53,7,FALSE),) -> 0 | J174: 0 | K174: =_xlfn.IFNA(VLOOKUP($A174,'Project Income & UA'!$C$31:$N$53,9,FALSE),) -> 0 | L174: =_xlfn.IFNA(VLOOKUP($A174,'Project Income & UA'!$C$31:$N$53,11,FALSE),) -> 0 | M174: 0 | N174: =_xlfn.IFNA(VLOOKUP($A174,'Project Income & UA'!$C$31:$R$53,16,FALSE),) -> 0 | O174: 0 | Q174: Grounds Tools and Supplies | U174: ='Operating Budget'!E63 -> 0 | V174: 0 | W174: 0 | AE174: 0
A175: =IF(AND(COUNT('Project Income & UA'!$E$31:$E$53)<9,A174=0,A173<>0),0,_xlfn.IFNA(IF(A174=0,MAX($A$153:A174)+1,IF(VLOOKUP(A174,'Project Income & UA'!$C$31:$X$53,3,FALSE)=VLOOKUP(A174+1,'Project Income & UA'!$C$31:$X$53,3,FALSE),A174+1,IF(A174=0,MAX($A$153:A174)+1,0))),)) -> 0 | D175: =_xlfn.IFNA(VLOOKUP(A175,'Project Income & UA'!$C$31:$N$53,3,FALSE)&" BR","") ->  | E175: =_xlfn.IFNA(VLOOKUP(A175,'Project Income & UA'!$C$31:$N$53,4,FALSE)," - ") -> - | F175: =IF(A175>0,SUMIFS('Project Income & UA'!$G$31:$G$53,'Project Income & UA'!$C$31:$C$53,A175),) -> 0 | H175: =_xlfn.IFNA(VLOOKUP($A175,'Project Income & UA'!$C$31:$N$53,6,FALSE),) -> 0 | I175: =_xlfn.IFNA(VLOOKUP($A175,'Project Income & UA'!$C$31:$N$53,7,FALSE),) -> 0 | J175: 0 | K175: =_xlfn.IFNA(VLOOKUP($A175,'Project Income & UA'!$C$31:$N$53,9,FALSE),) -> 0 | L175: =_xlfn.IFNA(VLOOKUP($A175,'Project Income & UA'!$C$31:$N$53,11,FALSE),) -> 0 | M175: 0 | N175: =_xlfn.IFNA(VLOOKUP($A175,'Project Income & UA'!$C$31:$R$53,16,FALSE),) -> 0 | O175: 0 | Q175: Grounds Contractual Services | U175: ='Operating Budget'!E65 -> 0 | V175: 0 | W175: 0 | AE175: 0
A176: =IF(AND(COUNT('Project Income & UA'!$E$31:$E$53)<9,A175=0,A174<>0),0,_xlfn.IFNA(IF(A175=0,MAX($A$153:A175)+1,IF(VLOOKUP(A175,'Project Income & UA'!$C$31:$X$53,3,FALSE)=VLOOKUP(A175+1,'Project Income & UA'!$C$31:$X$53,3,FALSE),A175+1,IF(A175=0,MAX($A$153:A175)+1,0))),)) -> 8 | D176: =_xlfn.IFNA(VLOOKUP(A176,'Project Income & UA'!$C$31:$N$53,3,FALSE)&" BR","") ->  | E176: =_xlfn.IFNA(VLOOKUP(A176,'Project Income & UA'!$C$31:$N$53,4,FALSE)," - ") -> - | F176: =IF(A176>0,SUMIFS('Project Income & UA'!$G$31:$G$53,'Project Income & UA'!$C$31:$C$53,A176),) -> 0 | H176: =_xlfn.IFNA(VLOOKUP($A176,'Project Income & UA'!$C$31:$N$53,6,FALSE),) -> 0 | I176: =_xlfn.IFNA(VLOOKUP($A176,'Project Income & UA'!$C$31:$N$53,7,FALSE),) -> 0 | J176: 0 | K176: =_xlfn.IFNA(VLOOKUP($A176,'Project Income & UA'!$C$31:$N$53,9,FALSE),) -> 0 | L176: =_xlfn.IFNA(VLOOKUP($A176,'Project Income & UA'!$C$31:$N$53,11,FALSE),) -> 0 | M176: 0 | N176: =_xlfn.IFNA(VLOOKUP($A176,'Project Income & UA'!$C$31:$R$53,16,FALSE),) -> 0 | O176: 0 | Q176: Miscellaneous Ground Maintenance | U176: ='Operating Budget'!E67 -> 0 | V176: 0 | W176: 0 | AE176: 0
A177: =IF(AND(COUNT('Project Income & UA'!$E$31:$E$53)<9,A176=0,A175<>0),0,_xlfn.IFNA(IF(A176=0,MAX($A$153:A176)+1,IF(VLOOKUP(A176,'Project Income & UA'!$C$31:$X$53,3,FALSE)=VLOOKUP(A176+1,'Project Income & UA'!$C$31:$X$53,3,FALSE),A176+1,IF(A176=0,MAX($A$153:A176)+1,0))),)) -> 0 | D177: =_xlfn.IFNA(VLOOKUP(A177,'Project Income & UA'!$C$31:$N$53,3,FALSE)&" BR","") ->  | E177: =_xlfn.IFNA(VLOOKUP(A177,'Project Income & UA'!$C$31:$N$53,4,FALSE)," - ") -> - | F177: =IF(A177>0,SUMIFS('Project Income & UA'!$G$31:$G$53,'Project Income & UA'!$C$31:$C$53,A177),) -> 0 | H177: =_xlfn.IFNA(VLOOKUP($A177,'Project Income & UA'!$C$31:$N$53,6,FALSE),) -> 0 | I177: =_xlfn.IFNA(VLOOKUP($A177,'Project Income & UA'!$C$31:$N$53,7,FALSE),) -> 0 | J177: 0 | K177: =_xlfn.IFNA(VLOOKUP($A177,'Project Income & UA'!$C$31:$N$53,9,FALSE),) -> 0 | L177: =_xlfn.IFNA(VLOOKUP($A177,'Project Income & UA'!$C$31:$N$53,11,FALSE),) -> 0 | M177: 0 | N177: =_xlfn.IFNA(VLOOKUP($A177,'Project Income & UA'!$C$31:$R$53,16,FALSE),) -> 0 | O177: 0 | V177: 0 | W177: 0 | AE177: 0
D178: Other: | M178: =IF(J178<K178,(J178-L178)*F178*12,(K178-L178)*F178*12) -> 0 | Q178: Building Maintenance Payroll | U178: ='Operating Budget'!E71 -> 0 | V178: 0 | W178: 0
M179: =IF(J179<K179,(J179-L179)*F179*12,(K179-L179)*F179*12) -> 0 | Q179: Building Tools and Supplies | U179: ='Operating Budget'!E73 -> 0 | V179: 0 | W179: 0
D180: Subtotals | F180: =SUM(F153:F179) -> 0 | M180: =SUM(M153:M179) -> 0 | N180: =SUM(N153:N179) -> 0 | O180: =SUM(O153:O179) -> 0 | Q180: Building Contractual Services | U180: ='Operating Budget'!E75 -> 0 | V180: 0 | W180: 0
Q181: Building Systems Maintenance | U181: ='Operating Budget'!E77 -> 0 | V181: 0 | W181: 0
I182: Income from Laundry: | L182: ='Project Income & UA'!L58 -> 0 | M182: =L182*12 -> 0 | Q182: Miscellaneous Building Maintenance | U182: ='Operating Budget'!E79 -> 0 | V182: 0 | W182: 0
I183: Other Income: | J183: =IF('Project Income & UA'!G59="If monthly amount is affected by Vacancy Loss","",'Project Income & UA'!G59) ->  | L183: =SUM('Project Income & UA'!L59:L60) -> 0 | M183: =L183*12 -> 0 | V183: 0 | W183: 0
I184: =IF(J184="","","&") ->  | J184: =IF('Project Income & UA'!G60="","",'Project Income & UA'!G60) ->  | Q184: Maintenance Expenses | U184: =SUM(U173:U183) -> 0 | V184: 0 | W184: 0
I185: Vacancy Rate | K185: ='Project Income & UA'!J63 -> 0.05 | M185: =SUM(M180:M183)*K185*-1 -> 0 | N185: =N180*-K185 -> 0 | O185: =O180*-K185 -> 0 | Q185: General Expenses:
Q186: Property Taxes | U186: ='Operating Budget'!E86 -> 0 | V186: =IF($G$5=0,0,U186/$G$5) -> 0 | W186: =V186/12 -> 0
I187: Other Income: | J187: =IF('Project Income & UA'!G65="Only if not affected by Vacancy Loss such as TIF income","",'Project Income & UA'!G65) ->  | L187: ='Project Income & UA'!L65 -> 0 | M187: =L187*12 -> 0 | Q187: Property and Liability Insurance | U187: ='Operating Budget'!E88 -> 0 | V187: =IF($G$5=0,0,U187/$G$5) -> 0 | W187: =V187/12 -> 0
Q188: Tenant Service Expenses | U188: ='Operating Budget'!E90 -> 0 | V188: =IF($G$5=0,0,U188/$G$5) -> 0 | W188: =V188/12 -> 0
I189: Effective Gross Income | M189: =SUM(M180:M187) -> 0 | N189: =N180+N185 -> 0 | O189: =O180+O185 -> 0 | Q189: Other General Expenses | U189: ='Operating Budget'!E92 -> 0 | V189: =IF($G$5=0,0,U189/$G$5) -> 0 | W189: =V189/12 -> 0
Q190: General Expenses | U190: =SUM(U186:U189) -> 0 | V190: =IF($G$5=0,0,U190/$G$5) -> 0 | W190: =V190/12 -> 0
F191: AFFORDABLE AMORTIZING MORTGAGE CALCULATION
Q192: Replacement Reserve Funding | U192: ='Operating Budget'!E96 -> 0 | V192: =IF($G$5=0,0,U192/$G$5) -> 0 | W192: =V192/12 -> 0
F193: Effective Gross Income | J193: =M189 -> 0
F194: Annual Operating Expense | J194: =U196 -> 0 | Q194: Commercial Expenses (if applicable) | U194: ='Operating Budget'!E98 -> 0 | V194: =IF($G$5=0,0,U194/$G$5) -> 0 | W194: =V194/12 -> 0
F196: Stabilized NOI | J196: =J193-J194 -> 0 | Q196: Total | U196: =U160+U171+U184+U190+U192+U194 -> 0 | V196: =V160+V171+V184+V190+V192+V194 -> 0 | W196: =W160+W171+W184+W190+W192+W194 -> 0
F197: DSC | H197: 1.15 | J197: =J196-J198 -> 0
F198: $ Avail for D/S | J198: =J196/H197 -> 0
F199: Other DS | J199: =SUM(M132:M140) -> 0 | Q199: Management Costs Analysis
F200: Balance | J200: =J198-J199 -> 0 | Q200: =Q154 -> Management Fees | U200: =U154 -> 0
Q201: =Q155 -> Management Charges | U201: =U155 -> 0
F202: Affordable Fully Amortizing Mortgage | I202: =J129 -> 0.06 | J202: =IF(J200<0,0,J200/(PMT(J129/12,K129*12,1)*-12)) -> 0 | Q202: =Q159 -> Other Administrative Expenses | U202: =U159 -> 0 | V202: =SUM(U200:U202) -> 0
F203: Affordable Interest Only Mortgage | I203: =I202 -> 0.06 | J203: =IF(J200<0,0,J200/I202) -> 0
F204: Supportable Mort.: Unrestricted | J204: =V125+((W121*F180*12)/(PMT(J129/12,K129*12,1)*-12)) -> 0 | Q204: Effective Gross Rental Income | V204: =M180+M185 -> 0
F205: BREAKEVEN ANALYSIS: | H205: RENT SENSITIVITY | K205: OCCUPANCY | Q205: Cost Percentage for use in Management Agreement | W205: =IF(F180=0,"",V202/V204) -> 
I207: Total | M207: Annual | Q207: =IF(Q210="","","Maximum 60% AMI (Non-HERA) Rent Potential") ->  | V207: =IF(Q210="","",N180) -> 
F208: Operating Expense | I208: =U196 -> 0 | K208: Gross Revenues | M208: =M180+M182+M183 -> 0 | Q208: =IF(Q210="","","Management Cost Percentage") ->  | U208: =IF(Q210="","",V202/V207) -> 
F209: Debt Service | I209: =I228+I229 -> 0
Q210: =IF(M180=0,"",IF((U200+U201+U202)/N180<=0.14,"","Management Costs are too high")) -> 
... 94 more rows

Sheet TxCr (hidden)
A1: Project: | B1: ='MH Underwriting'!E1 -> Project Name | H1: Tot # Units: | J1: ='MH Underwriting'!G5 -> 0 | V1: Eligible Basis | AR1: Max Annual Credit Dollar Amount | BF1: GAP Calculation | BI1: ='MH Underwriting'!V19 -> 0
A2: Date: | R2: 130% Basis Adjustment | T2: =IF('Tax Credit Calculations'!S27=130%,"y","") -> y | V2: <<<<<insert y if 130% adj | AY2: Eligible | BA2: Credit | BF2: Historic Equity | BI2: ='Tax Credit Calculations'!D34+'Tax Credit Calculations'!D41 -> 0 | BK2: Ltd Int.
D3: Total | F3: Calc max | H3: Recognized | N3: ACQ(1) | P3: 30% PV(2) | R3: 70% PV(3) | AY3: Basis | BA3: Percentage | BF3: Deferred Source | BI3: ='MH Underwriting'!T83+'MH Underwriting'!T84 -> 0 | BK3: ='MH Underwriting'!V6 -> 0.9999
A4: 1,2,or 3 >> | B4: 1 | D4: Cost | F4: Dev Fee | H4: Cost | J4: Basis | L4: Dep Basis | N4: ='Tax Credit Calculations'!Q37 -> 0.04 | P4: =IF('Project Information'!L4="Yes",4%,0) -> 0 | R4: =IF(P4=0,9%,0) -> 0.09 | T4: ACQ | V4: 30% PV | X4: 70% PV | AC4: Tot Project Sqft | AG4: ='Tax Credit Calculations'!X31 -> 0 | AR4: Total 30% Acquisition Basis | AY4: =T53 -> 0 | BA4: =N4 -> 0.04 | BC4: =T55 -> 0 | BF4: Debt Sources | BI4: ='MH Underwriting'!T86 -> 0
A5: Acquisition: | AR5: =IF(V53=0,"Total 70% Rehabilitation Basis","Total 30% Rehabilitation Basis") -> Total 70% Rehabilitation Basis | AY5: =IF(V53=0,X53,V53) -> 0 | BA5: =IF(V53=0,R4,P4) -> 0.09 | BC5: =V55+X55 -> 0 | BI5: ='MH Underwriting'!T90+'MH Underwriting'!T92+'MH Underwriting'!T93+'MH Underwriting'!T94+'MH Underwriting'!T95+'MH Underwriting'!T96+'MH Underwriting'!T97 -> 0 | BK5: Equity Raise
A6: Land | D6: ='MH Underwriting'!P51 -> 0 | H6: =D6 -> 0 | J6: n | L6: =IF(J6="y",H6,0) -> 0 | N6: 0 | T6: =N6 -> 0 | AY6: =SUM(AY4:AY5) -> 0 | BC6: =SUM(BC4:BC5) -> 0 | BF6: Deferred Dev Fee | BI6: ='MH Underwriting'!T99 -> 0 | BK6: ='MH Underwriting'!V5*100 -> 87
A7: Buildings | D7: ='MH Underwriting'!P50 -> 0 | H7: =D7 -> 0 | J7: y | L7: =IF(J7="y",H7,0) -> 0 | N7: =L7 -> 0 | T7: =N7 -> 0 | BF7: Other | BI7: ='MH Underwriting'!T98 -> 0
A8: Reserves | D8: ='MH Underwriting'!P52 -> 0 | H8: =D8 -> 0 | J8: n | L8: =IF(J8="y",H8,0) -> 0 | N8: =L8 -> 0 | T8: =N8 -> 0 | BF8: Total Cost | BI8: =D51 -> 0 | BK8: Credit Needed
A9: Legal | D9: ='MH Underwriting'!P53 -> 0 | H9: =D9 -> 0 | J9: y | L9: =IF(J9="y",H9,0) -> 0 | N9: =L9 -> 0 | T9: =N9 -> 0
A10: Other | D10: ='MH Underwriting'!P54 -> 0 | H10: =D10 -> 0 | J10: y | L10: =IF(J10="y",H10,0) -> 0 | N10: =L10 -> 0 | T10: =N10 -> 0 | AC10: Sqft of LI | AE10: Ea Bldg | AG10: Sq.Ft. | AI10: Tot | AK10: LI | AM10: Unit | AO10: Applic | BF10: GAP | BI10: =(BI2+BI3+BI4+BI5+BI6+BI7+BI1)-BI8 -> 0 | BK10: =(((BI10/(BK6/100))/10)/BK3)*-1 -> 0 | BN10: Minimum Rehab Test | BZ10: Actual
A11: Construction Costs: | Z11: Bldg | AA11: Gross Sqft | AC11: Units | AE11: As % total | AG11: Fraction | AI11: Units | AK11: Units | AM11: Fraction | AO11: Fraction | BN11: Bldg | BO11: Acq Cost | BP11: *.10 | BQ11: Acq Bas | BR11: *.10 | BS11: # units | BT11: *7.5K | BV11: Greater of 10% or 7.5K | BZ11: Rehab
A12: Site | B12: ='MH Underwriting'!P15 -> 0 | AS12: Max Eligible Basis | AW12: Max Qualified Basis
A13: Structure | B13: ='MH Underwriting'!P16 -> 0 | AR13: Bldg | AS13: Rehab | AU13: Acq | AW13: Rehab | AY13: Acq | BA13: =IF(V53=0,"70% Rehab","30% Rehab") -> 70% Rehab | BC13: 30% Acq | BG13: Bldg | BI13: =IF(V53=0,"70% Rehab","30% Rehab") -> 70% Rehab | BK13: 30% Acq | CD13: MSHA PROCESSING
A14: General Conditions | B14: ='MH Underwriting'!P17 -> 0 | D14: =IF(B14>0,B14/D19,0) -> 0 | F14: =IF(D14>6%,"ALERT","") ->  | H14: =IF(F14="","",IF(SUM(D14:D16)<=14%,"Aggregate total is OK","")) ->  | Z14: 1 | AA14: =IF(OR('Building Summary'!D11=1,'Building Summary'!D11=0),'Building Summary'!F14,"Manual") -> 0 | AC14: =IF(AA14="","",IF(AA14="Manual", "Imput",AA14*'Tax Credit Calculations'!X32)) -> 0 | AE14: =IF(AA14="Manual",0,IF(AA14>0,ROUND(AA14/AG$4,4),0)) -> 0 | AG14: =IF(AA14="Manual","",IF(AA14>0,AC14/AA14,"")) ->  | AI14: =IF(AA14="Manual","",'Tax Credit Calculations'!W31) -> 0 | AK14: =IF(AI14="",0,AI14*'Tax Credit Calculations'!V32) -> 0 | AM14: =IF(AI14>0,AK14/AI14,"") ->  | AO14: =IF(AND(AM14>0,AM14<AG14),AM14,AG14) ->  | AR14: =Z14 -> 1 | AS14: =IF(AND(AY$5>0,AE14>0),AY$5*AE14,0) -> 0 | AU14: =IF(AND(AY$4>0,AE14>0),AY$4*AE14,0) -> 0 | AW14: =IF(AND(BC$5>0,AE14>0),AS14*AO14,0) -> 0 | AY14: =IF(AND(BC$4>0,AI14>0),AU14*AO14,0) -> 0 | BA14: =ROUND(IF(AY$5>0,AW14*BA$5,0),0) -> 0 | BC14: =ROUND(IF(AY$4>0,AY14*BA$4,0),0) -> 0 | BG14: =AR14 -> 1 | BI14: =ROUND(IF($BK$10<$BA$50,IF($BK$52<$BK$10,(BA14/$BA$50)*$BK$52,(BA14/$BA$50)*$BK$10),IF($BK$52<$BA$50,(BA14/$BA$50)*$BK$52,BA14)),0) -> 0 | BK14: =ROUND(IF($BK$10<$BA$50,IF($BK$52<$BK$10,(BC14/$BA$50)*$BK$52,(BC14/$BA$50)*$BK$10),IF($BK$52<$BA$50,(BC14/$BA$50)*$BK$52,BC14)),0) -> 0 | BN14: =Z14 -> 1 | BO14: =IF(AND(B$4>1,$AE14>0),($H$6+$H$7+$H$8+$H$9+$H$10)*AE14,0) -> 0 | BP14: =ROUNDDOWN(BO14*0.1,0) -> 0 | BQ14: =IF(AND(B$4>1,$AE14>0),(L$7+$L$9+L$10)*AE14,0) -> 0 | BR14: =ROUNDDOWN(BQ14*0.1,0) -> 0 | BS14: =IF(AND(B$4>1,$AI14>0),AI14*AM14,0) -> 0 | BT14: =(BS14*7500) -> 0 | BV14: =IF(AND(BP14>BT14,BP14>BR14),BP14,"*") -> * | BW14: =IF(AND(BV14="*",BR14>BT14),BR14,"*") -> * | BX14: =IF(AND(BV14="*",BW14="*"),BT14,"*") -> 0 | BZ14: =IF(AND($B$4<>1,AE14>0),($B$12+$B$13)*AE14,0) -> 0 | CA14: =IF(BZ14<SUM(BV14:BX14),"Minimum Rehab Alert","") -> 
A15: Overhead | D15: =IF(B15>0,B15/D19,0) -> 0 | F15: =IF(D15>2%,"ALERT","") ->  | H15: =IF(F15="","",IF(SUM(D14:D16)<=14%,"Aggregate total is OK","ALERT")) ->  | Z15: =Z14+1 -> 2 | AC15: =IF(AA15="","",AA15*'Tax Credit Calculations'!$X$32) ->  | AE15: =IF(AA15>0,ROUND(AA15/AG$4,4),0) -> 0 | AG15: =IF(AA15>0,AC15/AA15,"") ->  | AK15: =IF(AI15="","",AI15*'Tax Credit Calculations'!$V$32) ->  | AM15: =IF(AI15>0,AK15/AI15,"") ->  | AO15: =IF(AND(AM15>0,AM15<AG15),AM15,AG15) ->  | AR15: =Z15 -> 2 | AS15: =IF(AND(AY$5>0,AE15>0),AY$5*AE15,0) -> 0 | AU15: =IF(AND(AY$4>0,AE15>0),AY$4*AE15,0) -> 0 | AW15: =IF(AND(BC$5>0,AE15>0),AS15*AO15,0) -> 0 | AY15: =IF(AND(BC$4>0,AI15>0),AU15*AO15,0) -> 0 | BA15: =ROUND(IF(AY$5>0,AW15*BA$5,0),0) -> 0 | BC15: =ROUND(IF(AY$4>0,AY15*BA$4,0),0) -> 0 | BG15: =AR15 -> 2 | BI15: =ROUND(IF($BK$10<$BA$50,IF($BK$52<$BK$10,(BA15/$BA$50)*$BK$52,(BA15/$BA$50)*$BK$10),IF($BK$52<$BA$50,(BA15/$BA$50)*$BK$52,BA15)),0) -> 0 | BK15: =ROUND(IF($BK$10<$BA$50,IF($BK$52<$BK$10,(BC15/$BA$50)*$BK$52,(BC15/$BA$50)*$BK$10),IF($BK$52<$BA$50,(BC15/$BA$50)*$BK$52,BC15)),0) -> 0 | BN15: =Z15 -> 2 | BO15: =IF(AND(B$4>1,$AE15>0),($H$6+$H$7+$H$8+$H$10)*AE15,0) -> 0 | BP15: 0 | BQ15: =IF(AND(B$4>1,$AE15>0),(L$7+L$10)*AE15,0) -> 0 | BR15: =ROUNDDOWN(BQ15*0.1,0) -> 0 | BS15: 0 | BT15: =(BS15*7500) -> 0 | BV15: =IF(AND(BP15>BT15,BP15>BR15),BP15,"*") -> * | BW15: =IF(AND(BV15="*",BR15>BT15),BR15,"*") -> * | BX15: =IF(AND(BV15="*",BW15="*"),BT15,"*") -> 0 | BZ15: 0 | CA15: =IF(BZ15<SUM(BV15:BX15),"Minimum Rehab Alert","") -> 
A16: Profit | B16: ='MH Underwriting'!P18-B15+B15 -> 0 | D16: =IF(B16>0,B16/D19,0) -> 0 | F16: =IF(D15=0,IF(D16>8%,"ALERT",""),IF(D16>6%,"ALERT","")) ->  | H16: =IF(F16="","",IF(SUM(D14:D16)<=14%,"Aggregate total is OK","")) ->  | Z16: =Z15+1 -> 3 | AC16: =IF(AA16="","",AA16*'Tax Credit Calculations'!$X$32) ->  | AE16: =IF(AA16>0,ROUND(AA16/AG$4,4),0) -> 0 | AG16: =IF(AA16>0,AC16/AA16," ") ->  | AK16: =IF(AI16="","",AI16*'Tax Credit Calculations'!$V$32) ->  | AM16: =IF(AI16>0,AK16/AI16," ") ->  | AO16: =IF(AND(AM16>0,AM16<AG16),AM16,AG16) ->  | AR16: =Z16 -> 3 | AS16: 0 | AU16: 0 | AW16: 0 | AY16: 0 | BA16: 0 | BC16: 0 | BG16: =AR16 -> 3 | BI16: 0 | BK16: 0 | BN16: =Z16 -> 3 | BO16: 0 | BP16: 0 | BQ16: 0 | BR16: 0 | BS16: 0 | BT16: 0 | BV16: =IF(AND(BP16>BT16,BP16>BR16),BP16,"*") -> * | BW16: =IF(AND(BV16="*",BR16>BT16),BR16,"*") -> * | BX16: =IF(AND(BV16="*",BW16="*"),BT16,"*") -> 0 | BZ16: 0
A17: Bond Premium | B17: ='MH Underwriting'!P19 -> 0 | Z17: =Z16+1 -> 4 | AC17: =IF(AA17="","",AA17*'Tax Credit Calculations'!$X$32) ->  | AE17: 0 | AK17: =IF(AI17="","",AI17*'Tax Credit Calculations'!$V$32) ->  | AR17: 4 | AS17: 0 | AU17: 0 | AW17: 0 | AY17: 0 | BA17: 0 | BC17: 0 | BG17: =AR17 -> 4 | BI17: 0 | BK17: 0 | BN17: 4 | BO17: 0 | BP17: 0 | BQ17: 0 | BR17: 0 | BS17: 0 | BT17: 0 | BV17: * | BW17: * | BX17: 0 | BZ17: 0 | CE17: Application
A18: Contingency | B18: ='MH Underwriting'!P20 -> 0 | Z18: 5 | AC18: =IF(AA18="","",AA18*'Tax Credit Calculations'!$X$32) ->  | AE18: 0 | AK18: =IF(AI18="","",AI18*'Tax Credit Calculations'!$V$32) ->  | AR18: 5 | AS18: 0 | AU18: 0 | AW18: 0 | AY18: 0 | BA18: 0 | BC18: 0 | BG18: 5 | BI18: 0 | BK18: 0 | BN18: 5 | BO18: 0 | BP18: 0 | BQ18: 0 | BR18: 0 | BS18: 0 | BT18: 0 | BV18: * | BW18: * | BX18: 0 | BZ18: 0
A19: Total Construction | D19: =SUM(B12:B18) -> 0 | H19: =D19 -> 0 | J19: y | L19: ='Project Costs & Basis'!S9 -> 0 | P19: =IF('Project Information'!$L$4="Yes",L19,0) -> 0 | R19: =IF(P19=0,L19,0) -> 0 | V19: =IF($T$2="y",P19*1.3,P19) -> 0 | X19: =IF($T$2="y",R19*1.3,R19) -> 0 | Z19: 6 | AC19: =IF(AA19="","",AA19*'Tax Credit Calculations'!$X$32) ->  | AE19: 0 | AK19: =IF(AI19="","",AI19*'Tax Credit Calculations'!$V$32) ->  | AR19: 6 | AS19: 0 | AU19: 0 | AW19: 0 | AY19: 0 | BA19: 0 | BC19: 0 | BG19: 6 | BI19: 0 | BK19: 0 | BN19: 6 | BO19: 0 | BP19: 0 | BQ19: 0 | BR19: 0 | BS19: 0 | BT19: 0 | BV19: * | BW19: * | BX19: 0 | BZ19: 0
A20: Building Permits and Fees | D20: ='MH Underwriting'!P23 -> 0 | H20: =D20 -> 0 | J20: y | L20: ='Project Costs & Basis'!S13+'Project Costs & Basis'!Q13 -> 0 | N20: ='Project Costs & Basis'!Q13 -> 0 | P20: =IF('Project Information'!$L$4="Yes",L20-N20,0) -> 0 | R20: =IF(P20=0,L20-N20,0) -> 0 | T20: =N20 -> 0 | V20: =IF($T$2="y",P20*1.3,P20) -> 0 | X20: =IF($T$2="y",R20*1.3,R20) -> 0 | Z20: 7 | AC20: =IF(AA20="","",AA20*'Tax Credit Calculations'!$X$32) ->  | AE20: 0 | AK20: =IF(AI20="","",AI20*'Tax Credit Calculations'!$V$32) ->  | AR20: 7 | AS20: 0 | AU20: 0 | AW20: 0 | AY20: 0 | BA20: 0 | BC20: 0 | BG20: 7 | BI20: 0 | BK20: 0 | BN20: 7 | BO20: 0 | BP20: 0 | BQ20: 0 | BR20: 0 | BS20: 0 | BT20: 0 | BV20: * | BW20: * | BX20: 0 | BZ20: 0
A21: Survey & Engineering | D21: ='MH Underwriting'!P24 -> 0 | H21: 0 | J21: y | L21: ='Project Costs & Basis'!S15+'Project Costs & Basis'!Q15 -> 0 | N21: ='Project Costs & Basis'!Q15 -> 0 | P21: =IF('Project Information'!$L$4="Yes",L21-N21,0) -> 0 | R21: 0 | T21: =N21 -> 0 | V21: 0 | X21: =IF($T$2="y",R21*1.3,R21) -> 0 | Z21: 8 | AC21: =IF(AA21="","",AA21*'Tax Credit Calculations'!$X$32) ->  | AE21: 0 | AK21: =IF(AI21="","",AI21*'Tax Credit Calculations'!$V$32) ->  | AR21: 8 | AS21: 0 | AU21: 0 | AW21: 0 | AY21: 0 | BA21: 0 | BC21: 0 | BG21: 8 | BI21: 0 | BK21: 0 | BN21: 8 | BO21: 0 | BP21: 0 | BQ21: 0 | BR21: 0 | BS21: 0 | BT21: 0 | BV21: * | BW21: * | BX21: 0 | BZ21: 0 | CE21: Carryover Allocation
A22: Architectural & Design | D22: ='MH Underwriting'!P25 -> 0 | F22: 1 or 3 | H22: 0 | J22: y | L22: ='Project Costs & Basis'!S17+'Project Costs & Basis'!Q17 -> 0 | N22: ='Project Costs & Basis'!Q17 -> 0 | P22: =IF('Project Information'!$L$4="Yes",L22-N22,0) -> 0 | R22: 0 | T22: 0 | V22: 0 | X22: 0 | Z22: 9 | AC22: =IF(AA22="","",AA22*'Tax Credit Calculations'!$X$32) ->  | AE22: 0 | AK22: =IF(AI22="","",AI22*'Tax Credit Calculations'!$V$32) ->  | AR22: 9 | AS22: 0 | AU22: 0 | AW22: 0 | AY22: 0 | BA22: 0 | BC22: 0 | BG22: 9 | BI22: 0 | BK22: 0 | BN22: 9 | BO22: 0 | BP22: 0 | BQ22: 0 | BR22: 0 | BS22: 0 | BT22: 0 | BV22: * | BW22: * | BX22: 0 | BZ22: 0
A23: Legal | D23: ='MH Underwriting'!P26 -> 0 | F23: NC or REH | H23: 0 | J23: y | L23: ='Project Costs & Basis'!S19+'Project Costs & Basis'!Q19 -> 0 | N23: ='Project Costs & Basis'!Q19 -> 0 | P23: =IF('Project Information'!$L$4="Yes",L23-N23,0) -> 0 | R23: 0 | T23: 0 | V23: 0 | X23: 0 | Z23: 10 | AC23: =IF(AA23="","",AA23*'Tax Credit Calculations'!$X$32) ->  | AE23: 0 | AK23: =IF(AI23="","",AI23*'Tax Credit Calculations'!$V$32) ->  | AR23: 10 | AS23: 0 | AU23: 0 | AW23: 0 | AY23: 0 | BA23: 0 | BC23: 0 | BG23: 10 | BI23: 0 | BK23: 0 | BN23: 10 | BO23: 0 | BP23: 0 | BQ23: 0 | BR23: 0 | BS23: 0 | BT23: 0 | BV23: * | BW23: * | BX23: 0 | BZ23: 0
A24: Title & Recording | D24: ='MH Underwriting'!P27 -> 0 | F24: MAX FEE | H24: 0 | J24: y | L24: ='Project Costs & Basis'!S21+'Project Costs & Basis'!Q21 -> 0 | N24: ='Project Costs & Basis'!Q21 -> 0 | P24: =IF('Project Information'!$L$4="Yes",L24-N24,0) -> 0 | R24: 0 | T24: 0 | V24: 0 | X24: 0 | Z24: 11 | AC24: =IF(AA24="","",AA24*'Tax Credit Calculations'!$X$32) ->  | AE24: 0 | AK24: =IF(AI24="","",AI24*'Tax Credit Calculations'!$V$32) ->  | AR24: 11 | AS24: 0 | AU24: 0 | AW24: 0 | AY24: 0 | BA24: 0 | BC24: 0 | BG24: 11 | BI24: 0 | BK24: 0 | BN24: 11 | BO24: 0 | BP24: 0 | BQ24: 0 | BR24: 0 | BS24: 0 | BT24: 0 | BV24: * | BW24: * | BX24: 0 | BZ24: 0
A25: Accounting | D25: ='MH Underwriting'!P28 -> 0 | F25: =IF($B$4<>2,($D$51-($D$48+$D$49)),0) -> 0 | H25: 0 | J25: y | L25: ='Project Costs & Basis'!S23+'Project Costs & Basis'!Q23 -> 0 | N25: ='Project Costs & Basis'!Q23 -> 0 | P25: =IF('Project Information'!$L$4="Yes",L25-N25,0) -> 0 | R25: 0 | T25: 0 | V25: 0 | X25: 0 | Z25: 12 | AC25: =IF(AA25="","",AA25*'Tax Credit Calculations'!$X$32) ->  | AE25: 0 | AK25: =IF(AI25="","",AI25*'Tax Credit Calculations'!$V$32) ->  | AR25: 12 | AS25: 0 | AU25: 0 | AW25: 0 | AY25: 0 | BA25: 0 | BC25: 0 | BG25: 12 | BI25: 0 | BK25: 0 | BN25: 12 | BO25: 0 | BP25: 0 | BQ25: 0 | BR25: 0 | BS25: 0 | BT25: 0 | BV25: * | BW25: * | BX25: 0 | BZ25: 0 | CE25: Placed in Service
A26: Construction Period Tax | D26: ='MH Underwriting'!P29 -> 0 | F26: =IF(B4<>2,0.15,0) -> 0.15 | H26: 0 | J26: y | L26: ='Project Costs & Basis'!S25+'Project Costs & Basis'!Q25 -> 0 | N26: ='Project Costs & Basis'!Q25 -> 0 | P26: =IF('Project Information'!$L$4="Yes",L26-N26,0) -> 0 | R26: 0 | T26: 0 | V26: 0 | X26: 0 | Z26: 13 | AC26: =IF(AA26="","",AA26*'Tax Credit Calculations'!$X$32) ->  | AE26: 0 | AK26: =IF(AI26="","",AI26*'Tax Credit Calculations'!$V$32) ->  | AR26: 13 | AS26: 0 | AU26: 0 | AW26: 0 | AY26: 0 | BA26: 0 | BC26: 0 | BG26: 13 | BI26: 0 | BK26: 0 | BN26: 13 | BO26: 0 | BP26: 0 | BQ26: 0 | BR26: 0 | BS26: 0 | BT26: 0 | BV26: * | BW26: * | BX26: 0 | BZ26: 0
A27: Construction Period Insurance | D27: ='MH Underwriting'!P30 -> 0 | F27: =IF(F25>0,F25*F26,0) -> 0 | H27: 0 | J27: y | L27: ='Project Costs & Basis'!S27+'Project Costs & Basis'!Q27 -> 0 | N27: ='Project Costs & Basis'!Q27 -> 0 | P27: =IF('Project Information'!$L$4="Yes",L27-N27,0) -> 0 | R27: 0 | T27: 0 | V27: 0 | X27: 0 | Z27: 14 | AC27: =IF(AA27="","",AA27*'Tax Credit Calculations'!$X$32) ->  | AE27: 0 | AK27: =IF(AI27="","",AI27*'Tax Credit Calculations'!$V$32) ->  | AR27: 14 | AS27: 0 | AU27: 0 | AW27: 0 | AY27: 0 | BA27: 0 | BC27: 0 | BG27: 14 | BI27: 0 | BK27: 0 | BN27: 14 | BO27: 0 | BP27: 0 | BQ27: 0 | BR27: 0 | BS27: 0 | BT27: 0 | BV27: * | BW27: * | BX27: 0 | BZ27: 0
A28: Other | D28: ='MH Underwriting'!P31 -> 0 | F28: 2 | H28: 0 | J28: n | L28: ='Project Costs & Basis'!S29+'Project Costs & Basis'!Q29 -> 0 | N28: ='Project Costs & Basis'!Q29 -> 0 | P28: =IF('Project Information'!$L$4="Yes",L28-N28,0) -> 0 | R28: 0 | T28: 0 | V28: 0 | X28: 0 | Z28: 15 | AC28: =IF(AA28="","",AA28*'Tax Credit Calculations'!$X$32) ->  | AE28: 0 | AK28: =IF(AI28="","",AI28*'Tax Credit Calculations'!$V$32) ->  | AR28: 15 | AS28: 0 | AU28: 0 | AW28: 0 | AY28: 0 | BA28: 0 | BC28: 0 | BG28: 15 | BI28: 0 | BK28: 0 | BN28: 15 | BO28: 0 | BP28: 0 | BQ28: 0 | BR28: 0 | BS28: 0 | BT28: 0 | BV28: * | BW28: * | BX28: 0 | BZ28: 0
A29: Construction Loan Origination Fees | D29: ='MH Underwriting'!P34 -> 0 | F29: ACQ/REH | H29: 0 | J29: y | L29: ='Project Costs & Basis'!S38+'Project Costs & Basis'!Q38 -> 0 | N29: ='Project Costs & Basis'!Q38 -> 0 | P29: =IF('Project Information'!$L$4="Yes",L29-N29,0) -> 0 | R29: 0 | T29: 0 | V29: 0 | X29: 0 | Z29: 16 | AC29: =IF(AA29="","",AA29*'Tax Credit Calculations'!$X$32) ->  | AE29: 0 | AK29: =IF(AI29="","",AI29*'Tax Credit Calculations'!$V$32) ->  | AR29: 16 | AS29: 0 | AU29: 0 | AW29: 0 | AY29: 0 | BA29: 0 | BC29: 0 | BG29: 16 | BI29: 0 | BK29: 0 | BN29: 16 | BO29: 0 | BP29: 0 | BQ29: 0 | BR29: 0 | BS29: 0 | BT29: 0 | BV29: * | BW29: * | BX29: 0 | BZ29: 0 | CE29: IRS Form 8609
A30: Construction Loan Interest | D30: ='MH Underwriting'!P35 -> 0 | F30: MAX FEE | H30: 0 | J30: y | L30: ='Project Costs & Basis'!S40+'Project Costs & Basis'!Q40 -> 0 | N30: ='Project Costs & Basis'!Q40 -> 0 | P30: =IF('Project Information'!$L$4="Yes",L30-N30,0) -> 0 | R30: 0 | T30: 0 | V30: 0 | X30: 0 | Z30: 17 | AC30: =IF(AA30="","",AA30*'Tax Credit Calculations'!$X$32) ->  | AE30: 0 | AK30: =IF(AI30="","",AI30*'Tax Credit Calculations'!$V$32) ->  | AR30: 17 | AS30: 0 | AU30: 0 | AW30: 0 | AY30: 0 | BA30: 0 | BC30: 0 | BG30: 17 | BI30: 0 | BK30: 0 | BN30: 17 | BO30: 0 | BP30: 0 | BQ30: 0 | BR30: 0 | BS30: 0 | BT30: 0 | BV30: * | BW30: * | BX30: 0 | BZ30: 0
A31: MH Permanent Loan Fees | D31: ='MH Underwriting'!P36 -> 0 | F31: =IF(B4=2,((D6+D7+D10)*0.1)+((D51-(D6+D7+D8+D10+D48+D49))*0.15),0) -> 0 | H31: 0 | J31: y | L31: ='Project Costs & Basis'!S42+'Project Costs & Basis'!Q42 -> 0 | N31: ='Project Costs & Basis'!Q42 -> 0 | P31: =IF('Project Information'!$L$4="Yes",L31-N31,0) -> 0 | R31: 0 | T31: 0 | V31: 0 | X31: 0 | Z31: 18 | AC31: =IF(AA31="","",AA31*'Tax Credit Calculations'!$X$32) ->  | AE31: 0 | AK31: =IF(AI31="","",AI31*'Tax Credit Calculations'!$V$32) ->  | AR31: 18 | AS31: 0 | AU31: 0 | AW31: 0 | AY31: 0 | BA31: 0 | BC31: 0 | BG31: 18 | BI31: 0 | BK31: 0 | BN31: 18 | BO31: 0 | BP31: 0 | BQ31: 0 | BR31: 0 | BS31: 0 | BT31: 0 | BV31: * | BW31: * | BX31: 0 | BZ31: 0
A32: Other Permanent Loan Fees | D32: ='MH Underwriting'!P37 -> 0 | H32: 0 | J32: n | L32: ='Project Costs & Basis'!S44+'Project Costs & Basis'!Q44 -> 0 | N32: ='Project Costs & Basis'!Q44 -> 0 | P32: =IF('Project Information'!$L$4="Yes",L32-N32,0) -> 0 | R32: 0 | T32: 0 | V32: 0 | X32: 0 | Z32: 19 | AC32: =IF(AA32="","",AA32*'Tax Credit Calculations'!$X$32) ->  | AE32: 0 | AK32: =IF(AI32="","",AI32*'Tax Credit Calculations'!$V$32) ->  | AR32: 19 | AS32: 0 | AU32: 0 | AW32: 0 | AY32: 0 | BA32: 0 | BC32: 0 | BG32: 19 | BI32: 0 | BK32: 0 | BN32: 19 | BO32: 0 | BP32: 0 | BQ32: 0 | BR32: 0 | BS32: 0 | BT32: 0 | BV32: * | BW32: * | BX32: 0 | BZ32: 0
A33: Other | D33: ='MH Underwriting'!P38 -> 0 | H33: 0 | J33: y | L33: ='Project Costs & Basis'!S46+'Project Costs & Basis'!Q46 -> 0 | N33: ='Project Costs & Basis'!Q46 -> 0 | P33: =IF('Project Information'!$L$4="Yes",L33-N33,0) -> 0 | R33: 0 | T33: 0 | V33: 0 | X33: 0 | Z33: 20 | AC33: =IF(AA33="","",AA33*'Tax Credit Calculations'!$X$32) ->  | AE33: 0 | AK33: =IF(AI33="","",AI33*'Tax Credit Calculations'!$V$32) ->  | AR33: 20 | AS33: 0 | AU33: 0 | AW33: 0 | AY33: 0 | BA33: 0 | BC33: 0 | BG33: 20 | BI33: 0 | BK33: 0 | BN33: 20 | BO33: 0 | BP33: 0 | BQ33: 0 | BR33: 0 | BS33: 0 | BT33: 0 | BV33: * | BW33: * | BX33: 0 | BZ33: 0
A34: Market Survey | D34: ='MH Underwriting'!P41 -> 0 | F34: MAX FEE | H34: 0 | J34: y | L34: ='Project Costs & Basis'!S53+'Project Costs & Basis'!Q53 -> 0 | N34: ='Project Costs & Basis'!Q53 -> 0 | P34: =IF('Project Information'!$L$4="Yes",L34-N34,0) -> 0 | R34: 0 | T34: 0 | V34: 0 | X34: 0 | Z34: 21 | AC34: =IF(AA34="","",AA34*'Tax Credit Calculations'!$X$32) ->  | AE34: 0 | AK34: =IF(AI34="","",AI34*'Tax Credit Calculations'!$V$32) ->  | AR34: 21 | AS34: 0 | AU34: 0 | AW34: 0 | AY34: 0 | BA34: 0 | BC34: 0 | BG34: 21 | BI34: 0 | BK34: 0 | BN34: 21 | BO34: 0 | BP34: 0 | BQ34: 0 | BR34: 0 | BS34: 0 | BT34: 0 | BV34: * | BW34: * | BX34: 0 | BZ34: 0
A35: Appraisal | D35: ='MH Underwriting'!P42 -> 0 | F35: =IF(B4=2,F31,F27) -> 0 | H35: 0 | J35: y | L35: ='Project Costs & Basis'!S55+'Project Costs & Basis'!Q55 -> 0 | N35: ='Project Costs & Basis'!Q55 -> 0 | P35: =IF('Project Information'!$L$4="Yes",L35-N35,0) -> 0 | R35: 0 | T35: 0 | V35: 0 | X35: 0 | Z35: 22 | AC35: =IF(AA35="","",AA35*'Tax Credit Calculations'!$X$32) ->  | AE35: 0 | AK35: =IF(AI35="","",AI35*'Tax Credit Calculations'!$V$32) ->  | AR35: 22 | AS35: 0 | AU35: 0 | AW35: 0 | AY35: 0 | BA35: 0 | BC35: 0 | BG35: 22 | BI35: 0 | BK35: 0 | BN35: 22 | BO35: 0 | BP35: 0 | BQ35: 0 | BR35: 0 | BS35: 0 | BT35: 0 | BV35: * | BW35: * | BX35: 0 | BZ35: 0
A36: Environmental Study | D36: ='MH Underwriting'!P43 -> 0 | F36: THIS PROJ | H36: 0 | J36: y | L36: ='Project Costs & Basis'!S57+'Project Costs & Basis'!Q57 -> 0 | N36: ='Project Costs & Basis'!Q57 -> 0 | P36: =IF('Project Information'!$L$4="Yes",L36-N36,0) -> 0 | R36: 0 | T36: 0 | V36: 0 | X36: 0 | Z36: 23 | AC36: =IF(AA36="","",AA36*'Tax Credit Calculations'!$X$32) ->  | AE36: 0 | AK36: =IF(AI36="","",AI36*'Tax Credit Calculations'!$V$32) ->  | AR36: 23 | AS36: 0 | AU36: 0 | AW36: 0 | AY36: 0 | BA36: 0 | BC36: 0 | BG36: 23 | BI36: 0 | BK36: 0 | BN36: 23 | BO36: 0 | BP36: 0 | BQ36: 0 | BR36: 0 | BS36: 0 | BT36: 0 | BV36: * | BW36: * | BX36: 0 | BZ36: 0
A37: LIHTC Fees & Prepaid Monitoring | D37: ='MH Underwriting'!P44 -> 0 | H37: 0 | J37: n | L37: ='Project Costs & Basis'!S59+'Project Costs & Basis'!Q59 -> 0 | N37: ='Project Costs & Basis'!Q59 -> 0 | P37: =IF('Project Information'!$L$4="Yes",L37-N37,0) -> 0 | R37: 0 | T37: 0 | V37: 0 | X37: 0 | Z37: 24 | AC37: =IF(AA37="","",AA37*'Tax Credit Calculations'!$X$32) ->  | AE37: 0 | AK37: =IF(AI37="","",AI37*'Tax Credit Calculations'!$V$32) ->  | AR37: 24 | AS37: 0 | AU37: 0 | AW37: 0 | AY37: 0 | BA37: 0 | BC37: 0 | BG37: 24 | BI37: 0 | BK37: 0 | BN37: 24 | BO37: 0 | BP37: 0 | BQ37: 0 | BR37: 0 | BS37: 0 | BT37: 0 | BV37: * | BW37: * | BX37: 0 | BZ37: 0
A38: Relocation Costs | D38: ='MH Underwriting'!P45 -> 0 | F38: =D48 -> 0 | H38: 0 | J38: y | L38: ='Project Costs & Basis'!S61+'Project Costs & Basis'!Q61 -> 0 | N38: ='Project Costs & Basis'!Q61 -> 0 | P38: =IF('Project Information'!$L$4="Yes",L38-N38,0) -> 0 | R38: 0 | T38: 0 | V38: 0 | X38: 0 | Z38: 25 | AC38: =IF(AA38="","",AA38*'Tax Credit Calculations'!$X$32) ->  | AE38: 0 | AK38: =IF(AI38="","",AI38*'Tax Credit Calculations'!$V$32) ->  | AR38: 25 | AS38: 0 | AU38: 0 | AW38: 0 | AY38: 0 | BA38: 0 | BC38: 0 | BG38: 25 | BI38: 0 | BK38: 0 | BN38: 25 | BO38: 0 | BP38: 0 | BQ38: 0 | BR38: 0 | BS38: 0 | BT38: 0 | BV38: * | BW38: * | BX38: 0 | BZ38: 0
A39: FF&E | D39: ='MH Underwriting'!P46 -> 0 | F39: =D47 -> 0 | H39: 0 | J39: y | L39: ='Project Costs & Basis'!S63+'Project Costs & Basis'!Q63 -> 0 | N39: ='Project Costs & Basis'!Q63 -> 0 | P39: =IF('Project Information'!$L$4="Yes",L39-N39,0) -> 0 | R39: 0 | T39: 0 | V39: 0 | X39: 0 | Z39: 26 | AC39: =IF(AA39="","",AA39*'Tax Credit Calculations'!$X$32) ->  | AE39: 0 | AK39: =IF(AI39="","",AI39*'Tax Credit Calculations'!$V$32) ->  | AR39: 26 | AS39: 0 | AU39: 0 | AW39: 0 | AY39: 0 | BA39: 0 | BC39: 0 | BG39: 26 | BI39: 0 | BK39: 0 | BN39: 26 | BO39: 0 | BP39: 0 | BQ39: 0 | BR39: 0 | BS39: 0 | BT39: 0 | BV39: * | BW39: * | BX39: 0 | BZ39: 0
A40: Other | D40: ='MH Underwriting'!P47 -> 0 | F40: =D49 -> 0 | H40: 0 | J40: y | L40: ='Project Costs & Basis'!S65+'Project Costs & Basis'!Q65 -> 0 | N40: ='Project Costs & Basis'!Q65 -> 0 | P40: =IF('Project Information'!$L$4="Yes",L40-N40,0) -> 0 | R40: 0 | T40: 0 | V40: 0 | X40: 0 | Z40: 27 | AC40: =IF(AA40="","",AA40*'Tax Credit Calculations'!$X$32) ->  | AE40: 0 | AK40: =IF(AI40="","",AI40*'Tax Credit Calculations'!$V$32) ->  | AR40: 27 | AS40: 0 | AU40: 0 | AW40: 0 | AY40: 0 | BA40: 0 | BC40: 0 | BG40: 27 | BI40: 0 | BK40: 0 | BN40: 27 | BO40: 0 | BP40: 0 | BQ40: 0 | BR40: 0 | BS40: 0 | BT40: 0 | BV40: * | BW40: * | BX40: 0 | BZ40: 0
A41: Operating Deficit Escrow | D41: ='MH Underwriting'!P57 -> 0 | F41: =SUM(F38:F40) -> 0 | H41: 0 | J41: n | L41: ='Project Costs & Basis'!S88+'Project Costs & Basis'!Q88 -> 0 | N41: ='Project Costs & Basis'!Q88 -> 0 | P41: =IF('Project Information'!$L$4="Yes",L41-N41,0) -> 0 | R41: 0 | T41: 0 | V41: 0 | X41: 0 | Z41: 28 | AC41: =IF(AA41="","",AA41*'Tax Credit Calculations'!$X$32) ->  | AE41: 0 | AK41: =IF(AI41="","",AI41*'Tax Credit Calculations'!$V$32) ->  | AR41: 28 | AS41: 0 | AU41: 0 | AW41: 0 | AY41: 0 | BA41: 0 | BC41: 0 | BG41: 28 | BI41: 0 | BK41: 0 | BN41: 28 | BO41: 0 | BP41: 0 | BQ41: 0 | BR41: 0 | BS41: 0 | BT41: 0 | BV41: * | BW41: * | BX41: 0 | BZ41: 0
A42: Pre-funded Replacements | D42: ='MH Underwriting'!P58 -> 0 | H42: 0 | J42: n | L42: ='Project Costs & Basis'!S90+'Project Costs & Basis'!Q90 -> 0 | N42: ='Project Costs & Basis'!Q90 -> 0 | P42: =IF('Project Information'!$L$4="Yes",L42-N42,0) -> 0 | R42: 0 | T42: 0 | V42: 0 | X42: 0 | Z42: 29 | AC42: =IF(AA42="","",AA42*'Tax Credit Calculations'!$X$32) ->  | AE42: 0 | AK42: =IF(AI42="","",AI42*'Tax Credit Calculations'!$V$32) ->  | AR42: 29 | AS42: 0 | AU42: 0 | AW42: 0 | AY42: 0 | BA42: 0 | BC42: 0 | BG42: 29 | BI42: 0 | BK42: 0 | BN42: 29 | BO42: 0 | BP42: 0 | BQ42: 0 | BR42: 0 | BS42: 0 | BT42: 0 | BV42: * | BW42: * | BX42: 0 | BZ42: 0
A43: Tax & Insurance Escrow | D43: ='MH Underwriting'!P59 -> 0 | H43: 0 | J43: n | L43: ='Project Costs & Basis'!S92+'Project Costs & Basis'!Q92 -> 0 | N43: ='Project Costs & Basis'!Q92 -> 0 | P43: =IF('Project Information'!$L$4="Yes",L43-N43,0) -> 0 | R43: 0 | T43: 0 | V43: 0 | X43: 0 | Z43: 30 | AC43: =IF(AA43="","",AA43*'Tax Credit Calculations'!$X$32) ->  | AE43: 0 | AK43: =IF(AI43="","",AI43*'Tax Credit Calculations'!$V$32) ->  | AR43: 30 | AS43: 0 | AU43: 0 | AW43: 0 | AY43: 0 | BA43: 0 | BC43: 0 | BG43: 30 | BI43: 0 | BK43: 0 | BN43: 30 | BO43: 0 | BP43: 0 | BQ43: 0 | BR43: 0 | BS43: 0 | BT43: 0 | BV43: * | BW43: * | BX43: 0 | BZ43: 0
A44: Working Capital | D44: ='MH Underwriting'!P60 -> 0 | H44: =D44 -> 0 | J44: n | L44: ='Project Costs & Basis'!S94+'Project Costs & Basis'!Q94 -> 0 | N44: ='Project Costs & Basis'!Q94 -> 0 | P44: =IF('Project Information'!$L$4="Yes",L44-N44,0) -> 0 | R44: 0 | T44: 0 | V44: 0 | X44: 0 | Z44: 31 | AC44: =IF(AA44="","",AA44*'Tax Credit Calculations'!$X$32) ->  | AE44: 0 | AK44: =IF(AI44="","",AI44*'Tax Credit Calculations'!$V$32) ->  | AR44: 31 | AS44: 0 | AU44: 0 | AW44: 0 | AY44: 0 | BA44: 0 | BC44: 0 | BG44: 31 | BI44: 0 | BK44: 0 | BN44: 31 | BO44: 0 | BP44: 0 | BQ44: 0 | BR44: 0 | BS44: 0 | BT44: 0 | BV44: * | BW44: * | BX44: 0 | BZ44: 0
A45: Other | D45: ='MH Underwriting'!P65 -> 0 | H45: =D45 -> 0 | J45: n | L45: ='Project Costs & Basis'!S96+'Project Costs & Basis'!Q96 -> 0 | N45: ='Project Costs & Basis'!Q96 -> 0 | P45: =IF('Project Information'!$L$4="Yes",L45-N45,0) -> 0 | R45: 0 | T45: 0 | V45: 0 | X45: 0 | Z45: 32 | AC45: =IF(AA45="","",AA45*'Tax Credit Calculations'!$X$32) ->  | AE45: 0 | AK45: =IF(AI45="","",AI45*'Tax Credit Calculations'!$V$32) ->  | AR45: 32 | AS45: 0 | AU45: 0 | AW45: 0 | AY45: 0 | BA45: 0 | BC45: 0 | BG45: 32 | BI45: 0 | BK45: 0 | BN45: 32 | BO45: 0 | BP45: 0 | BQ45: 0 | BR45: 0 | BS45: 0 | BT45: 0 | BV45: * | BW45: * | BX45: 0 | BZ45: 0
A46: Total Syndication Expenses | D46: ='MH Underwriting'!P61 -> 0 | H46: =D46 -> 0 | J46: n | L46: ='Project Costs & Basis'!S110+'Project Costs & Basis'!Q110 -> 0 | N46: ='Project Costs & Basis'!Q110 -> 0 | P46: =IF('Project Information'!$L$4="Yes",L46-N46,0) -> 0 | R46: 0 | T46: 0 | V46: 0 | X46: 0 | Z46: 33 | AC46: =IF(AA46="","",AA46*'Tax Credit Calculations'!$X$32) ->  | AE46: 0 | AK46: =IF(AI46="","",AI46*'Tax Credit Calculations'!$V$32) ->  | AR46: 33 | AS46: 0 | AU46: 0 | AW46: 0 | AY46: 0 | BA46: 0 | BC46: 0 | BG46: 33 | BI46: 0 | BK46: 0 | BN46: 33 | BO46: 0 | BP46: 0 | BQ46: 0 | BR46: 0 | BS46: 0 | BT46: 0 | BV46: * | BW46: * | BX46: 0 | BZ46: 0
A47: Consultant Fee | D47: ='MH Underwriting'!P62 -> 0 | H47: 0 | J47: y | L47: ='Project Costs & Basis'!S116+'Project Costs & Basis'!Q116 -> 0 | N47: ='Project Costs & Basis'!Q116 -> 0 | P47: =IF('Project Information'!$L$4="Yes",L47-N47,0) -> 0 | R47: 0 | T47: 0 | V47: 0 | X47: 0 | Z47: 34 | AC47: =IF(AA47="","",AA47*'Tax Credit Calculations'!$X$32) ->  | AE47: 0 | AK47: =IF(AI47="","",AI47*'Tax Credit Calculations'!$V$32) ->  | AR47: 34 | AS47: 0 | AU47: 0 | AW47: 0 | AY47: 0 | BA47: 0 | BC47: 0 | BG47: 34 | BI47: 0 | BK47: 0 | BN47: 34 | BO47: 0 | BP47: 0 | BQ47: 0 | BR47: 0 | BS47: 0 | BT47: 0 | BV47: * | BW47: * | BX47: 0 | BZ47: 0
A48: Developer Overhead | D48: ='MH Underwriting'!P63 -> 0 | H48: 0 | J48: y | L48: ='Project Costs & Basis'!S118+'Project Costs & Basis'!Q118 -> 0 | N48: ='Project Costs & Basis'!Q118 -> 0 | P48: =IF('Project Information'!$L$4="Yes",L48-N48,0) -> 0 | R48: 0 | T48: 0 | V48: 0 | X48: 0 | Z48: 35 | AC48: =IF(AA48="","",AA48*'Tax Credit Calculations'!$X$32) ->  | AE48: 0 | AK48: =IF(AI48="","",AI48*'Tax Credit Calculations'!$V$32) ->  | AR48: 35 | AS48: 0 | AU48: 0 | AW48: 0 | AY48: 0 | BA48: 0 | BC48: 0 | BG48: 35 | BI48: 0 | BK48: 0 | BN48: 35 | BO48: 0 | BP48: 0 | BQ48: 0 | BR48: 0 | BS48: 0 | BT48: 0 | BV48: * | BW48: * | BX48: 0 | BZ48: 0
A49: Developer Profit | D49: ='MH Underwriting'!P64 -> 0 | H49: =D49 -> 0 | J49: y | L49: ='Project Costs & Basis'!S120+'Project Costs & Basis'!Q38120 -> 0 | N49: ='Project Costs & Basis'!Q120 -> 0 | P49: =IF('Project Information'!$L$4="Yes",L49-N49,0) -> 0 | R49: 0 | T49: 0 | V49: 0 | X49: 0 | AA49: =SUM(AA14:AA48) -> 0 | AC49: =SUM(AC14:AC48) -> 0 | AE49: =SUM(AE14:AE48) -> 0 | AI49: =SUM(AI14:AI48) -> 0 | AK49: =SUM(AK14:AK48) -> 0 | AS49: =SUM(AS14:AS48) -> 0 | AU49: =SUM(AU14:AU48) -> 0 | AW49: =SUM(AW14:AW48) -> 0 | AY49: =SUM(AY14:AY48) -> 0 | BA49: =SUM(BA14:BA48) -> 0 | BC49: =SUM(BC14:BC48) -> 0 | BI49: =SUM(BI14:BI48) -> 0 | BK49: =SUM(BK14:BK48) -> 0
D50: 0 | H50: 0 | J50: y | L50: 0 | N50: 0 | P50: =IF('Project Information'!$L$4="Yes",L50-N50,0) -> 0 | R50: 0 | T50: 0 | V50: 0 | X50: 0 | AA50: =IF(AA49<>AG4,"ALERT"," ") ->  | AH50: =IF(AI49<>J1,"ALERT"," ") ->  | BA50: =BA49+BC49 -> 0 | BI50: =BI49+BK49 -> 0
D51: =SUM(D6:D50) -> 0 | H51: =SUM(H6:H50) -> 0 | L51: =SUM(L6:L50) -> 0 | N51: =SUM(N6:N50) -> 0 | P51: =SUM(P6:P50) -> 0 | R51: =SUM(R6:R50) -> 0 | T51: =SUM(T6:T50) -> 0 | V51: =SUM(V6:V50) -> 0 | X51: =SUM(X19:X50) -> 0
J52: Adjustment | L52: ='Tax Credit Calculations'!Q21+'Tax Credit Calculations'!S21-SUM('Tax Credit Calculations'!Q12:'Tax Credit Calculations'!S19) -> 0 | N52: ='Tax Credit Calculations'!Q21-SUM('Tax Credit Calculations'!Q12:Q19) -> 0 | P52: =IF('Project Information'!$L$4="Yes",'Tax Credit Calculations'!S21-SUM('Tax Credit Calculations'!S12:S19),0) -> 0 | R52: =IF(P52=0,'Tax Credit Calculations'!S21-SUM('Tax Credit Calculations'!S12:S19),0) -> 0 | T52: =N52 -> 0 | V52: =IF($T$2="y",R52*1.3,R52) -> 0 | X52: =IF($T$2="y",R52*1.3,R52) -> 0 | BF52: Credit Amount Requested | BK52: =IF(BK10<BA50,BK10,BA50) -> 0
L53: =SUM(L51:L52) -> 0 | N53: =SUM(N51:N52) -> 0 | P53: =SUM(P51:P52) -> 0 | R53: =SUM(R51:R52) -> 0 | T53: =SUM(T51:T52) -> 0 | V53: =SUM(V51:V52) -> 0 | X53: =SUM(X51:X52) -> 0
T54: =N4 -> 0.04 | V54: =P4 -> 0 | X54: =R4 -> 0.09
T55: =ROUND(T53*T54,0) -> 0 | V55: =ROUND(V53*V54,0) -> 0 | X55: =ROUND(X53*X54,0) -> 0
T56: =T55+X55+V55 -> 0

Sheet Tax Credit Calc (hidden)
A1: Project Name: | C1: ='MH Underwriting'!E1 -> Project Name
A2: Location: | C2: ='MH Underwriting'!E2 -> Town
A6: LIHTC 30% Rate: | C6: ='MH Underwriting'!J1 -> 00:00:00 | E6: ='Tax Credit Calculations'!Q37 -> 0.04
A7: LIHTC 70% Rate: | E7: ='Tax Credit Calculations'!S37 -> 0.09
A8: Historic TxCr | E8: ='Tax Credit Calculations'!D6 -> No
A9: Partnership Tax Rate | E9: 0.22
A10: Tax Exempt Financing | E10: =IF('Project Information'!L4="Yes","Yes","No") -> No
A11: LIHTC 130% Adjustment | E11: =IF('Tax Credit Calculations'!S27=130%,"Yes","No") -> Yes | G11: Per Unit Credit Cap | I11: =IF(E10="No",30000,"N/A") -> 30000
G12: Total Low Income Units | I12: =SUMIFS('MH Underwriting'!F153:F177,'MH Underwriting'!E153:E177,"<>"&"Mkt") -> 0
E15: LIHTC EVALUATION
A17: Eligible Expenditures | E17: Amount | F17: % Eligible | G17: Adjustment | H17: Credit % | I17: LIHTC
A18: Building Acquisition | E18: =K107 -> 0 | F18: =F23 -> 0 | G18: 1 | H18: =E6 -> 0.04 | I18: =E18*F18*G18*H18 -> 0
A19: Construction | E19: =J60-'MH Underwriting'!V9 -> 0 | F19: =F23 -> 0 | G19: =IF(OR(E11="no",E11="n"),G18,1.3) -> 1.3 | H19: =IF(OR(E10="yes",E10="y"),E6,E7) -> 0.09 | I19: =E19*F19*G19*H19 -> 0
A20: Other Elig. Cost | E20: =J71+J78+J87+J105-J101-J102-J103 -> 0 | F20: =F23 -> 0 | G20: =G19 -> 1.3 | H20: =H19 -> 0.09 | I20: =E20*F20*G20*H20 -> 0 | N20: Max Eligible Credit | P20: =I23 -> 0
A21: Dev. Fee | E21: =J101+J102+J103 -> 0 | F21: =F23 -> 0 | G21: =G20 -> 1.3 | H21: =H20 -> 0.09 | I21: =E21*F21*G21*H21 -> 0 | N21: QAP Per Unit Cap | P21: =IF(E10="Yes","",I11*I12) -> 0
N22: QAP Per Project Cap | P22: =IF(E10="Yes","",1200000) -> 1200000
A23: TOTAL LIHTC | E23: =SUM(E18:E21) -> 0 | F23: =ROUND(IF('MH Underwriting'!F180=0,0,SUMIFS('MH Underwriting'!F153:F177,'MH Underwriting'!E153:E177,"<>"&"Mkt")/'MH Underwriting'!F180),4) -> 0 | I23: =ROUND(SUM(I18:I21),) -> 0 | N23: Credit Requested | P23: ='Tax Credit Calculations'!Q40+'Tax Credit Calculations'!S40 -> 0
B25: LIHTC Cap / Carryover Allocation Amount | I25: =MIN(P20:P23) -> 0
G29: Equity Pay-in Schedule
A30: Net Syndication Yields
A31: Year | D31: Capital Contrib. | H31: Performance | L31: Estimated
G32: Pmt # | H32: Triggers | J32: Amount | L32: Date
A33: ='MH Underwriting'!G73 -> 2025-06-30 | D33: ='MH Underwriting'!G78+'MH Underwriting'!I78 -> 0
A34: =A33+365 -> 2026-06-30 | D34: =SUM('MH Underwriting'!J78:L78)+'MH Underwriting'!P78+'MH Underwriting'!R78 -> 0 | G34: 1 | H34: CLC | J34: ='MH Underwriting'!G78 -> 0 | L34: ='MH Underwriting'!G73 -> 2025-06-30
A35: 2027-06-30 | D35: ='MH Underwriting'!S78 -> 0
A36: 2028-06-29 | D36: 0 | G36: 2 | H36: 50% Construction Completion | J36: ='MH Underwriting'!J78 -> 0 | L36: =L34+180 -> 2025-12-27
A37: 2029-06-29 | D37: 0
A38: 2030-06-29 | D38: 0 | G38: 3 | H38: PLC | J38: ='MH Underwriting'!P78 -> 0 | L38: ='MH Underwriting'!P74 -> PLC
A39: 2031-06-29 | D39: 0
A40: 2032-06-28 | D40: 0 | G40: 4 | H40: 8609 or Occupancy | J40: ='MH Underwriting'!R78 -> 0 | L40: ='MH Underwriting'!R74 -> Milestone
A41: Totals | D41: =SUM(D33:D40) -> 0
A42: NPV @ 7% | D42: =NPV(0.07,D33:D40) -> 0 | G42: 5 | H42: 1 yr. DSC / Occupancy | J42: ='MH Underwriting'!S78 -> 0 | L42: ='MH Underwriting'!S74 -> Payment
A43: Credit Allocation | D43: =I23*10 -> 0
A44: Yield | D44: =IF(D43=0,0,D42/D43) -> 0
J51: LIHTC Basis
A52: Uses Of Funds | D52: Residential | F52: Depreciable | G52: Amortizable | H52: Non-Amort. | J52: (non-acquis.) | K52: (acquis.)
A54: Site Improvements | D54: ='MH Underwriting'!H15 -> 0 | F54: =D54 -> 0 | J54: =F54-K54 -> 0 | K54: 0
A55: Construction | D55: ='MH Underwriting'!H16 -> 0 | F55: =D55-G55-H55 -> 0 | G55: ='Project Costs & Basis'!L9 -> 0 | H55: ='Project Costs & Basis'!N9 -> 0 | J55: 0 | K55: 0
A56: General Requirements | D56: ='MH Underwriting'!H17 -> 0 | F56: =D56 -> 0 | J56: 0 | K56: 0
A57: Builder Profit | D57: ='MH Underwriting'!H18 -> 0 | F57: =D57 -> 0 | J57: 0 | K57: 0
A58: Bond Premium | D58: ='MH Underwriting'!H19 -> 0 | F58: =D58 -> 0 | J58: 0 | K58: 0
A59: Construction Contingency | C59: =IF(D55=0,0,D59/SUM(D54:D58)) -> 0 | D59: ='MH Underwriting'!H20 -> 0 | F59: =D59 -> 0 | J59: 0 | K59: 0
A60: Subtotal Construction Costs | D60: =SUM(D54:D59) -> 0 | F60: =SUM(F54:F59) -> 0 | G60: =SUM(G54:G59) -> 0 | H60: =SUM(H54:H59) -> 0 | J60: =SUM(J54:J59) -> 0 | K60: =SUM(K54:K59) -> 0 | M60: =SUM(D54:D58)*N60 -> 0 | N60: 0.05
A62: Building Permits and Fees | D62: ='MH Underwriting'!H23 -> 0 | F62: ='Project Costs & Basis'!H13 -> 0 | G62: ='Project Costs & Basis'!L13 -> 0 | H62: ='Project Costs & Basis'!N13 -> 0 | J62: ='Project Costs & Basis'!S13 -> 0 | K62: ='Project Costs & Basis'!Q13 -> 0
A63: Survey & Engineering | D63: ='MH Underwriting'!H24 -> 0 | F63: ='Project Costs & Basis'!H15 -> 0 | G63: ='Project Costs & Basis'!L15 -> 0 | H63: ='Project Costs & Basis'!N15 -> 0 | J63: ='Project Costs & Basis'!S15 -> 0 | K63: ='Project Costs & Basis'!Q15 -> 0
A64: Architectural & Design | D64: ='MH Underwriting'!H25 -> 0 | F64: ='Project Costs & Basis'!H17 -> 0 | G64: ='Project Costs & Basis'!L17 -> 0 | H64: ='Project Costs & Basis'!N17 -> 0 | J64: ='Project Costs & Basis'!S17 -> 0 | K64: ='Project Costs & Basis'!Q17 -> 0
A65: Legal | D65: ='MH Underwriting'!H26 -> 0 | F65: ='Project Costs & Basis'!H19 -> 0 | G65: ='Project Costs & Basis'!L19 -> 0 | H65: ='Project Costs & Basis'!N19 -> 0 | J65: ='Project Costs & Basis'!S19 -> 0 | K65: ='Project Costs & Basis'!Q19 -> 0
A66: Title & Recording | D66: ='MH Underwriting'!H27 -> 0 | F66: ='Project Costs & Basis'!H21 -> 0 | G66: ='Project Costs & Basis'!L21 -> 0 | H66: ='Project Costs & Basis'!N21 -> 0 | J66: ='Project Costs & Basis'!S21 -> 0 | K66: ='Project Costs & Basis'!Q21 -> 0
A67: Accounting | D67: ='MH Underwriting'!H28 -> 0 | F67: ='Project Costs & Basis'!H23 -> 0 | G67: ='Project Costs & Basis'!L23 -> 0 | H67: ='Project Costs & Basis'!N23 -> 0 | J67: ='Project Costs & Basis'!S23 -> 0 | K67: ='Project Costs & Basis'!Q23 -> 0
A68: Construction Period Tax | D68: ='MH Underwriting'!H29 -> 0 | F68: ='Project Costs & Basis'!H25 -> 0 | G68: ='Project Costs & Basis'!L25 -> 0 | H68: ='Project Costs & Basis'!N25 -> 0 | J68: ='Project Costs & Basis'!S25 -> 0 | K68: ='Project Costs & Basis'!Q25 -> 0
A69: Construction Period Insurance | D69: ='MH Underwriting'!H30 -> 0 | F69: ='Project Costs & Basis'!H27 -> 0 | G69: ='Project Costs & Basis'!L27 -> 0 | H69: ='Project Costs & Basis'!N27 -> 0 | J69: ='Project Costs & Basis'!S27 -> 0 | K69: ='Project Costs & Basis'!Q27 -> 0
A70: Other | D70: ='MH Underwriting'!H31 -> 0 | F70: ='Project Costs & Basis'!H29 -> 0 | G70: ='Project Costs & Basis'!L29 -> 0 | H70: ='Project Costs & Basis'!N29 -> 0 | J70: ='Project Costs & Basis'!S29 -> 0 | K70: ='Project Costs & Basis'!Q29 -> 0
A71: Subtotal Soft Costs | D71: =SUM(D62:D70) -> 0 | F71: =SUM(F62:F70) -> 0 | G71: =SUM(G62:G70) -> 0 | H71: =SUM(H62:H70) -> 0 | J71: =SUM(J62:J70) -> 0 | K71: =SUM(K62:K70) -> 0
A73: Construction Loan Origination Fees | D73: ='MH Underwriting'!H34 -> 0 | F73: ='Project Costs & Basis'!H38 -> 0 | G73: ='Project Costs & Basis'!L38 -> 0 | H73: ='Project Costs & Basis'!N38 -> 0 | J73: ='Project Costs & Basis'!S38 -> 0 | K73: ='Project Costs & Basis'!Q38 -> 0
A74: Construction Loan Interest | D74: ='MH Underwriting'!H35 -> 0 | F74: ='Project Costs & Basis'!H40 -> 0 | G74: ='Project Costs & Basis'!L40 -> 0 | H74: ='Project Costs & Basis'!N40 -> 0 | J74: ='Project Costs & Basis'!S40 -> 0 | K74: ='Project Costs & Basis'!Q40 -> 0
A75: =IF('Project Information'!L4="Yes","MaineHousing Loan Fees","MaineHousing Permanent Loan Fees") -> MaineHousing Permanent Loan Fees | D75: ='MH Underwriting'!H36 -> 0 | F75: ='Project Costs & Basis'!H42 -> 0 | G75: ='Project Costs & Basis'!L42 ->  | H75: ='Project Costs & Basis'!N42 -> 0 | J75: ='Project Costs & Basis'!S42 -> 0 | K75: ='Project Costs & Basis'!Q42 -> 0 | O75: App = $1000
A76: Other Permanent Loan Fees | D76: ='MH Underwriting'!H37 -> 0 | F76: ='Project Costs & Basis'!H44 -> 0 | G76: ='Project Costs & Basis'!L44 -> 0 | H76: ='Project Costs & Basis'!N44 -> 0 | J76: ='Project Costs & Basis'!S44 -> 0 | K76: ='Project Costs & Basis'!Q44 -> 0 | M76: =IF('Project Information'!L4="Yes",3000+'MH Underwriting'!I129*0.02,"") ->  | N76: =IF(M76="","","PL") ->  | O76: Comm = $2000
A77: Other | D77: ='MH Underwriting'!H38 -> 0 | F77: ='Project Costs & Basis'!H46 -> 0 | G77: ='Project Costs & Basis'!L46 -> 0 | H77: ='Project Costs & Basis'!N46 -> 0 | J77: ='Project Costs & Basis'!S46 -> 0 | K77: ='Project Costs & Basis'!Q46 -> 0 | M77: =IF('Project Information'!L4="Yes",3000+'MH Underwriting'!W83*0.02,"") ->  | N77: =IF(M77="","","CL") ->  | O77: 2% of MH Loan
A78: Subtotal Finance Costs | D78: =SUM(D73:D77) -> 0 | F78: =SUM(F73:F77) -> 0 | G78: =SUM(G73:G77) -> 0 | H78: =SUM(H73:H77) -> 0 | J78: =SUM(J73:J77) -> 0 | K78: =SUM(K73:K77) -> 0
A80: Market Survey | D80: ='MH Underwriting'!H41 -> 0 | F80: ='Project Costs & Basis'!H53 -> 0 | G80: ='Project Costs & Basis'!L53 -> 0 | H80: ='Project Costs & Basis'!N53 -> 0 | J80: ='Project Costs & Basis'!S53 -> 0 | K80: ='Project Costs & Basis'!Q53 -> 0
A81: Appraisal | D81: ='MH Underwriting'!H42 -> 0 | F81: ='Project Costs & Basis'!H55 -> 0 | G81: ='Project Costs & Basis'!L55 -> 0 | H81: ='Project Costs & Basis'!N55 -> 0 | J81: ='Project Costs & Basis'!S55 -> 0 | K81: ='Project Costs & Basis'!Q55 -> 0
A82: Environmental Study | D82: ='MH Underwriting'!H43 -> 0 | F82: ='Project Costs & Basis'!H57 -> 0 | G82: ='Project Costs & Basis'!L57 -> 0 | H82: ='Project Costs & Basis'!N57 -> 0 | J82: ='Project Costs & Basis'!S57 -> 0 | K82: ='Project Costs & Basis'!Q57 -> 0 | O82: App =$4500
A83: LIHTC Fees & Prepaid Monitoring | D83: ='MH Underwriting'!H44 -> 0 | F83: ='Project Costs & Basis'!H59 -> 0 | G83: ='Project Costs & Basis'!L59 ->  | H83: ='Project Costs & Basis'!N59 -> 0 | J83: ='Project Costs & Basis'!S59 -> 0 | K83: ='Project Costs & Basis'!Q59 -> 0 | M83: =IF(I12=0,"",2000+2500+'Tax Credit Calc'!I25*0.075+'Tax Credit Calc'!I12*1000) ->  | O83: Allocation = 7.5% of Credit
A84: Relocation Costs | D84: ='MH Underwriting'!H45 -> 0 | F84: ='Project Costs & Basis'!H61 -> 0 | G84: ='Project Costs & Basis'!L61 -> 0 | H84: ='Project Costs & Basis'!N61 -> 0 | J84: ='Project Costs & Basis'!S61 -> 0 | K84: ='Project Costs & Basis'!Q61 -> 0 | O84: Monitoring = $1000 / LIHTC Unit
A85: FF&E | D85: ='MH Underwriting'!H46 -> 0 | F85: ='Project Costs & Basis'!H63 -> 0 | G85: ='Project Costs & Basis'!L63 -> 0 | H85: ='Project Costs & Basis'!N63 -> 0 | J85: ='Project Costs & Basis'!S63 -> 0 | K85: ='Project Costs & Basis'!Q63 -> 0
A86: Other | D86: ='MH Underwriting'!H47 -> 0 | F86: ='Project Costs & Basis'!H65 -> 0 | G86: ='Project Costs & Basis'!L65 -> 0 | H86: ='Project Costs & Basis'!N65 -> 0 | J86: ='Project Costs & Basis'!S65 -> 0 | K86: ='Project Costs & Basis'!Q65 -> 0
A87: Subtotal Miscellaneous | D87: =SUM(D80:D86) -> 0 | F87: =SUM(F80:F86) -> 0 | G87: =SUM(G80:G86) -> 0 | H87: =SUM(H80:H86) -> 0 | J87: =F87-K87 -> 0 | K87: =SUM(K80:K86) -> 0
A89: Acquisition: Buildings | D89: ='MH Underwriting'!H50 -> 0 | F89: ='Project Costs & Basis'!H73 -> 0 | G89: ='Project Costs & Basis'!L73 -> 0 | H89: ='Project Costs & Basis'!N73 -> 0 | J89: 0 | K89: ='Project Costs & Basis'!Q73 -> 0
A90: Acquisition: Land | D90: ='MH Underwriting'!H51 -> 0 | F90: 0 | G90: 0 | H90: ='Project Costs & Basis'!N75 -> 0 | J90: 0 | K90: ='Project Costs & Basis'!Q75 -> 0
A91: Acquisition: Existing Reserves | D91: ='MH Underwriting'!H52 -> 0 | F91: 0 | G91: 0 | H91: ='Project Costs & Basis'!N77 -> 0 | J91: 0 | K91: ='Project Costs & Basis'!Q77 -> 0
A92: Acquisition: Legal | D92: ='MH Underwriting'!H53 -> 0 | F92: ='Project Costs & Basis'!H79 -> 0 | G92: ='Project Costs & Basis'!L79 -> 0 | H92: ='Project Costs & Basis'!N79 -> 0 | J92: 0 | K92: ='Project Costs & Basis'!Q79 -> 0
A93: Acquisition: other | D93: ='MH Underwriting'!H54 -> 0 | F93: ='Project Costs & Basis'!H81 -> 0 | G93: ='Project Costs & Basis'!L81 -> 0 | H93: ='Project Costs & Basis'!N81 -> 0 | J93: 0 | K93: ='Project Costs & Basis'!Q81 -> 0
A94: Subtotal Acquisition | D94: =SUM(D89:D93) -> 0 | F94: =SUM(F89:F93) -> 0 | G94: =SUM(G89:G93) -> 0 | H94: =SUM(H89:H93) -> 0 | J94: =SUM(J89:J93) -> 0 | K94: =SUM(K89:K93) -> 0
A96: Operating Deficit Escrow | D96: ='MH Underwriting'!H57 -> 0 | F96: 0 | G96: 0 | H96: ='Project Costs & Basis'!N88 -> 0 | J96: 0 | K96: 0 | M96: =('MH Underwriting'!I208+'MH Underwriting'!I209)/12*6 -> 0 | O96: Six months Op Ex & DS
A97: Pre-funded Replacements | D97: ='MH Underwriting'!H58 -> 0 | F97: 0 | G97: 0 | H97: ='Project Costs & Basis'!N90 -> 0 | J97: 0 | K97: 0 | M97: =(D60-D59-D54+'MH Underwriting'!P50)*0.01 -> 0 | O97: 1% of Structures (Construction - Cont - Site + Bldg)
A98: Tax & Insurance Escrow | D98: ='MH Underwriting'!H59 -> 0 | F98: 0 | G98: 0 | H98: ='Project Costs & Basis'!N92 -> 0 | J98: 0 | K98: 0 | M98: =M101+M102 -> 0 | O98: Total T& I
A99: Working Capital | D99: ='MH Underwriting'!H60 -> 0 | F99: 0 | G99: 0 | H99: ='Project Costs & Basis'!N94 -> 0 | J99: 0 | K99: 0 | M99: =IF('MH Underwriting'!G5<=50,'MH Underwriting'!G5*1000,50000) -> 0 | O99: Working Capital = $1000 per unit, capped @ 50K
A100: Total Syndication Expenses | D100: ='MH Underwriting'!H61 -> 0 | F100: =SUM('Project Costs & Basis'!H102:H110) -> 0 | G100: =SUM('Project Costs & Basis'!L102:L110) -> 0 | H100: =SUM('Project Costs & Basis'!N102:N110) -> 0 | J100: 0 | K100: 0
A101: Consultant Fee | D101: ='MH Underwriting'!H62 -> 0 | F101: ='Project Costs & Basis'!H116 -> 0 | G101: ='Project Costs & Basis'!L116 -> 0 | H101: ='Project Costs & Basis'!N116 -> 0 | J101: ='Project Costs & Basis'!S116 -> 0 | K101: ='Project Costs & Basis'!Q116 -> 0 | M101: =('MH Underwriting'!U186/2+'MH Underwriting'!U187/6) -> 0 | O101: Six months RE Taxes + 2 months Insurance
A102: Developer Overhead | D102: ='MH Underwriting'!H63 -> 0 | F102: ='Project Costs & Basis'!H118 -> 0 | G102: ='Project Costs & Basis'!L118 -> 0 | H102: ='Project Costs & Basis'!N118 -> 0 | J102: ='Project Costs & Basis'!S118 -> 0 | K102: ='Project Costs & Basis'!Q118 -> 0 | M102: ='MH Underwriting'!U187 -> 0 | O102: First yr insurance
A103: Developer Profit | D103: ='MH Underwriting'!H64 -> 0 | F103: ='Project Costs & Basis'!H120 -> 0 | G103: ='Project Costs & Basis'!L120 -> 0 | H103: ='Project Costs & Basis'!N120 -> 0 | J103: ='Project Costs & Basis'!S120 -> 0 | K103: ='Project Costs & Basis'!Q120 -> 0
A104: Other | D104: ='MH Underwriting'!H65 -> 0 | F104: 0 | G104: 0 | H104: ='Project Costs & Basis'!N96 -> 0 | J104: ='Project Costs & Basis'!S122 -> 0 | K104: ='Project Costs & Basis'!Q122 -> 0
A105: Subtotal Fee and Reserves | D105: =SUM(D96:D104) -> 0 | F105: =SUM(F96:F104) -> 0 | G105: =SUM(G96:G104) -> 0 | H105: =SUM(H96:H104) -> 0 | J105: =SUM(J96:J104) -> 0 | K105: =SUM(K96:K104) -> 0
A107: Total Project Costs | D107: =D94+D60+D71+D78+D87+D105 -> 0 | F107: =F94+F60+F71+F78+F87+F105 -> 0 | G107: =G94+G60+G71+G78+G87+G105 -> 0 | H107: =H94+H60+H71+H78+H87+H105 -> 0 | J107: =J60+J71+J78+J87+J94+J105 -> 0 | K107: =K60+K71+K78+K87+K94+K105 -> 0
A109: After Tax Cash Flow Analysis
D110: ='MH Underwriting'!H217 -> 2026-12-31 | E110: =D110+365 -> 2027-12-31 | F110: =E110+365 -> 2028-12-30 | G110: =F110+365 -> 2029-12-30 | H110: =G110+366 -> 2030-12-31 | I110: =H110+365 -> 2031-12-31 | J110: =I110+365 -> 2032-12-30 | K110: =J110+365 -> 2033-12-30
A111: Net Operating Income | D111: ='MH Underwriting'!H226 -> 0 | E111: ='MH Underwriting'!I226 -> 0 | F111: ='MH Underwriting'!J226 -> 0 | G111: ='MH Underwriting'!K226 -> 0 | H111: ='MH Underwriting'!L226 -> 0 | I111: ='MH Underwriting'!M226 -> 0 | J111: ='MH Underwriting'!P226 -> 0 | K111: ='MH Underwriting'!Q226 -> 0
A112: Less Interest Expense | D112: ='MH Underwriting'!H228+'MH Underwriting'!H229-('MH Underwriting'!G242+'MH Underwriting'!G250-'MH Underwriting'!H242-'MH Underwriting'!H250) -> 0 | E112: ='MH Underwriting'!I228+'MH Underwriting'!I229-('MH Underwriting'!H242+'MH Underwriting'!H250-'MH Underwriting'!I242-'MH Underwriting'!I250) -> 0 | F112: ='MH Underwriting'!J228+'MH Underwriting'!J229-('MH Underwriting'!I242+'MH Underwriting'!I250-'MH Underwriting'!J242-'MH Underwriting'!J250) -> 0 | G112: ='MH Underwriting'!K228+'MH Underwriting'!K229-('MH Underwriting'!J242+'MH Underwriting'!J250-'MH Underwriting'!K242-'MH Underwriting'!K250) -> 0 | H112: ='MH Underwriting'!L228+'MH Underwriting'!L229-('MH Underwriting'!K242+'MH Underwriting'!K250-'MH Underwriting'!L242-'MH Underwriting'!L250) -> 0 | I112: ='MH Underwriting'!M228+'MH Underwriting'!M229-('MH Underwriting'!L242+'MH Underwriting'!L250-'MH Underwriting'!M242-'MH Underwriting'!M250) -> 0 | J112: ='MH Underwriting'!P228+'MH Underwriting'!P229-('MH Underwriting'!M242+'MH Underwriting'!M250-'MH Underwriting'!P242-'MH Underwriting'!P250) -> 0 | K112: ='MH Underwriting'!Q228+'MH Underwriting'!Q229-('MH Underwriting'!P242+'MH Underwriting'!P250-'MH Underwriting'!Q242-'MH Underwriting'!Q250) -> 0
A113: Less Bridge Loan Interest | D113: 0 | E113: 0 | F113: 0 | G113: 0 | H113: 0 | I113: 0 | J113: 0 | K113: 0
A114: Less Depreciation: Real Prop. | D114: =$F$107/27.5*'MH Underwriting'!G215/12 -> 0 | E114: =$F$107/27.5 -> 0 | F114: =E114 -> 0 | G114: 0 | H114: 0 | I114: 0 | J114: 0 | K114: 0
A115: Less Depreciation: Persl. Prop | D115: 0 | E115: 0 | F115: 0 | G115: 0 | H115: 0 | I115: 0 | J115: 0 | K115: 0
A116: Less Amortization | D116: =((G107-G83)/5+G83/30)*'MH Underwriting'!G215/12 ->  | E116: =((G107-G83)/5+G83/30) ->  | F116: =E116 ->  | G116: =F116 ->  | H116: =G116 ->  | I116: =(G107-G83)/5*((12-'MH Underwriting'!G215)/12)+G83/30 ->  | J116: =G83/30 ->  | K116: =J116 -> 
A117: Taxable Income (Loss) | D117: =D111-SUM(D112:D116) -> 
A120: After Tax Cash Flow Analysis
D121: =K110+366 -> 2034-12-31 | E121: =D121+365 -> 2035-12-31 | F121: =E121+365 -> 2036-12-30 | G121: =F121+365 -> 2037-12-30 | H121: =G121+366 -> 2038-12-31 | I121: =H121+365 -> 2039-12-31 | J121: =I121+365 -> 2040-12-30 | K121: =J121+365 -> 2041-12-30
A122: Net Operating Income | D122: ='MH Underwriting'!R226 -> 0 | E122: ='MH Underwriting'!S226 -> 0 | F122: ='MH Underwriting'!T226 -> 0 | G122: ='MH Underwriting'!H267 -> 0 | H122: ='MH Underwriting'!I267 -> 0 | I122: ='MH Underwriting'!J267 -> 0 | J122: ='MH Underwriting'!K267 -> 0 | K122: ='MH Underwriting'!L267*((12-'MH Underwriting'!G215)/12) -> 0
A123: Less Interest Expense | D123: ='MH Underwriting'!R228+'MH Underwriting'!R2238-('MH Underwriting'!Q242+'MH Underwriting'!Q250-'MH Underwriting'!R242-'MH Underwriting'!R250) -> 0 | E123: ='MH Underwriting'!S228+'MH Underwriting'!S2238-('MH Underwriting'!R242+'MH Underwriting'!R250-'MH Underwriting'!S242-'MH Underwriting'!S250) -> 0 | F123: ='MH Underwriting'!T228+'MH Underwriting'!T2238-('MH Underwriting'!S242+'MH Underwriting'!S250-'MH Underwriting'!T242-'MH Underwriting'!T250) -> 0 | G123: ='MH Underwriting'!H269+'MH Underwriting'!H270-('MH Underwriting'!G283+'MH Underwriting'!G291-'MH Underwriting'!H283-'MH Underwriting'!H291) -> 0 | H123: ='MH Underwriting'!I269+'MH Underwriting'!I270-('MH Underwriting'!H283+'MH Underwriting'!H291-'MH Underwriting'!I283-'MH Underwriting'!I291) -> 0 | I123: ='MH Underwriting'!J269+'MH Underwriting'!J270-('MH Underwriting'!I283+'MH Underwriting'!I291-'MH Underwriting'!J283-'MH Underwriting'!J291) -> 0 | J123: ='MH Underwriting'!K269+'MH Underwriting'!K270-('MH Underwriting'!J283+'MH Underwriting'!J291-'MH Underwriting'!K283-'MH Underwriting'!K291) -> 0 | K123: ='MH Underwriting'!L269+'MH Underwriting'!L270-('MH Underwriting'!K283+'MH Underwriting'!K291-'MH Underwriting'!L283-'MH Underwriting'!L291) -> 0
A124: Less Bridge Loan Interest | D124: 0 | E124: 0 | F124: 0 | G124: 0 | H124: 0 | I124: 0 | J124: 0 | K124: 0
A125: Less Depreciation: Real Prop. | D125: =K114 -> 0 | E125: =D125 -> 0 | F125: =$E$114 -> 0 | G125: =F125 -> 0 | H125: =G125 -> 0 | I125: =H125 -> 0 | J125: =I125 -> 0 | K125: =J125*((12-'MH Underwriting'!G215)/12) -> 0
A126: Less Depreciation: Persl. Prop | D126: 0 | E126: 0 | F126: 0 | G126: 0 | H126: 0 | I126: 0 | J126: 0 | K126: 0
A127: Less Amortization | D127: =K116 ->  | E127: =D127 ->  | K127: =J127*((12-'MH Underwriting'!G215)/12) -> 
A128: Taxable Income (Loss) | D128: =D122-SUM(D123:D127) -> 
A132: AFTER TAX BENEFIT ANALYSIS
A133: A | D133: C | E133: D | F133: E | G133: F | H133: G | I133: (C + D +G)
D134: Tax | E134: Cash | F134: Net | G134: Tax | H134: Tax | I134: Total
A135: Date | B135: Cap Contrib | D135: Credit | E135: Distribution | F135: Losses | G135: Rate | H135: Savings | I135: Benefits
B136: =NPV(0.08,B138:B145) -> 0 | I136: =NPV(0.08,I138:I154) -> 
A138: =A33 -> 2025-06-30 | B138: =D33 -> 0 | D138: 0 | E138: 0 | F138: 0 | G138: =E9 -> 0.22 | H138: =F138*G138*-1 -> 0 | I138: =D138+E138+H138-B138 -> 0
A139: =A138+365 -> 2026-06-30 | B139: 0 | D139: =I23*'MH Underwriting'!G215/12 -> 0 | E139: ='MH Underwriting'!H$231 -> 0 | F139: =D117 ->  | G139: =G138 -> 0.22
A140: 2027-06-30 | B140: 0 | D140: =I23 -> 0 | E140: ='MH Underwriting'!I$231 -> 0 | F140: =E117 ->  | G140: 0.22
A141: 2028-06-29 | B141: 0 | D141: =D140 -> 0 | E141: ='MH Underwriting'!J$231 -> 0 | F141: =F117 ->  | G141: 0.22
A142: 2029-06-29 | B142: 0 | D142: 0 | E142: ='MH Underwriting'!K$231 -> 0 | F142: =G117 ->  | G142: 0.22
A143: 2030-06-29 | B143: 0 | D143: 0 | E143: ='MH Underwriting'!L$231 -> 0 | F143: =H117 ->  | G143: 0.22
A144: 2031-06-29 | B144: 0 | D144: 0 | E144: ='MH Underwriting'!M$231 -> 0 | F144: =I117 ->  | G144: 0.22
A145: 2032-06-28 | B145: 0 | D145: 0 | E145: ='MH Underwriting'!P$231 -> 0 | F145: =J117 ->  | G145: 0.22
A146: 2033-06-28 | D146: 0 | E146: ='MH Underwriting'!Q$231 -> 0 | F146: =K117 ->  | G146: 0.22
A147: 2034-06-28 | D147: 0 | E147: ='MH Underwriting'!R$231 -> 0 | F147: =D128 ->  | G147: 0.22
A148: 2035-06-28 | D148: 0 | E148: ='MH Underwriting'!S$231 -> 0 | F148: =E128 ->  | G148: 0.22
A149: 2036-06-27 | D149: =I23*((12-'MH Underwriting'!G215)/12) -> 0 | E149: ='MH Underwriting'!T$231 -> 0 | F149: =F128 ->  | G149: 0.22
A150: 2037-06-27 | D150: 0 | E150: ='MH Underwriting'!H$272 -> 0 | F150: =G128 ->  | G150: 0.22 | I150: =D149+E150+H150-B150 -> 
A151: 2038-06-27 | D151: 0 | E151: ='MH Underwriting'!I$272 -> 0 | F151: =H128 ->  | G151: 0.22 | I151: =D150+E151+H151-B151 -> 
A152: 2039-06-27 | D152: 0 | E152: ='MH Underwriting'!J$272 -> 0 | F152: =I128 ->  | G152: 0.22 | I152: =D151+E152+H152-B152 -> 
A153: 2040-06-26 | D153: 0 | E153: ='MH Underwriting'!K$272 -> 0 | F153: =J128 ->  | G153: 0.22 | I153: =D152+E153+H153-B153 -> 
A154: 2041-06-26 | D154: 0 | E154: ='MH Underwriting'!L$272 -> 0 | F154: =K128 ->  | G154: 0.22 | I154: =D153+E154+H154-B154 -> 
A155: TOTALS | B155: =SUM(B138:B148) -> 0 | D155: =SUM(D138:D154) -> 0 | I155: =SUM(I138:I154) -> 
E158: INTERNAL RATE OF RETURN | I158: =IF(B155=0,0,IRR(I138:I154)) -> 0

Sheet Fed Home & Match (hidden)
C1: Multifamily, Deferred Payment BMIR, Principal Only Due at Term
C3: 10-Year T-Note Rate (From H.15, http://www.federalreserve.gov/releases/)
C4: 0.0168 | F4: 2016-09-12
B7: Project Name: | C7: ='MH Underwriting'!E1 -> Project Name
E10: Total HOME Units
A11: Minimum number of | E11: Low HOME | F11: =IF(C16<5,0,ROUNDUP(H31*0.2,0)) -> 0 | H11: Other Federal Subsidy
A12: FedHOME units required | C12: =IF(C15=0,0,ROUNDUP(I17/(C18*C15)*C15,0)) -> 0 | E12: High HOME | F12: =H31-F11 -> 0 | H12: MSHA FedHOME | I12: ='MH Underwriting'!I126 -> 0
E13: FedHOME Units | H13: City HOME | I13: ='MH Underwriting'!I136 -> 0
E14: Low HOME | I14: 0
A15: # of Units | C15: ='MH Underwriting'!G5 -> 0 | E15: High HOME | I15: 0
A16: # of FedHOME units | C16: =SUM(H25:H29) -> 0 | E16: Match Units
E17: Low HOME | F17: =IF(F15=0,0,F11-F14) -> 0 | H17: Total | I17: =SUM(I12:I15) -> 0
A18: Per Unit TDC | C18: ='MH Underwriting'!J68 -> 0 | E18: High HOME | F18: =IF(F15=0,0,F12-F15) -> 0
H19: Per FedHOME Unit | I19: =IF(C16=0,0,I17/C16) -> 0
C22: 2016 | E22: Minimum | F22: FedHOME | H22: Fed HOME Units
B23: Project Mix | C23: 234 Limits | E23: Required | F23: Allowed
J24: Max
A25: 0BR | B25: ='MH Underwriting'!D157 ->  | C25: 140107 | E25: =IF(C$15=0,0,C$12*(B25/C$15)) -> 0 | F25: =IF(E$31=0,0,IF($I$17/C$12<C25,$I$17/C$12*E25,C25*E25)) -> 0 | H25: 0 | J25: FedHOME
A26: 1BR | B26: ='MH Underwriting'!D162 ->  | C26: 160615 | E26: =IF(C$15=0,0,C$12*(B26/C$15)) -> 0 | F26: =IF(E$31=0,0,IF($I$17/C$12<C26,$I$17/C$12*E26,C26*E26)) -> 0 | H26: 0 | J26: Allowed
A27: 2BR | B27: ='MH Underwriting'!D167 ->  | C27: 195304 | E27: =IF(C$15=0,0,C$12*(B27/C$15)) -> 0 | F27: =IF(E$31=0,0,IF($I$17/C$12<C27,$I$17/C$12*E27,C27*E27)) -> 0 | H27: 0 | J27: =IF(H25*C25+H26*C26+H27*C27+H28*C28+H29*C29<I17,H25*C25+H26*C26+H27*C27+H28*C28+H29*C29,I17) -> 0
A28: 3BR | B28: ='MH Underwriting'!D172 ->  | C28: 252662 | E28: =IF(C$15=0,0,C$12*(B28/C$15)) -> 0 | F28: =IF(E$31=0,0,IF($I$17/C$12<C28,$I$17/C$12*E28,C28*E28)) -> 0 | H28: 0
A29: 4BR | B29: ='MH Underwriting'!D177 ->  | C29: 277344 | E29: =IF(C$15=0,0,C$12*(B29/C$15)) -> 0 | F29: =IF(E$31=0,0,IF($I$17/C$12<C29,$I$17/C$12*E29,C29*E29)) -> 0 | H29: 0
A31: Totals | B31: =SUM(B25:B30) -> 0 | E31: =SUM(E25:E30) -> 0 | F31: =SUM(F25:F30) -> 0 | H31: =SUM(H25:H30) -> 0 | J31: =C18*H31-J27 -> 0
J32: Max Match
J33: Available
B36: Loan | C36: Interest | E36: Period in Years | H36: Yield
B37: 100000 | C37: 0.095 | E37: 15 | H37: =FV(C37,E37,0,-B37,0) -> 390132.1918 | J37: =B37*(1+C37)^E37 -> 390132.1918
A38: Our Loan | B38: 100000 | C38: 0 | E38: 15 | H38: =FV(C38,E38,0,-B38,0) -> 100000
B39: Example | H39: =H37-H38 -> 290132.1918
B40: 74368 | C40: 0.095 | E40: 15 | H40: =FV(C40,E40,0,-B40,0) -> 290133.5084
B43: MATCH SOURCES
H44: Eligible
C45: Loan | D45: Interest | F45: Period in Years | G45: Yield | H45: Match
C46: 0 | D46: 0 | F46: 30 | G46: =FV(D46,F46,0,-C46,0) -> 0
C47: =C46 -> 0 | D47: =C4+0.03 -> 0.0468 | F47: =F46 -> 30 | G47: =FV(D47,F47,0,-C47,0) -> 0
G48: =G47-G46 -> 0 | H48: =G48/POWER((1+D47),F47) -> 0
C51: Loan | D51: Interest | F51: Period in Years | G51: Yield
D52: 0 | F52: 30 | G52: =FV(D52,F52,0,-C52,0) -> 0
C53: =C52 -> 0 | D53: =B12+0.03 -> 0.03 | F53: =F52 -> 30 | G53: =FV(D53,F53,0,-C53,0) -> 0
G54: =G53-G52 -> 0 | H54: =G54/POWER((1+D53),F53) -> 0
C57: Loan | D57: Interest | F57: Period in Years | G57: Yield
D58: 0 | F58: 30 | G58: =FV(D58,F58,0,-C58,0) -> 0
C59: =C58 -> 0 | D59: =B16+0.03 -> 0.03 | F59: =F58 -> 30 | G59: =FV(D59,F59,0,-C59,0) -> 0
G60: =G59-G58 -> 0 | H60: =G60/POWER((1+D59),F59) -> 0
C62: Grants:
D63: AHP | H63: 0
D64: Enterprise | H64: 0
D65: Other | H65: 0
B71: Total Eligible Match | H71: =SUM(H48:H68) -> 0
H74: Total Match Claimed | I74: =IF(J31>H71,H71,J31) -> 0

Sheet Amortization Schedules (hidden)
A1: Project Name: | B1: ='MH Underwriting'!E1 -> Project Name | G1: Project Name: | H1: ='MH Underwriting'!E1 -> Project Name | M1: Project Name: | N1: ='MH Underwriting'!E1 -> Project Name | S1: Project Name: | T1: ='MH Underwriting'!E1 -> Project Name
A2: Location: | B2: ='MH Underwriting'!E2 -> Town | G2: Location: | H2: ='MH Underwriting'!E2 -> Town | M2: Location: | N2: ='MH Underwriting'!E2 -> Town | S2: Location: | T2: ='MH Underwriting'!E2 -> Town
C4: ='MH Underwriting'!E129 -> MH Interest Bearing Loan | I4: ='MH Underwriting'!E132 -> AHP Subsidized Advance | O4: ='MH Underwriting'!E133 -> City FEDHOME* | U4: ='MH Underwriting'!E136 -> 
A6: Principal | D6: ='MH Underwriting'!I129 -> 0 | G6: Principal | J6: ='MH Underwriting'!I132 -> 0 | M6: Principal | P6: ='MH Underwriting'!I133 -> 0 | S6: Principal | V6: ='MH Underwriting'!I136 -> 0
A7: Rate | D7: ='MH Underwriting'!J129 -> 0.06 | G7: Rate | J7: ='MH Underwriting'!J132 -> 0.07 | M7: Rate | P7: ='MH Underwriting'!J133 -> 0 | S7: Rate | V7: ='MH Underwriting'!J136 -> 0
A8: AmortizationTerm | D8: ='MH Underwriting'!K129 -> 30 | G8: AmortizationTerm | J8: ='MH Underwriting'!K132 -> 30 | M8: AmortizationTerm | P8: ='MH Underwriting'!K133 -> 30 | S8: AmortizationTerm | V8: ='MH Underwriting'!K136 -> 30
F11: Balance | L11: Balance | R11: Balance | X11: Balance
A12: Payment No. | C12: Payment | D12: Principal | E12: Interest | F12: Outstanding | G12: Payment No. | I12: Payment | J12: Principal | K12: Interest | L12: Outstanding | M12: Payment No. | O12: Payment | P12: Principal | Q12: Interest | R12: Outstanding | S12: Payment No. | U12: Payment | V12: Principal | W12: Interest | X12: Outstanding
A14: 1 | C14: =PMT(D7/12,D8*12,-D6) -> 0 | D14: =C14-E14 -> 0 | E14: =D6*D7/12 -> 0 | F14: =IF(D6=0,0,IF(D8=0,0,D$6+CUMPRINC(D$7/12,D$8*12,D$6,1,$A14,0))) -> 0 | G14: 1 | I14: =PMT(J7/12,J8*12,-J6) -> 0 | J14: =I14-K14 -> 0 | K14: =J6*J7/12 -> 0 | L14: =IF(J6=0,0,IF(J8=0,0,J$6+CUMPRINC(J$7/12,J$8*12,J$6,1,$A14,0))) -> 0 | M14: 1 | O14: =PMT(P7/12,P8*12,-P6) -> 0 | P14: =O14-Q14 -> 0 | Q14: =P6*P7/12 -> 0 | R14: =IF(P6=0,0,IF(P8=0,0,P$6+CUMPRINC(P$7/12,P$8*12,P$6,1,$A14,0))) -> 0 | S14: 1 | U14: =PMT(V7/12,V8*12,-V6) -> 0 | V14: =U14-W14 -> 0 | W14: =V6*V7/12 -> 0 | X14: =IF(V6=0,0,IF(V8=0,0,V$6+CUMPRINC(V$7/12,V$8*12,V$6,1,$A14,0))) -> 0
A15: =IF(A14<D$8*12,A14+1,"") -> 2 | C15: =IF(F14=0,"",IF($A15<=D$8*12,C14,"")) ->  | D15: =IF(C15="","",C15-E15) ->  | E15: =IF(C15="","",F14*D$7/12) ->  | F15: =IF(D$6=0,"",IF($A15>D$8*12,"",D$6+CUMPRINC(D$7/12,D$8*12,D$6,1,$A15,0))) ->  | G15: =IF(G14<J$8*12,G14+1,"") -> 2 | I15: =IF(L14=0,"",IF($A15<=J$8*12,I14,"")) ->  | J15: =IF(I15="","",I15-K15) ->  | K15: =IF(I15="","",L14*J$7/12) ->  | L15: =IF(J$6=0,"",IF($A15>J$8*12,"",J$6+CUMPRINC(J$7/12,J$8*12,J$6,1,$A15,0))) ->  | M15: =IF(M14<P$8*12,M14+1,"") -> 2 | O15: =IF(R14=0,"",IF($A15<=P$8*12,O14,"")) ->  | P15: =IF(O15="","",O15-Q15) ->  | Q15: =IF(O15="","",R14*P$7/12) ->  | R15: =IF(P$6=0,"",IF($A15>P$8*12,"",P$6+CUMPRINC(P$7/12,P$8*12,P$6,1,$A15,0))) ->  | S15: =IF(S14<V$8*12,S14+1,"") -> 2 | U15: =IF(X14=0,"",IF($A15<=V$8*12,U14,"")) ->  | V15: =IF(U15="","",U15-W15) ->  | W15: =IF(U15="","",X14*V$7/12) ->  | X15: =IF(V$6=0,"",IF($A15>V$8*12,"",V$6+CUMPRINC(V$7/12,V$8*12,V$6,1,$A15,0))) -> 
A16: 3 | G16: 3 | M16: 3 | O16: =IF(R15=0,"",IF($A16<=P$8*12,O15,"")) ->  | S16: 3
A17: 4 | G17: 4 | M17: 4 | S17: 4
A18: 5 | G18: 5 | M18: 5 | S18: 5
A19: 6 | G19: 6 | M19: 6 | S19: 6
A20: 7 | G20: 7 | M20: 7 | S20: 7
A21: 8 | G21: 8 | M21: 8 | S21: 8
A22: 9 | G22: 9 | M22: 9 | S22: 9
A23: 10 | G23: 10 | M23: 10 | S23: 10
A24: 11 | G24: 11 | M24: 11 | S24: 11
A25: 12 | G25: 12 | M25: 12 | S25: 12
A26: 13 | G26: 13 | M26: 13 | S26: 13
A27: 14 | G27: 14 | M27: 14 | S27: 14
A28: 15 | G28: 15 | M28: 15 | S28: 15
A29: 16 | G29: 16 | M29: 16 | S29: 16
A30: 17 | G30: 17 | M30: 17 | S30: 17
A31: 18 | G31: 18 | M31: 18 | S31: 18
A32: 19 | G32: 19 | M32: 19 | S32: 19
A33: 20 | G33: 20 | M33: 20 | S33: 20
A34: 21 | G34: 21 | M34: 21 | S34: 21
A35: 22 | G35: 22 | M35: 22 | S35: 22
A36: 23 | G36: 23 | M36: 23 | S36: 23
A37: 24 | G37: 24 | M37: 24 | S37: 24
A38: 25 | G38: 25 | M38: 25 | S38: 25
A39: 26 | G39: 26 | M39: 26 | S39: 26
A40: 27 | G40: 27 | M40: 27 | S40: 27
A41: 28 | G41: 28 | M41: 28 | S41: 28
A42: 29 | G42: 29 | M42: 29 | S42: 29
A43: 30 | G43: 30 | M43: 30 | S43: 30
A44: 31 | G44: 31 | M44: 31 | S44: 31
A45: 32 | G45: 32 | M45: 32 | S45: 32
A46: 33 | G46: 33 | M46: 33 | S46: 33
A47: 34 | G47: 34 | M47: 34 | S47: 34
A48: 35 | G48: 35 | M48: 35 | S48: 35
A49: 36 | G49: 36 | M49: 36 | S49: 36
A50: 37 | G50: 37 | M50: 37 | S50: 37
A51: 38 | G51: 38 | M51: 38 | S51: 38
A52: 39 | G52: 39 | M52: 39 | S52: 39
A53: 40 | G53: 40 | M53: 40 | S53: 40
A54: 41 | G54: 41 | M54: 41 | S54: 41
A55: 42 | G55: 42 | M55: 42 | S55: 42
A56: 43 | G56: 43 | M56: 43 | S56: 43
A57: 44 | G57: 44 | M57: 44 | S57: 44
A58: 45 | G58: 45 | M58: 45 | S58: 45
A59: 46 | G59: 46 | M59: 46 | S59: 46
A60: 47 | G60: 47 | M60: 47 | S60: 47
A61: 48 | G61: 48 | M61: 48 | S61: 48
A62: 49 | G62: 49 | M62: 49 | S62: 49
A63: 50 | G63: 50 | M63: 50 | S63: 50
A64: 51 | G64: 51 | M64: 51 | S64: 51
A65: 52 | G65: 52 | M65: 52 | S65: 52
A66: 53 | G66: 53 | M66: 53 | S66: 53
A67: 54 | G67: 54 | M67: 54 | S67: 54
A68: 55 | G68: 55 | M68: 55 | S68: 55
A69: 56 | G69: 56 | M69: 56 | S69: 56
A70: 57 | G70: 57 | M70: 57 | S70: 57
A71: 58 | G71: 58 | M71: 58 | S71: 58
A72: 59 | G72: 59 | M72: 59 | S72: 59
A73: 60 | G73: 60 | M73: 60 | S73: 60
A74: 61 | G74: 61 | M74: 61 | S74: 61
A75: 62 | G75: 62 | M75: 62 | S75: 62
A76: 63 | G76: 63 | M76: 63 | S76: 63
A77: 64 | G77: 64 | M77: 64 | S77: 64
A78: 65 | G78: 65 | M78: 65 | S78: 65
A79: =IF(A78<D$8*12,A78+1,"") -> 66 | C79: =IF(F78=0,"",IF($A79<=D$8*12,C78,"")) ->  | D79: =IF(C79="","",C79-E79) ->  | E79: =IF(C79="","",F78*D$7/12) ->  | F79: =IF(D$6=0,"",IF($A79>D$8*12,"",D$6+CUMPRINC(D$7/12,D$8*12,D$6,1,$A79,0))) ->  | G79: =IF(G78<J$8*12,G78+1,"") -> 66 | I79: =IF(L78=0,"",IF($A79<=J$8*12,I78,"")) ->  | J79: =IF(I79="","",I79-K79) ->  | K79: =IF(I79="","",L78*J$7/12) ->  | L79: =IF(J$6=0,"",IF($A79>J$8*12,"",J$6+CUMPRINC(J$7/12,J$8*12,J$6,1,$A79,0))) ->  | M79: =IF(M78<P$8*12,M78+1,"") -> 66 | O79: =IF(R78=0,"",IF($A79<=P$8*12,O78,"")) ->  | P79: =IF(O79="","",O79-Q79) ->  | Q79: =IF(O79="","",R78*P$7/12) ->  | R79: =IF(P$6=0,"",IF($A79>P$8*12,"",P$6+CUMPRINC(P$7/12,P$8*12,P$6,1,$A79,0))) ->  | S79: =IF(S78<V$8*12,S78+1,"") -> 66 | U79: =IF(X78=0,"",IF($A79<=V$8*12,U78,"")) ->  | V79: =IF(U79="","",U79-W79) ->  | W79: =IF(U79="","",X78*V$7/12) ->  | X79: =IF(V$6=0,"",IF($A79>V$8*12,"",V$6+CUMPRINC(V$7/12,V$8*12,V$6,1,$A79,0))) -> 
A80: 67 | G80: 67 | M80: 67 | S80: 67
A81: 68 | G81: 68 | M81: 68 | S81: 68
A82: 69 | G82: 69 | M82: 69 | S82: 69
A83: 70 | G83: 70 | M83: 70 | S83: 70
A84: 71 | G84: 71 | M84: 71 | S84: 71
A85: 72 | G85: 72 | M85: 72 | S85: 72
A86: 73 | G86: 73 | M86: 73 | S86: 73
A87: 74 | G87: 74 | M87: 74 | S87: 74
A88: 75 | G88: 75 | M88: 75 | S88: 75
A89: 76 | G89: 76 | M89: 76 | S89: 76
A90: 77 | G90: 77 | M90: 77 | S90: 77
A91: 78 | G91: 78 | M91: 78 | S91: 78
A92: 79 | G92: 79 | M92: 79 | S92: 79
A93: 80 | G93: 80 | M93: 80 | S93: 80
A94: 81 | G94: 81 | M94: 81 | S94: 81
A95: 82 | G95: 82 | M95: 82 | S95: 82
A96: 83 | G96: 83 | M96: 83 | S96: 83
A97: 84 | G97: 84 | M97: 84 | S97: 84
A98: 85 | G98: 85 | M98: 85 | S98: 85
A99: 86 | G99: 86 | M99: 86 | S99: 86
A100: 87 | G100: 87 | M100: 87 | S100: 87
A101: 88 | G101: 88 | M101: 88 | S101: 88
A102: 89 | G102: 89 | M102: 89 | S102: 89
A103: 90 | G103: 90 | M103: 90 | S103: 90
A104: 91 | G104: 91 | M104: 91 | S104: 91
A105: 92 | G105: 92 | M105: 92 | S105: 92
A106: 93 | G106: 93 | M106: 93 | S106: 93
A107: 94 | G107: 94 | M107: 94 | S107: 94
A108: 95 | G108: 95 | M108: 95 | S108: 95
A109: 96 | G109: 96 | M109: 96 | S109: 96
A110: 97 | G110: 97 | M110: 97 | S110: 97
A111: 98 | G111: 98 | M111: 98 | S111: 98
A112: 99 | G112: 99 | M112: 99 | S112: 99
A113: 100 | G113: 100 | M113: 100 | S113: 100
A114: 101 | G114: 101 | M114: 101 | S114: 101
A115: 102 | G115: 102 | M115: 102 | S115: 102
A116: 103 | G116: 103 | M116: 103 | S116: 103
A117: 104 | G117: 104 | M117: 104 | S117: 104
A118: 105 | G118: 105 | M118: 105 | S118: 105
A119: 106 | G119: 106 | M119: 106 | S119: 106
A120: 107 | G120: 107 | M120: 107 | S120: 107
A121: 108 | G121: 108 | M121: 108 | S121: 108
A122: 109 | G122: 109 | M122: 109 | S122: 109
A123: 110 | G123: 110 | M123: 110 | S123: 110
A124: 111 | G124: 111 | M124: 111 | S124: 111
A125: 112 | G125: 112 | M125: 112 | S125: 112
A126: 113 | G126: 113 | M126: 113 | S126: 113
A127: 114 | G127: 114 | M127: 114 | S127: 114
A128: 115 | G128: 115 | M128: 115 | S128: 115
A129: 116 | G129: 116 | M129: 116 | S129: 116
A130: 117 | G130: 117 | M130: 117 | S130: 117
A131: 118 | G131: 118 | M131: 118 | S131: 118
A132: 119 | G132: 119 | M132: 119 | S132: 119
A133: 120 | G133: 120 | M133: 120 | S133: 120
A134: 121 | G134: 121 | M134: 121 | S134: 121
A135: 122 | G135: 122 | M135: 122 | S135: 122
A136: 123 | G136: 123 | M136: 123 | S136: 123
A137: 124 | G137: 124 | M137: 124 | S137: 124
A138: 125 | G138: 125 | M138: 125 | S138: 125
A139: 126 | G139: 126 | M139: 126 | S139: 126
A140: 127 | G140: 127 | M140: 127 | S140: 127
A141: 128 | G141: 128 | M141: 128 | S141: 128
A142: 129 | G142: 129 | M142: 129 | S142: 129
A143: =IF(A142<D$8*12,A142+1,"") -> 130 | C143: =IF(F142=0,"",IF($A143<=D$8*12,C142,"")) ->  | D143: =IF(C143="","",C143-E143) ->  | E143: =IF(C143="","",F142*D$7/12) ->  | F143: =IF(D$6=0,"",IF($A143>D$8*12,"",D$6+CUMPRINC(D$7/12,D$8*12,D$6,1,$A143,0))) ->  | G143: =IF(G142<J$8*12,G142+1,"") -> 130 | I143: =IF(L142=0,"",IF($A143<=J$8*12,I142,"")) ->  | J143: =IF(I143="","",I143-K143) ->  | K143: =IF(I143="","",L142*J$7/12) ->  | L143: =IF(J$6=0,"",IF($A143>J$8*12,"",J$6+CUMPRINC(J$7/12,J$8*12,J$6,1,$A143,0))) ->  | M143: =IF(M142<P$8*12,M142+1,"") -> 130 | O143: =IF(R142=0,"",IF($A143<=P$8*12,O142,"")) ->  | P143: =IF(O143="","",O143-Q143) ->  | Q143: =IF(O143="","",R142*P$7/12) ->  | R143: =IF(P$6=0,"",IF($A143>P$8*12,"",P$6+CUMPRINC(P$7/12,P$8*12,P$6,1,$A143,0))) ->  | S143: =IF(S142<V$8*12,S142+1,"") -> 130 | U143: =IF(X142=0,"",IF($A143<=V$8*12,U142,"")) ->  | V143: =IF(U143="","",U143-W143) ->  | W143: =IF(U143="","",X142*V$7/12) ->  | X143: =IF(V$6=0,"",IF($A143>V$8*12,"",V$6+CUMPRINC(V$7/12,V$8*12,V$6,1,$A143,0))) -> 
A144: 131 | G144: 131 | M144: 131 | S144: 131
A145: 132 | G145: 132 | M145: 132 | S145: 132
A146: 133 | G146: 133 | M146: 133 | S146: 133
A147: 134 | G147: 134 | M147: 134 | S147: 134
A148: 135 | G148: 135 | M148: 135 | S148: 135
A149: 136 | G149: 136 | M149: 136 | S149: 136
A150: 137 | G150: 137 | M150: 137 | S150: 137
A151: 138 | G151: 138 | M151: 138 | S151: 138
A152: 139 | G152: 139 | M152: 139 | S152: 139
A153: 140 | G153: 140 | M153: 140 | S153: 140
A154: 141 | G154: 141 | M154: 141 | S154: 141
A155: 142 | G155: 142 | M155: 142 | S155: 142
A156: 143 | G156: 143 | M156: 143 | S156: 143
A157: 144 | G157: 144 | M157: 144 | S157: 144
A158: 145 | G158: 145 | M158: 145 | S158: 145
A159: 146 | G159: 146 | M159: 146 | S159: 146
A160: 147 | G160: 147 | M160: 147 | S160: 147
A161: 148 | G161: 148 | M161: 148 | S161: 148
A162: 149 | G162: 149 | M162: 149 | S162: 149
A163: 150 | G163: 150 | M163: 150 | S163: 150
A164: 151 | G164: 151 | M164: 151 | S164: 151
A165: 152 | G165: 152 | M165: 152 | S165: 152
A166: 153 | G166: 153 | M166: 153 | S166: 153
A167: 154 | G167: 154 | M167: 154 | S167: 154
A168: 155 | G168: 155 | M168: 155 | S168: 155
A169: 156 | G169: 156 | M169: 156 | S169: 156
A170: 157 | G170: 157 | M170: 157 | S170: 157
A171: 158 | G171: 158 | M171: 158 | S171: 158
A172: 159 | G172: 159 | M172: 159 | S172: 159
A173: 160 | G173: 160 | M173: 160 | S173: 160
A174: 161 | G174: 161 | M174: 161 | S174: 161
A175: 162 | G175: 162 | M175: 162 | S175: 162
A176: 163 | G176: 163 | M176: 163 | S176: 163
A177: 164 | G177: 164 | M177: 164 | S177: 164
A178: 165 | G178: 165 | M178: 165 | S178: 165
A179: 166 | G179: 166 | M179: 166 | S179: 166
A180: 167 | G180: 167 | M180: 167 | S180: 167
A181: 168 | G181: 168 | M181: 168 | S181: 168
A182: 169 | G182: 169 | M182: 169 | S182: 169
A183: 170 | G183: 170 | M183: 170 | S183: 170
A184: 171 | G184: 171 | M184: 171 | S184: 171
A185: 172 | G185: 172 | M185: 172 | S185: 172
A186: 173 | G186: 173 | M186: 173 | S186: 173
A187: 174 | G187: 174 | M187: 174 | S187: 174
A188: 175 | G188: 175 | M188: 175 | S188: 175
A189: 176 | G189: 176 | M189: 176 | S189: 176
A190: 177 | G190: 177 | M190: 177 | S190: 177
A191: 178 | G191: 178 | M191: 178 | S191: 178
A192: 179 | G192: 179 | M192: 179 | S192: 179
A193: 180 | G193: 180 | M193: 180 | S193: 180
A194: 181 | G194: 181 | M194: 181 | S194: 181
A195: 182 | G195: 182 | M195: 182 | S195: 182
A196: 183 | G196: 183 | M196: 183 | S196: 183
A197: 184 | G197: 184 | M197: 184 | S197: 184
A198: 185 | G198: 185 | M198: 185 | S198: 185
A199: 186 | G199: 186 | M199: 186 | S199: 186
A200: 187 | G200: 187 | M200: 187 | S200: 187
A201: 188 | G201: 188 | M201: 188 | S201: 188
A202: 189 | G202: 189 | M202: 189 | S202: 189
A203: 190 | G203: 190 | M203: 190 | S203: 190
A204: 191 | G204: 191 | M204: 191 | S204: 191
A205: 192 | G205: 192 | M205: 192 | S205: 192
... 170 more rows

Sheet Sheet1

Sheet Mapping (hidden)
A1: ProLink Mapping Tab
A2: Deal Name: | B2: ='Project Information'!D4 -> Project Name | C2: Section 1 | D2: Project Information | E2: Section 4 | F2: Project Costs and Eligible Basis | G2: Section 7 | H2: TDC per Unit | I2: Section 10 | J2: Operating Expenses | K2: Section 13 | L2: Project Completion Schedule
A3: Deal Type: | B3: =IF('Project Information'!L4<>"Yes/No Drop Down",IF('Project Information'!L4="Yes","4Percent","9Percent"),"Unknown") -> Unknown | C3: Section 2 | D3: Applicant Information | E3: Section 5 | F3: Flow of Funds - Sources | G3: Section 8 | H3: Project Income | I3: Section 11 | J3: Additional Op Ex Information
A4: MH Project Number: | C4: Section 3 | D4: Pro Forma Development Budget | E4: Section 6 | F4: Additional Project Cost Information | G4: Section 9 | H4: Operating Income and Expenses | I4: Section 12 | J4: DCR
A5: Total Units from MH Underwriting: | B5: ='MH Underwriting'!G5 -> 0
A7: Section 1 | B7: Project Information | G7: ProLink Mapping | H7: DEV Property | K7: TC Current Stage - Main
A8: Sheet | B8: Field | C8: Value | G8: Mapped to Object | H8: Mapped to Field | I8: Value | K8: Mapped to Object | L8: Mapped to Field | M8: Value
A9: Project Information | B9: Address | C9: =IF('Project Information'!D6="","",'Project Information'!D6) ->  | G9: DEV Property | H9: Address1 | I9: =IF(C9="","",C9) ->  | K9: TC Property | L9: Address1 | M9: =IF(C9="","",C9) -> 
A10: Project Information | B10: Municipality | C10: =IF('Project Information'!D8="","",'Project Information'!D8) -> Town | G10: DEV Property | H10: City | I10: =IF(C10="Town","",C10) ->  | K10: TC Property | L10: City | M10: =IF(C10="Town","",C10) -> 
A11: Project Information | B11: County | C11: =IF('Project Information'!D10="","",'Project Information'!D10) ->  | G11: DEV Property | H11: County (Jurisdiction) | I11: =IF(C11="","",C11) ->  | K11: TC Property | L11: County (Jurisdiction) | M11: =IF(C11="","",C11) -> 
A12: Project Information | B12: Census Tract | C12: =IF('Project Information'!I10="","",'Project Information'!I10) ->  | K12: TC Property | L12: Census Tract | M12: =IF(C12="","",C12) -> 
A13: Project Information | B13: Nature of Project | C13: =IF('Project Information'!D26="","",'Project Information'!D26) -> New Construction | G13: DEV Deal | H13: DEV Deal Type | I13: =IF(C13="","",C13) -> New Construction | K13: TC Property | L13: Building Allocation Type | M13: New Construction
A14: Project Information | B14: Existing Units | C14: =IF('Project Information'!D28="","",'Project Information'!D28) ->  | K14: TC | L14: Current Stage Existing Unit | M14: =Table23[[#This Row],[Value]] -> 
A15: Project Information | B15: New Construction Units | C15: =IF('Project Information'!I28="","",'Project Information'!I28) ->  | K15: TC | L15: Current Stage New Unit | M15: =Table23[[#This Row],[Value]] -> 
A16: Project Information | B16: Parking Space Y/N | C16: =IF('Project Information'!J31="Yes/No Drop Down","",'Project Information'!J31) -> 
A17: Project Information | B17: Type of Request | C17: ='Project Information'!D50 -> Without Federal subsidies | I17: Without Federal subsidies
A18: Project Information | B18: Minimum Set-Aside | C18: ='Project Information'!B61 -> 40% of the units will be available to and occupied by households with incomes at or below 60% of the area median income | G18: DEV Income Limit | H18: SEE BELOW FOR MAPPING
A19: Project Information | B19: Structure Type | C19: =IF('Project Information'!E90="","",'Project Information'!E90) ->  | G19: DEV Property | H19: Construction Building Type | K19: TC Property | L19: Building Type
A20: Project Information | B20: Site Control | C20: =IF('Project Information'!E98="This is a drop down menu","",'Project Information'!E98) ->  | K20: TC Property | L20: Site Control Type | M20: =IF(C20="","",C20) -> 
A21: Project Information | B21: Site Control Expiration Date | C21: =IF('Project Information'!I98="","",'Project Information'!I98) ->  | K21: TC Property | L21: Site Control Exp Date | M21: =IF(C21="","",C21) -> 
A22: Project Information | B22: Age of Building | C22: =IF('Project Information'!E102="","",'Project Information'!E102) ->  | G22: DEV Property | H22: Year Built | I22: =IF(C22="","",YEAR(TODAY()) - C22) -> 
A23: Project Information | B23: Owner Occupied Y/N | C23: =IF('Project Information'!J104="Yes/No Drop Down","",'Project Information'!J104) -> 
A24: Project Information | B24: Commercial Space Y/N | C24: =IF('Project Information'!J105="Yes/No Drop Down","",'Project Information'!J105) ->  | G24: DEV Property | H24: Commercial Space? | I24: =IF(C24="","",IF(C24="Yes", "True", IF(C24="No", "False",""))) -> 
A25: Project Information | B25: Relocation Y/N | C25: =IF('Project Information'!J110="Yes/No Drop Down","",'Project Information'!J110) -> 
A26: Project Information | B26: Number of Buildings Acquired | C26: =IF('Project Information'!G115="","",'Project Information'!G115) -> 
A27: Project Information | B27: Number of Stories | C27: =IF('Project Information'!G117="","",'Project Information'!G117) -> 
A28: Project Information | B28: Number of Existing Parking Spaces | C28: =IF('Project Information'!G119="","",'Project Information'!G119) -> 
A29: Project Information | B29: Number of Existing Market Units | C29: =IF('Project Information'!G121="","",'Project Information'!G121) -> 
A30: Project Information | B30: Number of Existing Low Income Units | C30: =IF('Project Information'!G123="","",'Project Information'!G123) -> 
G33: ProLink Mapping | H33: DEV Income Limit Information
G34: Subsidy Type | H34: Limit Number | I34: Restriction Type | J34: Percent of Units | K34: Count of Units | L34: Percent of Area Median Income
G35: Tax Credit | H35: 1 | I35: =IF(OR(LEFT(C18,2)="20",LEFT(C18,2)="40"),"Tax Credit", IF(LEFT(C18,16)="Income Averaging","Tax Credit Average Income","")) -> Tax Credit | J35: =IF(LEFT(C18,2)="20",0.2,IF(OR(LEFT(C18,2)="40",LEFT(C18,16)="Income Averaging"),0.4,"")) -> 0.4 | L35: =IF(LEFT(C18,2)="20",0.5,IF(OR(LEFT(C18,2)="40",LEFT(C18,16)="Income Averaging"),0.6,"")) -> 0.6
G36: 9% Deal | H36: 2 | I36: =IF($B$3="9Percent","Tax Credit","") ->  | J36: =IF($B$3="9Percent",0.6,"") ->  | L36: =IF($B$3="9Percent",0.5,"") -> 
G37: Home - Low | H37: 3 | I37: =IF('MH Underwriting'!G6<>0,"Home","") ->  | K37: =IF('MH Underwriting'!G6<>0,'MH Underwriting'!G6,"") ->  | L37: =IF('MH Underwriting'!G6<>0,0.5,"") -> 
G38: Home - High | H38: 4 | I38: =IF('MH Underwriting'!G7<>0,"Home","") ->  | K38: =IF('MH Underwriting'!G7<>0,'MH Underwriting'!G7,"") ->  | L38: =IF('MH Underwriting'!G7<>0,0.5,"") -> 
A42: Section 2 | B42: Applicant Information | G42: ProLink Mapping | H42: DEV Proxity Entities | O42: TC Proxity Entities
A43: Role | B43: Field Name | C43: Sheet | D43: Value | G43: Proxy Entity | H43: Deal Entity Role | I43: Name | J43: Company/Individual | K43: Email Address 1 | L43: Direct Phone | M43: Tax ID Number | O43: Deal Entity Role | P43: Name | Q43: Company/Individual | R43: Email Address 1 | S43: Direct Phone | T43: Tax ID Number
A44: Applicant | B44: Applicant Name | C44: Applicant Information | D44: =IF('Applicant Information'!E4="","",'Applicant Information'!E4) -> Name of Partnership | G44: Proxity Entity 1 | H44: =IF(D44="","",A44) -> Applicant | I44: =IF(H44="","",D44) -> Name of Partnership | J44: =IF(H44="","","Company") -> Company | K44: =IF(H44="","",D46) ->  | L44: =IF(H44="","",D47) ->  | M44: =IF(H44="","",SUBSTITUTE(D45,"-","")) ->  | O44: =IF(D44="","",A44) -> Applicant | P44: =IF(O44="","",D44) -> Name of Partnership | Q44: =IF(O44="","","Company") -> Company | R44: =IF(O44="","",D46) ->  | S44: =IF(O44="","",D47) ->  | T44: =IF(O44="","",SUBSTITUTE(D45,"-","")) -> 
B45: Applicant Taxpayer ID Number | C45: Applicant Information | D45: =IF('Applicant Information'!G6="","",'Applicant Information'!G6) ->  | G45: Proxity Entity 2 | H45: =IF(D48="","",A48) ->  | I45: =IF(H45="","",D48) ->  | J45: =IF(H45="","","Company") ->  | K45: =IF(H45="","",D49) ->  | L45: =IF(H45="","",D50) ->  | O45: =IF(D48="","",A48) ->  | P45: =IF(O45="","",D48) ->  | Q45: =IF(O45="","","Company") ->  | R45: =IF(O45="","",D49) ->  | S45: =IF(O45="","",D50) -> 
B46: Applicant Email | C46: Applicant Information | D46: =IF('Applicant Information'!E16="","",'Applicant Information'!E16) ->  | G46: Proxity Entity 3 | H46: =IF(D51="","",A51) ->  | I46: =IF(H46="","",D51) ->  | J46: =IF(H46="","","Company") ->  | K46: =IF(H46="","",D52) ->  | L46: =IF(H46="","",D53) ->  | O46: =IF(D51="","",A51) ->  | P46: =IF(O46="","",D51) ->  | R46: =IF(O46="","",D52) ->  | S46: =IF(O46="","",D53) -> 
B47: Applicant Telephone Number | C47: Applicant Information | D47: =IF('Applicant Information'!E14="","",'Applicant Information'!E14) ->  | G47: Proxity Entity 4 | H47: =IF(D54="","",A54) ->  | I47: =IF(H47="","",D54) ->  | K47: =IF(H47="","",D55) ->  | L47: =IF(H47="","",D56) ->  | O47: =IF(D54="","",A54) ->  | P47: =IF(O47="","",D54) ->  | R47: =IF(O47="","",D55) ->  | S47: =IF(O47="","",D56) -> 
A48: Developer | B48: Project Developer name | C48: Applicant Information | D48: =IF('Applicant Information'!E47="","",'Applicant Information'!E47) ->  | G48: Proxity Entity 5 | H48: =IF(D57="","",A57) ->  | I48: =IF(H48="","",D57) ->  | K48: =IF(H48="","",D58) ->  | L48: =IF(H48="","",D59) ->  | O48: =IF(D57="","",A57) ->  | P48: =IF(O48="","",D57) ->  | R48: =IF(O48="","",D58) ->  | S48: =IF(O48="","",D59) -> 
B49: Project Developer email | C49: Applicant Information | D49: =IF('Applicant Information'!I47="","",'Applicant Information'!I47) ->  | G49: Proxity Entity 6 | H49: =IF(D60="","",A60) ->  | I49: =IF(H49="","",D60) ->  | K49: =IF(H49="","",D61) ->  | L49: =IF(H49="","",D62) ->  | O49: =IF(D60="","",A60) ->  | P49: =IF(O49="","",D60) ->  | R49: =IF(O49="","",D61) ->  | S49: =IF(O49="","",D62) -> 
B50: Project Developer phone number | C50: Applicant Information | D50: =IF('Applicant Information'!L47="","",'Applicant Information'!L47) ->  | G50: Proxity Entity 7 | H50: =IF(D63="","",A63) ->  | I50: =IF(H50="","",D63) ->  | K50: =IF(H50="","",D64) ->  | L50: =IF(H50="","",D65) ->  | O50: =IF(D63="","",A63) ->  | P50: =IF(O50="","",D63) ->  | R50: =IF(O50="","",D64) ->  | S50: =IF(O50="","",D65) -> 
A51: Architect | B51: Architect name | C51: Applicant Information | D51: =IF('Applicant Information'!E49="","",'Applicant Information'!E49) ->  | G51: Proxity Entity 8 | H51: =IF(D66="","",A66) ->  | I51: =IF(H51="","",D66) ->  | K51: =IF(H51="","",D67) ->  | L51: =IF(H51="","",D68) ->  | O51: =IF(D66="","",A66) ->  | P51: =IF(O51="","",D66) ->  | R51: =IF(O51="","",D67) ->  | S51: =IF(O51="","",D68) -> 
B52: Architect email | C52: Applicant Information | D52: =IF('Applicant Information'!I49="","",'Applicant Information'!I49) ->  | G52: Proxity Entity 9 | H52: =IF(D69="","",A69) ->  | I52: =IF(H52="","",D69) ->  | K52: =IF(H52="","",D70) ->  | L52: =IF(H52="","",D71) ->  | O52: =IF(D69="","",A69) ->  | P52: =IF(O52="","",D69) ->  | R52: =IF(O52="","",D70) ->  | S52: =IF(O52="","",D71) -> 
B53: Architect phone number | C53: Applicant Information | D53: =IF('Applicant Information'!L49="","",'Applicant Information'!L49) ->  | G53: Proxity Entity 10 | H53: =IF(D72="","",A72) ->  | I53: =IF(H53="","",D72) ->  | J53: =IF(H53="","","Company") ->  | K53: =IF(H53="","",D73) ->  | L53: =IF(H53="","",D74) ->  | O53: =IF(D72="","",A72) ->  | P53: =IF(O53="","",D72) ->  | Q53: =IF(O53="","","Company") ->  | R53: =IF(O53="","",D73) ->  | S53: =IF(O53="","",D74) -> 
A54: Attorney (developer) | B54: Attorney name | C54: Applicant Information | D54: =IF('Applicant Information'!E51="","",'Applicant Information'!E51) ->  | G54: Proxity Entity 11 | H54: =IF(D75="","",A75) ->  | I54: =IF(H54="","",D75) ->  | J54: =IF(H54="","","Company") ->  | K54: =IF(H54="","",D76) ->  | L54: =IF(H54="","",D77) ->  | O54: =IF(D75="","",A75) ->  | P54: =IF(O54="","",D75) ->  | Q54: =IF(O54="","","Company") ->  | R54: =IF(O54="","",D76) ->  | S54: =IF(O54="","",D77) -> 
B55: Attorney email | C55: Applicant Information | D55: =IF('Applicant Information'!I51="","",'Applicant Information'!I51) -> 
B56: Attorney phone number | C56: Applicant Information | D56: =IF('Applicant Information'!L51="","",'Applicant Information'!L51) -> 
A57: Accountant | B57: Accountant name | C57: Applicant Information | D57: =IF('Applicant Information'!E53="","",'Applicant Information'!E53) -> 
B58: Accountant email | C58: Applicant Information | D58: =IF('Applicant Information'!I53="","",'Applicant Information'!I53) -> 
B59: Accountant phone number | C59: Applicant Information | D59: =IF('Applicant Information'!L53="","",'Applicant Information'!L53) -> 
A60: Attorney (tax) | B60: Tax Professional name | C60: Applicant Information | D60: =IF('Applicant Information'!E55="","",'Applicant Information'!E55) -> 
B61: Tax Professional email | C61: Applicant Information | D61: =IF('Applicant Information'!I55="","",'Applicant Information'!I55) -> 
B62: Tax Professional phone number | C62: Applicant Information | D62: =IF('Applicant Information'!L55="","",'Applicant Information'!L55) -> 
A63: General Contractor | B63: General Contractor name | C63: Applicant Information | D63: =IF('Applicant Information'!E57="","",'Applicant Information'!E57) -> 
B64: General Contractor email | C64: Applicant Information | D64: =IF('Applicant Information'!I57="","",'Applicant Information'!I57) -> 
B65: General Contractor phone number | C65: Applicant Information | D65: =IF('Applicant Information'!L57="","",'Applicant Information'!L57) -> 
A66: Construction Lender | B66: Construction Lender name | C66: Applicant Information | D66: =IF('Applicant Information'!E59="","",'Applicant Information'!E59) -> 
B67: Construction Lender email | C67: Applicant Information | D67: =IF('Applicant Information'!I59="","",'Applicant Information'!I59) -> 
B68: Construction Lender phone number | C68: Applicant Information | D68: =IF('Applicant Information'!L59="","",'Applicant Information'!L59) -> 
A69: Development Consultant | B69: Development Consultant name | C69: Applicant Information | D69: =IF('Applicant Information'!E61="","",'Applicant Information'!E61) -> 
B70: Development Consultant email | C70: Applicant Information | D70: =IF('Applicant Information'!I61="","",'Applicant Information'!I61) -> 
B71: Development Consultant phone number | C71: Applicant Information | D71: =IF('Applicant Information'!L61="","",'Applicant Information'!L61) -> 
A72: Resident Service Coordinators | B72: Service Provider name | C72: Applicant Information | D72: =IF('Applicant Information'!E63="","",'Applicant Information'!E63) -> 
B73: Service Provider email | C73: Applicant Information | D73: =IF('Applicant Information'!I63="","",'Applicant Information'!I63) -> 
B74: Service Provider phone number | C74: Applicant Information | D74: =IF('Applicant Information'!L63="","",'Applicant Information'!L63) -> 
A75: Management Agent | B75: Management Agent name | C75: Applicant Information | D75: =IF('Applicant Information'!E65="","",'Applicant Information'!E65) -> 
B76: Management Agent email | C76: Applicant Information | D76: =IF('Applicant Information'!I65="","",'Applicant Information'!I65) -> 
B77: Management Agent phone number | C77: Applicant Information | D77: =IF('Applicant Information'!L65="","",'Applicant Information'!L65) -> 
A80: Section 3 | B80: Pro Forma Development Budget | G80: ProLink Mapping | H80: DEV Budget | K80: CLC Uses
A81: Sheet | B81: Field | C81: Value | G81: Line Item | H81: Value | I81: Mapped to Field
A82: MH Underwriting | B82: Site Improvements | C82: ='MH Underwriting'!P15 -> 0 | G82: HC Site Improvements | H82: =Table2[[#This Row],[Value]] -> 0 | I82: HC Site Improvements | K82: =Table2[[#This Row],[Value]] -> 0
A83: MH Underwriting | B83: Construction | C83: ='MH Underwriting'!P16 -> 0 | G83: HC Structures | H83: =Table2[[#This Row],[Value]] -> 0 | I83: HC Structures | K83: =Table2[[#This Row],[Value]] -> 0
A84: MH Underwriting | B84: General Requirements | C84: ='MH Underwriting'!P17 -> 0 | G84: HC General Req | H84: =Table2[[#This Row],[Value]] -> 0 | I84: HC General Req | K84: =Table2[[#This Row],[Value]] -> 0
A85: MH Underwriting | B85: Builder Profit | C85: ='MH Underwriting'!P18 -> 0 | G85: HC Profit | H85: =Table2[[#This Row],[Value]] -> 0 | I85: HC Profit | K85: =Table2[[#This Row],[Value]] -> 0
A86: MH Underwriting | B86: Bond Premium | C86: ='MH Underwriting'!P19 -> 0 | G86: HC Bonds | H86: =Table2[[#This Row],[Value]] -> 0 | I86: HC Bonds | K86: =Table2[[#This Row],[Value]] -> 0
A87: MH Underwriting | B87: Construction Contingency | C87: ='MH Underwriting'!P20 -> 0 | G87: HC - Contingency | H87: =Table2[[#This Row],[Value]] -> 0 | I87: HC - Contingency | K87: =Table2[[#This Row],[Value]] -> 0
A88: MH Underwriting | B88: Subtotal Construction Costs | C88: ='MH Underwriting'!P21 -> 0
A89: MH Underwriting | B89: Building Permits and Fees | C89: ='MH Underwriting'!P23 -> 0 | G89: SC Building Permits | H89: =Table2[[#This Row],[Value]] -> 0 | I89: SC Building Permits | K89: =Table2[[#This Row],[Value]] -> 0
A90: MH Underwriting | B90: Survey & Engineering | C90: ='MH Underwriting'!P24 -> 0 | G90: SC Site Eng Survey | H90: =Table2[[#This Row],[Value]] -> 0 | I90: SC Site Eng Survey | K90: =Table2[[#This Row],[Value]] -> 0
A91: MH Underwriting | B91: Architectural & Design | C91: ='MH Underwriting'!P25 -> 0 | G91: SC Design Architect | H91: =Table2[[#This Row],[Value]] -> 0 | I91: SC Design Architect | K91: =Table2[[#This Row],[Value]] -> 0
A92: MH Underwriting | B92: Legal | C92: ='MH Underwriting'!P26 -> 0 | G92: SC Legal | H92: =Table2[[#This Row],[Value]] -> 0 | I92: SC Legal | K92: =Table2[[#This Row],[Value]] -> 0
A93: MH Underwriting | B93: Title & Recording | C93: ='MH Underwriting'!P27 -> 0 | G93: SC Title Recording | H93: =Table2[[#This Row],[Value]] -> 0 | I93: SC Title Recording | K93: =Table2[[#This Row],[Value]] -> 0
A94: MH Underwriting | B94: Accounting | C94: ='MH Underwriting'!P28 -> 0 | G94: SC Accounting | H94: =Table2[[#This Row],[Value]] -> 0 | I94: SC Accounting
A95: MH Underwriting | B95: Construction Period Tax | C95: ='MH Underwriting'!P29 -> 0 | G95: SC Taxes During Construction | H95: =Table2[[#This Row],[Value]] -> 0 | I95: SC Taxes During Construction | K95: =Table2[[#This Row],[Value]] -> 0
A96: MH Underwriting | B96: Construction Period Insurance | C96: ='MH Underwriting'!P30 -> 0 | G96: SC Builders Insurance | H96: =Table2[[#This Row],[Value]] -> 0 | I96: SC Builders Insurance | K96: =Table2[[#This Row],[Value]] -> 0
A97: MH Underwriting | B97: Other | C97: ='MH Underwriting'!P31 -> 0 | G97: Soft Costs Other | H97: =Table2[[#This Row],[Value]] -> 0 | I97: SC Other 5 | K97: =Table2[[#This Row],[Value]]-('MH Underwriting'!P106-C94) -> 0
A98: MH Underwriting | B98: Subtotal Soft Costs | C98: ='MH Underwriting'!P32 -> 0
A99: MH Underwriting | B99: Construction Loan Origination Fees | C99: ='MH Underwriting'!P34 -> 0 | G99: Construction Loan Origination Fees | H99: =IF('Project Costs & Basis'!N34="",Table2[[#This Row],[Value]],Table2[[#This Row],[Value]]-'Project Costs & Basis'!N34) -> 0 | I99: SC Other 1 | K99: =IF('Project Costs & Basis'!N34="",Table2[[#This Row],[Value]],Table2[[#This Row],[Value]]-'Project Costs & Basis'!N34) -> 0
A100: MH Underwriting | B100: Construction Loan Interest | C100: ='MH Underwriting'!P35 -> 0 | G100: SC Construction Interest | H100: =Table2[[#This Row],[Value]] -> 0 | I100: SC Construction Interest | K100: =Table2[[#This Row],[Value]]-SUM('MH Underwriting'!P107:S107) -> 0
A101: MH Underwriting | B101: MaineHousing Permanent Loan Fees | C101: ='MH Underwriting'!P36 -> 0 | G101: SC HFA Finance Fee | H101: =IF('Project Costs & Basis'!N34="",Table2[[#This Row],[Value]],Table2[[#This Row],[Value]]+(C99-SD_81x1_100_S_0)) -> 0 | I101: SC HFA Finance Fee | K101: =IF('Project Costs & Basis'!N34="",Table2[[#This Row],[Value]],Table2[[#This Row],[Value]]+(C99-SD_81x1_100_S_0)) -> 0
A102: MH Underwriting | B102: Other Permanent Loan Fees | C102: ='MH Underwriting'!P37 -> 0 | G102: Other Permanent Loan Fees | H102: =Table2[[#This Row],[Value]] -> 0 | I102: SC Other 2 | K102: =Table2[[#This Row],[Value]] -> 0
A103: MH Underwriting | B103: Other | C103: ='MH Underwriting'!P38 -> 0 | G103: Finance Other | H103: =Table2[[#This Row],[Value]] -> 0 | I103: SC Other 6 | K103: =Table2[[#This Row],[Value]] -> 0
A104: MH Underwriting | B104: Subtotal Finance Costs | C104: ='MH Underwriting'!P39 -> 0
A105: MH Underwriting | B105: Market Survey | C105: ='MH Underwriting'!P41 -> 0 | G105: SC Market Study | H105: =Table2[[#This Row],[Value]] -> 0 | I105: SC Market Study | K105: =Table2[[#This Row],[Value]] -> 0
A106: MH Underwriting | B106: Appraisal | C106: ='MH Underwriting'!P42 -> 0 | G106: SC Appraisal | H106: =Table2[[#This Row],[Value]] -> 0 | I106: SC Appraisal | K106: =Table2[[#This Row],[Value]] -> 0
A107: MH Underwriting | B107: Environmental Study | C107: ='MH Underwriting'!P43 -> 0 | G107: SC Environmental | H107: =Table2[[#This Row],[Value]] -> 0 | I107: SC Environmental | K107: =Table2[[#This Row],[Value]] -> 0
A108: MH Underwriting | B108: LIHTC Fees & Prepaid Monitoring | C108: ='MH Underwriting'!P44 -> 0 | G108: SC Tax Credit Fee | H108: =Table2[[#This Row],[Value]] -> 0 | I108: SC Tax Credit Fee | K108: =Table2[[#This Row],[Value]]-'MH Underwriting'!P108 -> 0
A109: MH Underwriting | B109: Relocation Costs | C109: ='MH Underwriting'!P45 -> 0 | G109: SC Tenant Relocation | H109: =Table2[[#This Row],[Value]] -> 0 | I109: SC Tenant Relocation | K109: =Table2[[#This Row],[Value]] -> 0
A110: MH Underwriting | B110: FF&E | C110: ='MH Underwriting'!P46 -> 0 | G110: SC Furn Fixt Equip | H110: =Table2[[#This Row],[Value]] -> 0 | I110: SC Furn Fixt Equip | K110: =Table2[[#This Row],[Value]] -> 0
A111: MH Underwriting | B111: Other | C111: ='MH Underwriting'!P47 -> 0 | G111: Misc Other | H111: =Table2[[#This Row],[Value]] -> 0 | I111: SC Other 7 | K111: =Table2[[#This Row],[Value]] -> 0
A112: MH Underwriting | B112: Subtotal Miscellaneous | C112: ='MH Underwriting'!P48 -> 0
A113: MH Underwriting | B113: Acquisition: Buildings | C113: ='MH Underwriting'!P50 -> 0 | G113: SC Acquisition | H113: =Table2[[#This Row],[Value]] -> 0 | I113: SC Acquisition | K113: =Table2[[#This Row],[Value]] -> 0
A114: MH Underwriting | B114: Acquisition: Land | C114: ='MH Underwriting'!P51 -> 0 | G114: SC Land Acquisition | H114: =Table2[[#This Row],[Value]] -> 0 | I114: SC Land Acquisition | K114: =Table2[[#This Row],[Value]] -> 0
A115: MH Underwriting | B115: Acquisition: Existing Reserves | C115: ='MH Underwriting'!P52 -> 0 | G115: Acquisition: Existing Reserves | H115: =Table2[[#This Row],[Value]] -> 0 | I115: SC Other 3 | K115: =Table2[[#This Row],[Value]] -> 0
A116: MH Underwriting | B116: Acquisition: Legal | C116: ='MH Underwriting'!P53 -> 0 | G116: Acquisition: Legal | H116: =Table2[[#This Row],[Value]] -> 0 | I116: SC Other 4 | K116: =Table2[[#This Row],[Value]] -> 0
A117: MH Underwriting | B117: Acquisition: other | C117: ='MH Underwriting'!P54 -> 0 | G117: Acquisition: other | H117: =Table2[[#This Row],[Value]] -> 0 | I117: SC Other 8 | K117: =Table2[[#This Row],[Value]] -> 0
A118: MH Underwriting | B118: Subtotal Acquisition | C118: ='MH Underwriting'!P55 -> 0
A119: MH Underwriting | B119: Operating Deficit Escrow | C119: ='MH Underwriting'!P57 -> 0 | G119: SC Reserves | H119: =Table2[[#This Row],[Value]] -> 0 | I119: SC Reserves
A120: MH Underwriting | B120: Pre-funded Replacements | C120: ='MH Underwriting'!P58 -> 0 | G120: SC RR Funding | H120: =Table2[[#This Row],[Value]] -> 0 | I120: SC RR Funding
A121: MH Underwriting | B121: Tax & Insurance Escrow | C121: ='MH Underwriting'!P59 -> 0 | G121: SC Taxes | H121: =Table2[[#This Row],[Value]] -> 0 | I121: SC Taxes | K121: =SUM('MH Underwriting'!G110:L110)-C122 -> 0
A122: MH Underwriting | B122: Working Capital | C122: ='MH Underwriting'!P60 -> 0 | G122: SC Mrkt Gen Lease Up | H122: =Table2[[#This Row],[Value]] -> 0 | I122: SC Mrkt Gen Lease Up | K122: =Table2[[#This Row],[Value]] -> 0
A123: MH Underwriting | B123: Total Syndication Expenses | C123: ='MH Underwriting'!P61 -> 0 | G123: SC Org Costs | H123: =Table2[[#This Row],[Value]] -> 0 | I123: SC Org Costs
A124: MH Underwriting | B124: Consultant Fee | C124: ='MH Underwriting'!P62 -> 0 | G124: SC Consultants | H124: =Table2[[#This Row],[Value]] -> 0 | I124: SC Consultants
A125: MH Underwriting | B125: Developer Overhead Included below | C125: ='MH Underwriting'!P63 -> 0 | G125: Developer Overhead Included below
A126: MH Underwriting | B126: Developer Profit and Developer Overhead | C126: ='MH Underwriting'!P64 -> 0 | G126: SC Development Mgmt | H126: =C125+Table2[[#This Row],[Value]] -> 0 | I126: SC Development Mgmt | K126: =SUM('MH Underwriting'!G109:L109) -> 0
A127: MH Underwriting | B127: Other | C127: ='MH Underwriting'!P65 -> 0 | G127: Fee and Reserves Other | H127: =Table2[[#This Row],[Value]] -> 0 | I127: SC Other 9 | K127: =SD_81x1_5325x1_142_S_0-SUM(K82:K126) -> 
A128: MH Underwriting | B128: Subtotal Fee and Reserves | C128: ='MH Underwriting'!P66 -> 0
A129: MH Underwriting | B129: Total Project Costs | C129: ='MH Underwriting'!P68 -> 0 | G129: Total | H129: =SUBTOTAL(109,Table5[Value]) -> 0 | K129: =SUM(K81:K127) -> 
A132: Section 4 | B132: Project Costs and Eligible Basis | G132: ProLink Mapping | H132: TC Development Costs
A133: Field | B133: Sheet | C133: Total Cost | D133: Acq Credit | E133: Const/Rehab | G133: Line Item | H133: Total Costs | I133: Acquisition | J133: 4% Construction | K133: 9% Construction | L133: Mapped to Field
A134: TOTAL CONSTRUCTION | B134: Project Costs and Basis | C134: ='Project Costs & Basis'!E9 -> 0 | D134: ='Project Costs & Basis'!Q9 -> 0 | E134: ='Project Costs & Basis'!S9 -> 0 | G134: Unit Structures - New | H134: =IF('Project Information'!D26<>"Acquisition/Rehab", C134, "") -> 0 | I134: =IF('Project Information'!D26<>"Acquisition/Rehab", D134, "") -> 0 | J134: =IF('Project Information'!D26<>"Acquisition/Rehab", IF($B$3="4Percent",E134,0), "") -> 0 | K134: =IF('Project Information'!D26<>"Acquisition/Rehab", IF($B$3="9Percent",E134,0), "") -> 0 | L134: Unit Structures - New
G135: Unit Structures - Rehab | H135: =IF('Project Information'!D26="Acquisition/Rehab", C134, "") ->  | I135: =IF('Project Information'!D26="Acquisition/Rehab", D134, "") ->  | J135: =IF('Project Information'!D26="Acquisition/Rehab", IF($B$3="4Percent",E134,0), "") ->  | K135: =IF('Project Information'!D26="Acquisition/Rehab", IF($B$3="9Percent",E134,0), "") ->  | L135: Unit Structures - Rehab
A136: Permits | B136: Project Costs and Basis | C136: ='Project Costs & Basis'!E13 -> 0 | D136: ='Project Costs & Basis'!Q13 -> 0 | E136: ='Project Costs & Basis'!S13 -> 0 | G136: Building Permit | H136: =Table6[[#This Row],[Total Cost]] -> 0 | I136: =D136 -> 0 | J136: =IF($B$3="4Percent", E136,0) -> 0 | K136: =IF($B$3="9Percent",E136,0) -> 0 | L136: Building Permit
A137: Survey & Engineering | B137: Project Costs and Basis | C137: ='Project Costs & Basis'!E15 -> 0 | D137: ='Project Costs & Basis'!Q15 -> 0 | E137: ='Project Costs & Basis'!S15 -> 0 | G137: Engineering | H137: =Table6[[#This Row],[Total Cost]] -> 0 | I137: 0 | J137: 0 | K137: 0 | L137: Engineering
A138: Architect/Design & Inspec | B138: Project Costs and Basis | C138: ='Project Costs & Basis'!E17 -> 0 | D138: ='Project Costs & Basis'!Q17 -> 0 | E138: ='Project Costs & Basis'!S17 -> 0 | G138: Arch Engin Design Fee | H138: =Table6[[#This Row],[Total Cost]] -> 0 | I138: 0 | J138: 0 | K138: 0 | L138: Arch Engin Design Fee
A139: Project Legal | B139: Project Costs and Basis | C139: ='Project Costs & Basis'!E19 -> 0 | D139: ='Project Costs & Basis'!Q19 -> 0 | E139: ='Project Costs & Basis'!S19 -> 0 | G139: Legal Fees for Closing | H139: =Table6[[#This Row],[Total Cost]] -> 0 | I139: 0 | J139: 0 | K139: 0 | L139: Legal Fees for Closing
A140: Title & Recording | B140: Project Costs and Basis | C140: ='Project Costs & Basis'!E21 -> 0 | D140: ='Project Costs & Basis'!Q21 -> 0 | E140: ='Project Costs & Basis'!S21 -> 0 | G140: Title and Recording | H140: =Table6[[#This Row],[Total Cost]] -> 0 | I140: 0 | J140: 0 | K140: 0 | L140: Title and Recording
A141: Project Audit/Accounting | B141: Project Costs and Basis | C141: ='Project Costs & Basis'!E23 -> 0 | D141: ='Project Costs & Basis'!Q23 -> 0 | E141: ='Project Costs & Basis'!S23 -> 0 | G141: Cost Cert Fee | H141: =Table6[[#This Row],[Total Cost]] -> 0 | I141: 0 | J141: 0 | K141: 0 | L141: Cost Cert Fee
A142: Const. Period Taxes | B142: Project Costs and Basis | C142: ='Project Costs & Basis'!E25 -> 0 | D142: ='Project Costs & Basis'!Q25 -> 0 | E142: ='Project Costs & Basis'!S25 -> 0 | G142: Taxes Construction | H142: =Table6[[#This Row],[Total Cost]] -> 0 | I142: 0 | J142: 0 | K142: 0 | L142: Taxes Construction
A143: Const. Period Insurance | B143: Project Costs and Basis | C143: ='Project Costs & Basis'!E27 -> 0 | D143: ='Project Costs & Basis'!Q27 -> 0 | E143: ='Project Costs & Basis'!S27 -> 0 | G143: Insurance Construction | H143: =Table6[[#This Row],[Total Cost]] -> 0 | I143: 0 | J143: 0 | K143: 0 | L143: Insurance Construction
A144: Other | B144: Project Costs and Basis | C144: ='Project Costs & Basis'!E29 -> 0 | D144: ='Project Costs & Basis'!Q29 -> 0 | E144: ='Project Costs & Basis'!S29 -> 0 | G144: Soft Costs Other | H144: =Table6[[#This Row],[Total Cost]] -> 0 | I144: 0 | J144: 0 | K144: 0 | L144: Addl Cost 5
A145: Total Soft Costs | B145: Project Costs and Basis | C145: ='Project Costs & Basis'!E31 -> 0 | D145: ='Project Costs & Basis'!Q31 -> 0 | E145: ='Project Costs & Basis'!S31 -> 0
A146: Const Loan Orig. Fee | B146: Project Costs and Basis | C146: ='Project Costs & Basis'!E38 -> 0 | D146: ='Project Costs & Basis'!Q38 -> 0 | E146: ='Project Costs & Basis'!S38 -> 0 | G146: Const Loan Orig. Fee | H146: =Table6[[#This Row],[Total Cost]] -> 0 | I146: =D146 -> 0 | J146: =IF($B$3="4Percent", E146,0) -> 0 | K146: =IF($B$3="9Percent",E146,0) -> 0 | L146: Const Loan Orig. Fee
A147: Const Loan Interest | B147: Project Costs and Basis | C147: ='Project Costs & Basis'!E40 -> 0 | D147: ='Project Costs & Basis'!Q40 -> 0 | E147: ='Project Costs & Basis'!S40 -> 0 | G147: Constr Interest | H147: =Table6[[#This Row],[Total Cost]] -> 0 | I147: =D147 -> 0 | J147: =IF($B$3="4Percent", E147,0) -> 0 | K147: =IF($B$3="9Percent",E147,0) -> 0 | L147: Constr Interest
A148: MaineHousing Permanent Loan Fees | B148: Project Costs and Basis | C148: ='Project Costs & Basis'!E42 -> 0 | D148: ='Project Costs & Basis'!Q42 -> 0 | E148: ='Project Costs & Basis'!S42 -> 0 | G148: Perm Loan Fee | H148: =Table6[[#This Row],[Total Cost]] -> 0 | I148: =D148 -> 0 | J148: =IF($B$3="4Percent", E148,0) -> 0 | K148: =IF($B$3="9Percent",E148,0) -> 0 | L148: Perm Loan Fee
A149: Conventional Lender Permanent Loan Fees | B149: Project Costs and Basis | C149: ='Project Costs & Basis'!E44 -> 0 | D149: ='Project Costs & Basis'!Q44 -> 0 | E149: ='Project Costs & Basis'!S44 -> 0 | G149: Other Perm Loan Fees | H149: =Table6[[#This Row],[Total Cost]] -> 0 | I149: =D149 -> 0 | J149: =IF($B$3="4Percent", E149,0) -> 0 | K149: =IF($B$3="9Percent",E149,0) -> 0 | L149: Other Perm Loan Fees
A150: Other | B150: Project Costs and Basis | C150: ='Project Costs & Basis'!E46 -> 0 | D150: ='Project Costs & Basis'!Q46 -> 0 | E150: ='Project Costs & Basis'!S46 -> 0 | G150: Financing Fees Other | H150: =Table6[[#This Row],[Total Cost]] -> 0 | I150: =D150 -> 0 | J150: =IF($B$3="4Percent", E150,0) -> 0 | K150: =IF($B$3="9Percent",E150,0) -> 0 | L150: Addl Cost 6
A151: Total Financing Fees | B151: Project Costs and Basis | C151: ='Project Costs & Basis'!E48 -> 0 | D151: ='Project Costs & Basis'!Q48 -> 0 | E151: ='Project Costs & Basis'!S48 -> 0
A152: Market Study | B152: Project Costs and Basis | C152: ='Project Costs & Basis'!E53 -> 0 | D152: ='Project Costs & Basis'!Q53 -> 0 | E152: ='Project Costs & Basis'!S53 -> 0 | G152: Market Study | H152: =Table6[[#This Row],[Total Cost]] -> 0 | I152: =D152 -> 0 | J152: =IF($B$3="4Percent", E152,0) -> 0 | K152: =IF($B$3="9Percent",E152,0) -> 0 | L152: Market Study
A153: Property Appraisal | B153: Project Costs and Basis | C153: ='Project Costs & Basis'!E55 -> 0 | D153: ='Project Costs & Basis'!Q55 -> 0 | E153: ='Project Costs & Basis'!S55 -> 0 | G153: Appraisal Fee | H153: =Table6[[#This Row],[Total Cost]] -> 0 | I153: 0 | J153: 0 | K153: 0 | L153: Appraisal Fee
A154: Environmental Study | B154: Project Costs and Basis | C154: ='Project Costs & Basis'!E57 -> 0 | D154: ='Project Costs & Basis'!Q57 -> 0 | E154: ='Project Costs & Basis'!S57 -> 0 | G154: Environmental? | H154: =Table6[[#This Row],[Total Cost]] -> 0 | I154: 0 | J154: 0 | K154: 0 | L154: Environmental?
A155: LIHTC Process & Monitoring Fees | B155: Project Costs and Basis | C155: ='Project Costs & Basis'!E59 -> 0 | D155: ='Project Costs & Basis'!Q59 -> 0 | E155: ='Project Costs & Basis'!S59 -> 0 | G155: Tax Credit Fee | H155: =Table6[[#This Row],[Total Cost]] -> 0 | I155: 0 | J155: 0 | K155: 0 | L155: Tax Credit Fee
A156: Relocation | B156: Project Costs and Basis | C156: ='Project Costs & Basis'!E61 -> 0 | D156: ='Project Costs & Basis'!Q61 -> 0 | E156: ='Project Costs & Basis'!S61 -> 0 | G156: Relocation | H156: =Table6[[#This Row],[Total Cost]] -> 0 | I156: 0 | J156: 0 | K156: 0 | L156: Addl Cost 10
A157: F, F, & E | B157: Project Costs and Basis | C157: ='Project Costs & Basis'!E63 -> 0 | D157: ='Project Costs & Basis'!Q63 -> 0 | E157: ='Project Costs & Basis'!S63 -> 0 | G157: F, F, & E | H157: =Table6[[#This Row],[Total Cost]] -> 0 | I157: 0 | J157: 0 | K157: 0 | L157: Addl Cost 11
A158: Other | B158: Project Costs and Basis | C158: ='Project Costs & Basis'!E65 -> 0 | D158: ='Project Costs & Basis'!Q65 -> 0 | E158: ='Project Costs & Basis'!S65 -> 0 | G158: Misc. Cost and Exp Other | H158: =Table6[[#This Row],[Total Cost]] -> 0 | I158: 0 | J158: 0 | K158: 0 | L158: Addl Cost 7
A159: Total Miscellaneous | B159: Project Costs and Basis | C159: ='Project Costs & Basis'!E67 -> 0 | D159: ='Project Costs & Basis'!Q67 -> 0 | E159: ='Project Costs & Basis'!S67 -> 0
A160: Structure | B160: Project Costs and Basis | C160: ='Project Costs & Basis'!E73 -> 0 | D160: ='Project Costs & Basis'!Q73 -> 0 | E160: ='Project Costs & Basis'!S73 -> 0 | G160: Existing Improvement Cost | H160: =Table6[[#This Row],[Total Cost]] -> 0 | I160: =D160 -> 0 | J160: =IF($B$3="4Percent", E160,0) -> 0 | K160: =IF($B$3="9Percent",E160,0) -> 0 | L160: Existing Improvement Cost
A161: Land | B161: Project Costs and Basis | C161: ='Project Costs & Basis'!E75 -> 0 | D161: ='Project Costs & Basis'!Q75 -> 0 | E161: ='Project Costs & Basis'!S75 -> 0 | G161: Land Acq Cost | H161: =Table6[[#This Row],[Total Cost]] -> 0 | I161: =D161 -> 0 | J161: =IF($B$3="4Percent", E161,0) -> 0 | K161: =IF($B$3="9Percent",E161,0) -> 0 | L161: Land Acq Cost
A162: Existing Reserve Account Balances | B162: Project Costs and Basis | C162: ='Project Costs & Basis'!E77 -> 0 | D162: ='Project Costs & Basis'!Q77 -> 0 | E162: ='Project Costs & Basis'!S77 -> 0 | G162: Existing Reserve Account Balances | H162: =Table6[[#This Row],[Total Cost]] -> 0 | I162: =D162 -> 0 | J162: =IF($B$3="4Percent", E162,0) -> 0 | K162: =IF($B$3="9Percent",E162,0) -> 0 | L162: Addl Cost 3
A163: Legal associated w/ acquisition | B163: Project Costs and Basis | C163: ='Project Costs & Basis'!E79 -> 0 | D163: ='Project Costs & Basis'!Q79 -> 0 | E163: ='Project Costs & Basis'!S79 -> 0 | G163: Legal associated w/ acquisition | H163: =Table6[[#This Row],[Total Cost]] -> 0 | I163: =D163 -> 0 | J163: =IF($B$3="4Percent", E163,0) -> 0 | K163: =IF($B$3="9Percent",E163,0) -> 0 | L163: Addl Cost 4
A164: Other | B164: Project Costs and Basis | C164: ='Project Costs & Basis'!E81 -> 0 | D164: ='Project Costs & Basis'!Q81 -> 0 | E164: ='Project Costs & Basis'!S81 -> 0 | G164: Acq Other | H164: =Table6[[#This Row],[Total Cost]] -> 0 | I164: =D164 -> 0 | J164: =IF($B$3="4Percent", E164,0) -> 0 | K164: =IF($B$3="9Percent",E164,0) -> 0 | L164: Addl Cost 8
A165: Total Acquisition | B165: Project Costs and Basis | C165: ='Project Costs & Basis'!E83 -> 0 | D165: ='Project Costs & Basis'!Q83 -> 0 | E165: ='Project Costs & Basis'!S83 -> 0
A166: Operating Deficit Escrow | B166: Project Costs and Basis | C166: ='Project Costs & Basis'!E88 -> 0 | D166: ='Project Costs & Basis'!Q88 -> 0 | E166: ='Project Costs & Basis'!S88 -> 0 | G166: Oper Reserve | H166: =Table6[[#This Row],[Total Cost]] -> 0 | I166: =D166 -> 0 | J166: =IF($B$3="4Percent", E166,0) -> 0 | K166: =IF($B$3="9Percent",E166,0) -> 0 | L166: Oper Reserve
A167: Replacement Reserve | B167: Project Costs and Basis | C167: ='Project Costs & Basis'!E90 -> 0 | D167: ='Project Costs & Basis'!Q90 -> 0 | E167: ='Project Costs & Basis'!S90 -> 0 | G167: Replacement Reserve | H167: =Table6[[#This Row],[Total Cost]] -> 0 | I167: =D167 -> 0 | J167: =IF($B$3="4Percent", E167,0) -> 0 | K167: =IF($B$3="9Percent",E167,0) -> 0 | L167: Addl Cost 12
A168: Tax & Insurance Escrow | B168: Project Costs and Basis | C168: ='Project Costs & Basis'!E92 -> 0 | D168: ='Project Costs & Basis'!Q92 -> 0 | E168: ='Project Costs & Basis'!S92 -> 0 | G168: Tax & Insurance Escrow | H168: =Table6[[#This Row],[Total Cost]] -> 0 | I168: =D168 -> 0 | J168: =IF($B$3="4Percent", E168,0) -> 0 | K168: =IF($B$3="9Percent",E168,0) -> 0 | L168: Addl Cost 13
A169: Working Capital | B169: Project Costs and Basis | C169: ='Project Costs & Basis'!E94 -> 0 | D169: ='Project Costs & Basis'!Q94 -> 0 | E169: ='Project Costs & Basis'!S94 -> 0 | G169: Working Capital | H169: =Table6[[#This Row],[Total Cost]] -> 0 | I169: =D169 -> 0 | J169: =IF($B$3="4Percent", E169,0) -> 0 | K169: =IF($B$3="9Percent",E169,0) -> 0 | L169: Addl Cost 14
A170: Other | B170: Project Costs and Basis | C170: ='Project Costs & Basis'!E96 -> 0 | D170: ='Project Costs & Basis'!Q96 -> 0 | E170: ='Project Costs & Basis'!S96 -> 0 | G170: Fee and Reserves Other | H170: =Table6[[#This Row],[Total Cost]] -> 0 | I170: =D170 -> 0 | J170: =IF($B$3="4Percent", E170,0) -> 0 | K170: =IF($B$3="9Percent",E170,0) -> 0 | L170: Addl Cost 9
A171: Total Reserves | B171: Project Costs and Basis | C171: ='Project Costs & Basis'!E98 -> 0 | D171: ='Project Costs & Basis'!Q98 -> 0 | E171: ='Project Costs & Basis'!S98 -> 0
A172: Total Syndication | B172: Project Costs and Basis | C172: ='Project Costs & Basis'!E112 -> 0 | D172: =SUM('Project Costs & Basis'!Q102:Q110) -> 0 | E172: =SUM('Project Costs & Basis'!S102:S110) -> 0 | G172: Total Syndication Expenses | H172: =Table6[[#This Row],[Total Cost]] -> 0 | I172: =D172 -> 0 | J172: =IF($B$3="4Percent", E172,0) -> 0 | K172: =IF($B$3="9Percent",E172,0) -> 0 | L172: Addl Cost 15
A173: Consultant Fees | B173: Project Costs and Basis | C173: ='Project Costs & Basis'!E116 -> 0 | D173: ='Project Costs & Basis'!Q116 -> 0 | E173: ='Project Costs & Basis'!S116 -> 0 | G173: Consultant Fees | H173: =Table6[[#This Row],[Total Cost]] -> 0 | I173: =D173 -> 0 | J173: =IF($B$3="4Percent", E173,0) -> 0 | K173: =IF($B$3="9Percent",E173,0) -> 0 | L173: Addl Cost 16
A174: Developer Overhead | B174: Project Costs and Basis | C174: ='Project Costs & Basis'!E118 -> 0 | D174: ='Project Costs & Basis'!Q118 -> 0 | E174: ='Project Costs & Basis'!S118 -> 0 | G174: SUMMED IN BELOW | L174: SUMMED IN BELOW
A175: Developer Profit | B175: Project Costs and Basis | C175: ='Project Costs & Basis'!E120 -> 0 | D175: ='Project Costs & Basis'!Q120 -> 0 | E175: ='Project Costs & Basis'!S120 -> 0 | G175: Developer Fees | H175: =SUM(C174:C175) -> 0 | I175: =SUM(D174:D175) -> 0 | J175: =IF($B$3="4Percent", SUM(E174:E175),0) -> 0 | K175: =IF($B$3="9Percent",SUM(E174:E175),0) -> 0 | L175: Developer Fees
A176: Total Developer Fee | B176: Project Costs and Basis | C176: ='Project Costs & Basis'!E122 -> 0 | D176: ='Project Costs & Basis'!Q122 -> 0 | E176: ='Project Costs & Basis'!S122 -> 0 | G176: Total | H176: =SUBTOTAL(109,Table7[Total Costs]) -> 0 | I176: =SUBTOTAL(109,Table7[Acquisition]) -> 0 | J176: =SUBTOTAL(109,Table7[4% Construction]) -> 0 | K176: =SUBTOTAL(109,Table7[9% Construction]) -> 0
C177: .
A181: Section 5 | B181: Flow of Funds - Sources | L181: ProLink Mapping | M181: DEV Funding Sources | N181: PLC | U181: TC Property Financing | W181: PLC | AB181: DEV Budget UDF
A182: Sheet | B182: Cell | C182: Field | D182: PL Source Selection | E182: CLC | F182: PLC | G182: Total | H182: Rate | I182: Term | J182: Lien | L182: Sequence | M182: Funding Source | N182: Instrument Type | O182: Term | P182: Interest Rate | Q182: Program Type | R182: Product Type | S182: Amount | U182: Sequence | V182: Source Name | W182: Financing Type | X182: Amount | Y182: Loan Term | Z182: Interest Rate | AB182: Source Number | AC182: Source Name CLC | AD182: CLC | AE182: Source Name PLC | AF182: PLC
A183: MH Underwriting | B183: B78 | C183: =IF('MH Underwriting'!C78="","",'MH Underwriting'!C78) -> Fed Tax Credit Capital | D183: =IF('MH Underwriting'!F78="","",'MH Underwriting'!F78) ->  | E183: =IF(SUM('MH Underwriting'!G78:L78)=0,"",SUM('MH Underwriting'!G78:L78)) ->  | F183: =IF('MH Underwriting'!P78<>0,'MH Underwriting'!P78,"") ->  | G183: =IF('MH Underwriting'!T78<>0,'MH Underwriting'!T78,"") ->  | H183: =IF(C183="","",_xlfn.IFNA(VLOOKUP(C183,'MH Underwriting'!$E$126:$L$141,6,FALSE),"")) ->  | I183: =IF(C183="","",_xlfn.IFNA(VLOOKUP(C183,'MH Underwriting'!$E$126:$L$141,6,FALSE),"")) ->  | J183: =IF(C183="","",_xlfn.IFNA(VLOOKUP(C183,'MH Underwriting'!$E$126:$L$141,8,FALSE),"")) ->  | L183: 1 | M183: =IF(AND(G183<>"",D183<>""),D183,IF(G183<>"","Federal Equity","")) ->  | N183: =IF(M183<>"","LIHTC Equity","") ->  | O183: =IF(AND(I183<>"",M183<>""),I183*12,"") ->  | P183: =IF(AND(H183<>"",M183<>""),H183,"") ->  | Q183: =IF(M183<>"", "Permanent","") ->  | S183: =IF(G183="","",G183) ->  | U183: 1 | V183: =IF(M183="","",M183) ->  | W183: =IF(V183="","","Permanent") ->  | X183: =IF(V183="","",S183) ->  | Y183: =IF(V183="","",O183) ->  | Z183: =IF(V183="","",P183) ->  | AB183: 1 | AC183: =IF(V183="","",V183) ->  | AD183: =IF(V183="","",E183) ->  | AE183: =IF(V183="","",V183) ->  | AF183: =Table8[[#This Row],[Total]] -> 
A184: MH Underwriting | B184: B79 | C184: =IF('MH Underwriting'!C79="","",'MH Underwriting'!C79) -> ME Tax Credit Capital | D184: =IF('MH Underwriting'!F79="","",'MH Underwriting'!F79) ->  | E184: =IF(SUM('MH Underwriting'!G79:L79)=0,"",SUM('MH Underwriting'!G79:L79)) ->  | F184: =IF('MH Underwriting'!P79<>0,'MH Underwriting'!P79,"") ->  | G184: =IF('MH Underwriting'!T79<>0,'MH Underwriting'!T79,"") ->  | H184: =IF(C184="","",_xlfn.IFNA(VLOOKUP(C184,'MH Underwriting'!$E$126:$L$141,6,FALSE),"")) ->  | I184: =IF(C184="","",_xlfn.IFNA(VLOOKUP(C184,'MH Underwriting'!$E$126:$L$141,6,FALSE),"")) ->  | J184: =IF(C184="","",_xlfn.IFNA(VLOOKUP(C184,'MH Underwriting'!$E$126:$L$141,8,FALSE),"")) ->  | L184: 2 | M184: =IF(AND(G184<>"",D184<>""),D184,IF(G184<>"","State Equity","")) ->  | N184: =IF(M184<>"","State LIHTC Equity","") ->  | Q184: =IF(M184<>"", "Permanent","") ->  | S184: =IF(G184="","",G184) ->  | U184: 2 | W184: =IF(V184="","","Permanent") ->  | Y184: =IF(V184="","",O184) ->  | AB184: 2 | AC184: =IF(V184="","",V184) ->  | AE184: =IF(V184="","",V184) ->  | AF184: =Table8[[#This Row],[Total]] -> 
A185: MH Underwriting | B185: B80 | C185: =IF('MH Underwriting'!C80="","",'MH Underwriting'!C80) -> Construction Loan | D185: =IF('MH Underwriting'!F80="","",'MH Underwriting'!F80) ->  | E185: =IF(B3="9Percent",IF(SUM('MH Underwriting'!G80:L80)=0,"",SUM('MH Underwriting'!G80:L80)),"") ->  | F185: =IF('MH Underwriting'!P80<>0,'MH Underwriting'!P80,"") ->  | G185: =IF('MH Underwriting'!T80<>0,'MH Underwriting'!T80,"") ->  | H185: =IF(C185="","",_xlfn.IFNA(VLOOKUP(C185,'MH Underwriting'!$E$126:$L$141,6,FALSE),"")) ->  | I185: =IF(C185="","",_xlfn.IFNA(VLOOKUP(C185,'MH Underwriting'!$E$126:$L$141,6,FALSE),"")) ->  | J185: =IF(C185="","",_xlfn.IFNA(VLOOKUP(C185,'MH Underwriting'!$E$126:$L$141,8,FALSE),"")) ->  | L185: 3 | U185: 3 | AB185: 3 | AC185: =IF(B3="9Percent",Table8[[#This Row],[Field]],"") ->  | AD185: =IF(B3="9Percent",Table8[[#This Row],[CLC]],"") -> 
A186: MH Underwriting | B186: T86 | C186: ='MH Underwriting'!V86 -> Bal. of CL | D186: =IF('MH Underwriting'!X86="","",'MH Underwriting'!X86) ->  | E186: =IF('MH Underwriting'!W86="","",'MH Underwriting'!W86) ->  | F186: =IF('MH Underwriting'!W86="","",0) ->  | G186: =IF('MH Underwriting'!W86="","",'MH Underwriting'!W86) ->  | H186: =IF(C186="","",_xlfn.IFNA(VLOOKUP(C186,'MH Underwriting'!$E$126:$L$141,6,FALSE),"")) ->  | I186: =IF(C186="","",_xlfn.IFNA(VLOOKUP(C186,'MH Underwriting'!$E$126:$L$141,6,FALSE),"")) ->  | J186: =IF(C186="","",_xlfn.IFNA(VLOOKUP(C186,'MH Underwriting'!$E$126:$L$141,8,FALSE),"")) ->  | L186: 4 | U186: 4 | AB186: 4 | AC186: =IF(B3="4Percent",Table8[[#This Row],[Field]],"") ->  | AD186: =IF(B3="4Percent",Table8[[#This Row],[CLC]],"") -> 
A187: MH Underwriting | B187: T90 | C187: ='MH Underwriting'!V90 -> Actual TE Bonds | D187: =IF('MH Underwriting'!X90="","",'MH Underwriting'!X90) ->  | E187: =IF('MH Underwriting'!W90="","",'MH Underwriting'!W90) ->  | F187: =IF('MH Underwriting'!W90="","",0) ->  | G187: =IF('MH Underwriting'!W90="","",'MH Underwriting'!W90) ->  | H187: =IF(C187="","",_xlfn.IFNA(VLOOKUP(C187,'MH Underwriting'!$E$126:$L$141,6,FALSE),"")) ->  | I187: =IF(C187="","",_xlfn.IFNA(VLOOKUP(C187,'MH Underwriting'!$E$126:$L$141,6,FALSE),"")) ->  | J187: =IF(C187="","",_xlfn.IFNA(VLOOKUP(C187,'MH Underwriting'!$E$126:$L$141,8,FALSE),"")) ->  | L187: 5 | U187: 5 | AB187: 5 | AC187: =IF(B3="4Percent",Table8[[#This Row],[Field]],"") ->  | AD187: =IF(B3="4Percent",Table8[[#This Row],[CLC]],"") -> 
A188: MH Underwriting | B188: B81 | C188: =IF('MH Underwriting'!C81="","",'MH Underwriting'!C81) -> GP Bridge Loan | D188: =IF('MH Underwriting'!F81="","",'MH Underwriting'!F81) ->  | E188: =IF(SUM('MH Underwriting'!G81:L81)<>0,SUM('MH Underwriting'!G81:L81),"") ->  | F188: =IF('MH Underwriting'!P81<>0,'MH Underwriting'!P81,"") ->  | G188: =IF('MH Underwriting'!T81<>0,'MH Underwriting'!T81,"") ->  | H188: =IF(C188="","",_xlfn.IFNA(VLOOKUP(C188,'MH Underwriting'!$E$126:$L$141,6,FALSE),"")) ->  | I188: =IF(C188="","",_xlfn.IFNA(VLOOKUP(C188,'MH Underwriting'!$E$126:$L$141,6,FALSE),"")) ->  | J188: =IF(C188="","",_xlfn.IFNA(VLOOKUP(C188,'MH Underwriting'!$E$126:$L$141,8,FALSE),"")) ->  | L188: 6 | M188: =IF(AND(G188<>"",D188<>""),D188,IF(G188<>"",IF(E189<>"","External - Construction","External - Permanent"),"")) ->  | N188: =IF(M188<>"","Third Party Loan","") ->  | Q188: =IF(M188<>"", "Permanent","") ->  | S188: =IF(AND(G188<>"",M188<>""),G188,"") ->  | U188: 6 | AB188: 6 | AF188: =Table8[[#This Row],[Total]] -> 
A189: MH Underwriting | B189: C83 | C189: =IF('MH Underwriting'!D83="","",'MH Underwriting'!D83) -> 0% Deferred Loan - FedHOME | D189: =IF('MH Underwriting'!F83="","",'MH Underwriting'!F83) ->  | E189: =IF(SUM('MH Underwriting'!G83:L83)<>0,SUM('MH Underwriting'!G83:L83),"") ->  | F189: =IF('MH Underwriting'!P83<>0,'MH Underwriting'!P83,"") ->  | G189: =IF('MH Underwriting'!T83<>0,'MH Underwriting'!T83,"") ->  | H189: =IF(C189="","",_xlfn.IFNA(VLOOKUP(C189,'MH Underwriting'!$E$126:$L$141,6,FALSE),"")) -> 0 | I189: =Sources!J32 -> 30 | J189: =IF(C189="","",_xlfn.IFNA(VLOOKUP(C189,'MH Underwriting'!$E$126:$L$141,8,FALSE),"")) -> Second | L189: 7 | M189: =IF(AND(G189<>"",D189<>""),D189,IF(G189<>"","TBD - Subsidy","")) ->  | N189: =IF(M189<>"","Subsidy Loan","") ->  | Q189: =IF(M189<>"", "Permanent","") ->  | U189: 7 | W189: =IF(V189="","","Permanent") ->  | AB189: 7 | AF189: =Table8[[#This Row],[Total]] -> 
A190: MH Underwriting | B190: C84 | C190: =IF('MH Underwriting'!D84="","",'MH Underwriting'!D84) -> 0% Deferred Loan 2 | D190: =IF('MH Underwriting'!F84="","",'MH Underwriting'!F84) ->  | E190: =IF(SUM('MH Underwriting'!G84:L84)<>0,SUM('MH Underwriting'!G84:L84),"") ->  | F190: =IF('MH Underwriting'!P84<>0,'MH Underwriting'!P84,"") ->  | G190: =IF('MH Underwriting'!T84<>0,'MH Underwriting'!T84,"") ->  | H190: =IF(C190="","",_xlfn.IFNA(VLOOKUP(C190,'MH Underwriting'!$E$126:$L$141,6,FALSE),"")) -> 0 | I190: =Sources!J32 -> 30 | J190: =IF(C190="","",_xlfn.IFNA(VLOOKUP(C190,'MH Underwriting'!$E$126:$L$141,8,FALSE),"")) -> Second | L190: 8 | M190: =IF(AND(G190<>"",D190<>""),D190,IF(AND(G190<>"",D189<>""),"TBD - Subsidy","")) ->  | N190: =IF(M190<>"","Subsidy Loan","") ->  | Q190: =IF(M190<>"", "Permanent","") ->  | U190: 8 | W190: =IF(V190="","","Permanent") ->  | AB190: 8 | AF190: =Table8[[#This Row],[Total]] -> 
A191: MH Underwriting | B191: C85 | C191: =IF('MH Underwriting'!D85="","",'MH Underwriting'!D85) -> 0% Deferred Loan 3 | D191: =IF('MH Underwriting'!F85="","",'MH Underwriting'!F85) ->  | E191: =IF(SUM('MH Underwriting'!G85:L85)<>0,SUM('MH Underwriting'!G85:L85),"") ->  | F191: =IF('MH Underwriting'!P85<>0,'MH Underwriting'!P85,"") ->  | G191: =IF('MH Underwriting'!T85<>0,'MH Underwriting'!T85,"") ->  | H191: =IF(C191="","",_xlfn.IFNA(VLOOKUP(C191,'MH Underwriting'!$E$126:$L$141,6,FALSE),"")) -> 0 | I191: =Sources!J32 -> 30 | J191: =IF(C191="","",_xlfn.IFNA(VLOOKUP(C191,'MH Underwriting'!$E$126:$L$141,8,FALSE),"")) -> Second | L191: 9 | M191: =IF(AND(G191<>"",D191<>""),D191,IF(AND(G191<>"",D190<>"",D189<>""),"TBD - Subsidy","")) ->  | N191: =IF(M191<>"","Subsidy Loan","") ->  | Q191: =IF(M191<>"", "Permanent","") ->  | U191: 9 | W191: =IF(V191="","","Permanent") ->  | AB191: 9 | AF191: =Table8[[#This Row],[Total]] -> 
A192: MH Underwriting | B192: C86 | C192: =IF('MH Underwriting'!D86="","",'MH Underwriting'!D86) -> MH Interest Bearing Loan | D192: =IF('MH Underwriting'!F86="","",'MH Underwriting'!F86) ->  | E192: =IF(SUM('MH Underwriting'!G86:L86)<>0,SUM('MH Underwriting'!G86:L86),"") ->  | F192: =IF('MH Underwriting'!P86<>0,'MH Underwriting'!P86,"") ->  | G192: =IF('MH Underwriting'!T86<>0,'MH Underwriting'!T86,"") ->  | H192: =IF(C192="","",_xlfn.IFNA(VLOOKUP(C192,'MH Underwriting'!$E$126:$L$141,6,FALSE),"")) -> 0.06 | I192: =Sources!J39 -> 30 | J192: =IF(C192="","",_xlfn.IFNA(VLOOKUP(C192,'MH Underwriting'!$E$126:$L$141,8,FALSE),"")) -> First | L192: 10 | M192: =IF(G192<>"",IF(D192<>"",D192,IF($B$3<>"4Percent","MPP Taxable","MPP Recoveries of Principal")),"") ->  | N192: =IF(M192<>"","Direct Loan","") ->  | U192: 10 | AB192: 10 | AF192: =Table8[[#This Row],[Total]] -> 
A193: MH Underwriting | B193: C88 | C193: =IF('MH Underwriting'!D87="","",'MH Underwriting'!D87) -> MH Interest Bearing Loan #2 | D193: =IF('MH Underwriting'!F87="","",'MH Underwriting'!F87) ->  | E193: =IF(SUM('MH Underwriting'!G87:L87)<>0,SUM('MH Underwriting'!G87:L87),"") ->  | F193: =IF('MH Underwriting'!P87<>0,'MH Underwriting'!P87,"") ->  | G193: =IF('MH Underwriting'!T87<>0,'MH Underwriting'!T87,"") ->  | H193: =IF(C193="","",_xlfn.IFNA(VLOOKUP(C193,'MH Underwriting'!$E$126:$L$141,6,FALSE),"")) -> 0.06 | I193: =Sources!J39 -> 30 | J193: =IF(C193="","",_xlfn.IFNA(VLOOKUP(C193,'MH Underwriting'!$E$126:$L$141,8,FALSE),"")) -> First | L193: 11 | M193: =IF(AND(G193<>"",D193<>""),D193,IF(AND(G193<>"",D193="",D192<>""),IF($B$3<>"4Percent","MPP Taxable","MPP Recoveries of Principal"),"")) ->  | N193: =IF(M193<>"","Direct Loan","") ->  | U193: 11 | AB193: 11 | AF193: =Table8[[#This Row],[Total]] -> 
A194: MH Underwriting | B194: C89 | C194: =IF('MH Underwriting'!D88="","",'MH Underwriting'!D88) -> MH Interest Bearing Loan #3 | D194: =IF('MH Underwriting'!F88="","",'MH Underwriting'!F88) ->  | E194: =IF(SUM('MH Underwriting'!G88:L88)<>0,SUM('MH Underwriting'!G88:L88),"") ->  | F194: =IF('MH Underwriting'!P88<>0,'MH Underwriting'!P88,"") ->  | G194: =IF('MH Underwriting'!T88<>0,'MH Underwriting'!T88,"") ->  | H194: =IF(C194="","",_xlfn.IFNA(VLOOKUP(C194,'MH Underwriting'!$E$126:$L$141,6,FALSE),"")) -> 0.06 | I194: =Sources!J39 -> 30 | J194: =IF(C194="","",_xlfn.IFNA(VLOOKUP(C194,'MH Underwriting'!$E$126:$L$141,8,FALSE),"")) -> First | L194: 12 | M194: =IF(AND(G194<>"",D194<>""),D194,IF(AND(G194<>"",D194="",D192<>"",D193<>""),IF('Tax Credit Calculations'!D38="Yes","State Equity", IF($B$3<>"4Percent","MPP Taxable","MPP Recoveries of Principal")),"")) ->  | N194: =IF(M194<>"","Direct Loan","") ->  | U194: 12 | AB194: 12 | AF194: =Table8[[#This Row],[Total]] -> 
A195: MH Underwriting | B195: C91 | C195: =IF('MH Underwriting'!D90="","",'MH Underwriting'!D90) -> AHP Subsidized Advance | D195: =IF('MH Underwriting'!F90="","",'MH Underwriting'!F90) ->  | E195: =IF(SUM('MH Underwriting'!G90:L90)<>0,SUM('MH Underwriting'!G90:L90),"") ->  | F195: =IF('MH Underwriting'!P90<>0,'MH Underwriting'!P90,"") ->  | G195: =IF('MH Underwriting'!T90<>0,'MH Underwriting'!T90,"") ->  | H195: =IF(C195="","",_xlfn.IFNA(VLOOKUP(C195,'MH Underwriting'!$E$126:$L$141,6,FALSE),"")) -> 0.07 | I195: =IF(C195="","",_xlfn.IFNA(VLOOKUP(C195,Sources!$B$43:$J$55,9,FALSE),"")) -> 30 | J195: =IF(C195="","",_xlfn.IFNA(VLOOKUP(C195,'MH Underwriting'!$E$126:$L$141,8,FALSE),"")) -> First | L195: 13 | M195: =IF(AND(G195<>"",D195<>""),D195,IF(G195<>"","External - Permanent","")) ->  | N195: =IF(M195<>"","Third Party Loan","") ->  | U195: 13 | AB195: 13 | AF195: =Table8[[#This Row],[Total]] -> 
A196: MH Underwriting | B196: C92 | C196: =IF('MH Underwriting'!D92="","",'MH Underwriting'!D92) -> City FEDHOME* | D196: =IF('MH Underwriting'!F92="","",'MH Underwriting'!F92) ->  | E196: =IF(SUM('MH Underwriting'!G92:L92)<>0,SUM('MH Underwriting'!G92:L92),"") ->  | F196: =IF('MH Underwriting'!P92<>0,'MH Underwriting'!P92,"") ->  | G196: =IF('MH Underwriting'!T92<>0,'MH Underwriting'!T92,"") ->  | H196: =IF(C196="","",_xlfn.IFNA(VLOOKUP(C196,'MH Underwriting'!$E$126:$L$141,6,FALSE),"")) -> 0 | I196: =IF(C196="","",_xlfn.IFNA(VLOOKUP(C196,Sources!$B$43:$J$55,9,FALSE),"")) -> 30 | J196: =IF(C196="","",_xlfn.IFNA(VLOOKUP(C196,'MH Underwriting'!$E$126:$L$141,8,FALSE),"")) -> Third | L196: 14 | N196: =IF(M196<>"","Third Party Loan","") ->  | S196: =IF(AND(G196<>"",M196<>""),G196,"") ->  | U196: 14 | AB196: 14 | AF196: =Table8[[#This Row],[Total]] -> 
A197: MH Underwriting | B197: C93 | C197: =IF('MH Underwriting'!D93="","",'MH Underwriting'!D93) -> AHP Capital Advance* | D197: =IF('MH Underwriting'!F93="","",'MH Underwriting'!F93) ->  | E197: =IF(SUM('MH Underwriting'!G93:L93)<>0,SUM('MH Underwriting'!G93:L93),"") ->  | F197: =IF('MH Underwriting'!P93<>0,'MH Underwriting'!P93,"") ->  | G197: =IF('MH Underwriting'!T93<>0,'MH Underwriting'!T93,"") ->  | H197: =IF(C197="","",_xlfn.IFNA(VLOOKUP(C197,'MH Underwriting'!$E$126:$L$141,6,FALSE),"")) -> 0 | I197: =IF(C197="","",_xlfn.IFNA(VLOOKUP(C197,Sources!$B$43:$J$55,9,FALSE),"")) -> 30 | J197: =IF(C197="","",_xlfn.IFNA(VLOOKUP(C197,'MH Underwriting'!$E$126:$L$141,8,FALSE),"")) -> Third | L197: 15 | U197: 15 | AB197: 15 | AF197: =Table8[[#This Row],[Total]] -> 
